Workbook

Sheet Homepage - Intro & Index
A7: For easier navigation see below links to each relevant sheet, and note that on each sheet there is a link: Index, linking back here.
A9: Sheet | B9: Table Name | C9: Explaination
A10: Summary for ABCEPs | B10: Table X.1 | C10: Summary of all five products (avocados, bananas, cucumbers, eggplants and peppers) from Table X.2-X.5
A11: Avocados - Summary | B11: Table X.2 | C11: A more in depth breakdown of Avocado waste mass, costs and climate impacts
A12: Bananas - Summary | B12: Table X.3 | C12: A more in depth breakdown of Banana waste mass, costs and climate impacts
A13: Cucumbers - Summary | B13: Table X.4 | C13: A more in depth breakdown of Cucumber waste mass, costs and climate impacts
A14: Eggplants - Summary | B14: Table X.5 | C14: A more in depth breakdown of Eggplant waste mass, costs and climate impacts
A15: Peppers - Summary | B15: Table X.6 | C15: A more in depth breakdown of Pepper waste mass, costs and climate impacts
A16: ABCEPs - Coefficients | B16: Table X.7
A17: Schemes | B17: Table X.8 | C17: Illustrations depicting how the various coefficients have been applied in Table X.2-X.5
A18: FFV Waste | B18: Table X.9 | C18: Calculated values for the food waste for all five FFVs with the help of Table X.13. Also includes a best case and worst case where the minimum and maximum coefficients identified were applied.
A19: Coefficient - Sources | B19: Table X.10 | C19: A table with the sources for the coefficients in Table X.7 to better illustrate where the coefficients are derived from
A20: Additional Coefficient Calculations | B20: Table X.11 | C20: Additional calculations required regarding the estimation of household food waste, and CO2-eq also presented in Table X.7
A21: FFV Data | B21: Table X.12 | C21: The adjusted SUA data (from Table. X14) which exclude processing
A22: FFV Coefficients for Calculations | B22: Table X.13 | C22: An additional sheet filled with the same data as in Table X.7 required to perform the model-calculcations in Table X.2-X.5 more smoothly
A23: SUA Data | B23: Table X.14 | C23: The original data collected from FAOSTAT
A24: Reference List | B24: Table X.15 | C24: The references for the sources presented in Table X.10
A34: FFV Coefficients

Sheet ABCEPs - Summary
A1: Homepage
N7: Food Waste | O7: Unit: Tonnes
N8: Country | O8: Product | P8: Food Availability | Q8: Food Supply Quantity | R8: Food Waste - Pre R&D | S8: Food Waste - R&D | T8: Food Waste - Households | U8: Food Waste - Food Service | V8: Total Food Waste | Y8: Country | Z8: Population | AA8: Total food waste | AB8: kg FW per Capita | AC8: Total Econcomic | AD8: Cost per Capita (EUR) | AE8: Total climate | AF8: kg CO2-eq per capita
N9: Austria | O9: ABCEPs | P9: =Q9+R9 -> 227952.1258 | Q9: =SUMPRODUCT(IF((('FFV Waste'!A4:A250=$N9)*(ISNUMBER('FFV Waste'!D4:D250))),'FFV Waste'!D4:D250,0)) -> 207525.0508 | R9: =SUMPRODUCT(IF((('FFV Waste'!A4:A250=$N9)*(ISNUMBER('FFV Waste'!C4:C250))),'FFV Waste'!C4:C250,0)) -> 20427.075 | S9: =SUMPRODUCT(IF((('FFV Waste'!A4:A250=$N9)*(ISNUMBER('FFV Waste'!E4:E250))),'FFV Waste'!E4:E250,0)) -> 5885.262934 | T9: =SUMPRODUCT(IF((('FFV Waste'!A4:A250=$N9)*(ISNUMBER('FFV Waste'!G4:G250))),'FFV Waste'!G4:G250,0)) -> 66742.926 | U9: =SUMPRODUCT(IF((('FFV Waste'!A4:A250=$N9)*(ISNUMBER('FFV Waste'!I4:I250))),'FFV Waste'!I4:I250,0)) -> 11423.17395 | V9: =SUM(R9:U9) -> 104478.4379 | Y9: Austria | Z9: 8978929 | AA9: 104590.2676 | AB9: =AA9/Z9*1000 -> 11.64841236 | AC9: 439.7875428 | AD9: =AC9/Z9*10^6 -> 48.97995549 | AE9: 120800.3128 | AF9: =AE9/Z9*1000 -> 13.45375521
N10: Belgium | O10: ABCEPs | P10: 239763.6236 | Q10: =SUMPRODUCT(IF((('FFV Waste'!A5:A251=$N10)*(ISNUMBER('FFV Waste'!D5:D251))),'FFV Waste'!D5:D251,0)) -> 234398.33 | R10: =SUMPRODUCT(IF((('FFV Waste'!A5:A251=$N10)*(ISNUMBER('FFV Waste'!C5:C251))),'FFV Waste'!C5:C251,0)) -> 5365.293518 | S10: =SUMPRODUCT(IF((('FFV Waste'!A5:A251=$N10)*(ISNUMBER('FFV Waste'!E5:E251))),'FFV Waste'!E5:E251,0)) -> 6224.411861 | T10: =SUMPRODUCT(IF((('FFV Waste'!A5:A251=$N10)*(ISNUMBER('FFV Waste'!G5:G251))),'FFV Waste'!G5:G251,0)) -> 77858.29615 | U10: =SUMPRODUCT(IF((('FFV Waste'!A5:A251=$N10)*(ISNUMBER('FFV Waste'!I5:I251))),'FFV Waste'!I5:I251,0)) -> 13183.61832 | V10: 102631.6199 | Y10: Belgium | Z10: 11617623 | AA10: 102664.5809 | AB10: =AA10/Z10*1000 -> 8.836969567 | AC10: 412.9806662 | AD10: =AC10/Z10*10^6 -> 35.54777653 | AE10: 118061.5176 | AF10: =AE10/Z10*1000 -> 10.16227825
N11: Bulgaria | O11: ABCEPs | P11: 182422.7678 | Q11: =SUMPRODUCT(IF((('FFV Waste'!A6:A252=$N11)*(ISNUMBER('FFV Waste'!D6:D252))),'FFV Waste'!D6:D252,0)) -> 170030.3068 | R11: =SUMPRODUCT(IF((('FFV Waste'!A6:A252=$N11)*(ISNUMBER('FFV Waste'!C6:C252))),'FFV Waste'!C6:C252,0)) -> 12392.46096 | S11: =SUMPRODUCT(IF((('FFV Waste'!A6:A252=$N11)*(ISNUMBER('FFV Waste'!E6:E252))),'FFV Waste'!E6:E252,0)) -> 5689.183806 | T11: =SUMPRODUCT(IF((('FFV Waste'!A6:A252=$N11)*(ISNUMBER('FFV Waste'!G6:G252))),'FFV Waste'!G6:G252,0)) -> 44355.2991 | U11: =SUMPRODUCT(IF((('FFV Waste'!A6:A252=$N11)*(ISNUMBER('FFV Waste'!I6:I252))),'FFV Waste'!I6:I252,0)) -> 7376.305509 | V11: 69813.24938 | Y11: Bulgaria | Z11: 6482484 | AA11: 69823.49265 | AB11: 10.77110143 | AC11: 149.0513382 | AD11: 22.99293576 | AE11: 82075.50953 | AF11: 12.66112026
N12: Croatia | O12: ABCEPs | P12: 100218.2355 | Q12: =SUMPRODUCT(IF((('FFV Waste'!A7:A253=$N12)*(ISNUMBER('FFV Waste'!D7:D253))),'FFV Waste'!D7:D253,0)) -> 93552.22992 | R12: =SUMPRODUCT(IF((('FFV Waste'!A7:A253=$N12)*(ISNUMBER('FFV Waste'!C7:C253))),'FFV Waste'!C7:C253,0)) -> 6666.0056 | S12: =SUMPRODUCT(IF((('FFV Waste'!A7:A253=$N12)*(ISNUMBER('FFV Waste'!E7:E253))),'FFV Waste'!E7:E253,0)) -> 2391.548192 | T12: =SUMPRODUCT(IF((('FFV Waste'!A7:A253=$N12)*(ISNUMBER('FFV Waste'!G7:G253))),'FFV Waste'!G7:G253,0)) -> 30611.99098 | U12: =SUMPRODUCT(IF((('FFV Waste'!A7:A253=$N12)*(ISNUMBER('FFV Waste'!I7:I253))),'FFV Waste'!I7:I253,0)) -> 5154.920522 | V12: 44824.4653 | Y12: Croatia | Z12: 3862305 | AA12: 44831.64645 | AB12: 11.60748477 | AC12: 141.0511283 | AD12: 36.51993521 | AE12: 48502.68431 | AF12: 12.55796327
N13: Cyprus | O13: ABCEPs | P13: 20068.97248 | Q13: =SUMPRODUCT(IF((('FFV Waste'!A8:A254=$N13)*(ISNUMBER('FFV Waste'!D8:D254))),'FFV Waste'!D8:D254,0)) -> 17804.85628 | R13: =SUMPRODUCT(IF((('FFV Waste'!A8:A254=$N13)*(ISNUMBER('FFV Waste'!C8:C254))),'FFV Waste'!C8:C254,0)) -> 2264.116206 | S13: =SUMPRODUCT(IF((('FFV Waste'!A8:A254=$N13)*(ISNUMBER('FFV Waste'!E8:E254))),'FFV Waste'!E8:E254,0)) -> 492.7464915 | T13: =SUMPRODUCT(IF((('FFV Waste'!A8:A254=$N13)*(ISNUMBER('FFV Waste'!G8:G254))),'FFV Waste'!G8:G254,0)) -> 5373.351498 | U13: =SUMPRODUCT(IF((('FFV Waste'!A8:A254=$N13)*(ISNUMBER('FFV Waste'!I8:I254))),'FFV Waste'!I8:I254,0)) -> 931.8588778 | V13: 9062.073073 | Y13: Cyprus | Z13: 929764 | AA13: 9066.862301 | AB13: 9.75178895 | AC13: 26.04997399 | AD13: 28.01783462 | AE13: 12505.92512 | AF13: 13.45064459
N14: Czechia | O14: ABCEPs | P14: 200418.8053 | Q14: =SUMPRODUCT(IF((('FFV Waste'!A9:A255=$N14)*(ISNUMBER('FFV Waste'!D9:D255))),'FFV Waste'!D9:D255,0)) -> 188440.4431 | R14: =SUMPRODUCT(IF((('FFV Waste'!A9:A255=$N14)*(ISNUMBER('FFV Waste'!C9:C255))),'FFV Waste'!C9:C255,0)) -> 11978.3622 | S14: =SUMPRODUCT(IF((('FFV Waste'!A9:A255=$N14)*(ISNUMBER('FFV Waste'!E9:E255))),'FFV Waste'!E9:E255,0)) -> 4796.827403 | T14: =SUMPRODUCT(IF((('FFV Waste'!A9:A255=$N14)*(ISNUMBER('FFV Waste'!G9:G255))),'FFV Waste'!G9:G255,0)) -> 58111.74138 | U14: =SUMPRODUCT(IF((('FFV Waste'!A9:A255=$N14)*(ISNUMBER('FFV Waste'!I9:I255))),'FFV Waste'!I9:I255,0)) -> 9818.356713 | V14: 84705.2877 | Y14: Czechia | Z14: 10516707 | AA14: 84727.73278 | AB14: 8.056488859 | AC14: 350.7113797 | AD14: 33.34802232 | AE14: 87507.9281 | AF14: 8.320848732
N15: Denmark | O15: ABCEPs | P15: 124319.8379 | Q15: =SUMPRODUCT(IF((('FFV Waste'!A10:A256=$N15)*(ISNUMBER('FFV Waste'!D10:D256))),'FFV Waste'!D10:D256,0)) -> 117467.8298 | R15: =SUMPRODUCT(IF((('FFV Waste'!A10:A256=$N15)*(ISNUMBER('FFV Waste'!C10:C256))),'FFV Waste'!C10:C256,0)) -> 6852.008021 | S15: =SUMPRODUCT(IF((('FFV Waste'!A10:A256=$N15)*(ISNUMBER('FFV Waste'!E10:E256))),'FFV Waste'!E10:E256,0)) -> 3076.270585 | T15: =SUMPRODUCT(IF((('FFV Waste'!A10:A256=$N15)*(ISNUMBER('FFV Waste'!G10:G256))),'FFV Waste'!G10:G256,0)) -> 39308.81852 | U15: =SUMPRODUCT(IF((('FFV Waste'!A10:A256=$N15)*(ISNUMBER('FFV Waste'!I10:I256))),'FFV Waste'!I10:I256,0)) -> 6306.273602 | V15: 55543.37073 | Y15: Denmark | Z15: 5873420 | AA15: 55582.81903 | AB15: 9.463450431 | AC15: 277.1801937 | AD15: 47.19229915 | AE15: 66070.77912 | AF15: 11.24911536
N16: Estonia | O16: ABCEPs | P16: 28290.28127 | Q16: =SUMPRODUCT(IF((('FFV Waste'!A11:A257=$N16)*(ISNUMBER('FFV Waste'!D11:D257))),'FFV Waste'!D11:D257,0)) -> 27734.11187 | R16: =SUMPRODUCT(IF((('FFV Waste'!A11:A257=$N16)*(ISNUMBER('FFV Waste'!C11:C257))),'FFV Waste'!C11:C257,0)) -> 556.1694 | S16: =SUMPRODUCT(IF((('FFV Waste'!A11:A257=$N16)*(ISNUMBER('FFV Waste'!E11:E257))),'FFV Waste'!E11:E257,0)) -> 666.5691423 | T16: =SUMPRODUCT(IF((('FFV Waste'!A11:A257=$N16)*(ISNUMBER('FFV Waste'!G11:G257))),'FFV Waste'!G11:G257,0)) -> 8675.659989 | U16: =SUMPRODUCT(IF((('FFV Waste'!A11:A257=$N16)*(ISNUMBER('FFV Waste'!I11:I257))),'FFV Waste'!I11:I257,0)) -> 1491.664976 | V16: 11390.06351 | Y16: Estonia | Z16: 1331796 | AA16: 11395.45366 | AB16: 8.556455837 | AC16: 54.13060646 | AD16: 40.64481832 | AE16: 13617.60599 | AF16: 10.22499391
N17: Finland | O17: ABCEPs | P17: 155033.279 | Q17: =SUMPRODUCT(IF((('FFV Waste'!A12:A258=$N17)*(ISNUMBER('FFV Waste'!D12:D258))),'FFV Waste'!D12:D258,0)) -> 144147.0762 | R17: =SUMPRODUCT(IF((('FFV Waste'!A12:A258=$N17)*(ISNUMBER('FFV Waste'!C12:C258))),'FFV Waste'!C12:C258,0)) -> 10886.20283 | S17: =SUMPRODUCT(IF((('FFV Waste'!A12:A258=$N17)*(ISNUMBER('FFV Waste'!E12:E258))),'FFV Waste'!E12:E258,0)) -> 3268.853684 | T17: =SUMPRODUCT(IF((('FFV Waste'!A12:A258=$N17)*(ISNUMBER('FFV Waste'!G12:G258))),'FFV Waste'!G12:G258,0)) -> 41182.96866 | U17: =SUMPRODUCT(IF((('FFV Waste'!A12:A258=$N17)*(ISNUMBER('FFV Waste'!I12:I258))),'FFV Waste'!I12:I258,0)) -> 7951.109793 | V17: 63289.13496 | Y17: Finland | Z17: 5548241 | AA17: 63308.02508 | AB17: 11.41046776 | AC17: 317.1253886 | AD17: 57.15782509 | AE17: 82173.68016 | AF17: 14.81076257
N18: France | O18: ABCEPs | P18: 1254281.168 | Q18: =SUMPRODUCT(IF((('FFV Waste'!A13:A259=$N18)*(ISNUMBER('FFV Waste'!D13:D259))),'FFV Waste'!D13:D259,0)) -> 1095546.755 | R18: =SUMPRODUCT(IF((('FFV Waste'!A13:A259=$N18)*(ISNUMBER('FFV Waste'!C13:C259))),'FFV Waste'!C13:C259,0)) -> 158734.4136 | S18: =SUMPRODUCT(IF((('FFV Waste'!A13:A259=$N18)*(ISNUMBER('FFV Waste'!E13:E259))),'FFV Waste'!E13:E259,0)) -> 29007.33493 | T18: =SUMPRODUCT(IF((('FFV Waste'!A13:A259=$N18)*(ISNUMBER('FFV Waste'!G13:G259))),'FFV Waste'!G13:G259,0)) -> 361646.0914 | U18: =SUMPRODUCT(IF((('FFV Waste'!A13:A259=$N18)*(ISNUMBER('FFV Waste'!I13:I259))),'FFV Waste'!I13:I259,0)) -> 62626.8804 | V18: 612014.7204 | Y18: France | Z18: 68091703 | AA18: 612397.5233 | AB18: 8.993717242 | AC18: 2348.135011 | AD18: 34.48489181 | AE18: 783329.6083 | AF18: 11.50403902
N19: Germany | O19: ABCEPs | P19: 1785034.182 | Q19: =SUMPRODUCT(IF((('FFV Waste'!A14:A260=$N19)*(ISNUMBER('FFV Waste'!D14:D260))),'FFV Waste'!D14:D260,0)) -> 1594589.801 | R19: =SUMPRODUCT(IF((('FFV Waste'!A14:A260=$N19)*(ISNUMBER('FFV Waste'!C14:C260))),'FFV Waste'!C14:C260,0)) -> 190444.3803 | S19: =SUMPRODUCT(IF((('FFV Waste'!A14:A260=$N19)*(ISNUMBER('FFV Waste'!E14:E260))),'FFV Waste'!E14:E260,0)) -> 41837.06341 | T19: =SUMPRODUCT(IF((('FFV Waste'!A14:A260=$N19)*(ISNUMBER('FFV Waste'!G14:G260))),'FFV Waste'!G14:G260,0)) -> 490121.3407 | U19: =SUMPRODUCT(IF((('FFV Waste'!A14:A260=$N19)*(ISNUMBER('FFV Waste'!I14:I260))),'FFV Waste'!I14:I260,0)) -> 82153.65342 | V19: 804556.4379 | Y19: Germany | Z19: 83237124 | AA19: 804839.0197 | AB19: 9.66923148 | AC19: 3321.847595 | AD19: 39.90824569 | AE19: 846878.1134 | AF19: 10.17428369
N20: Greece | O20: ABCEPs | P20: 347438.5465 | Q20: =SUMPRODUCT(IF((('FFV Waste'!A15:A261=$N20)*(ISNUMBER('FFV Waste'!D15:D261))),'FFV Waste'!D15:D261,0)) -> 317437.3316 | R20: =SUMPRODUCT(IF((('FFV Waste'!A15:A261=$N20)*(ISNUMBER('FFV Waste'!C15:C261))),'FFV Waste'!C15:C261,0)) -> 30001.21493 | S20: =SUMPRODUCT(IF((('FFV Waste'!A15:A261=$N20)*(ISNUMBER('FFV Waste'!E15:E261))),'FFV Waste'!E15:E261,0)) -> 10889.51307 | T20: =SUMPRODUCT(IF((('FFV Waste'!A15:A261=$N20)*(ISNUMBER('FFV Waste'!G15:G261))),'FFV Waste'!G15:G261,0)) -> 91570.35033 | U20: =SUMPRODUCT(IF((('FFV Waste'!A15:A261=$N20)*(ISNUMBER('FFV Waste'!I15:I261))),'FFV Waste'!I15:I261,0)) -> 15528.05614 | V20: 147989.1345 | Y20: Greece | Z20: 10459782 | AA20: 148045.0562 | AB20: 14.15374204 | AC20: 412.9174343 | AD20: 39.47667688 | AE20: 201420.0713 | AF20: 19.2566223
N21: Hungary | O21: ABCEPs | P21: 101751.9269 | Q21: =SUMPRODUCT(IF((('FFV Waste'!A16:A262=$N21)*(ISNUMBER('FFV Waste'!D16:D262))),'FFV Waste'!D16:D262,0)) -> 96275.59525 | R21: =SUMPRODUCT(IF((('FFV Waste'!A16:A262=$N21)*(ISNUMBER('FFV Waste'!C16:C262))),'FFV Waste'!C16:C262,0)) -> 5476.33168 | S21: =SUMPRODUCT(IF((('FFV Waste'!A16:A262=$N21)*(ISNUMBER('FFV Waste'!E16:E262))),'FFV Waste'!E16:E262,0)) -> 3047.888836 | T21: =SUMPRODUCT(IF((('FFV Waste'!A16:A262=$N21)*(ISNUMBER('FFV Waste'!G16:G262))),'FFV Waste'!G16:G262,0)) -> 26147.4718 | U21: =SUMPRODUCT(IF((('FFV Waste'!A16:A262=$N21)*(ISNUMBER('FFV Waste'!I16:I262))),'FFV Waste'!I16:I262,0)) -> 4301.095147 | V21: 38972.78746 | Y21: Hungary | Z21: 9610403 | AA21: 38987.14381 | AB21: 4.056764717 | AC21: 83.22367373 | AD21: 8.65974858 | AE21: 43791.26153 | AF21: 4.556651945
N22: Iceland | O22: ABCEPs | P22: 7432.338124 | Q22: =SUMPRODUCT(IF((('FFV Waste'!A17:A263=$N22)*(ISNUMBER('FFV Waste'!D17:D263))),'FFV Waste'!D17:D263,0)) -> 7149.264224 | R22: =SUMPRODUCT(IF((('FFV Waste'!A17:A263=$N22)*(ISNUMBER('FFV Waste'!C17:C263))),'FFV Waste'!C17:C263,0)) -> 283.0739 | S22: =SUMPRODUCT(IF((('FFV Waste'!A17:A263=$N22)*(ISNUMBER('FFV Waste'!E17:E263))),'FFV Waste'!E17:E263,0)) -> 180.5253948 | T22: =SUMPRODUCT(IF((('FFV Waste'!A17:A263=$N22)*(ISNUMBER('FFV Waste'!G17:G263))),'FFV Waste'!G17:G263,0)) -> 2281.641557 | U22: =SUMPRODUCT(IF((('FFV Waste'!A17:A263=$N22)*(ISNUMBER('FFV Waste'!I17:I263))),'FFV Waste'!I17:I263,0)) -> 393.1371212 | V22: 3138.377973 | Y22: Iceland | Z22: 376248 | AA22: 3141.152886 | AB22: 8.348623477 | AC22: 21.12419556 | AD22: 56.14433979 | AE22: 4302.295695 | AF22: 11.43473373
N23: Ireland | O23: ABCEPs | P23: 92624.21656 | Q23: =SUMPRODUCT(IF((('FFV Waste'!A18:A264=$N23)*(ISNUMBER('FFV Waste'!D18:D264))),'FFV Waste'!D18:D264,0)) -> 85795.57955 | R23: =SUMPRODUCT(IF((('FFV Waste'!A18:A264=$N23)*(ISNUMBER('FFV Waste'!C18:C264))),'FFV Waste'!C18:C264,0)) -> 6828.637017 | S23: =SUMPRODUCT(IF((('FFV Waste'!A18:A264=$N23)*(ISNUMBER('FFV Waste'!E18:E264))),'FFV Waste'!E18:E264,0)) -> 2084.805036 | T23: =SUMPRODUCT(IF((('FFV Waste'!A18:A264=$N23)*(ISNUMBER('FFV Waste'!G18:G264))),'FFV Waste'!G18:G264,0)) -> 29108.20388 | U23: =SUMPRODUCT(IF((('FFV Waste'!A18:A264=$N23)*(ISNUMBER('FFV Waste'!I18:I264))),'FFV Waste'!I18:I264,0)) -> 4954.935477 | V23: 42976.58141 | Y23: Ireland | Z23: 5154277 | AA23: 42999.3914 | AB23: 8.34246809 | AC23: 211.458382 | AD23: 41.02580866 | AE23: 47028.53259 | AF23: 9.124176406
N24: Italy | O24: ABCEPs | P24: 1281645.827 | Q24: =SUMPRODUCT(IF((('FFV Waste'!A19:A265=$N24)*(ISNUMBER('FFV Waste'!D19:D265))),'FFV Waste'!D19:D265,0)) -> 1189331.013 | R24: =SUMPRODUCT(IF((('FFV Waste'!A19:A265=$N24)*(ISNUMBER('FFV Waste'!C19:C265))),'FFV Waste'!C19:C265,0)) -> 92314.8137 | S24: =SUMPRODUCT(IF((('FFV Waste'!A19:A265=$N24)*(ISNUMBER('FFV Waste'!E19:E265))),'FFV Waste'!E19:E265,0)) -> 46094.39837 | T24: =SUMPRODUCT(IF((('FFV Waste'!A19:A265=$N24)*(ISNUMBER('FFV Waste'!G19:G265))),'FFV Waste'!G19:G265,0)) -> 367545.1586 | U24: =SUMPRODUCT(IF((('FFV Waste'!A19:A265=$N24)*(ISNUMBER('FFV Waste'!I19:I265))),'FFV Waste'!I19:I265,0)) -> 62666.81245 | V24: 568621.1831 | Y24: Italy | Z24: 59030133 | AA24: 568751.1731 | AB24: 9.634929555 | AC24: 1745.094524 | AD24: 29.56277472 | AE24: 677077.9884 | AF24: 11.47004003
N25: Latvia | O25: ABCEPs | P25: 33589.41415 | Q25: =SUMPRODUCT(IF((('FFV Waste'!A20:A266=$N25)*(ISNUMBER('FFV Waste'!D20:D266))),'FFV Waste'!D20:D266,0)) -> 32879.476 | R25: =SUMPRODUCT(IF((('FFV Waste'!A20:A266=$N25)*(ISNUMBER('FFV Waste'!C20:C266))),'FFV Waste'!C20:C266,0)) -> 709.93815 | S25: =SUMPRODUCT(IF((('FFV Waste'!A20:A266=$N25)*(ISNUMBER('FFV Waste'!E20:E266))),'FFV Waste'!E20:E266,0)) -> 819.1852238 | T25: =SUMPRODUCT(IF((('FFV Waste'!A20:A266=$N25)*(ISNUMBER('FFV Waste'!G20:G266))),'FFV Waste'!G20:G266,0)) -> 10158.37923 | U25: =SUMPRODUCT(IF((('FFV Waste'!A20:A266=$N25)*(ISNUMBER('FFV Waste'!I20:I266))),'FFV Waste'!I20:I266,0)) -> 1753.887658 | V25: 13441.39026 | Y25: Latvia | Z25: 1875757 | AA25: 13450.16238 | AB25: 7.170524955 | AC25: 59.64505202 | AD25: 31.79785655 | AE25: 16606.40537 | AF25: 8.853175208
N26: Lithuania | O26: ABCEPs | P26: 61367.69846 | Q26: =SUMPRODUCT(IF((('FFV Waste'!A21:A267=$N26)*(ISNUMBER('FFV Waste'!D21:D267))),'FFV Waste'!D21:D267,0)) -> 60801.71892 | R26: =SUMPRODUCT(IF((('FFV Waste'!A21:A267=$N26)*(ISNUMBER('FFV Waste'!C21:C267))),'FFV Waste'!C21:C267,0)) -> 565.9795412 | S26: =SUMPRODUCT(IF((('FFV Waste'!A21:A267=$N26)*(ISNUMBER('FFV Waste'!E21:E267))),'FFV Waste'!E21:E267,0)) -> 1484.401791 | T26: =SUMPRODUCT(IF((('FFV Waste'!A21:A267=$N26)*(ISNUMBER('FFV Waste'!G21:G267))),'FFV Waste'!G21:G267,0)) -> 17617.316 | U26: =SUMPRODUCT(IF((('FFV Waste'!A21:A267=$N26)*(ISNUMBER('FFV Waste'!I21:I267))),'FFV Waste'!I21:I267,0)) -> 3063.629913 | V26: 22731.32724 | Y26: Lithuania | Z26: 2805998 | AA26: 22744.40515 | AB26: 8.105638403 | AC26: 88.10087446 | AD26: 31.39734043 | AE26: 31488.21875 | AF26: 11.22175381
N27: Luxembourg | O27: ABCEPs | P27: 9859.71166 | Q27: =SUMPRODUCT(IF((('FFV Waste'!A22:A268=$N27)*(ISNUMBER('FFV Waste'!D22:D268))),'FFV Waste'!D22:D268,0)) -> 9369.02231 | R27: =SUMPRODUCT(IF((('FFV Waste'!A22:A268=$N27)*(ISNUMBER('FFV Waste'!C22:C268))),'FFV Waste'!C22:C268,0)) -> 490.68935 | S27: =SUMPRODUCT(IF((('FFV Waste'!A22:A268=$N27)*(ISNUMBER('FFV Waste'!E22:E268))),'FFV Waste'!E22:E268,0)) -> 262.868743 | T27: =SUMPRODUCT(IF((('FFV Waste'!A22:A268=$N27)*(ISNUMBER('FFV Waste'!G22:G268))),'FFV Waste'!G22:G268,0)) -> 2921.835497 | U27: =SUMPRODUCT(IF((('FFV Waste'!A22:A268=$N27)*(ISNUMBER('FFV Waste'!I22:I268))),'FFV Waste'!I22:I268,0)) -> 504.797907 | V27: 4180.191497 | Y27: Luxembourg | Z27: 645397 | AA27: 4183.352972 | AB27: 6.48182897 | AC27: 29.14135993 | AD27: 45.15261138 | AE27: 4659.750139 | AF27: 7.219974897
N28: Malta | O28: ABCEPs | P28: 10938.38212 | Q28: =SUMPRODUCT(IF((('FFV Waste'!A23:A269=$N28)*(ISNUMBER('FFV Waste'!D23:D269))),'FFV Waste'!D23:D269,0)) -> 10302.57447 | R28: =SUMPRODUCT(IF((('FFV Waste'!A23:A269=$N28)*(ISNUMBER('FFV Waste'!C23:C269))),'FFV Waste'!C23:C269,0)) -> 635.80765 | S28: =SUMPRODUCT(IF((('FFV Waste'!A23:A269=$N28)*(ISNUMBER('FFV Waste'!E23:E269))),'FFV Waste'!E23:E269,0)) -> 273.8477762 | T28: =SUMPRODUCT(IF((('FFV Waste'!A23:A269=$N28)*(ISNUMBER('FFV Waste'!G23:G269))),'FFV Waste'!G23:G269,0)) -> 3513.385336 | U28: =SUMPRODUCT(IF((('FFV Waste'!A23:A269=$N28)*(ISNUMBER('FFV Waste'!I23:I269))),'FFV Waste'!I23:I269,0)) -> 603.5891047 | V28: 5026.629867 | Y28: Malta | Z28: 520174 | AA28: 5028.459545 | AB28: 9.666879824 | AC28: 25.42782984 | AD28: 48.88331567 | AE28: 5912.569418 | AF28: 11.36652239
N29: Netherlands | O29: ABCEPs | P29: 523348.5913 | Q29: =SUMPRODUCT(IF((('FFV Waste'!A24:A270=$N29)*(ISNUMBER('FFV Waste'!D24:D270))),'FFV Waste'!D24:D270,0)) -> 477568.6671 | R29: =SUMPRODUCT(IF((('FFV Waste'!A24:A270=$N29)*(ISNUMBER('FFV Waste'!C24:C270))),'FFV Waste'!C24:C270,0)) -> 45779.92424 | S29: =SUMPRODUCT(IF((('FFV Waste'!A24:A270=$N29)*(ISNUMBER('FFV Waste'!E24:E270))),'FFV Waste'!E24:E270,0)) -> 11536.76531 | T29: =SUMPRODUCT(IF((('FFV Waste'!A24:A270=$N29)*(ISNUMBER('FFV Waste'!G24:G270))),'FFV Waste'!G24:G270,0)) -> 185068.2357 | U29: =SUMPRODUCT(IF((('FFV Waste'!A24:A270=$N29)*(ISNUMBER('FFV Waste'!I24:I270))),'FFV Waste'!I24:I270,0)) -> 28656.95183 | V29: 271041.8771 | Y29: Netherlands | Z29: 17590672 | AA29: 271139.4982 | AB29: 15.41382264 | AC29: 865.2584857 | AD29: 49.18848386 | AE29: 373719.3837 | AF29: 21.24531591
N30: Norway | O30: ABCEPs | P30: 116029.5136 | Q30: =SUMPRODUCT(IF((('FFV Waste'!A25:A271=$N30)*(ISNUMBER('FFV Waste'!D25:D271))),'FFV Waste'!D25:D271,0)) -> 107615.077 | R30: =SUMPRODUCT(IF((('FFV Waste'!A25:A271=$N30)*(ISNUMBER('FFV Waste'!C25:C271))),'FFV Waste'!C25:C271,0)) -> 8414.43655 | S30: =SUMPRODUCT(IF((('FFV Waste'!A25:A271=$N30)*(ISNUMBER('FFV Waste'!E25:E271))),'FFV Waste'!E25:E271,0)) -> 2633.032498 | T30: =SUMPRODUCT(IF((('FFV Waste'!A25:A271=$N30)*(ISNUMBER('FFV Waste'!G25:G271))),'FFV Waste'!G25:G271,0)) -> 34880.02862 | U30: =SUMPRODUCT(IF((('FFV Waste'!A25:A271=$N30)*(ISNUMBER('FFV Waste'!I25:I271))),'FFV Waste'!I25:I271,0)) -> 6025.428192 | V30: 51952.92586 | Y30: Norway | Z30: 5425270 | AA30: 51994.0046 | AB30: 9.583671338 | AC30: 339.4273761 | AD30: 62.56414447 | AE30: 84368.04297 | AF30: 15.55093903
N31: Poland | O31: ABCEPs | P31: 767909.0578 | Q31: =SUMPRODUCT(IF((('FFV Waste'!A26:A272=$N31)*(ISNUMBER('FFV Waste'!D26:D272))),'FFV Waste'!D26:D272,0)) -> 667088.6304 | R31: =SUMPRODUCT(IF((('FFV Waste'!A26:A272=$N31)*(ISNUMBER('FFV Waste'!C26:C272))),'FFV Waste'!C26:C272,0)) -> 100820.4274 | S31: =SUMPRODUCT(IF((('FFV Waste'!A26:A272=$N31)*(ISNUMBER('FFV Waste'!E26:E272))),'FFV Waste'!E26:E272,0)) -> 17945.38193 | T31: =SUMPRODUCT(IF((('FFV Waste'!A26:A272=$N31)*(ISNUMBER('FFV Waste'!G26:G272))),'FFV Waste'!G26:G272,0)) -> 164613.71 | U31: =SUMPRODUCT(IF((('FFV Waste'!A26:A272=$N31)*(ISNUMBER('FFV Waste'!I26:I272))),'FFV Waste'!I26:I272,0)) -> 28364.2787 | V31: 311743.798 | Y31: Poland | Z31: 36889761 | AA31: 311816.9474 | AB31: 8.452669221 | AC31: 678.7260419 | AD31: 18.39876495 | AE31: 484843.3655 | AF31: 13.14303352
N32: Portugal | O32: ABCEPs | P32: 293393.2984 | Q32: =SUMPRODUCT(IF((('FFV Waste'!A27:A273=$N32)*(ISNUMBER('FFV Waste'!D27:D273))),'FFV Waste'!D27:D273,0)) -> 267607.2703 | R32: =SUMPRODUCT(IF((('FFV Waste'!A27:A273=$N32)*(ISNUMBER('FFV Waste'!C27:C273))),'FFV Waste'!C27:C273,0)) -> 25786.02807 | S32: =SUMPRODUCT(IF((('FFV Waste'!A27:A273=$N32)*(ISNUMBER('FFV Waste'!E27:E273))),'FFV Waste'!E27:E273,0)) -> 6823.3856 | T32: =SUMPRODUCT(IF((('FFV Waste'!A27:A273=$N32)*(ISNUMBER('FFV Waste'!G27:G273))),'FFV Waste'!G27:G273,0)) -> 90579.25744 | U32: =SUMPRODUCT(IF((('FFV Waste'!A27:A273=$N32)*(ISNUMBER('FFV Waste'!I27:I273))),'FFV Waste'!I27:I273,0)) -> 15407.95315 | V32: 138596.6243 | Y32: Portugal | Z32: 10421117 | AA32: 138669.3513 | AB32: 13.30657273 | AC32: 570.679995 | AD32: 54.76188349 | AE32: 158963.9798 | AF32: 15.25402505
N33: Romania | O33: ABCEPs | P33: 357522.3269 | Q33: =SUMPRODUCT(IF((('FFV Waste'!A28:A274=$N33)*(ISNUMBER('FFV Waste'!D28:D274))),'FFV Waste'!D28:D274,0)) -> 328812.0247 | R33: =SUMPRODUCT(IF((('FFV Waste'!A28:A274=$N33)*(ISNUMBER('FFV Waste'!C28:C274))),'FFV Waste'!C28:C274,0)) -> 28710.30215 | S33: =SUMPRODUCT(IF((('FFV Waste'!A28:A274=$N33)*(ISNUMBER('FFV Waste'!E28:E274))),'FFV Waste'!E28:E274,0)) -> 13024.48147 | T33: =SUMPRODUCT(IF((('FFV Waste'!A28:A274=$N33)*(ISNUMBER('FFV Waste'!G28:G274))),'FFV Waste'!G28:G274,0)) -> 92655.64318 | U33: =SUMPRODUCT(IF((('FFV Waste'!A28:A274=$N33)*(ISNUMBER('FFV Waste'!I28:I274))),'FFV Waste'!I28:I274,0)) -> 15562.90982 | V33: 149953.3366 | Y33: Romania | Z33: 19042455 | AA33: 149991.2664 | AB33: 7.876676953 | AC33: 477.5749556 | AD33: 25.07948453 | AE33: 178254.0349 | AF33: 9.360874683
N34: Slovakia | O34: ABCEPs | P34: 86894.83529 | Q34: =SUMPRODUCT(IF((('FFV Waste'!A29:A275=$N34)*(ISNUMBER('FFV Waste'!D29:D275))),'FFV Waste'!D29:D275,0)) -> 82713.52682 | R34: =SUMPRODUCT(IF((('FFV Waste'!A29:A275=$N34)*(ISNUMBER('FFV Waste'!C29:C275))),'FFV Waste'!C29:C275,0)) -> 4181.308469 | S34: =SUMPRODUCT(IF((('FFV Waste'!A29:A275=$N34)*(ISNUMBER('FFV Waste'!E29:E275))),'FFV Waste'!E29:E275,0)) -> 2025.622331 | T34: =SUMPRODUCT(IF((('FFV Waste'!A29:A275=$N34)*(ISNUMBER('FFV Waste'!G29:G275))),'FFV Waste'!G29:G275,0)) -> 26684.4166 | U34: =SUMPRODUCT(IF((('FFV Waste'!A29:A275=$N34)*(ISNUMBER('FFV Waste'!I29:I275))),'FFV Waste'!I29:I275,0)) -> 4498.688015 | V34: 37390.03542 | Y34: Slovakia | Z34: 5434712 | AA34: 37398.22204 | AB34: 6.881362258 | AC34: 184.171473 | AD34: 33.8879913 | AE34: 38387.31561 | AF34: 7.063357839
N35: Slovenia | O35: ABCEPs | P35: 46094.4439 | Q35: =SUMPRODUCT(IF((('FFV Waste'!A30:A276=$N35)*(ISNUMBER('FFV Waste'!D30:D276))),'FFV Waste'!D30:D276,0)) -> 30401.78 | R35: =SUMPRODUCT(IF((('FFV Waste'!A30:A276=$N35)*(ISNUMBER('FFV Waste'!C30:C276))),'FFV Waste'!C30:C276,0)) -> 15692.6639 | S35: =SUMPRODUCT(IF((('FFV Waste'!A30:A276=$N35)*(ISNUMBER('FFV Waste'!E30:E276))),'FFV Waste'!E30:E276,0)) -> 753.6630295 | T35: =SUMPRODUCT(IF((('FFV Waste'!A30:A276=$N35)*(ISNUMBER('FFV Waste'!G30:G276))),'FFV Waste'!G30:G276,0)) -> 9983.191255 | U35: =SUMPRODUCT(IF((('FFV Waste'!A30:A276=$N35)*(ISNUMBER('FFV Waste'!I30:I276))),'FFV Waste'!I30:I276,0)) -> 1687.120971 | V35: 28116.63916 | Y35: Slovenia | Z35: 2107180 | AA35: 28123.6763 | AB35: 13.34659417 | AC35: 44.56815302 | AD35: 21.15061505 | AE35: 26980.28648 | AF35: 12.80397806
N36: Spain | O36: ABCEPs | P36: 1322586.477 | Q36: =SUMPRODUCT(IF((('FFV Waste'!A31:A277=$N36)*(ISNUMBER('FFV Waste'!D31:D277))),'FFV Waste'!D31:D277,0)) -> 967615.1111 | R36: =SUMPRODUCT(IF((('FFV Waste'!A31:A277=$N36)*(ISNUMBER('FFV Waste'!C31:C277))),'FFV Waste'!C31:C277,0)) -> 354971.3657 | S36: =SUMPRODUCT(IF((('FFV Waste'!A31:A277=$N36)*(ISNUMBER('FFV Waste'!E31:E277))),'FFV Waste'!E31:E277,0)) -> 35302.98232 | T36: =SUMPRODUCT(IF((('FFV Waste'!A31:A277=$N36)*(ISNUMBER('FFV Waste'!G31:G277))),'FFV Waste'!G31:G277,0)) -> 231938.0445 | U36: =SUMPRODUCT(IF((('FFV Waste'!A31:A277=$N36)*(ISNUMBER('FFV Waste'!I31:I277))),'FFV Waste'!I31:I277,0)) -> 46932.17636 | V36: 669144.5689 | Y36: Spain | Z36: 47486843 | AA36: 669529.426 | AB36: 14.09926168 | AC36: 1392.511819 | AD36: 29.32416078 | AE36: 830938.0382 | AF36: 17.49827922
N37: Sweden | O37: ABCEPs | P37: 177205.0312 | Q37: =SUMPRODUCT(IF((('FFV Waste'!A32:A278=$N37)*(ISNUMBER('FFV Waste'!D32:D278))),'FFV Waste'!D32:D278,0)) -> 156639.5668 | R37: =SUMPRODUCT(IF((('FFV Waste'!A32:A278=$N37)*(ISNUMBER('FFV Waste'!C32:C278))),'FFV Waste'!C32:C278,0)) -> 20565.46441 | S37: =SUMPRODUCT(IF((('FFV Waste'!A32:A278=$N37)*(ISNUMBER('FFV Waste'!E32:E278))),'FFV Waste'!E32:E278,0)) -> 3311.453835 | T37: =SUMPRODUCT(IF((('FFV Waste'!A32:A278=$N37)*(ISNUMBER('FFV Waste'!G32:G278))),'FFV Waste'!G32:G278,0)) -> 47358.04177 | U37: =SUMPRODUCT(IF((('FFV Waste'!A32:A278=$N37)*(ISNUMBER('FFV Waste'!I32:I278))),'FFV Waste'!I32:I278,0)) -> 8186.480661 | V37: 79421.44067 | Y37: Sweden | Z37: 10452326 | AA37: 79421.44067 | AB37: 7.598446573 | AC37: 303.4298207 | AD37: 29.0298849 | AE37: 95934.37935 | AF37: 9.178280447
N38: Switzerland | O38: ABCEPs | P38: 158161.7104 | Q38: =SUMPRODUCT(IF((('FFV Waste'!A33:A279=$N38)*(ISNUMBER('FFV Waste'!D33:D279))),'FFV Waste'!D33:D279,0)) -> 151624.3091 | R38: =SUMPRODUCT(IF((('FFV Waste'!A33:A279=$N38)*(ISNUMBER('FFV Waste'!C33:C279))),'FFV Waste'!C33:C279,0)) -> 6537.40125 | S38: =SUMPRODUCT(IF((('FFV Waste'!A33:A279=$N38)*(ISNUMBER('FFV Waste'!E33:E279))),'FFV Waste'!E33:E279,0)) -> 4102.993621 | T38: =SUMPRODUCT(IF((('FFV Waste'!A33:A279=$N38)*(ISNUMBER('FFV Waste'!G33:G279))),'FFV Waste'!G33:G279,0)) -> 47764.08523 | U38: =SUMPRODUCT(IF((('FFV Waste'!A33:A279=$N38)*(ISNUMBER('FFV Waste'!I33:I279))),'FFV Waste'!I33:I279,0)) -> 8210.842696 | V38: 66615.3228 | Y38: Switzerland | Z38: 8738791 | AA38: 66668.33211 | AB38: 7.629010936 | AC38: 363.7181922 | AD38: 41.62111123 | AE38: 59142.53209 | AF38: 6.767816291
N39: United Kingdom | O39: ABCEPs | P39: 1184656.132 | Q39: =SUMPRODUCT(IF((('FFV Waste'!A34:A280=$N39)*(ISNUMBER('FFV Waste'!D34:D280))),'FFV Waste'!D34:D280,0)) -> 1130082.335 | R39: =SUMPRODUCT(IF((('FFV Waste'!A34:A280=$N39)*(ISNUMBER('FFV Waste'!C34:C280))),'FFV Waste'!C34:C280,0)) -> 54573.7971 | S39: =SUMPRODUCT(IF((('FFV Waste'!A34:A280=$N39)*(ISNUMBER('FFV Waste'!E34:E280))),'FFV Waste'!E34:E280,0)) -> 29567.98116 | T39: =SUMPRODUCT(IF((('FFV Waste'!A34:A280=$N39)*(ISNUMBER('FFV Waste'!G34:G280))),'FFV Waste'!G34:G280,0)) -> 379857.5878 | U39: =SUMPRODUCT(IF((('FFV Waste'!A34:A280=$N39)*(ISNUMBER('FFV Waste'!I34:I280))),'FFV Waste'!I34:I280,0)) -> 62457.64786 | V39: 526457.0139 | Y39: United Kingdom | Z39: 67602800 | AA39: 526457.0139 | AB39: 7.78750309 | AC39: 2028.1111 | AD39: 30.00040087 | AE39: 600522.0922 | AF39: 8.883094963
N40: EU+ | O40: ABCEPs | P40: =SUM(P9:P39) -> 11298252.76 | Q40: 10068346.66 | R40: 1229906.093 | S40: 295501.2498 | T40: 3086234.469 | U40: 528178.2353 | V40: 5139820.047 | Y40: EU+ | Z40: =SUM(Z9:Z39) -> 528140192 | AA40: 5141766.9 | AB40: 9.735609934 | AC40: 17762.36156 | AD40: =AC40/Z40*10^6 -> 33.63190651 | AE40: 6225864.208 | AF40: 11.78827952
R41: =R40/$V$40 -> 0.2392897187 | S41: =S40/$V$40 -> 0.05749252836 | T41: =T40/$V$40 -> 0.6004557437 | U41: =U40/$V$40 -> 0.1027620093
N42: Climate Impact | O42: Unit: Tonnes CO2-eq
N43: Country | O43: Product | P43: Pre R&D | Q43: R&D | R43: Households | S43: Food Service | T43: Total
N44: Austria | O44: ABCEPs | P44: =SUM(IF(_xlfn.IFNA('Avocados - Summary'!P44,),'Avocados - Summary'!P44,0),IF(_xlfn.IFNA('Bananas - Summary'!P44,),'Bananas - Summary'!P44,0),IF(_xlfn.IFNA('Cucumbers - Summary'!P44,),'Cucumbers - Summary'!P44,0),IF(_xlfn.IFNA('Eggplants - Summary'!P44,),'Eggplants - Summary'!P44,0),IF(_xlfn.IFNA('Peppers - Summary'!P44,),'Peppers - Summary'!P44),0) -> 17429.45405 | Q44: =SUM(IF(_xlfn.IFNA('Avocados - Summary'!Q44,),'Avocados - Summary'!Q44,0),IF(_xlfn.IFNA('Bananas - Summary'!Q44,),'Bananas - Summary'!Q44,0),IF(_xlfn.IFNA('Cucumbers - Summary'!Q44,),'Cucumbers - Summary'!Q44,0),IF(_xlfn.IFNA('Eggplants - Summary'!Q44,),'Eggplants - Summary'!Q44,0),IF(_xlfn.IFNA('Peppers - Summary'!Q44,),'Peppers - Summary'!Q44),0) -> 6576.789392 | R44: =SUM(IF(_xlfn.IFNA('Avocados - Summary'!R44,),'Avocados - Summary'!R44,0),IF(_xlfn.IFNA('Bananas - Summary'!R44,),'Bananas - Summary'!R44,0),IF(_xlfn.IFNA('Cucumbers - Summary'!R44,),'Cucumbers - Summary'!R44,0),IF(_xlfn.IFNA('Eggplants - Summary'!R44,),'Eggplants - Summary'!R44,0),IF(_xlfn.IFNA('Peppers - Summary'!R44,),'Peppers - Summary'!R44),0) -> 82187.83991 | S44: =SUM(IF(_xlfn.IFNA('Avocados - Summary'!S44,),'Avocados - Summary'!S44,0),IF(_xlfn.IFNA('Bananas - Summary'!S44,),'Bananas - Summary'!S44,0),IF(_xlfn.IFNA('Cucumbers - Summary'!S44,),'Cucumbers - Summary'!S44,0),IF(_xlfn.IFNA('Eggplants - Summary'!S44,),'Eggplants - Summary'!S44,0),IF(_xlfn.IFNA('Peppers - Summary'!S44,),'Peppers - Summary'!S44),0) -> 14336.68732 | T44: =SUM(P44:S44) -> 120530.7707
N45: Belgium | O45: ABCEPs | P45: =SUM(IF(_xlfn.IFNA('Avocados - Summary'!P45,),'Avocados - Summary'!P45,0),IF(_xlfn.IFNA('Bananas - Summary'!P45,),'Bananas - Summary'!P45,0),IF(_xlfn.IFNA('Cucumbers - Summary'!P45,),'Cucumbers - Summary'!P45,0),IF(_xlfn.IFNA('Eggplants - Summary'!P45,),'Eggplants - Summary'!P45,0),IF(_xlfn.IFNA('Peppers - Summary'!P45,),'Peppers - Summary'!P45),0) -> 6583.914861 | Q45: =SUM(IF(_xlfn.IFNA('Avocados - Summary'!Q45,),'Avocados - Summary'!Q45,0),IF(_xlfn.IFNA('Bananas - Summary'!Q45,),'Bananas - Summary'!Q45,0),IF(_xlfn.IFNA('Cucumbers - Summary'!Q45,),'Cucumbers - Summary'!Q45,0),IF(_xlfn.IFNA('Eggplants - Summary'!Q45,),'Eggplants - Summary'!Q45,0),IF(_xlfn.IFNA('Peppers - Summary'!Q45,),'Peppers - Summary'!Q45),0) -> 6298.72966 | R45: =SUM(IF(_xlfn.IFNA('Avocados - Summary'!R45,),'Avocados - Summary'!R45,0),IF(_xlfn.IFNA('Bananas - Summary'!R45,),'Bananas - Summary'!R45,0),IF(_xlfn.IFNA('Cucumbers - Summary'!R45,),'Cucumbers - Summary'!R45,0),IF(_xlfn.IFNA('Eggplants - Summary'!R45,),'Eggplants - Summary'!R45,0),IF(_xlfn.IFNA('Peppers - Summary'!R45,),'Peppers - Summary'!R45),0) -> 89665.32333 | S45: =SUM(IF(_xlfn.IFNA('Avocados - Summary'!S45,),'Avocados - Summary'!S45,0),IF(_xlfn.IFNA('Bananas - Summary'!S45,),'Bananas - Summary'!S45,0),IF(_xlfn.IFNA('Cucumbers - Summary'!S45,),'Cucumbers - Summary'!S45,0),IF(_xlfn.IFNA('Eggplants - Summary'!S45,),'Eggplants - Summary'!S45,0),IF(_xlfn.IFNA('Peppers - Summary'!S45,),'Peppers - Summary'!S45),0) -> 15434.10401 | T45: =SUM(P45:S45) -> 117982.0719
N46: Bulgaria | O46: ABCEPs | P46: =SUM(IF(_xlfn.IFNA('Avocados - Summary'!P46,),'Avocados - Summary'!P46,0),IF(_xlfn.IFNA('Bananas - Summary'!P46,),'Bananas - Summary'!P46,0),IF(_xlfn.IFNA('Cucumbers - Summary'!P46,),'Cucumbers - Summary'!P46,0),IF(_xlfn.IFNA('Eggplants - Summary'!P46,),'Eggplants - Summary'!P46,0),IF(_xlfn.IFNA('Peppers - Summary'!P46,),'Peppers - Summary'!P46),0) -> 11893.27548 | Q46: =SUM(IF(_xlfn.IFNA('Avocados - Summary'!Q46,),'Avocados - Summary'!Q46,0),IF(_xlfn.IFNA('Bananas - Summary'!Q46,),'Bananas - Summary'!Q46,0),IF(_xlfn.IFNA('Cucumbers - Summary'!Q46,),'Cucumbers - Summary'!Q46,0),IF(_xlfn.IFNA('Eggplants - Summary'!Q46,),'Eggplants - Summary'!Q46,0),IF(_xlfn.IFNA('Peppers - Summary'!Q46,),'Peppers - Summary'!Q46),0) -> 6176.965718 | R46: =SUM(IF(_xlfn.IFNA('Avocados - Summary'!R46,),'Avocados - Summary'!R46,0),IF(_xlfn.IFNA('Bananas - Summary'!R46,),'Bananas - Summary'!R46,0),IF(_xlfn.IFNA('Cucumbers - Summary'!R46,),'Cucumbers - Summary'!R46,0),IF(_xlfn.IFNA('Eggplants - Summary'!R46,),'Eggplants - Summary'!R46,0),IF(_xlfn.IFNA('Peppers - Summary'!R46,),'Peppers - Summary'!R46),0) -> 54663.74282 | S46: =SUM(IF(_xlfn.IFNA('Avocados - Summary'!S46,),'Avocados - Summary'!S46,0),IF(_xlfn.IFNA('Bananas - Summary'!S46,),'Bananas - Summary'!S46,0),IF(_xlfn.IFNA('Cucumbers - Summary'!S46,),'Cucumbers - Summary'!S46,0),IF(_xlfn.IFNA('Eggplants - Summary'!S46,),'Eggplants - Summary'!S46,0),IF(_xlfn.IFNA('Peppers - Summary'!S46,),'Peppers - Summary'!S46),0) -> 9316.836224 | T46: 82050.82024
N47: Croatia | O47: ABCEPs | P47: =SUM(IF(_xlfn.IFNA('Avocados - Summary'!P47,),'Avocados - Summary'!P47,0),IF(_xlfn.IFNA('Bananas - Summary'!P47,),'Bananas - Summary'!P47,0),IF(_xlfn.IFNA('Cucumbers - Summary'!P47,),'Cucumbers - Summary'!P47,0),IF(_xlfn.IFNA('Eggplants - Summary'!P47,),'Eggplants - Summary'!P47,0),IF(_xlfn.IFNA('Peppers - Summary'!P47,),'Peppers - Summary'!P47),0) -> 5412.202327 | Q47: =SUM(IF(_xlfn.IFNA('Avocados - Summary'!Q47,),'Avocados - Summary'!Q47,0),IF(_xlfn.IFNA('Bananas - Summary'!Q47,),'Bananas - Summary'!Q47,0),IF(_xlfn.IFNA('Cucumbers - Summary'!Q47,),'Cucumbers - Summary'!Q47,0),IF(_xlfn.IFNA('Eggplants - Summary'!Q47,),'Eggplants - Summary'!Q47,0),IF(_xlfn.IFNA('Peppers - Summary'!Q47,),'Peppers - Summary'!Q47),0) -> 2309.297398 | R47: =SUM(IF(_xlfn.IFNA('Avocados - Summary'!R47,),'Avocados - Summary'!R47,0),IF(_xlfn.IFNA('Bananas - Summary'!R47,),'Bananas - Summary'!R47,0),IF(_xlfn.IFNA('Cucumbers - Summary'!R47,),'Cucumbers - Summary'!R47,0),IF(_xlfn.IFNA('Eggplants - Summary'!R47,),'Eggplants - Summary'!R47,0),IF(_xlfn.IFNA('Peppers - Summary'!R47,),'Peppers - Summary'!R47),0) -> 34817.7498 | S47: =SUM(IF(_xlfn.IFNA('Avocados - Summary'!S47,),'Avocados - Summary'!S47,0),IF(_xlfn.IFNA('Bananas - Summary'!S47,),'Bananas - Summary'!S47,0),IF(_xlfn.IFNA('Cucumbers - Summary'!S47,),'Cucumbers - Summary'!S47,0),IF(_xlfn.IFNA('Eggplants - Summary'!S47,),'Eggplants - Summary'!S47,0),IF(_xlfn.IFNA('Peppers - Summary'!S47,),'Peppers - Summary'!S47),0) -> 5946.126113 | T47: 48485.37564 | V47: =V40*1000/(530*10^6) -> 9.697773673
N48: Cyprus | O48: ABCEPs | P48: =SUM(IF(_xlfn.IFNA('Avocados - Summary'!P48,),'Avocados - Summary'!P48,0),IF(_xlfn.IFNA('Bananas - Summary'!P48,),'Bananas - Summary'!P48,0),IF(_xlfn.IFNA('Cucumbers - Summary'!P48,),'Cucumbers - Summary'!P48,0),IF(_xlfn.IFNA('Eggplants - Summary'!P48,),'Eggplants - Summary'!P48,0),IF(_xlfn.IFNA('Peppers - Summary'!P48,),'Peppers - Summary'!P48),0) -> 2585.818704 | Q48: =SUM(IF(_xlfn.IFNA('Avocados - Summary'!Q48,),'Avocados - Summary'!Q48,0),IF(_xlfn.IFNA('Bananas - Summary'!Q48,),'Bananas - Summary'!Q48,0),IF(_xlfn.IFNA('Cucumbers - Summary'!Q48,),'Cucumbers - Summary'!Q48,0),IF(_xlfn.IFNA('Eggplants - Summary'!Q48,),'Eggplants - Summary'!Q48,0),IF(_xlfn.IFNA('Peppers - Summary'!Q48,),'Peppers - Summary'!Q48),0) -> 669.7479641 | R48: =SUM(IF(_xlfn.IFNA('Avocados - Summary'!R48,),'Avocados - Summary'!R48,0),IF(_xlfn.IFNA('Bananas - Summary'!R48,),'Bananas - Summary'!R48,0),IF(_xlfn.IFNA('Cucumbers - Summary'!R48,),'Cucumbers - Summary'!R48,0),IF(_xlfn.IFNA('Eggplants - Summary'!R48,),'Eggplants - Summary'!R48,0),IF(_xlfn.IFNA('Peppers - Summary'!R48,),'Peppers - Summary'!R48),0) -> 7844.914831 | S48: =SUM(IF(_xlfn.IFNA('Avocados - Summary'!S48,),'Avocados - Summary'!S48,0),IF(_xlfn.IFNA('Bananas - Summary'!S48,),'Bananas - Summary'!S48,0),IF(_xlfn.IFNA('Cucumbers - Summary'!S48,),'Cucumbers - Summary'!S48,0),IF(_xlfn.IFNA('Eggplants - Summary'!S48,),'Eggplants - Summary'!S48,0),IF(_xlfn.IFNA('Peppers - Summary'!S48,),'Peppers - Summary'!S48),0) -> 1393.900183 | T48: 12494.38168
N49: Czechia | O49: ABCEPs | P49: =SUM(IF(_xlfn.IFNA('Avocados - Summary'!P49,),'Avocados - Summary'!P49,0),IF(_xlfn.IFNA('Bananas - Summary'!P49,),'Bananas - Summary'!P49,0),IF(_xlfn.IFNA('Cucumbers - Summary'!P49,),'Cucumbers - Summary'!P49,0),IF(_xlfn.IFNA('Eggplants - Summary'!P49,),'Eggplants - Summary'!P49,0),IF(_xlfn.IFNA('Peppers - Summary'!P49,),'Peppers - Summary'!P49),0) -> 9755.102748 | Q49: =SUM(IF(_xlfn.IFNA('Avocados - Summary'!Q49,),'Avocados - Summary'!Q49,0),IF(_xlfn.IFNA('Bananas - Summary'!Q49,),'Bananas - Summary'!Q49,0),IF(_xlfn.IFNA('Cucumbers - Summary'!Q49,),'Cucumbers - Summary'!Q49,0),IF(_xlfn.IFNA('Eggplants - Summary'!Q49,),'Eggplants - Summary'!Q49,0),IF(_xlfn.IFNA('Peppers - Summary'!Q49,),'Peppers - Summary'!Q49),0) -> 4178.956838 | R49: =SUM(IF(_xlfn.IFNA('Avocados - Summary'!R49,),'Avocados - Summary'!R49,0),IF(_xlfn.IFNA('Bananas - Summary'!R49,),'Bananas - Summary'!R49,0),IF(_xlfn.IFNA('Cucumbers - Summary'!R49,),'Cucumbers - Summary'!R49,0),IF(_xlfn.IFNA('Eggplants - Summary'!R49,),'Eggplants - Summary'!R49,0),IF(_xlfn.IFNA('Peppers - Summary'!R49,),'Peppers - Summary'!R49),0) -> 62740.5485 | S49: =SUM(IF(_xlfn.IFNA('Avocados - Summary'!S49,),'Avocados - Summary'!S49,0),IF(_xlfn.IFNA('Bananas - Summary'!S49,),'Bananas - Summary'!S49,0),IF(_xlfn.IFNA('Cucumbers - Summary'!S49,),'Cucumbers - Summary'!S49,0),IF(_xlfn.IFNA('Eggplants - Summary'!S49,),'Eggplants - Summary'!S49,0),IF(_xlfn.IFNA('Peppers - Summary'!S49,),'Peppers - Summary'!S49),0) -> 10779.22083 | T49: 87453.82892
N50: Denmark | O50: ABCEPs | P50: =SUM(IF(_xlfn.IFNA('Avocados - Summary'!P50,),'Avocados - Summary'!P50,0),IF(_xlfn.IFNA('Bananas - Summary'!P50,),'Bananas - Summary'!P50,0),IF(_xlfn.IFNA('Cucumbers - Summary'!P50,),'Cucumbers - Summary'!P50,0),IF(_xlfn.IFNA('Eggplants - Summary'!P50,),'Eggplants - Summary'!P50,0),IF(_xlfn.IFNA('Peppers - Summary'!P50,),'Peppers - Summary'!P50),0) -> 6958.02037 | Q50: =SUM(IF(_xlfn.IFNA('Avocados - Summary'!Q50,),'Avocados - Summary'!Q50,0),IF(_xlfn.IFNA('Bananas - Summary'!Q50,),'Bananas - Summary'!Q50,0),IF(_xlfn.IFNA('Cucumbers - Summary'!Q50,),'Cucumbers - Summary'!Q50,0),IF(_xlfn.IFNA('Eggplants - Summary'!Q50,),'Eggplants - Summary'!Q50,0),IF(_xlfn.IFNA('Peppers - Summary'!Q50,),'Peppers - Summary'!Q50),0) -> 3335.840513 | R50: =SUM(IF(_xlfn.IFNA('Avocados - Summary'!R50,),'Avocados - Summary'!R50,0),IF(_xlfn.IFNA('Bananas - Summary'!R50,),'Bananas - Summary'!R50,0),IF(_xlfn.IFNA('Cucumbers - Summary'!R50,),'Cucumbers - Summary'!R50,0),IF(_xlfn.IFNA('Eggplants - Summary'!R50,),'Eggplants - Summary'!R50,0),IF(_xlfn.IFNA('Peppers - Summary'!R50,),'Peppers - Summary'!R50),0) -> 47702.59315 | S50: =SUM(IF(_xlfn.IFNA('Avocados - Summary'!S50,),'Avocados - Summary'!S50,0),IF(_xlfn.IFNA('Bananas - Summary'!S50,),'Bananas - Summary'!S50,0),IF(_xlfn.IFNA('Cucumbers - Summary'!S50,),'Cucumbers - Summary'!S50,0),IF(_xlfn.IFNA('Eggplants - Summary'!S50,),'Eggplants - Summary'!S50,0),IF(_xlfn.IFNA('Peppers - Summary'!S50,),'Peppers - Summary'!S50),0) -> 7979.184965 | T50: 65975.639 | X50: Country | Y50: Total food waste | Z50: Waste % | AA50: Total Econcomic | AB50: Economic % | AC50: Total climate | AD50: Climate %
N51: Estonia | O51: ABCEPs | P51: =SUM(IF(_xlfn.IFNA('Avocados - Summary'!P51,),'Avocados - Summary'!P51,0),IF(_xlfn.IFNA('Bananas - Summary'!P51,),'Bananas - Summary'!P51,0),IF(_xlfn.IFNA('Cucumbers - Summary'!P51,),'Cucumbers - Summary'!P51,0),IF(_xlfn.IFNA('Eggplants - Summary'!P51,),'Eggplants - Summary'!P51,0),IF(_xlfn.IFNA('Peppers - Summary'!P51,),'Peppers - Summary'!P51),0) -> 552.7878989 | Q51: =SUM(IF(_xlfn.IFNA('Avocados - Summary'!Q51,),'Avocados - Summary'!Q51,0),IF(_xlfn.IFNA('Bananas - Summary'!Q51,),'Bananas - Summary'!Q51,0),IF(_xlfn.IFNA('Cucumbers - Summary'!Q51,),'Cucumbers - Summary'!Q51,0),IF(_xlfn.IFNA('Eggplants - Summary'!Q51,),'Eggplants - Summary'!Q51,0),IF(_xlfn.IFNA('Peppers - Summary'!Q51,),'Peppers - Summary'!Q51),0) -> 696.3516672 | R51: =SUM(IF(_xlfn.IFNA('Avocados - Summary'!R51,),'Avocados - Summary'!R51,0),IF(_xlfn.IFNA('Bananas - Summary'!R51,),'Bananas - Summary'!R51,0),IF(_xlfn.IFNA('Cucumbers - Summary'!R51,),'Cucumbers - Summary'!R51,0),IF(_xlfn.IFNA('Eggplants - Summary'!R51,),'Eggplants - Summary'!R51,0),IF(_xlfn.IFNA('Peppers - Summary'!R51,),'Peppers - Summary'!R51),0) -> 10512.25872 | S51: =SUM(IF(_xlfn.IFNA('Avocados - Summary'!S51,),'Avocados - Summary'!S51,0),IF(_xlfn.IFNA('Bananas - Summary'!S51,),'Bananas - Summary'!S51,0),IF(_xlfn.IFNA('Cucumbers - Summary'!S51,),'Cucumbers - Summary'!S51,0),IF(_xlfn.IFNA('Eggplants - Summary'!S51,),'Eggplants - Summary'!S51,0),IF(_xlfn.IFNA('Peppers - Summary'!S51,),'Peppers - Summary'!S51),0) -> 1843.215872 | T51: 13604.61415 | X51: Austria | Y51: 104590.2676 | Z51: =Y51/$Y$82 -> 0.02034130866 | AA51: 439.7875428 | AB51: =AA51/$AA$82 -> 0.0247595198 | AC51: 120800.3128 | AD51: =AC51/$AC$82 -> 0.01940297905
N52: Finland | O52: ABCEPs | P52: =SUM(IF(_xlfn.IFNA('Avocados - Summary'!P52,),'Avocados - Summary'!P52,0),IF(_xlfn.IFNA('Bananas - Summary'!P52,),'Bananas - Summary'!P52,0),IF(_xlfn.IFNA('Cucumbers - Summary'!P52,),'Cucumbers - Summary'!P52,0),IF(_xlfn.IFNA('Eggplants - Summary'!P52,),'Eggplants - Summary'!P52,0),IF(_xlfn.IFNA('Peppers - Summary'!P52,),'Peppers - Summary'!P52),0) -> 12519.98233 | Q52: =SUM(IF(_xlfn.IFNA('Avocados - Summary'!Q52,),'Avocados - Summary'!Q52,0),IF(_xlfn.IFNA('Bananas - Summary'!Q52,),'Bananas - Summary'!Q52,0),IF(_xlfn.IFNA('Cucumbers - Summary'!Q52,),'Cucumbers - Summary'!Q52,0),IF(_xlfn.IFNA('Eggplants - Summary'!Q52,),'Eggplants - Summary'!Q52,0),IF(_xlfn.IFNA('Peppers - Summary'!Q52,),'Peppers - Summary'!Q52),0) -> 4028.293962 | R52: =SUM(IF(_xlfn.IFNA('Avocados - Summary'!R52,),'Avocados - Summary'!R52,0),IF(_xlfn.IFNA('Bananas - Summary'!R52,),'Bananas - Summary'!R52,0),IF(_xlfn.IFNA('Cucumbers - Summary'!R52,),'Cucumbers - Summary'!R52,0),IF(_xlfn.IFNA('Eggplants - Summary'!R52,),'Eggplants - Summary'!R52,0),IF(_xlfn.IFNA('Peppers - Summary'!R52,),'Peppers - Summary'!R52),0) -> 54724.19838 | S52: =SUM(IF(_xlfn.IFNA('Avocados - Summary'!S52,),'Avocados - Summary'!S52,0),IF(_xlfn.IFNA('Bananas - Summary'!S52,),'Bananas - Summary'!S52,0),IF(_xlfn.IFNA('Cucumbers - Summary'!S52,),'Cucumbers - Summary'!S52,0),IF(_xlfn.IFNA('Eggplants - Summary'!S52,),'Eggplants - Summary'!S52,0),IF(_xlfn.IFNA('Peppers - Summary'!S52,),'Peppers - Summary'!S52),0) -> 10855.45826 | T52: 82127.93294 | X52: Belgium | Y52: 102664.5809 | Z52: =Y52/$Y$82 -> 0.01996679019 | AA52: 412.9806662 | AB52: =AA52/$AA$82 -> 0.02325032428 | AC52: 118061.5176 | AD52: =AC52/$AC$82 -> 0.01896307302
N53: France | O53: ABCEPs | P53: =SUM(IF(_xlfn.IFNA('Avocados - Summary'!P53,),'Avocados - Summary'!P53,0),IF(_xlfn.IFNA('Bananas - Summary'!P53,),'Bananas - Summary'!P53,0),IF(_xlfn.IFNA('Cucumbers - Summary'!P53,),'Cucumbers - Summary'!P53,0),IF(_xlfn.IFNA('Eggplants - Summary'!P53,),'Eggplants - Summary'!P53,0),IF(_xlfn.IFNA('Peppers - Summary'!P53,),'Peppers - Summary'!P53),0) -> 193887.5971 | Q53: =SUM(IF(_xlfn.IFNA('Avocados - Summary'!Q53,),'Avocados - Summary'!Q53,0),IF(_xlfn.IFNA('Bananas - Summary'!Q53,),'Bananas - Summary'!Q53,0),IF(_xlfn.IFNA('Cucumbers - Summary'!Q53,),'Cucumbers - Summary'!Q53,0),IF(_xlfn.IFNA('Eggplants - Summary'!Q53,),'Eggplants - Summary'!Q53,0),IF(_xlfn.IFNA('Peppers - Summary'!Q53,),'Peppers - Summary'!Q53),0) -> 35125.45817 | R53: =SUM(IF(_xlfn.IFNA('Avocados - Summary'!R53,),'Avocados - Summary'!R53,0),IF(_xlfn.IFNA('Bananas - Summary'!R53,),'Bananas - Summary'!R53,0),IF(_xlfn.IFNA('Cucumbers - Summary'!R53,),'Cucumbers - Summary'!R53,0),IF(_xlfn.IFNA('Eggplants - Summary'!R53,),'Eggplants - Summary'!R53,0),IF(_xlfn.IFNA('Peppers - Summary'!R53,),'Peppers - Summary'!R53),0) -> 469884.4597 | S53: =SUM(IF(_xlfn.IFNA('Avocados - Summary'!S53,),'Avocados - Summary'!S53,0),IF(_xlfn.IFNA('Bananas - Summary'!S53,),'Bananas - Summary'!S53,0),IF(_xlfn.IFNA('Cucumbers - Summary'!S53,),'Cucumbers - Summary'!S53,0),IF(_xlfn.IFNA('Eggplants - Summary'!S53,),'Eggplants - Summary'!S53,0),IF(_xlfn.IFNA('Peppers - Summary'!S53,),'Peppers - Summary'!S53),0) -> 83509.42669 | T53: 782406.9417 | X53: Bulgaria | Y53: 69823.49265 | Z53: 0.01357966902 | AA53: 149.0513382 | AB53: 0.008391414491 | AC53: 82075.50953 | AD53: 0.01318299063
N54: Germany | O54: ABCEPs | P54: =SUM(IF(_xlfn.IFNA('Avocados - Summary'!P54,),'Avocados - Summary'!P54,0),IF(_xlfn.IFNA('Bananas - Summary'!P54,),'Bananas - Summary'!P54,0),IF(_xlfn.IFNA('Cucumbers - Summary'!P54,),'Cucumbers - Summary'!P54,0),IF(_xlfn.IFNA('Eggplants - Summary'!P54,),'Eggplants - Summary'!P54,0),IF(_xlfn.IFNA('Peppers - Summary'!P54,),'Peppers - Summary'!P54),0) -> 158326.8712 | Q54: =SUM(IF(_xlfn.IFNA('Avocados - Summary'!Q54,),'Avocados - Summary'!Q54,0),IF(_xlfn.IFNA('Bananas - Summary'!Q54,),'Bananas - Summary'!Q54,0),IF(_xlfn.IFNA('Cucumbers - Summary'!Q54,),'Cucumbers - Summary'!Q54,0),IF(_xlfn.IFNA('Eggplants - Summary'!Q54,),'Eggplants - Summary'!Q54,0),IF(_xlfn.IFNA('Peppers - Summary'!Q54,),'Peppers - Summary'!Q54),0) -> 39671.73681 | R54: =SUM(IF(_xlfn.IFNA('Avocados - Summary'!R54,),'Avocados - Summary'!R54,0),IF(_xlfn.IFNA('Bananas - Summary'!R54,),'Bananas - Summary'!R54,0),IF(_xlfn.IFNA('Cucumbers - Summary'!R54,),'Cucumbers - Summary'!R54,0),IF(_xlfn.IFNA('Eggplants - Summary'!R54,),'Eggplants - Summary'!R54,0),IF(_xlfn.IFNA('Peppers - Summary'!R54,),'Peppers - Summary'!R54),0) -> 553521.1345 | S54: =SUM(IF(_xlfn.IFNA('Avocados - Summary'!S54,),'Avocados - Summary'!S54,0),IF(_xlfn.IFNA('Bananas - Summary'!S54,),'Bananas - Summary'!S54,0),IF(_xlfn.IFNA('Cucumbers - Summary'!S54,),'Cucumbers - Summary'!S54,0),IF(_xlfn.IFNA('Eggplants - Summary'!S54,),'Eggplants - Summary'!S54,0),IF(_xlfn.IFNA('Peppers - Summary'!S54,),'Peppers - Summary'!S54),0) -> 94678.15982 | T54: 846197.9023 | X54: Croatia | Y54: 44831.64645 | Z54: 0.008719112967 | AA54: 141.0511283 | AB54: 0.007941012115 | AC54: 48502.68431 | AD54: 0.007790514327
N55: Greece | O55: ABCEPs | P55: =SUM(IF(_xlfn.IFNA('Avocados - Summary'!P55,),'Avocados - Summary'!P55,0),IF(_xlfn.IFNA('Bananas - Summary'!P55,),'Bananas - Summary'!P55,0),IF(_xlfn.IFNA('Cucumbers - Summary'!P55,),'Cucumbers - Summary'!P55,0),IF(_xlfn.IFNA('Eggplants - Summary'!P55,),'Eggplants - Summary'!P55,0),IF(_xlfn.IFNA('Peppers - Summary'!P55,),'Peppers - Summary'!P55),0) -> 39860.37572 | Q55: =SUM(IF(_xlfn.IFNA('Avocados - Summary'!Q55,),'Avocados - Summary'!Q55,0),IF(_xlfn.IFNA('Bananas - Summary'!Q55,),'Bananas - Summary'!Q55,0),IF(_xlfn.IFNA('Cucumbers - Summary'!Q55,),'Cucumbers - Summary'!Q55,0),IF(_xlfn.IFNA('Eggplants - Summary'!Q55,),'Eggplants - Summary'!Q55,0),IF(_xlfn.IFNA('Peppers - Summary'!Q55,),'Peppers - Summary'!Q55),0) -> 13776.07926 | R55: =SUM(IF(_xlfn.IFNA('Avocados - Summary'!R55,),'Avocados - Summary'!R55,0),IF(_xlfn.IFNA('Bananas - Summary'!R55,),'Bananas - Summary'!R55,0),IF(_xlfn.IFNA('Cucumbers - Summary'!R55,),'Cucumbers - Summary'!R55,0),IF(_xlfn.IFNA('Eggplants - Summary'!R55,),'Eggplants - Summary'!R55,0),IF(_xlfn.IFNA('Peppers - Summary'!R55,),'Peppers - Summary'!R55),0) -> 125788.6903 | S55: =SUM(IF(_xlfn.IFNA('Avocados - Summary'!S55,),'Avocados - Summary'!S55,0),IF(_xlfn.IFNA('Bananas - Summary'!S55,),'Bananas - Summary'!S55,0),IF(_xlfn.IFNA('Cucumbers - Summary'!S55,),'Cucumbers - Summary'!S55,0),IF(_xlfn.IFNA('Eggplants - Summary'!S55,),'Eggplants - Summary'!S55,0),IF(_xlfn.IFNA('Peppers - Summary'!S55,),'Peppers - Summary'!S55),0) -> 21860.13829 | T55: 201285.2836 | X55: Cyprus | Y55: 9066.862301 | Z55: 0.001763374824 | AA55: 26.04997399 | AB55: 0.001466582802 | AC55: 12505.92512 | AD55: 0.002008705089
N56: Hungary | O56: ABCEPs | P56: =SUM(IF(_xlfn.IFNA('Avocados - Summary'!P56,),'Avocados - Summary'!P56,0),IF(_xlfn.IFNA('Bananas - Summary'!P56,),'Bananas - Summary'!P56,0),IF(_xlfn.IFNA('Cucumbers - Summary'!P56,),'Cucumbers - Summary'!P56,0),IF(_xlfn.IFNA('Eggplants - Summary'!P56,),'Eggplants - Summary'!P56,0),IF(_xlfn.IFNA('Peppers - Summary'!P56,),'Peppers - Summary'!P56),0) -> 4620.122429 | Q56: =SUM(IF(_xlfn.IFNA('Avocados - Summary'!Q56,),'Avocados - Summary'!Q56,0),IF(_xlfn.IFNA('Bananas - Summary'!Q56,),'Bananas - Summary'!Q56,0),IF(_xlfn.IFNA('Cucumbers - Summary'!Q56,),'Cucumbers - Summary'!Q56,0),IF(_xlfn.IFNA('Eggplants - Summary'!Q56,),'Eggplants - Summary'!Q56,0),IF(_xlfn.IFNA('Peppers - Summary'!Q56,),'Peppers - Summary'!Q56),0) -> 3137.23057 | R56: =SUM(IF(_xlfn.IFNA('Avocados - Summary'!R56,),'Avocados - Summary'!R56,0),IF(_xlfn.IFNA('Bananas - Summary'!R56,),'Bananas - Summary'!R56,0),IF(_xlfn.IFNA('Cucumbers - Summary'!R56,),'Cucumbers - Summary'!R56,0),IF(_xlfn.IFNA('Eggplants - Summary'!R56,),'Eggplants - Summary'!R56,0),IF(_xlfn.IFNA('Peppers - Summary'!R56,),'Peppers - Summary'!R56),0) -> 30802.32802 | S56: =SUM(IF(_xlfn.IFNA('Avocados - Summary'!S56,),'Avocados - Summary'!S56,0),IF(_xlfn.IFNA('Bananas - Summary'!S56,),'Bananas - Summary'!S56,0),IF(_xlfn.IFNA('Cucumbers - Summary'!S56,),'Cucumbers - Summary'!S56,0),IF(_xlfn.IFNA('Eggplants - Summary'!S56,),'Eggplants - Summary'!S56,0),IF(_xlfn.IFNA('Peppers - Summary'!S56,),'Peppers - Summary'!S56),0) -> 5196.977518 | T56: 43756.65854 | X56: Czechia | Y56: 84727.73278 | Z56: 0.0164783302 | AA56: 350.7113797 | AB56: 0.01974463691 | AC56: 87507.9281 | AD56: 0.01405554718
N57: Iceland | O57: ABCEPs | P57: =SUM(IF(_xlfn.IFNA('Avocados - Summary'!P57,),'Avocados - Summary'!P57,0),IF(_xlfn.IFNA('Bananas - Summary'!P57,),'Bananas - Summary'!P57,0),IF(_xlfn.IFNA('Cucumbers - Summary'!P57,),'Cucumbers - Summary'!P57,0),IF(_xlfn.IFNA('Eggplants - Summary'!P57,),'Eggplants - Summary'!P57,0),IF(_xlfn.IFNA('Peppers - Summary'!P57,),'Peppers - Summary'!P57),0) -> 421.6908885 | Q57: =SUM(IF(_xlfn.IFNA('Avocados - Summary'!Q57,),'Avocados - Summary'!Q57,0),IF(_xlfn.IFNA('Bananas - Summary'!Q57,),'Bananas - Summary'!Q57,0),IF(_xlfn.IFNA('Cucumbers - Summary'!Q57,),'Cucumbers - Summary'!Q57,0),IF(_xlfn.IFNA('Eggplants - Summary'!Q57,),'Eggplants - Summary'!Q57,0),IF(_xlfn.IFNA('Peppers - Summary'!Q57,),'Peppers - Summary'!Q57),0) -> 222.4596565 | R57: =SUM(IF(_xlfn.IFNA('Avocados - Summary'!R57,),'Avocados - Summary'!R57,0),IF(_xlfn.IFNA('Bananas - Summary'!R57,),'Bananas - Summary'!R57,0),IF(_xlfn.IFNA('Cucumbers - Summary'!R57,),'Cucumbers - Summary'!R57,0),IF(_xlfn.IFNA('Eggplants - Summary'!R57,),'Eggplants - Summary'!R57,0),IF(_xlfn.IFNA('Peppers - Summary'!R57,),'Peppers - Summary'!R57),0) -> 3099.23939 | S57: =SUM(IF(_xlfn.IFNA('Avocados - Summary'!S57,),'Avocados - Summary'!S57,0),IF(_xlfn.IFNA('Bananas - Summary'!S57,),'Bananas - Summary'!S57,0),IF(_xlfn.IFNA('Cucumbers - Summary'!S57,),'Cucumbers - Summary'!S57,0),IF(_xlfn.IFNA('Eggplants - Summary'!S57,),'Eggplants - Summary'!S57,0),IF(_xlfn.IFNA('Peppers - Summary'!S57,),'Peppers - Summary'!S57),0) -> 552.2174111 | T57: 4295.607346 | X57: Denmark | Y57: 55582.81903 | Z57: 0.01081006201 | AA57: 277.1801937 | AB57: 0.01560491789 | AC57: 66070.77912 | AD57: 0.01061230649
N58: Ireland | O58: ABCEPs | P58: =SUM(IF(_xlfn.IFNA('Avocados - Summary'!P58,),'Avocados - Summary'!P58,0),IF(_xlfn.IFNA('Bananas - Summary'!P58,),'Bananas - Summary'!P58,0),IF(_xlfn.IFNA('Cucumbers - Summary'!P58,),'Cucumbers - Summary'!P58,0),IF(_xlfn.IFNA('Eggplants - Summary'!P58,),'Eggplants - Summary'!P58,0),IF(_xlfn.IFNA('Peppers - Summary'!P58,),'Peppers - Summary'!P58),0) -> 5318.796694 | Q58: =SUM(IF(_xlfn.IFNA('Avocados - Summary'!Q58,),'Avocados - Summary'!Q58,0),IF(_xlfn.IFNA('Bananas - Summary'!Q58,),'Bananas - Summary'!Q58,0),IF(_xlfn.IFNA('Cucumbers - Summary'!Q58,),'Cucumbers - Summary'!Q58,0),IF(_xlfn.IFNA('Eggplants - Summary'!Q58,),'Eggplants - Summary'!Q58,0),IF(_xlfn.IFNA('Peppers - Summary'!Q58,),'Peppers - Summary'!Q58),0) -> 2039.827467 | R58: =SUM(IF(_xlfn.IFNA('Avocados - Summary'!R58,),'Avocados - Summary'!R58,0),IF(_xlfn.IFNA('Bananas - Summary'!R58,),'Bananas - Summary'!R58,0),IF(_xlfn.IFNA('Cucumbers - Summary'!R58,),'Cucumbers - Summary'!R58,0),IF(_xlfn.IFNA('Eggplants - Summary'!R58,),'Eggplants - Summary'!R58,0),IF(_xlfn.IFNA('Peppers - Summary'!R58,),'Peppers - Summary'!R58),0) -> 33727.28563 | S58: =SUM(IF(_xlfn.IFNA('Avocados - Summary'!S58,),'Avocados - Summary'!S58,0),IF(_xlfn.IFNA('Bananas - Summary'!S58,),'Bananas - Summary'!S58,0),IF(_xlfn.IFNA('Cucumbers - Summary'!S58,),'Cucumbers - Summary'!S58,0),IF(_xlfn.IFNA('Eggplants - Summary'!S58,),'Eggplants - Summary'!S58,0),IF(_xlfn.IFNA('Peppers - Summary'!S58,),'Peppers - Summary'!S58),0) -> 5887.644072 | T58: 46973.55386 | X58: Estonia | Y58: 11395.45366 | Z58: 0.002216252483 | AA58: 54.13060646 | AB58: 0.003047489281 | AC58: 13617.60599 | AD58: 0.002187263573
N59: Italy | O59: ABCEPs | P59: =SUM(IF(_xlfn.IFNA('Avocados - Summary'!P59,),'Avocados - Summary'!P59,0),IF(_xlfn.IFNA('Bananas - Summary'!P59,),'Bananas - Summary'!P59,0),IF(_xlfn.IFNA('Cucumbers - Summary'!P59,),'Cucumbers - Summary'!P59,0),IF(_xlfn.IFNA('Eggplants - Summary'!P59,),'Eggplants - Summary'!P59,0),IF(_xlfn.IFNA('Peppers - Summary'!P59,),'Peppers - Summary'!P59),0) -> 97822.9002 | Q59: =SUM(IF(_xlfn.IFNA('Avocados - Summary'!Q59,),'Avocados - Summary'!Q59,0),IF(_xlfn.IFNA('Bananas - Summary'!Q59,),'Bananas - Summary'!Q59,0),IF(_xlfn.IFNA('Cucumbers - Summary'!Q59,),'Cucumbers - Summary'!Q59,0),IF(_xlfn.IFNA('Eggplants - Summary'!Q59,),'Eggplants - Summary'!Q59,0),IF(_xlfn.IFNA('Peppers - Summary'!Q59,),'Peppers - Summary'!Q59),0) -> 54598.75429 | R59: =SUM(IF(_xlfn.IFNA('Avocados - Summary'!R59,),'Avocados - Summary'!R59,0),IF(_xlfn.IFNA('Bananas - Summary'!R59,),'Bananas - Summary'!R59,0),IF(_xlfn.IFNA('Cucumbers - Summary'!R59,),'Cucumbers - Summary'!R59,0),IF(_xlfn.IFNA('Eggplants - Summary'!R59,),'Eggplants - Summary'!R59,0),IF(_xlfn.IFNA('Peppers - Summary'!R59,),'Peppers - Summary'!R59),0) -> 446918.4266 | S59: =SUM(IF(_xlfn.IFNA('Avocados - Summary'!S59,),'Avocados - Summary'!S59,0),IF(_xlfn.IFNA('Bananas - Summary'!S59,),'Bananas - Summary'!S59,0),IF(_xlfn.IFNA('Cucumbers - Summary'!S59,),'Cucumbers - Summary'!S59,0),IF(_xlfn.IFNA('Eggplants - Summary'!S59,),'Eggplants - Summary'!S59,0),IF(_xlfn.IFNA('Peppers - Summary'!S59,),'Peppers - Summary'!S59),0) -> 77424.59363 | T59: 676764.6748 | X59: Finland | Y59: 63308.02508 | Z59: 0.01231250391 | AA59: 317.1253886 | AB59: 0.01785378524 | AC59: 82173.68016 | AD59: 0.01319875882
N60: Latvia | O60: ABCEPs | P60: =SUM(IF(_xlfn.IFNA('Avocados - Summary'!P60,),'Avocados - Summary'!P60,0),IF(_xlfn.IFNA('Bananas - Summary'!P60,),'Bananas - Summary'!P60,0),IF(_xlfn.IFNA('Cucumbers - Summary'!P60,),'Cucumbers - Summary'!P60,0),IF(_xlfn.IFNA('Eggplants - Summary'!P60,),'Eggplants - Summary'!P60,0),IF(_xlfn.IFNA('Peppers - Summary'!P60,),'Peppers - Summary'!P60),0) -> 742.6098954 | Q60: =SUM(IF(_xlfn.IFNA('Avocados - Summary'!Q60,),'Avocados - Summary'!Q60,0),IF(_xlfn.IFNA('Bananas - Summary'!Q60,),'Bananas - Summary'!Q60,0),IF(_xlfn.IFNA('Cucumbers - Summary'!Q60,),'Cucumbers - Summary'!Q60,0),IF(_xlfn.IFNA('Eggplants - Summary'!Q60,),'Eggplants - Summary'!Q60,0),IF(_xlfn.IFNA('Peppers - Summary'!Q60,),'Peppers - Summary'!Q60),0) -> 898.9252317 | R60: =SUM(IF(_xlfn.IFNA('Avocados - Summary'!R60,),'Avocados - Summary'!R60,0),IF(_xlfn.IFNA('Bananas - Summary'!R60,),'Bananas - Summary'!R60,0),IF(_xlfn.IFNA('Cucumbers - Summary'!R60,),'Cucumbers - Summary'!R60,0),IF(_xlfn.IFNA('Eggplants - Summary'!R60,),'Eggplants - Summary'!R60,0),IF(_xlfn.IFNA('Peppers - Summary'!R60,),'Peppers - Summary'!R60),0) -> 12697.20293 | S60: =SUM(IF(_xlfn.IFNA('Avocados - Summary'!S60,),'Avocados - Summary'!S60,0),IF(_xlfn.IFNA('Bananas - Summary'!S60,),'Bananas - Summary'!S60,0),IF(_xlfn.IFNA('Cucumbers - Summary'!S60,),'Cucumbers - Summary'!S60,0),IF(_xlfn.IFNA('Eggplants - Summary'!S60,),'Eggplants - Summary'!S60,0),IF(_xlfn.IFNA('Peppers - Summary'!S60,),'Peppers - Summary'!S60),0) -> 2246.52395 | T60: 16585.262 | X60: France | Y60: 612397.5233 | Z60: 0.1191025449 | AA60: 2348.135011 | AB60: 0.1321972308 | AC60: 783329.6083 | AD60: 0.1258186144
N61: Lithuania | O61: ABCEPs | P61: =SUM(IF(_xlfn.IFNA('Avocados - Summary'!P61,),'Avocados - Summary'!P61,0),IF(_xlfn.IFNA('Bananas - Summary'!P61,),'Bananas - Summary'!P61,0),IF(_xlfn.IFNA('Cucumbers - Summary'!P61,),'Cucumbers - Summary'!P61,0),IF(_xlfn.IFNA('Eggplants - Summary'!P61,),'Eggplants - Summary'!P61,0),IF(_xlfn.IFNA('Peppers - Summary'!P61,),'Peppers - Summary'!P61),0) -> 757.2676462 | Q61: =SUM(IF(_xlfn.IFNA('Avocados - Summary'!Q61,),'Avocados - Summary'!Q61,0),IF(_xlfn.IFNA('Bananas - Summary'!Q61,),'Bananas - Summary'!Q61,0),IF(_xlfn.IFNA('Cucumbers - Summary'!Q61,),'Cucumbers - Summary'!Q61,0),IF(_xlfn.IFNA('Eggplants - Summary'!Q61,),'Eggplants - Summary'!Q61,0),IF(_xlfn.IFNA('Peppers - Summary'!Q61,),'Peppers - Summary'!Q61),0) -> 1853.087993 | R61: =SUM(IF(_xlfn.IFNA('Avocados - Summary'!R61,),'Avocados - Summary'!R61,0),IF(_xlfn.IFNA('Bananas - Summary'!R61,),'Bananas - Summary'!R61,0),IF(_xlfn.IFNA('Cucumbers - Summary'!R61,),'Cucumbers - Summary'!R61,0),IF(_xlfn.IFNA('Eggplants - Summary'!R61,),'Eggplants - Summary'!R61,0),IF(_xlfn.IFNA('Peppers - Summary'!R61,),'Peppers - Summary'!R61),0) -> 24496.96378 | S61: =SUM(IF(_xlfn.IFNA('Avocados - Summary'!S61,),'Avocados - Summary'!S61,0),IF(_xlfn.IFNA('Bananas - Summary'!S61,),'Bananas - Summary'!S61,0),IF(_xlfn.IFNA('Cucumbers - Summary'!S61,),'Cucumbers - Summary'!S61,0),IF(_xlfn.IFNA('Eggplants - Summary'!S61,),'Eggplants - Summary'!S61,0),IF(_xlfn.IFNA('Peppers - Summary'!S61,),'Peppers - Summary'!S61),0) -> 4349.377766 | T61: 31456.69718 | X61: Germany | Y61: 804839.0197 | Z61: 0.156529659 | AA61: 3321.847595 | AB61: 0.1870161005 | AC61: 846878.1134 | AD61: 0.1360257926
N62: Luxembourg | O62: ABCEPs | P62: =SUM(IF(_xlfn.IFNA('Avocados - Summary'!P62,),'Avocados - Summary'!P62,0),IF(_xlfn.IFNA('Bananas - Summary'!P62,),'Bananas - Summary'!P62,0),IF(_xlfn.IFNA('Cucumbers - Summary'!P62,),'Cucumbers - Summary'!P62,0),IF(_xlfn.IFNA('Eggplants - Summary'!P62,),'Eggplants - Summary'!P62,0),IF(_xlfn.IFNA('Peppers - Summary'!P62,),'Peppers - Summary'!P62),0) -> 476.8826761 | Q62: =SUM(IF(_xlfn.IFNA('Avocados - Summary'!Q62,),'Avocados - Summary'!Q62,0),IF(_xlfn.IFNA('Bananas - Summary'!Q62,),'Bananas - Summary'!Q62,0),IF(_xlfn.IFNA('Cucumbers - Summary'!Q62,),'Cucumbers - Summary'!Q62,0),IF(_xlfn.IFNA('Eggplants - Summary'!Q62,),'Eggplants - Summary'!Q62,0),IF(_xlfn.IFNA('Peppers - Summary'!Q62,),'Peppers - Summary'!Q62),0) -> 263.0969928 | R62: =SUM(IF(_xlfn.IFNA('Avocados - Summary'!R62,),'Avocados - Summary'!R62,0),IF(_xlfn.IFNA('Bananas - Summary'!R62,),'Bananas - Summary'!R62,0),IF(_xlfn.IFNA('Cucumbers - Summary'!R62,),'Cucumbers - Summary'!R62,0),IF(_xlfn.IFNA('Eggplants - Summary'!R62,),'Eggplants - Summary'!R62,0),IF(_xlfn.IFNA('Peppers - Summary'!R62,),'Peppers - Summary'!R62),0) -> 3321.420836 | S62: =SUM(IF(_xlfn.IFNA('Avocados - Summary'!S62,),'Avocados - Summary'!S62,0),IF(_xlfn.IFNA('Bananas - Summary'!S62,),'Bananas - Summary'!S62,0),IF(_xlfn.IFNA('Cucumbers - Summary'!S62,),'Cucumbers - Summary'!S62,0),IF(_xlfn.IFNA('Eggplants - Summary'!S62,),'Eggplants - Summary'!S62,0),IF(_xlfn.IFNA('Peppers - Summary'!S62,),'Peppers - Summary'!S62),0) -> 590.7295589 | T62: 4652.130064 | X62: Greece | Y62: 148045.0562 | Z62: 0.02879264251 | AA62: 412.9174343 | AB62: 0.02324676439 | AC62: 201420.0713 | AD62: 0.03235214656
N63: Malta | O63: ABCEPs | P63: =SUM(IF(_xlfn.IFNA('Avocados - Summary'!P63,),'Avocados - Summary'!P63,0),IF(_xlfn.IFNA('Bananas - Summary'!P63,),'Bananas - Summary'!P63,0),IF(_xlfn.IFNA('Cucumbers - Summary'!P63,),'Cucumbers - Summary'!P63,0),IF(_xlfn.IFNA('Eggplants - Summary'!P63,),'Eggplants - Summary'!P63,0),IF(_xlfn.IFNA('Peppers - Summary'!P63,),'Peppers - Summary'!P63),0) -> 582.4250281 | Q63: =SUM(IF(_xlfn.IFNA('Avocados - Summary'!Q63,),'Avocados - Summary'!Q63,0),IF(_xlfn.IFNA('Bananas - Summary'!Q63,),'Bananas - Summary'!Q63,0),IF(_xlfn.IFNA('Cucumbers - Summary'!Q63,),'Cucumbers - Summary'!Q63,0),IF(_xlfn.IFNA('Eggplants - Summary'!Q63,),'Eggplants - Summary'!Q63,0),IF(_xlfn.IFNA('Peppers - Summary'!Q63,),'Peppers - Summary'!Q63),0) -> 308.861882 | R63: =SUM(IF(_xlfn.IFNA('Avocados - Summary'!R63,),'Avocados - Summary'!R63,0),IF(_xlfn.IFNA('Bananas - Summary'!R63,),'Bananas - Summary'!R63,0),IF(_xlfn.IFNA('Cucumbers - Summary'!R63,),'Cucumbers - Summary'!R63,0),IF(_xlfn.IFNA('Eggplants - Summary'!R63,),'Eggplants - Summary'!R63,0),IF(_xlfn.IFNA('Peppers - Summary'!R63,),'Peppers - Summary'!R63),0) -> 4271.461475 | S63: =SUM(IF(_xlfn.IFNA('Avocados - Summary'!S63,),'Avocados - Summary'!S63,0),IF(_xlfn.IFNA('Bananas - Summary'!S63,),'Bananas - Summary'!S63,0),IF(_xlfn.IFNA('Cucumbers - Summary'!S63,),'Cucumbers - Summary'!S63,0),IF(_xlfn.IFNA('Eggplants - Summary'!S63,),'Eggplants - Summary'!S63,0),IF(_xlfn.IFNA('Peppers - Summary'!S63,),'Peppers - Summary'!S63),0) -> 745.4109739 | T63: 5908.159359 | X63: Hungary | Y63: 38987.14381 | Z63: 0.007582440933 | AA63: 83.22367373 | AB63: 0.004685394644 | AC63: 43791.26153 | AD63: 0.007033764319
N64: Netherlands | O64: ABCEPs | P64: =SUM(IF(_xlfn.IFNA('Avocados - Summary'!P64,),'Avocados - Summary'!P64,0),IF(_xlfn.IFNA('Bananas - Summary'!P64,),'Bananas - Summary'!P64,0),IF(_xlfn.IFNA('Cucumbers - Summary'!P64,),'Cucumbers - Summary'!P64,0),IF(_xlfn.IFNA('Eggplants - Summary'!P64,),'Eggplants - Summary'!P64,0),IF(_xlfn.IFNA('Peppers - Summary'!P64,),'Peppers - Summary'!P64),0) -> 59000.52306 | Q64: =SUM(IF(_xlfn.IFNA('Avocados - Summary'!Q64,),'Avocados - Summary'!Q64,0),IF(_xlfn.IFNA('Bananas - Summary'!Q64,),'Bananas - Summary'!Q64,0),IF(_xlfn.IFNA('Cucumbers - Summary'!Q64,),'Cucumbers - Summary'!Q64,0),IF(_xlfn.IFNA('Eggplants - Summary'!Q64,),'Eggplants - Summary'!Q64,0),IF(_xlfn.IFNA('Peppers - Summary'!Q64,),'Peppers - Summary'!Q64),0) -> 13687.36911 | R64: =SUM(IF(_xlfn.IFNA('Avocados - Summary'!R64,),'Avocados - Summary'!R64,0),IF(_xlfn.IFNA('Bananas - Summary'!R64,),'Bananas - Summary'!R64,0),IF(_xlfn.IFNA('Cucumbers - Summary'!R64,),'Cucumbers - Summary'!R64,0),IF(_xlfn.IFNA('Eggplants - Summary'!R64,),'Eggplants - Summary'!R64,0),IF(_xlfn.IFNA('Peppers - Summary'!R64,),'Peppers - Summary'!R64),0) -> 259848.7064 | S64: =SUM(IF(_xlfn.IFNA('Avocados - Summary'!S64,),'Avocados - Summary'!S64,0),IF(_xlfn.IFNA('Bananas - Summary'!S64,),'Bananas - Summary'!S64,0),IF(_xlfn.IFNA('Cucumbers - Summary'!S64,),'Cucumbers - Summary'!S64,0),IF(_xlfn.IFNA('Eggplants - Summary'!S64,),'Eggplants - Summary'!S64,0),IF(_xlfn.IFNA('Peppers - Summary'!S64,),'Peppers - Summary'!S64),0) -> 40948.57859 | T64: 373485.1772 | X64: Iceland | Y64: 3141.152886 | Z64: 0.0006109092355 | AA64: 21.12419556 | AB64: 0.001189267288 | AC64: 4302.295695 | AD64: 0.000691035903
N65: Norway | O65: ABCEPs | P65: =SUM(IF(_xlfn.IFNA('Avocados - Summary'!P65,),'Avocados - Summary'!P65,0),IF(_xlfn.IFNA('Bananas - Summary'!P65,),'Bananas - Summary'!P65,0),IF(_xlfn.IFNA('Cucumbers - Summary'!P65,),'Cucumbers - Summary'!P65,0),IF(_xlfn.IFNA('Eggplants - Summary'!P65,),'Eggplants - Summary'!P65,0),IF(_xlfn.IFNA('Peppers - Summary'!P65,),'Peppers - Summary'!P65),0) -> 10219.48757 | Q65: =SUM(IF(_xlfn.IFNA('Avocados - Summary'!Q65,),'Avocados - Summary'!Q65,0),IF(_xlfn.IFNA('Bananas - Summary'!Q65,),'Bananas - Summary'!Q65,0),IF(_xlfn.IFNA('Cucumbers - Summary'!Q65,),'Cucumbers - Summary'!Q65,0),IF(_xlfn.IFNA('Eggplants - Summary'!Q65,),'Eggplants - Summary'!Q65,0),IF(_xlfn.IFNA('Peppers - Summary'!Q65,),'Peppers - Summary'!Q65),0) -> 3663.900499 | R65: =SUM(IF(_xlfn.IFNA('Avocados - Summary'!R65,),'Avocados - Summary'!R65,0),IF(_xlfn.IFNA('Bananas - Summary'!R65,),'Bananas - Summary'!R65,0),IF(_xlfn.IFNA('Cucumbers - Summary'!R65,),'Cucumbers - Summary'!R65,0),IF(_xlfn.IFNA('Eggplants - Summary'!R65,),'Eggplants - Summary'!R65,0),IF(_xlfn.IFNA('Peppers - Summary'!R65,),'Peppers - Summary'!R65),0) -> 59840.78565 | S65: =SUM(IF(_xlfn.IFNA('Avocados - Summary'!S65,),'Avocados - Summary'!S65,0),IF(_xlfn.IFNA('Bananas - Summary'!S65,),'Bananas - Summary'!S65,0),IF(_xlfn.IFNA('Cucumbers - Summary'!S65,),'Cucumbers - Summary'!S65,0),IF(_xlfn.IFNA('Eggplants - Summary'!S65,),'Eggplants - Summary'!S65,0),IF(_xlfn.IFNA('Peppers - Summary'!S65,),'Peppers - Summary'!S65),0) -> 10544.85751 | T65: 84269.03123 | X65: Ireland | Y65: 42999.3914 | Z65: 0.008362765609 | AA65: 211.458382 | AB65: 0.01190485743 | AC65: 47028.53259 | AD65: 0.007553735677
N66: Poland | O66: ABCEPs | P66: =SUM(IF(_xlfn.IFNA('Avocados - Summary'!P66,),'Avocados - Summary'!P66,0),IF(_xlfn.IFNA('Bananas - Summary'!P66,),'Bananas - Summary'!P66,0),IF(_xlfn.IFNA('Cucumbers - Summary'!P66,),'Cucumbers - Summary'!P66,0),IF(_xlfn.IFNA('Eggplants - Summary'!P66,),'Eggplants - Summary'!P66,0),IF(_xlfn.IFNA('Peppers - Summary'!P66,),'Peppers - Summary'!P66),0) -> 135933.7315 | Q66: =SUM(IF(_xlfn.IFNA('Avocados - Summary'!Q66,),'Avocados - Summary'!Q66,0),IF(_xlfn.IFNA('Bananas - Summary'!Q66,),'Bananas - Summary'!Q66,0),IF(_xlfn.IFNA('Cucumbers - Summary'!Q66,),'Cucumbers - Summary'!Q66,0),IF(_xlfn.IFNA('Eggplants - Summary'!Q66,),'Eggplants - Summary'!Q66,0),IF(_xlfn.IFNA('Peppers - Summary'!Q66,),'Peppers - Summary'!Q66),0) -> 25827.66656 | R66: =SUM(IF(_xlfn.IFNA('Avocados - Summary'!R66,),'Avocados - Summary'!R66,0),IF(_xlfn.IFNA('Bananas - Summary'!R66,),'Bananas - Summary'!R66,0),IF(_xlfn.IFNA('Cucumbers - Summary'!R66,),'Cucumbers - Summary'!R66,0),IF(_xlfn.IFNA('Eggplants - Summary'!R66,),'Eggplants - Summary'!R66,0),IF(_xlfn.IFNA('Peppers - Summary'!R66,),'Peppers - Summary'!R66),0) -> 274551.3638 | S66: =SUM(IF(_xlfn.IFNA('Avocados - Summary'!S66,),'Avocados - Summary'!S66,0),IF(_xlfn.IFNA('Bananas - Summary'!S66,),'Bananas - Summary'!S66,0),IF(_xlfn.IFNA('Cucumbers - Summary'!S66,),'Cucumbers - Summary'!S66,0),IF(_xlfn.IFNA('Eggplants - Summary'!S66,),'Eggplants - Summary'!S66,0),IF(_xlfn.IFNA('Peppers - Summary'!S66,),'Peppers - Summary'!S66),0) -> 48354.29232 | T66: 484667.0542 | X66: Italy | Y66: 568751.1731 | Z66: 0.1106139551 | AA66: 1745.094524 | AB66: 0.09824676283 | AC66: 677077.9884 | AD66: 0.1087524504
N67: Portugal | O67: ABCEPs | P67: =SUM(IF(_xlfn.IFNA('Avocados - Summary'!P67,),'Avocados - Summary'!P67,0),IF(_xlfn.IFNA('Bananas - Summary'!P67,),'Bananas - Summary'!P67,0),IF(_xlfn.IFNA('Cucumbers - Summary'!P67,),'Cucumbers - Summary'!P67,0),IF(_xlfn.IFNA('Eggplants - Summary'!P67,),'Eggplants - Summary'!P67,0),IF(_xlfn.IFNA('Peppers - Summary'!P67,),'Peppers - Summary'!P67),0) -> 21919.06596 | Q67: =SUM(IF(_xlfn.IFNA('Avocados - Summary'!Q67,),'Avocados - Summary'!Q67,0),IF(_xlfn.IFNA('Bananas - Summary'!Q67,),'Bananas - Summary'!Q67,0),IF(_xlfn.IFNA('Cucumbers - Summary'!Q67,),'Cucumbers - Summary'!Q67,0),IF(_xlfn.IFNA('Eggplants - Summary'!Q67,),'Eggplants - Summary'!Q67,0),IF(_xlfn.IFNA('Peppers - Summary'!Q67,),'Peppers - Summary'!Q67),0) -> 7449.852938 | R67: =SUM(IF(_xlfn.IFNA('Avocados - Summary'!R67,),'Avocados - Summary'!R67,0),IF(_xlfn.IFNA('Bananas - Summary'!R67,),'Bananas - Summary'!R67,0),IF(_xlfn.IFNA('Cucumbers - Summary'!R67,),'Cucumbers - Summary'!R67,0),IF(_xlfn.IFNA('Eggplants - Summary'!R67,),'Eggplants - Summary'!R67,0),IF(_xlfn.IFNA('Peppers - Summary'!R67,),'Peppers - Summary'!R67),0) -> 110228.0217 | S67: =SUM(IF(_xlfn.IFNA('Avocados - Summary'!S67,),'Avocados - Summary'!S67,0),IF(_xlfn.IFNA('Bananas - Summary'!S67,),'Bananas - Summary'!S67,0),IF(_xlfn.IFNA('Cucumbers - Summary'!S67,),'Cucumbers - Summary'!S67,0),IF(_xlfn.IFNA('Eggplants - Summary'!S67,),'Eggplants - Summary'!S67,0),IF(_xlfn.IFNA('Peppers - Summary'!S67,),'Peppers - Summary'!S67),0) -> 19191.74579 | T67: 158788.6864 | X67: Latvia | Y67: 13450.16238 | Z67: 0.002615863893 | AA67: 59.64505202 | AB67: 0.00335794606 | AC67: 16606.40537 | AD67: 0.00266732534
N68: Romania | O68: ABCEPs | P68: =SUM(IF(_xlfn.IFNA('Avocados - Summary'!P68,),'Avocados - Summary'!P68,0),IF(_xlfn.IFNA('Bananas - Summary'!P68,),'Bananas - Summary'!P68,0),IF(_xlfn.IFNA('Cucumbers - Summary'!P68,),'Cucumbers - Summary'!P68,0),IF(_xlfn.IFNA('Eggplants - Summary'!P68,),'Eggplants - Summary'!P68,0),IF(_xlfn.IFNA('Peppers - Summary'!P68,),'Peppers - Summary'!P68),0) -> 29503.61127 | Q68: =SUM(IF(_xlfn.IFNA('Avocados - Summary'!Q68,),'Avocados - Summary'!Q68,0),IF(_xlfn.IFNA('Bananas - Summary'!Q68,),'Bananas - Summary'!Q68,0),IF(_xlfn.IFNA('Cucumbers - Summary'!Q68,),'Cucumbers - Summary'!Q68,0),IF(_xlfn.IFNA('Eggplants - Summary'!Q68,),'Eggplants - Summary'!Q68,0),IF(_xlfn.IFNA('Peppers - Summary'!Q68,),'Peppers - Summary'!Q68),0) -> 15100.30202 | R68: =SUM(IF(_xlfn.IFNA('Avocados - Summary'!R68,),'Avocados - Summary'!R68,0),IF(_xlfn.IFNA('Bananas - Summary'!R68,),'Bananas - Summary'!R68,0),IF(_xlfn.IFNA('Cucumbers - Summary'!R68,),'Cucumbers - Summary'!R68,0),IF(_xlfn.IFNA('Eggplants - Summary'!R68,),'Eggplants - Summary'!R68,0),IF(_xlfn.IFNA('Peppers - Summary'!R68,),'Peppers - Summary'!R68),0) -> 113958.1118 | S68: =SUM(IF(_xlfn.IFNA('Avocados - Summary'!S68,),'Avocados - Summary'!S68,0),IF(_xlfn.IFNA('Bananas - Summary'!S68,),'Bananas - Summary'!S68,0),IF(_xlfn.IFNA('Cucumbers - Summary'!S68,),'Cucumbers - Summary'!S68,0),IF(_xlfn.IFNA('Eggplants - Summary'!S68,),'Eggplants - Summary'!S68,0),IF(_xlfn.IFNA('Peppers - Summary'!S68,),'Peppers - Summary'!S68),0) -> 19600.58793 | T68: 178162.613 | X68: Lithuania | Y68: 22744.40515 | Z68: 0.00442346096 | AA68: 88.10087446 | AB68: 0.004959975291 | AC68: 31488.21875 | AD68: 0.005057646247
N69: Slovakia | O69: ABCEPs | P69: =SUM(IF(_xlfn.IFNA('Avocados - Summary'!P69,),'Avocados - Summary'!P69,0),IF(_xlfn.IFNA('Bananas - Summary'!P69,),'Bananas - Summary'!P69,0),IF(_xlfn.IFNA('Cucumbers - Summary'!P69,),'Cucumbers - Summary'!P69,0),IF(_xlfn.IFNA('Eggplants - Summary'!P69,),'Eggplants - Summary'!P69,0),IF(_xlfn.IFNA('Peppers - Summary'!P69,),'Peppers - Summary'!P69),0) -> 3246.456245 | Q69: =SUM(IF(_xlfn.IFNA('Avocados - Summary'!Q69,),'Avocados - Summary'!Q69,0),IF(_xlfn.IFNA('Bananas - Summary'!Q69,),'Bananas - Summary'!Q69,0),IF(_xlfn.IFNA('Cucumbers - Summary'!Q69,),'Cucumbers - Summary'!Q69,0),IF(_xlfn.IFNA('Eggplants - Summary'!Q69,),'Eggplants - Summary'!Q69,0),IF(_xlfn.IFNA('Peppers - Summary'!Q69,),'Peppers - Summary'!Q69),0) -> 1708.901221 | R69: =SUM(IF(_xlfn.IFNA('Avocados - Summary'!R69,),'Avocados - Summary'!R69,0),IF(_xlfn.IFNA('Bananas - Summary'!R69,),'Bananas - Summary'!R69,0),IF(_xlfn.IFNA('Cucumbers - Summary'!R69,),'Cucumbers - Summary'!R69,0),IF(_xlfn.IFNA('Eggplants - Summary'!R69,),'Eggplants - Summary'!R69,0),IF(_xlfn.IFNA('Peppers - Summary'!R69,),'Peppers - Summary'!R69),0) -> 28531.90021 | S69: =SUM(IF(_xlfn.IFNA('Avocados - Summary'!S69,),'Avocados - Summary'!S69,0),IF(_xlfn.IFNA('Bananas - Summary'!S69,),'Bananas - Summary'!S69,0),IF(_xlfn.IFNA('Cucumbers - Summary'!S69,),'Cucumbers - Summary'!S69,0),IF(_xlfn.IFNA('Eggplants - Summary'!S69,),'Eggplants - Summary'!S69,0),IF(_xlfn.IFNA('Peppers - Summary'!S69,),'Peppers - Summary'!S69),0) -> 4880.325776 | T69: 38367.58345 | X69: Luxembourg | Y69: 4183.352972 | Z69: 0.0008136022214 | AA69: 29.14135993 | AB69: 0.001640624183 | AC69: 4659.750139 | AD69: 0.0007484503328
N70: Slovenia | O70: ABCEPs | P70: =SUM(IF(_xlfn.IFNA('Avocados - Summary'!P70,),'Avocados - Summary'!P70,0),IF(_xlfn.IFNA('Bananas - Summary'!P70,),'Bananas - Summary'!P70,0),IF(_xlfn.IFNA('Cucumbers - Summary'!P70,),'Cucumbers - Summary'!P70,0),IF(_xlfn.IFNA('Eggplants - Summary'!P70,),'Eggplants - Summary'!P70,0),IF(_xlfn.IFNA('Peppers - Summary'!P70,),'Peppers - Summary'!P70),0) -> 13022.40274 | Q70: =SUM(IF(_xlfn.IFNA('Avocados - Summary'!Q70,),'Avocados - Summary'!Q70,0),IF(_xlfn.IFNA('Bananas - Summary'!Q70,),'Bananas - Summary'!Q70,0),IF(_xlfn.IFNA('Cucumbers - Summary'!Q70,),'Cucumbers - Summary'!Q70,0),IF(_xlfn.IFNA('Eggplants - Summary'!Q70,),'Eggplants - Summary'!Q70,0),IF(_xlfn.IFNA('Peppers - Summary'!Q70,),'Peppers - Summary'!Q70),0) -> 699.3036775 | R70: =SUM(IF(_xlfn.IFNA('Avocados - Summary'!R70,),'Avocados - Summary'!R70,0),IF(_xlfn.IFNA('Bananas - Summary'!R70,),'Bananas - Summary'!R70,0),IF(_xlfn.IFNA('Cucumbers - Summary'!R70,),'Cucumbers - Summary'!R70,0),IF(_xlfn.IFNA('Eggplants - Summary'!R70,),'Eggplants - Summary'!R70,0),IF(_xlfn.IFNA('Peppers - Summary'!R70,),'Peppers - Summary'!R70),0) -> 11286.14337 | S70: =SUM(IF(_xlfn.IFNA('Avocados - Summary'!S70,),'Avocados - Summary'!S70,0),IF(_xlfn.IFNA('Bananas - Summary'!S70,),'Bananas - Summary'!S70,0),IF(_xlfn.IFNA('Cucumbers - Summary'!S70,),'Cucumbers - Summary'!S70,0),IF(_xlfn.IFNA('Eggplants - Summary'!S70,),'Eggplants - Summary'!S70,0),IF(_xlfn.IFNA('Peppers - Summary'!S70,),'Peppers - Summary'!S70),0) -> 1955.475125 | T70: 26963.32492 | X70: Malta | Y70: 5028.459545 | Z70: 0.0009779633429 | AA70: 25.42782984 | AB70: 0.001431556821 | AC70: 5912.569418 | AD70: 0.0009496785057
N71: Spain | O71: ABCEPs | P71: =SUM(IF(_xlfn.IFNA('Avocados - Summary'!P71,),'Avocados - Summary'!P71,0),IF(_xlfn.IFNA('Bananas - Summary'!P71,),'Bananas - Summary'!P71,0),IF(_xlfn.IFNA('Cucumbers - Summary'!P71,),'Cucumbers - Summary'!P71,0),IF(_xlfn.IFNA('Eggplants - Summary'!P71,),'Eggplants - Summary'!P71,0),IF(_xlfn.IFNA('Peppers - Summary'!P71,),'Peppers - Summary'!P71),0) -> 432358.7948 | Q71: =SUM(IF(_xlfn.IFNA('Avocados - Summary'!Q71,),'Avocados - Summary'!Q71,0),IF(_xlfn.IFNA('Bananas - Summary'!Q71,),'Bananas - Summary'!Q71,0),IF(_xlfn.IFNA('Cucumbers - Summary'!Q71,),'Cucumbers - Summary'!Q71,0),IF(_xlfn.IFNA('Eggplants - Summary'!Q71,),'Eggplants - Summary'!Q71,0),IF(_xlfn.IFNA('Peppers - Summary'!Q71,),'Peppers - Summary'!Q71),0) -> 40753.26472 | R71: =SUM(IF(_xlfn.IFNA('Avocados - Summary'!R71,),'Avocados - Summary'!R71,0),IF(_xlfn.IFNA('Bananas - Summary'!R71,),'Bananas - Summary'!R71,0),IF(_xlfn.IFNA('Cucumbers - Summary'!R71,),'Cucumbers - Summary'!R71,0),IF(_xlfn.IFNA('Eggplants - Summary'!R71,),'Eggplants - Summary'!R71,0),IF(_xlfn.IFNA('Peppers - Summary'!R71,),'Peppers - Summary'!R71),0) -> 295609.7272 | S71: =SUM(IF(_xlfn.IFNA('Avocados - Summary'!S71,),'Avocados - Summary'!S71,0),IF(_xlfn.IFNA('Bananas - Summary'!S71,),'Bananas - Summary'!S71,0),IF(_xlfn.IFNA('Cucumbers - Summary'!S71,),'Cucumbers - Summary'!S71,0),IF(_xlfn.IFNA('Eggplants - Summary'!S71,),'Eggplants - Summary'!S71,0),IF(_xlfn.IFNA('Peppers - Summary'!S71,),'Peppers - Summary'!S71),0) -> 61285.22441 | T71: 830007.0111 | X71: Netherlands | Y71: 271139.4982 | Z71: 0.05273274801 | AA71: 865.2584857 | AB71: 0.04871303192 | AC71: 373719.3837 | AD71: 0.0600269089
N72: Sweden | O72: ABCEPs | P72: =SUM(IF(_xlfn.IFNA('Avocados - Summary'!P72,),'Avocados - Summary'!P72,0),IF(_xlfn.IFNA('Bananas - Summary'!P72,),'Bananas - Summary'!P72,0),IF(_xlfn.IFNA('Cucumbers - Summary'!P72,),'Cucumbers - Summary'!P72,0),IF(_xlfn.IFNA('Eggplants - Summary'!P72,),'Eggplants - Summary'!P72,0),IF(_xlfn.IFNA('Peppers - Summary'!P72,),'Peppers - Summary'!P72),0) -> 21511.7472 | Q72: =SUM(IF(_xlfn.IFNA('Avocados - Summary'!Q72,),'Avocados - Summary'!Q72,0),IF(_xlfn.IFNA('Bananas - Summary'!Q72,),'Bananas - Summary'!Q72,0),IF(_xlfn.IFNA('Cucumbers - Summary'!Q72,),'Cucumbers - Summary'!Q72,0),IF(_xlfn.IFNA('Eggplants - Summary'!Q72,),'Eggplants - Summary'!Q72,0),IF(_xlfn.IFNA('Peppers - Summary'!Q72,),'Peppers - Summary'!Q72),0) -> 3592.068156 | R72: =SUM(IF(_xlfn.IFNA('Avocados - Summary'!R72,),'Avocados - Summary'!R72,0),IF(_xlfn.IFNA('Bananas - Summary'!R72,),'Bananas - Summary'!R72,0),IF(_xlfn.IFNA('Cucumbers - Summary'!R72,),'Cucumbers - Summary'!R72,0),IF(_xlfn.IFNA('Eggplants - Summary'!R72,),'Eggplants - Summary'!R72,0),IF(_xlfn.IFNA('Peppers - Summary'!R72,),'Peppers - Summary'!R72),0) -> 60121.09177 | S72: =SUM(IF(_xlfn.IFNA('Avocados - Summary'!S72,),'Avocados - Summary'!S72,0),IF(_xlfn.IFNA('Bananas - Summary'!S72,),'Bananas - Summary'!S72,0),IF(_xlfn.IFNA('Cucumbers - Summary'!S72,),'Cucumbers - Summary'!S72,0),IF(_xlfn.IFNA('Eggplants - Summary'!S72,),'Eggplants - Summary'!S72,0),IF(_xlfn.IFNA('Peppers - Summary'!S72,),'Peppers - Summary'!S72),0) -> 10709.47222 | T72: 95934.37935 | X72: Norway | Y72: 51994.0046 | Z72: 0.01011208902 | AA72: 339.4273761 | AB72: 0.01910936082 | AC72: 84368.04297 | AD72: 0.01355121798
N73: Switzerland | O73: ABCEPs | P73: =SUM(IF(_xlfn.IFNA('Avocados - Summary'!P73,),'Avocados - Summary'!P73,0),IF(_xlfn.IFNA('Bananas - Summary'!P73,),'Bananas - Summary'!P73,0),IF(_xlfn.IFNA('Cucumbers - Summary'!P73,),'Cucumbers - Summary'!P73,0),IF(_xlfn.IFNA('Eggplants - Summary'!P73,),'Eggplants - Summary'!P73,0),IF(_xlfn.IFNA('Peppers - Summary'!P73,),'Peppers - Summary'!P73),0) -> 6056.765944 | Q73: =SUM(IF(_xlfn.IFNA('Avocados - Summary'!Q73,),'Avocados - Summary'!Q73,0),IF(_xlfn.IFNA('Bananas - Summary'!Q73,),'Bananas - Summary'!Q73,0),IF(_xlfn.IFNA('Cucumbers - Summary'!Q73,),'Cucumbers - Summary'!Q73,0),IF(_xlfn.IFNA('Eggplants - Summary'!Q73,),'Eggplants - Summary'!Q73,0),IF(_xlfn.IFNA('Peppers - Summary'!Q73,),'Peppers - Summary'!Q73),0) -> 3778.557431 | R73: =SUM(IF(_xlfn.IFNA('Avocados - Summary'!R73,),'Avocados - Summary'!R73,0),IF(_xlfn.IFNA('Bananas - Summary'!R73,),'Bananas - Summary'!R73,0),IF(_xlfn.IFNA('Cucumbers - Summary'!R73,),'Cucumbers - Summary'!R73,0),IF(_xlfn.IFNA('Eggplants - Summary'!R73,),'Eggplants - Summary'!R73,0),IF(_xlfn.IFNA('Peppers - Summary'!R73,),'Peppers - Summary'!R73),0) -> 41655.86579 | S73: =SUM(IF(_xlfn.IFNA('Avocados - Summary'!S73,),'Avocados - Summary'!S73,0),IF(_xlfn.IFNA('Bananas - Summary'!S73,),'Bananas - Summary'!S73,0),IF(_xlfn.IFNA('Cucumbers - Summary'!S73,),'Cucumbers - Summary'!S73,0),IF(_xlfn.IFNA('Eggplants - Summary'!S73,),'Eggplants - Summary'!S73,0),IF(_xlfn.IFNA('Peppers - Summary'!S73,),'Peppers - Summary'!S73),0) -> 7523.575034 | T73: 59014.7642 | X73: Poland | Y73: 311816.9474 | Z73: 0.06064392911 | AA73: 678.7260419 | AB73: 0.0382114754 | AC73: 484843.3655 | AD73: 0.07787567305
N74: United Kingdom | O74: ABCEPs | P74: =SUM(IF(_xlfn.IFNA('Avocados - Summary'!P74,),'Avocados - Summary'!P74,0),IF(_xlfn.IFNA('Bananas - Summary'!P74,),'Bananas - Summary'!P74,0),IF(_xlfn.IFNA('Cucumbers - Summary'!P74,),'Cucumbers - Summary'!P74,0),IF(_xlfn.IFNA('Eggplants - Summary'!P74,),'Eggplants - Summary'!P74,0),IF(_xlfn.IFNA('Peppers - Summary'!P74,),'Peppers - Summary'!P74),0) -> 47214.31134 | Q74: =SUM(IF(_xlfn.IFNA('Avocados - Summary'!Q74,),'Avocados - Summary'!Q74,0),IF(_xlfn.IFNA('Bananas - Summary'!Q74,),'Bananas - Summary'!Q74,0),IF(_xlfn.IFNA('Cucumbers - Summary'!Q74,),'Cucumbers - Summary'!Q74,0),IF(_xlfn.IFNA('Eggplants - Summary'!Q74,),'Eggplants - Summary'!Q74,0),IF(_xlfn.IFNA('Peppers - Summary'!Q74,),'Peppers - Summary'!Q74),0) -> 39984.15343 | R74: =SUM(IF(_xlfn.IFNA('Avocados - Summary'!R74,),'Avocados - Summary'!R74,0),IF(_xlfn.IFNA('Bananas - Summary'!R74,),'Bananas - Summary'!R74,0),IF(_xlfn.IFNA('Cucumbers - Summary'!R74,),'Cucumbers - Summary'!R74,0),IF(_xlfn.IFNA('Eggplants - Summary'!R74,),'Eggplants - Summary'!R74,0),IF(_xlfn.IFNA('Peppers - Summary'!R74,),'Peppers - Summary'!R74),0) -> 440306.3136 | S74: =SUM(IF(_xlfn.IFNA('Avocados - Summary'!S74,),'Avocados - Summary'!S74,0),IF(_xlfn.IFNA('Bananas - Summary'!S74,),'Bananas - Summary'!S74,0),IF(_xlfn.IFNA('Cucumbers - Summary'!S74,),'Cucumbers - Summary'!S74,0),IF(_xlfn.IFNA('Eggplants - Summary'!S74,),'Eggplants - Summary'!S74,0),IF(_xlfn.IFNA('Peppers - Summary'!S74,),'Peppers - Summary'!S74),0) -> 73017.31379 | T74: 600522.0922 | X74: Portugal | Y74: 138669.3513 | Z74: 0.02696920222 | AA74: 570.679995 | AB74: 0.03212861043 | AC74: 158963.9798 | AD74: 0.0255328376
N75: EU+ | O75: ABCEPs | P75: =SUM(P44:P74) -> 1356494.996 | Q75: =SUM(Q44:Q74) -> 342411.8312 | R75: 3849325.814 | S75: 672937.382 | T75: 6221170.023 | X75: Romania | Y75: 149991.2664 | Z75: 0.02917115252 | AA75: 477.5749556 | AB75: 0.02688690656 | AC75: 178254.0349 | AD75: 0.0286312115
X76: Slovakia | Y76: 37398.22204 | Z76: 0.007273418412 | AA76: 184.171473 | AB76: 0.01036863665 | AC76: 38387.31561 | AD76: 0.006165781058
N77: Economic Cost | O77: Unit: Million EUR | X77: Slovenia | Y77: 28123.6763 | Z77: 0.005469652134 | AA77: 44.56815302 | AB77: 0.002509134433 | AC77: 26980.28648 | AD77: 0.004333580942
N78: Country | O78: Product | P78: Pre R&D | Q78: R&D | R78: Households | S78: Food Service | T78: Total | X78: Spain | Y78: 669529.426 | Z78: 0.1302138815 | AA78: 1392.511819 | AB78: 0.07839677253 | AC78: 830938.0382 | AD78: 0.1334654934
N79: Austria | O79: ABCEPs | P79: =SUM(IF(_xlfn.IFNA('Avocados - Summary'!AA44,),'Avocados - Summary'!AA44,0),IF(_xlfn.IFNA('Bananas - Summary'!AA44,),'Bananas - Summary'!AA44,0),IF(_xlfn.IFNA('Cucumbers - Summary'!AA44,),'Cucumbers - Summary'!AA44,0),IF(_xlfn.IFNA('Eggplants - Summary'!AA44,),'Eggplants - Summary'!AA44,0),IF(_xlfn.IFNA('Peppers - Summary'!AA44,),'Peppers - Summary'!AA44),0) -> 39.14952259 | Q79: =SUM(IF(_xlfn.IFNA('Avocados - Summary'!AB44,),'Avocados - Summary'!AB44,0),IF(_xlfn.IFNA('Bananas - Summary'!AB44,),'Bananas - Summary'!AB44,0),IF(_xlfn.IFNA('Cucumbers - Summary'!AB44,),'Cucumbers - Summary'!AB44,0),IF(_xlfn.IFNA('Eggplants - Summary'!AB44,),'Eggplants - Summary'!AB44,0),IF(_xlfn.IFNA('Peppers - Summary'!AB44,),'Peppers - Summary'!AB44),0) -> 15.9726643 | R79: =SUM(IF(_xlfn.IFNA('Avocados - Summary'!AC44,),'Avocados - Summary'!AC44,0),IF(_xlfn.IFNA('Bananas - Summary'!AC44,),'Bananas - Summary'!AC44,0),IF(_xlfn.IFNA('Cucumbers - Summary'!AC44,),'Cucumbers - Summary'!AC44,0),IF(_xlfn.IFNA('Eggplants - Summary'!AC44,),'Eggplants - Summary'!AC44,0),IF(_xlfn.IFNA('Peppers - Summary'!AC44,),'Peppers - Summary'!AC44),0) -> 343.5010942 | S79: =SUM(IF(_xlfn.IFNA('Avocados - Summary'!AD44,),'Avocados - Summary'!AD44,0),IF(_xlfn.IFNA('Bananas - Summary'!AD44,),'Bananas - Summary'!AD44,0),IF(_xlfn.IFNA('Cucumbers - Summary'!AD44,),'Cucumbers - Summary'!AD44,0),IF(_xlfn.IFNA('Eggplants - Summary'!AD44,),'Eggplants - Summary'!AD44,0),IF(_xlfn.IFNA('Peppers - Summary'!AD44,),'Peppers - Summary'!AD44),0) -> 40.80685981 | T79: =SUM(P79:S79) -> 439.4301409 | X79: Sweden | Y79: 79421.44067 | Z79: 0.0154463324 | AA79: 303.4298207 | AB79: 0.01708274092 | AC79: 95934.37935 | AD79: 0.01540900607
N80: Belgium | O80: ABCEPs | P80: =SUM(IF(_xlfn.IFNA('Avocados - Summary'!AA45,),'Avocados - Summary'!AA45,0),IF(_xlfn.IFNA('Bananas - Summary'!AA45,),'Bananas - Summary'!AA45,0),IF(_xlfn.IFNA('Cucumbers - Summary'!AA45,),'Cucumbers - Summary'!AA45,0),IF(_xlfn.IFNA('Eggplants - Summary'!AA45,),'Eggplants - Summary'!AA45,0),IF(_xlfn.IFNA('Peppers - Summary'!AA45,),'Peppers - Summary'!AA45),0) -> 8.481831534 | Q80: =SUM(IF(_xlfn.IFNA('Avocados - Summary'!AB45,),'Avocados - Summary'!AB45,0),IF(_xlfn.IFNA('Bananas - Summary'!AB45,),'Bananas - Summary'!AB45,0),IF(_xlfn.IFNA('Cucumbers - Summary'!AB45,),'Cucumbers - Summary'!AB45,0),IF(_xlfn.IFNA('Eggplants - Summary'!AB45,),'Eggplants - Summary'!AB45,0),IF(_xlfn.IFNA('Peppers - Summary'!AB45,),'Peppers - Summary'!AB45),0) -> 16.16723212 | R80: =SUM(IF(_xlfn.IFNA('Avocados - Summary'!AC45,),'Avocados - Summary'!AC45,0),IF(_xlfn.IFNA('Bananas - Summary'!AC45,),'Bananas - Summary'!AC45,0),IF(_xlfn.IFNA('Cucumbers - Summary'!AC45,),'Cucumbers - Summary'!AC45,0),IF(_xlfn.IFNA('Eggplants - Summary'!AC45,),'Eggplants - Summary'!AC45,0),IF(_xlfn.IFNA('Peppers - Summary'!AC45,),'Peppers - Summary'!AC45),0) -> 347.4002058 | S80: =SUM(IF(_xlfn.IFNA('Avocados - Summary'!AD45,),'Avocados - Summary'!AD45,0),IF(_xlfn.IFNA('Bananas - Summary'!AD45,),'Bananas - Summary'!AD45,0),IF(_xlfn.IFNA('Cucumbers - Summary'!AD45,),'Cucumbers - Summary'!AD45,0),IF(_xlfn.IFNA('Eggplants - Summary'!AD45,),'Eggplants - Summary'!AD45,0),IF(_xlfn.IFNA('Peppers - Summary'!AD45,),'Peppers - Summary'!AD45),0) -> 40.84470691 | T80: =SUM(P80:S80) -> 412.8939764 | X80: Switzerland | Y80: 66668.33211 | Z80: 0.01296603549 | AA80: 363.7181922 | AB80: 0.02047690511 | AC80: 59142.53209 | AD80: 0.009499489567
N81: Bulgaria | O81: ABCEPs | P81: =SUM(IF(_xlfn.IFNA('Avocados - Summary'!AA46,),'Avocados - Summary'!AA46,0),IF(_xlfn.IFNA('Bananas - Summary'!AA46,),'Bananas - Summary'!AA46,0),IF(_xlfn.IFNA('Cucumbers - Summary'!AA46,),'Cucumbers - Summary'!AA46,0),IF(_xlfn.IFNA('Eggplants - Summary'!AA46,),'Eggplants - Summary'!AA46,0),IF(_xlfn.IFNA('Peppers - Summary'!AA46,),'Peppers - Summary'!AA46),0) -> 11.29291804 | Q81: =SUM(IF(_xlfn.IFNA('Avocados - Summary'!AB46,),'Avocados - Summary'!AB46,0),IF(_xlfn.IFNA('Bananas - Summary'!AB46,),'Bananas - Summary'!AB46,0),IF(_xlfn.IFNA('Cucumbers - Summary'!AB46,),'Cucumbers - Summary'!AB46,0),IF(_xlfn.IFNA('Eggplants - Summary'!AB46,),'Eggplants - Summary'!AB46,0),IF(_xlfn.IFNA('Peppers - Summary'!AB46,),'Peppers - Summary'!AB46),0) -> 6.728793616 | R81: =SUM(IF(_xlfn.IFNA('Avocados - Summary'!AC46,),'Avocados - Summary'!AC46,0),IF(_xlfn.IFNA('Bananas - Summary'!AC46,),'Bananas - Summary'!AC46,0),IF(_xlfn.IFNA('Cucumbers - Summary'!AC46,),'Cucumbers - Summary'!AC46,0),IF(_xlfn.IFNA('Eggplants - Summary'!AC46,),'Eggplants - Summary'!AC46,0),IF(_xlfn.IFNA('Peppers - Summary'!AC46,),'Peppers - Summary'!AC46),0) -> 117.2355948 | S81: =SUM(IF(_xlfn.IFNA('Avocados - Summary'!AD46,),'Avocados - Summary'!AD46,0),IF(_xlfn.IFNA('Bananas - Summary'!AD46,),'Bananas - Summary'!AD46,0),IF(_xlfn.IFNA('Cucumbers - Summary'!AD46,),'Cucumbers - Summary'!AD46,0),IF(_xlfn.IFNA('Eggplants - Summary'!AD46,),'Eggplants - Summary'!AD46,0),IF(_xlfn.IFNA('Peppers - Summary'!AD46,),'Peppers - Summary'!AD46),0) -> 13.76624118 | T81: 149.0235476 | X81: United Kingdom | Y81: 526457.0139 | Z81: 0.1023883471 | AA81: 2028.1111 | AB81: 0.1141802622 | AC81: 600522.0922 | AD81: 0.09645602154
N82: Croatia | O82: ABCEPs | P82: =SUM(IF(_xlfn.IFNA('Avocados - Summary'!AA47,),'Avocados - Summary'!AA47,0),IF(_xlfn.IFNA('Bananas - Summary'!AA47,),'Bananas - Summary'!AA47,0),IF(_xlfn.IFNA('Cucumbers - Summary'!AA47,),'Cucumbers - Summary'!AA47,0),IF(_xlfn.IFNA('Eggplants - Summary'!AA47,),'Eggplants - Summary'!AA47,0),IF(_xlfn.IFNA('Peppers - Summary'!AA47,),'Peppers - Summary'!AA47),0) -> 10.92312807 | Q82: =SUM(IF(_xlfn.IFNA('Avocados - Summary'!AB47,),'Avocados - Summary'!AB47,0),IF(_xlfn.IFNA('Bananas - Summary'!AB47,),'Bananas - Summary'!AB47,0),IF(_xlfn.IFNA('Cucumbers - Summary'!AB47,),'Cucumbers - Summary'!AB47,0),IF(_xlfn.IFNA('Eggplants - Summary'!AB47,),'Eggplants - Summary'!AB47,0),IF(_xlfn.IFNA('Peppers - Summary'!AB47,),'Peppers - Summary'!AB47),0) -> 5.068467061 | R82: =SUM(IF(_xlfn.IFNA('Avocados - Summary'!AC47,),'Avocados - Summary'!AC47,0),IF(_xlfn.IFNA('Bananas - Summary'!AC47,),'Bananas - Summary'!AC47,0),IF(_xlfn.IFNA('Cucumbers - Summary'!AC47,),'Cucumbers - Summary'!AC47,0),IF(_xlfn.IFNA('Eggplants - Summary'!AC47,),'Eggplants - Summary'!AC47,0),IF(_xlfn.IFNA('Peppers - Summary'!AC47,),'Peppers - Summary'!AC47),0) -> 111.9374619 | S82: =SUM(IF(_xlfn.IFNA('Avocados - Summary'!AD47,),'Avocados - Summary'!AD47,0),IF(_xlfn.IFNA('Bananas - Summary'!AD47,),'Bananas - Summary'!AD47,0),IF(_xlfn.IFNA('Cucumbers - Summary'!AD47,),'Cucumbers - Summary'!AD47,0),IF(_xlfn.IFNA('Eggplants - Summary'!AD47,),'Eggplants - Summary'!AD47,0),IF(_xlfn.IFNA('Peppers - Summary'!AD47,),'Peppers - Summary'!AD47),0) -> 13.106126 | T82: 141.035183 | X82: EU+ | Y82: 5141766.9 | Z82: 1 | AA82: 17762.36156 | AB82: 1 | AC82: 6225864.208 | AD82: 1
N83: Cyprus | O83: ABCEPs | P83: =SUM(IF(_xlfn.IFNA('Avocados - Summary'!AA48,),'Avocados - Summary'!AA48,0),IF(_xlfn.IFNA('Bananas - Summary'!AA48,),'Bananas - Summary'!AA48,0),IF(_xlfn.IFNA('Cucumbers - Summary'!AA48,),'Cucumbers - Summary'!AA48,0),IF(_xlfn.IFNA('Eggplants - Summary'!AA48,),'Eggplants - Summary'!AA48,0),IF(_xlfn.IFNA('Peppers - Summary'!AA48,),'Peppers - Summary'!AA48),0) -> 3.746565191 | Q83: =SUM(IF(_xlfn.IFNA('Avocados - Summary'!AB48,),'Avocados - Summary'!AB48,0),IF(_xlfn.IFNA('Bananas - Summary'!AB48,),'Bananas - Summary'!AB48,0),IF(_xlfn.IFNA('Cucumbers - Summary'!AB48,),'Cucumbers - Summary'!AB48,0),IF(_xlfn.IFNA('Eggplants - Summary'!AB48,),'Eggplants - Summary'!AB48,0),IF(_xlfn.IFNA('Peppers - Summary'!AB48,),'Peppers - Summary'!AB48),0) -> 1.018461132 | R83: =SUM(IF(_xlfn.IFNA('Avocados - Summary'!AC48,),'Avocados - Summary'!AC48,0),IF(_xlfn.IFNA('Bananas - Summary'!AC48,),'Bananas - Summary'!AC48,0),IF(_xlfn.IFNA('Cucumbers - Summary'!AC48,),'Cucumbers - Summary'!AC48,0),IF(_xlfn.IFNA('Eggplants - Summary'!AC48,),'Eggplants - Summary'!AC48,0),IF(_xlfn.IFNA('Peppers - Summary'!AC48,),'Peppers - Summary'!AC48),0) -> 19.00333287 | S83: =SUM(IF(_xlfn.IFNA('Avocados - Summary'!AD48,),'Avocados - Summary'!AD48,0),IF(_xlfn.IFNA('Bananas - Summary'!AD48,),'Bananas - Summary'!AD48,0),IF(_xlfn.IFNA('Cucumbers - Summary'!AD48,),'Cucumbers - Summary'!AD48,0),IF(_xlfn.IFNA('Eggplants - Summary'!AD48,),'Eggplants - Summary'!AD48,0),IF(_xlfn.IFNA('Peppers - Summary'!AD48,),'Peppers - Summary'!AD48),0) -> 2.271374473 | T83: 26.03973367
N84: Czechia | O84: ABCEPs | P84: =SUM(IF(_xlfn.IFNA('Avocados - Summary'!AA49,),'Avocados - Summary'!AA49,0),IF(_xlfn.IFNA('Bananas - Summary'!AA49,),'Bananas - Summary'!AA49,0),IF(_xlfn.IFNA('Cucumbers - Summary'!AA49,),'Cucumbers - Summary'!AA49,0),IF(_xlfn.IFNA('Eggplants - Summary'!AA49,),'Eggplants - Summary'!AA49,0),IF(_xlfn.IFNA('Peppers - Summary'!AA49,),'Peppers - Summary'!AA49),0) -> 31.15952906 | Q84: =SUM(IF(_xlfn.IFNA('Avocados - Summary'!AB49,),'Avocados - Summary'!AB49,0),IF(_xlfn.IFNA('Bananas - Summary'!AB49,),'Bananas - Summary'!AB49,0),IF(_xlfn.IFNA('Cucumbers - Summary'!AB49,),'Cucumbers - Summary'!AB49,0),IF(_xlfn.IFNA('Eggplants - Summary'!AB49,),'Eggplants - Summary'!AB49,0),IF(_xlfn.IFNA('Peppers - Summary'!AB49,),'Peppers - Summary'!AB49),0) -> 13.41103004 | R84: =SUM(IF(_xlfn.IFNA('Avocados - Summary'!AC49,),'Avocados - Summary'!AC49,0),IF(_xlfn.IFNA('Bananas - Summary'!AC49,),'Bananas - Summary'!AC49,0),IF(_xlfn.IFNA('Cucumbers - Summary'!AC49,),'Cucumbers - Summary'!AC49,0),IF(_xlfn.IFNA('Eggplants - Summary'!AC49,),'Eggplants - Summary'!AC49,0),IF(_xlfn.IFNA('Peppers - Summary'!AC49,),'Peppers - Summary'!AC49),0) -> 273.9331222 | S84: =SUM(IF(_xlfn.IFNA('Avocados - Summary'!AD49,),'Avocados - Summary'!AD49,0),IF(_xlfn.IFNA('Bananas - Summary'!AD49,),'Bananas - Summary'!AD49,0),IF(_xlfn.IFNA('Cucumbers - Summary'!AD49,),'Cucumbers - Summary'!AD49,0),IF(_xlfn.IFNA('Eggplants - Summary'!AD49,),'Eggplants - Summary'!AD49,0),IF(_xlfn.IFNA('Peppers - Summary'!AD49,),'Peppers - Summary'!AD49),0) -> 32.14073536 | T84: 350.6444167
N85: Denmark | O85: ABCEPs | P85: =SUM(IF(_xlfn.IFNA('Avocados - Summary'!AA50,),'Avocados - Summary'!AA50,0),IF(_xlfn.IFNA('Bananas - Summary'!AA50,),'Bananas - Summary'!AA50,0),IF(_xlfn.IFNA('Cucumbers - Summary'!AA50,),'Cucumbers - Summary'!AA50,0),IF(_xlfn.IFNA('Eggplants - Summary'!AA50,),'Eggplants - Summary'!AA50,0),IF(_xlfn.IFNA('Peppers - Summary'!AA50,),'Peppers - Summary'!AA50),0) -> 18.91404684 | Q85: =SUM(IF(_xlfn.IFNA('Avocados - Summary'!AB50,),'Avocados - Summary'!AB50,0),IF(_xlfn.IFNA('Bananas - Summary'!AB50,),'Bananas - Summary'!AB50,0),IF(_xlfn.IFNA('Cucumbers - Summary'!AB50,),'Cucumbers - Summary'!AB50,0),IF(_xlfn.IFNA('Eggplants - Summary'!AB50,),'Eggplants - Summary'!AB50,0),IF(_xlfn.IFNA('Peppers - Summary'!AB50,),'Peppers - Summary'!AB50),0) -> 10.83618089 | R85: =SUM(IF(_xlfn.IFNA('Avocados - Summary'!AC50,),'Avocados - Summary'!AC50,0),IF(_xlfn.IFNA('Bananas - Summary'!AC50,),'Bananas - Summary'!AC50,0),IF(_xlfn.IFNA('Cucumbers - Summary'!AC50,),'Cucumbers - Summary'!AC50,0),IF(_xlfn.IFNA('Eggplants - Summary'!AC50,),'Eggplants - Summary'!AC50,0),IF(_xlfn.IFNA('Peppers - Summary'!AC50,),'Peppers - Summary'!AC50),0) -> 222.1112196 | S85: =SUM(IF(_xlfn.IFNA('Avocados - Summary'!AD50,),'Avocados - Summary'!AD50,0),IF(_xlfn.IFNA('Bananas - Summary'!AD50,),'Bananas - Summary'!AD50,0),IF(_xlfn.IFNA('Cucumbers - Summary'!AD50,),'Cucumbers - Summary'!AD50,0),IF(_xlfn.IFNA('Eggplants - Summary'!AD50,),'Eggplants - Summary'!AD50,0),IF(_xlfn.IFNA('Peppers - Summary'!AD50,),'Peppers - Summary'!AD50),0) -> 25.18460662 | T85: 277.046054
N86: Estonia | O86: ABCEPs | P86: =SUM(IF(_xlfn.IFNA('Avocados - Summary'!AA51,),'Avocados - Summary'!AA51,0),IF(_xlfn.IFNA('Bananas - Summary'!AA51,),'Bananas - Summary'!AA51,0),IF(_xlfn.IFNA('Cucumbers - Summary'!AA51,),'Cucumbers - Summary'!AA51,0),IF(_xlfn.IFNA('Eggplants - Summary'!AA51,),'Eggplants - Summary'!AA51,0),IF(_xlfn.IFNA('Peppers - Summary'!AA51,),'Peppers - Summary'!AA51),0) -> 0.7024981253 | Q86: =SUM(IF(_xlfn.IFNA('Avocados - Summary'!AB51,),'Avocados - Summary'!AB51,0),IF(_xlfn.IFNA('Bananas - Summary'!AB51,),'Bananas - Summary'!AB51,0),IF(_xlfn.IFNA('Cucumbers - Summary'!AB51,),'Cucumbers - Summary'!AB51,0),IF(_xlfn.IFNA('Eggplants - Summary'!AB51,),'Eggplants - Summary'!AB51,0),IF(_xlfn.IFNA('Peppers - Summary'!AB51,),'Peppers - Summary'!AB51),0) -> 2.100126472 | R86: =SUM(IF(_xlfn.IFNA('Avocados - Summary'!AC51,),'Avocados - Summary'!AC51,0),IF(_xlfn.IFNA('Bananas - Summary'!AC51,),'Bananas - Summary'!AC51,0),IF(_xlfn.IFNA('Cucumbers - Summary'!AC51,),'Cucumbers - Summary'!AC51,0),IF(_xlfn.IFNA('Eggplants - Summary'!AC51,),'Eggplants - Summary'!AC51,0),IF(_xlfn.IFNA('Peppers - Summary'!AC51,),'Peppers - Summary'!AC51),0) -> 45.85874125 | S86: =SUM(IF(_xlfn.IFNA('Avocados - Summary'!AD51,),'Avocados - Summary'!AD51,0),IF(_xlfn.IFNA('Bananas - Summary'!AD51,),'Bananas - Summary'!AD51,0),IF(_xlfn.IFNA('Cucumbers - Summary'!AD51,),'Cucumbers - Summary'!AD51,0),IF(_xlfn.IFNA('Eggplants - Summary'!AD51,),'Eggplants - Summary'!AD51,0),IF(_xlfn.IFNA('Peppers - Summary'!AD51,),'Peppers - Summary'!AD51),0) -> 5.451601192 | T86: 54.11296704 | X86: Country | Y86: Population | Z86: FW Avocados | AA86: Avocados | AB86: FW Bananas | AC86: Bananas | AD86: FW Cucumbers | AE86: Cucumbers | AF86: FW Eggplants | AG86: Eggplants | AH86: FW Peppers | AI86: Peppers
N87: Finland | O87: ABCEPs | P87: =SUM(IF(_xlfn.IFNA('Avocados - Summary'!AA52,),'Avocados - Summary'!AA52,0),IF(_xlfn.IFNA('Bananas - Summary'!AA52,),'Bananas - Summary'!AA52,0),IF(_xlfn.IFNA('Cucumbers - Summary'!AA52,),'Cucumbers - Summary'!AA52,0),IF(_xlfn.IFNA('Eggplants - Summary'!AA52,),'Eggplants - Summary'!AA52,0),IF(_xlfn.IFNA('Peppers - Summary'!AA52,),'Peppers - Summary'!AA52),0) -> 26.5287035 | Q87: =SUM(IF(_xlfn.IFNA('Avocados - Summary'!AB52,),'Avocados - Summary'!AB52,0),IF(_xlfn.IFNA('Bananas - Summary'!AB52,),'Bananas - Summary'!AB52,0),IF(_xlfn.IFNA('Cucumbers - Summary'!AB52,),'Cucumbers - Summary'!AB52,0),IF(_xlfn.IFNA('Eggplants - Summary'!AB52,),'Eggplants - Summary'!AB52,0),IF(_xlfn.IFNA('Peppers - Summary'!AB52,),'Peppers - Summary'!AB52),0) -> 11.89355792 | R87: =SUM(IF(_xlfn.IFNA('Avocados - Summary'!AC52,),'Avocados - Summary'!AC52,0),IF(_xlfn.IFNA('Bananas - Summary'!AC52,),'Bananas - Summary'!AC52,0),IF(_xlfn.IFNA('Cucumbers - Summary'!AC52,),'Cucumbers - Summary'!AC52,0),IF(_xlfn.IFNA('Eggplants - Summary'!AC52,),'Eggplants - Summary'!AC52,0),IF(_xlfn.IFNA('Peppers - Summary'!AC52,),'Peppers - Summary'!AC52),0) -> 246.1575254 | S87: =SUM(IF(_xlfn.IFNA('Avocados - Summary'!AD52,),'Avocados - Summary'!AD52,0),IF(_xlfn.IFNA('Bananas - Summary'!AD52,),'Bananas - Summary'!AD52,0),IF(_xlfn.IFNA('Cucumbers - Summary'!AD52,),'Cucumbers - Summary'!AD52,0),IF(_xlfn.IFNA('Eggplants - Summary'!AD52,),'Eggplants - Summary'!AD52,0),IF(_xlfn.IFNA('Peppers - Summary'!AD52,),'Peppers - Summary'!AD52),0) -> 32.47524903 | T87: 317.0550359 | X87: Austria | Y87: 8978929 | Z87: ='Avocados - Summary'!W9 -> 4584.253143 | AA87: =Z87/$Y87*1000 -> 0.5105567873 | AB87: ='Bananas - Summary'!W9 -> 67734.76351 | AC87: =AB87/$Y87*1000 -> 7.543746421 | AD87: ='Cucumbers - Summary'!W9 -> 14934.32663 | AE87: =AD87/$Y87*1000 -> 1.663263696 | AF87: ='Eggplants - Summary'!W9 -> 2064.126498 | AG87: =AF87/$Y87*1000 -> 0.2298856019 | AH87: ='Peppers - Summary'!W9 -> 15160.96811 | AI87: =AH87/$Y87*1000 -> 1.688505178
N88: France | O88: ABCEPs | P88: =SUM(IF(_xlfn.IFNA('Avocados - Summary'!AA53,),'Avocados - Summary'!AA53,0),IF(_xlfn.IFNA('Bananas - Summary'!AA53,),'Bananas - Summary'!AA53,0),IF(_xlfn.IFNA('Cucumbers - Summary'!AA53,),'Cucumbers - Summary'!AA53,0),IF(_xlfn.IFNA('Eggplants - Summary'!AA53,),'Eggplants - Summary'!AA53,0),IF(_xlfn.IFNA('Peppers - Summary'!AA53,),'Peppers - Summary'!AA53),0) -> 307.7667708 | Q88: =SUM(IF(_xlfn.IFNA('Avocados - Summary'!AB53,),'Avocados - Summary'!AB53,0),IF(_xlfn.IFNA('Bananas - Summary'!AB53,),'Bananas - Summary'!AB53,0),IF(_xlfn.IFNA('Cucumbers - Summary'!AB53,),'Cucumbers - Summary'!AB53,0),IF(_xlfn.IFNA('Eggplants - Summary'!AB53,),'Eggplants - Summary'!AB53,0),IF(_xlfn.IFNA('Peppers - Summary'!AB53,),'Peppers - Summary'!AB53),0) -> 81.6815186 | R88: =SUM(IF(_xlfn.IFNA('Avocados - Summary'!AC53,),'Avocados - Summary'!AC53,0),IF(_xlfn.IFNA('Bananas - Summary'!AC53,),'Bananas - Summary'!AC53,0),IF(_xlfn.IFNA('Cucumbers - Summary'!AC53,),'Cucumbers - Summary'!AC53,0),IF(_xlfn.IFNA('Eggplants - Summary'!AC53,),'Eggplants - Summary'!AC53,0),IF(_xlfn.IFNA('Peppers - Summary'!AC53,),'Peppers - Summary'!AC53),0) -> 1747.949181 | S88: =SUM(IF(_xlfn.IFNA('Avocados - Summary'!AD53,),'Avocados - Summary'!AD53,0),IF(_xlfn.IFNA('Bananas - Summary'!AD53,),'Bananas - Summary'!AD53,0),IF(_xlfn.IFNA('Cucumbers - Summary'!AD53,),'Cucumbers - Summary'!AD53,0),IF(_xlfn.IFNA('Eggplants - Summary'!AD53,),'Eggplants - Summary'!AD53,0),IF(_xlfn.IFNA('Peppers - Summary'!AD53,),'Peppers - Summary'!AD53),0) -> 209.6592014 | T88: 2347.056671 | X88: Belgium | Y88: 11617623 | Z88: ='Avocados - Summary'!W10 -> 4832.921386 | AA88: =Z88/$Y88*1000 -> 0.415999158 | AB88: ='Bananas - Summary'!W10 -> 72377.16999 | AC88: =AB88/$Y88*1000 -> 6.229946521 | AD88: ='Cucumbers - Summary'!W10 -> 5665.760618 | AE88: =AD88/$Y88*1000 -> 0.487686734 | AF88: ='Eggplants - Summary'!W10 -> 4298.688746 | AG88: =AF88/$Y88*1000 -> 0.3700144811 | AH88: ='Peppers - Summary'!W10 -> 15457.07912 | AI88: =AH88/$Y88*1000 -> 1.330485515
N89: Germany | O89: ABCEPs | P89: =SUM(IF(_xlfn.IFNA('Avocados - Summary'!AA54,),'Avocados - Summary'!AA54,0),IF(_xlfn.IFNA('Bananas - Summary'!AA54,),'Bananas - Summary'!AA54,0),IF(_xlfn.IFNA('Cucumbers - Summary'!AA54,),'Cucumbers - Summary'!AA54,0),IF(_xlfn.IFNA('Eggplants - Summary'!AA54,),'Eggplants - Summary'!AA54,0),IF(_xlfn.IFNA('Peppers - Summary'!AA54,),'Peppers - Summary'!AA54),0) -> 383.8212071 | Q89: =SUM(IF(_xlfn.IFNA('Avocados - Summary'!AB54,),'Avocados - Summary'!AB54,0),IF(_xlfn.IFNA('Bananas - Summary'!AB54,),'Bananas - Summary'!AB54,0),IF(_xlfn.IFNA('Cucumbers - Summary'!AB54,),'Cucumbers - Summary'!AB54,0),IF(_xlfn.IFNA('Eggplants - Summary'!AB54,),'Eggplants - Summary'!AB54,0),IF(_xlfn.IFNA('Peppers - Summary'!AB54,),'Peppers - Summary'!AB54),0) -> 129.8233147 | R89: =SUM(IF(_xlfn.IFNA('Avocados - Summary'!AC54,),'Avocados - Summary'!AC54,0),IF(_xlfn.IFNA('Bananas - Summary'!AC54,),'Bananas - Summary'!AC54,0),IF(_xlfn.IFNA('Cucumbers - Summary'!AC54,),'Cucumbers - Summary'!AC54,0),IF(_xlfn.IFNA('Eggplants - Summary'!AC54,),'Eggplants - Summary'!AC54,0),IF(_xlfn.IFNA('Peppers - Summary'!AC54,),'Peppers - Summary'!AC54),0) -> 2516.030553 | S89: =SUM(IF(_xlfn.IFNA('Avocados - Summary'!AD54,),'Avocados - Summary'!AD54,0),IF(_xlfn.IFNA('Bananas - Summary'!AD54,),'Bananas - Summary'!AD54,0),IF(_xlfn.IFNA('Cucumbers - Summary'!AD54,),'Cucumbers - Summary'!AD54,0),IF(_xlfn.IFNA('Eggplants - Summary'!AD54,),'Eggplants - Summary'!AD54,0),IF(_xlfn.IFNA('Peppers - Summary'!AD54,),'Peppers - Summary'!AD54),0) -> 291.2813289 | T89: 3320.956403 | X89: Bulgaria | Y89: 6482484 | Z89: ='Avocados - Summary'!W11 -> 1056.109391 | AA89: 0.1629173926 | AB89: ='Bananas - Summary'!W11 -> 20907.61324 | AC89: 3.22524718 | AD89: ='Cucumbers - Summary'!W11 -> 18804.25188 | AE89: 2.900778757 | AF89: ='Eggplants - Summary'!W11 -> 4221.2658 | AG89: 0.6511802883 | AH89: ='Peppers - Summary'!W11 -> 24824.00906 | AI89: 3.829397661
N90: Greece | O90: ABCEPs | P90: =SUM(IF(_xlfn.IFNA('Avocados - Summary'!AA55,),'Avocados - Summary'!AA55,0),IF(_xlfn.IFNA('Bananas - Summary'!AA55,),'Bananas - Summary'!AA55,0),IF(_xlfn.IFNA('Cucumbers - Summary'!AA55,),'Cucumbers - Summary'!AA55,0),IF(_xlfn.IFNA('Eggplants - Summary'!AA55,),'Eggplants - Summary'!AA55,0),IF(_xlfn.IFNA('Peppers - Summary'!AA55,),'Peppers - Summary'!AA55),0) -> 22.98786936 | Q90: =SUM(IF(_xlfn.IFNA('Avocados - Summary'!AB55,),'Avocados - Summary'!AB55,0),IF(_xlfn.IFNA('Bananas - Summary'!AB55,),'Bananas - Summary'!AB55,0),IF(_xlfn.IFNA('Cucumbers - Summary'!AB55,),'Cucumbers - Summary'!AB55,0),IF(_xlfn.IFNA('Eggplants - Summary'!AB55,),'Eggplants - Summary'!AB55,0),IF(_xlfn.IFNA('Peppers - Summary'!AB55,),'Peppers - Summary'!AB55),0) -> 17.84496936 | R90: =SUM(IF(_xlfn.IFNA('Avocados - Summary'!AC55,),'Avocados - Summary'!AC55,0),IF(_xlfn.IFNA('Bananas - Summary'!AC55,),'Bananas - Summary'!AC55,0),IF(_xlfn.IFNA('Cucumbers - Summary'!AC55,),'Cucumbers - Summary'!AC55,0),IF(_xlfn.IFNA('Eggplants - Summary'!AC55,),'Eggplants - Summary'!AC55,0),IF(_xlfn.IFNA('Peppers - Summary'!AC55,),'Peppers - Summary'!AC55),0) -> 332.360707 | S90: =SUM(IF(_xlfn.IFNA('Avocados - Summary'!AD55,),'Avocados - Summary'!AD55,0),IF(_xlfn.IFNA('Bananas - Summary'!AD55,),'Bananas - Summary'!AD55,0),IF(_xlfn.IFNA('Cucumbers - Summary'!AD55,),'Cucumbers - Summary'!AD55,0),IF(_xlfn.IFNA('Eggplants - Summary'!AD55,),'Eggplants - Summary'!AD55,0),IF(_xlfn.IFNA('Peppers - Summary'!AD55,),'Peppers - Summary'!AD55),0) -> 39.56816498 | T90: 412.7617107 | X90: Croatia | Y90: 3862305 | Z90: ='Avocados - Summary'!W12 -> 740.3961706 | AA90: 0.1916980069 | AB90: ='Bananas - Summary'!W12 -> 32136.39244 | AC90: 8.320521667 | AD90: ='Cucumbers - Summary'!W12 -> 3948.749077 | AE90: 1.022381474 | AF90: ='Eggplants - Summary'!W12 -> 791.8027695 | AG90: 0.2050078307 | AH90: ='Peppers - Summary'!W12 -> 7207.124843 | AI90: 1.866016496
N91: Hungary | O91: ABCEPs | P91: =SUM(IF(_xlfn.IFNA('Avocados - Summary'!AA56,),'Avocados - Summary'!AA56,0),IF(_xlfn.IFNA('Bananas - Summary'!AA56,),'Bananas - Summary'!AA56,0),IF(_xlfn.IFNA('Cucumbers - Summary'!AA56,),'Cucumbers - Summary'!AA56,0),IF(_xlfn.IFNA('Eggplants - Summary'!AA56,),'Eggplants - Summary'!AA56,0),IF(_xlfn.IFNA('Peppers - Summary'!AA56,),'Peppers - Summary'!AA56),0) -> 6.709955319 | Q91: =SUM(IF(_xlfn.IFNA('Avocados - Summary'!AB56,),'Avocados - Summary'!AB56,0),IF(_xlfn.IFNA('Bananas - Summary'!AB56,),'Bananas - Summary'!AB56,0),IF(_xlfn.IFNA('Cucumbers - Summary'!AB56,),'Cucumbers - Summary'!AB56,0),IF(_xlfn.IFNA('Eggplants - Summary'!AB56,),'Eggplants - Summary'!AB56,0),IF(_xlfn.IFNA('Peppers - Summary'!AB56,),'Peppers - Summary'!AB56),0) -> 4.326538145 | R91: =SUM(IF(_xlfn.IFNA('Avocados - Summary'!AC56,),'Avocados - Summary'!AC56,0),IF(_xlfn.IFNA('Bananas - Summary'!AC56,),'Bananas - Summary'!AC56,0),IF(_xlfn.IFNA('Cucumbers - Summary'!AC56,),'Cucumbers - Summary'!AC56,0),IF(_xlfn.IFNA('Eggplants - Summary'!AC56,),'Eggplants - Summary'!AC56,0),IF(_xlfn.IFNA('Peppers - Summary'!AC56,),'Peppers - Summary'!AC56),0) -> 64.64307375 | S91: =SUM(IF(_xlfn.IFNA('Avocados - Summary'!AD56,),'Avocados - Summary'!AD56,0),IF(_xlfn.IFNA('Bananas - Summary'!AD56,),'Bananas - Summary'!AD56,0),IF(_xlfn.IFNA('Cucumbers - Summary'!AD56,),'Cucumbers - Summary'!AD56,0),IF(_xlfn.IFNA('Eggplants - Summary'!AD56,),'Eggplants - Summary'!AD56,0),IF(_xlfn.IFNA('Peppers - Summary'!AD56,),'Peppers - Summary'!AD56),0) -> 7.515912229 | T91: 83.19547945 | X91: Cyprus | Y91: 929764 | Z91: ='Avocados - Summary'!W13 -> 661.4721991 | AA91: 0.7114409668 | AB91: ='Bananas - Summary'!W13 -> 5321.293437 | AC91: 5.723273257 | AD91: ='Cucumbers - Summary'!W13 -> 1806.891898 | AE91: 1.943387675 | AF91: ='Eggplants - Summary'!W13 -> 435.6764787 | AG91: 0.4685882425 | AH91: ='Peppers - Summary'!W13 -> 836.7390606 | AI91: 0.8999477939
N92: Iceland | O92: ABCEPs | P92: =SUM(IF(_xlfn.IFNA('Avocados - Summary'!AA57,),'Avocados - Summary'!AA57,0),IF(_xlfn.IFNA('Bananas - Summary'!AA57,),'Bananas - Summary'!AA57,0),IF(_xlfn.IFNA('Cucumbers - Summary'!AA57,),'Cucumbers - Summary'!AA57,0),IF(_xlfn.IFNA('Eggplants - Summary'!AA57,),'Eggplants - Summary'!AA57,0),IF(_xlfn.IFNA('Peppers - Summary'!AA57,),'Peppers - Summary'!AA57),0) -> 0.9390439239 | Q92: =SUM(IF(_xlfn.IFNA('Avocados - Summary'!AB57,),'Avocados - Summary'!AB57,0),IF(_xlfn.IFNA('Bananas - Summary'!AB57,),'Bananas - Summary'!AB57,0),IF(_xlfn.IFNA('Cucumbers - Summary'!AB57,),'Cucumbers - Summary'!AB57,0),IF(_xlfn.IFNA('Eggplants - Summary'!AB57,),'Eggplants - Summary'!AB57,0),IF(_xlfn.IFNA('Peppers - Summary'!AB57,),'Peppers - Summary'!AB57),0) -> 0.8629842348 | R92: =SUM(IF(_xlfn.IFNA('Avocados - Summary'!AC57,),'Avocados - Summary'!AC57,0),IF(_xlfn.IFNA('Bananas - Summary'!AC57,),'Bananas - Summary'!AC57,0),IF(_xlfn.IFNA('Cucumbers - Summary'!AC57,),'Cucumbers - Summary'!AC57,0),IF(_xlfn.IFNA('Eggplants - Summary'!AC57,),'Eggplants - Summary'!AC57,0),IF(_xlfn.IFNA('Peppers - Summary'!AC57,),'Peppers - Summary'!AC57),0) -> 17.2434675 | S92: =SUM(IF(_xlfn.IFNA('Avocados - Summary'!AD57,),'Avocados - Summary'!AD57,0),IF(_xlfn.IFNA('Bananas - Summary'!AD57,),'Bananas - Summary'!AD57,0),IF(_xlfn.IFNA('Cucumbers - Summary'!AD57,),'Cucumbers - Summary'!AD57,0),IF(_xlfn.IFNA('Eggplants - Summary'!AD57,),'Eggplants - Summary'!AD57,0),IF(_xlfn.IFNA('Peppers - Summary'!AD57,),'Peppers - Summary'!AD57),0) -> 2.06652914 | T92: 21.1120248 | X92: Czechia | Y92: 10516707 | Z92: ='Avocados - Summary'!W14 -> 2314.147733 | AA92: 0.2200448993 | AB92: ='Bananas - Summary'!W14 -> 57061.62016 | AC92: 5.425806781 | AD92: ='Cucumbers - Summary'!W14 -> 11795.91736 | AE92: 1.121636018 | AF92: ='Eggplants - Summary'!W14 -> 572.8743737 | AG92: 0.05447279017 | AH92: ='Peppers - Summary'!W14 -> 12960.72808 | AI92: 1.23239414
N93: Ireland | O93: ABCEPs | P93: =SUM(IF(_xlfn.IFNA('Avocados - Summary'!AA58,),'Avocados - Summary'!AA58,0),IF(_xlfn.IFNA('Bananas - Summary'!AA58,),'Bananas - Summary'!AA58,0),IF(_xlfn.IFNA('Cucumbers - Summary'!AA58,),'Cucumbers - Summary'!AA58,0),IF(_xlfn.IFNA('Eggplants - Summary'!AA58,),'Eggplants - Summary'!AA58,0),IF(_xlfn.IFNA('Peppers - Summary'!AA58,),'Peppers - Summary'!AA58),0) -> 16.99541623 | Q93: =SUM(IF(_xlfn.IFNA('Avocados - Summary'!AB58,),'Avocados - Summary'!AB58,0),IF(_xlfn.IFNA('Bananas - Summary'!AB58,),'Bananas - Summary'!AB58,0),IF(_xlfn.IFNA('Cucumbers - Summary'!AB58,),'Cucumbers - Summary'!AB58,0),IF(_xlfn.IFNA('Eggplants - Summary'!AB58,),'Eggplants - Summary'!AB58,0),IF(_xlfn.IFNA('Peppers - Summary'!AB58,),'Peppers - Summary'!AB58),0) -> 7.614403446 | R93: =SUM(IF(_xlfn.IFNA('Avocados - Summary'!AC58,),'Avocados - Summary'!AC58,0),IF(_xlfn.IFNA('Bananas - Summary'!AC58,),'Bananas - Summary'!AC58,0),IF(_xlfn.IFNA('Cucumbers - Summary'!AC58,),'Cucumbers - Summary'!AC58,0),IF(_xlfn.IFNA('Eggplants - Summary'!AC58,),'Eggplants - Summary'!AC58,0),IF(_xlfn.IFNA('Peppers - Summary'!AC58,),'Peppers - Summary'!AC58),0) -> 167.0239079 | S93: =SUM(IF(_xlfn.IFNA('Avocados - Summary'!AD58,),'Avocados - Summary'!AD58,0),IF(_xlfn.IFNA('Bananas - Summary'!AD58,),'Bananas - Summary'!AD58,0),IF(_xlfn.IFNA('Cucumbers - Summary'!AD58,),'Cucumbers - Summary'!AD58,0),IF(_xlfn.IFNA('Eggplants - Summary'!AD58,),'Eggplants - Summary'!AD58,0),IF(_xlfn.IFNA('Peppers - Summary'!AD58,),'Peppers - Summary'!AD58),0) -> 19.75053046 | T93: 211.384258 | X93: Denmark | Y93: 5873420 | Z93: ='Avocados - Summary'!W15 -> 4902.49235 | AA93: 0.8346912617 | AB93: ='Bananas - Summary'!W15 -> 32397.96472 | AC93: 5.516030647 | AD93: ='Cucumbers - Summary'!W15 -> 10248.62104 | AE93: 1.744915405 | AF93: ='Eggplants - Summary'!W15 -> 1604.188697 | AG93: 0.2731268489 | AH93: ='Peppers - Summary'!W15 -> 6390.103918 | AI93: 1.087969857
N94: Italy | O94: ABCEPs | P94: =SUM(IF(_xlfn.IFNA('Avocados - Summary'!AA59,),'Avocados - Summary'!AA59,0),IF(_xlfn.IFNA('Bananas - Summary'!AA59,),'Bananas - Summary'!AA59,0),IF(_xlfn.IFNA('Cucumbers - Summary'!AA59,),'Cucumbers - Summary'!AA59,0),IF(_xlfn.IFNA('Eggplants - Summary'!AA59,),'Eggplants - Summary'!AA59,0),IF(_xlfn.IFNA('Peppers - Summary'!AA59,),'Peppers - Summary'!AA59),0) -> 89.94740653 | Q94: =SUM(IF(_xlfn.IFNA('Avocados - Summary'!AB59,),'Avocados - Summary'!AB59,0),IF(_xlfn.IFNA('Bananas - Summary'!AB59,),'Bananas - Summary'!AB59,0),IF(_xlfn.IFNA('Cucumbers - Summary'!AB59,),'Cucumbers - Summary'!AB59,0),IF(_xlfn.IFNA('Eggplants - Summary'!AB59,),'Eggplants - Summary'!AB59,0),IF(_xlfn.IFNA('Peppers - Summary'!AB59,),'Peppers - Summary'!AB59),0) -> 84.05393695 | R94: =SUM(IF(_xlfn.IFNA('Avocados - Summary'!AC59,),'Avocados - Summary'!AC59,0),IF(_xlfn.IFNA('Bananas - Summary'!AC59,),'Bananas - Summary'!AC59,0),IF(_xlfn.IFNA('Cucumbers - Summary'!AC59,),'Cucumbers - Summary'!AC59,0),IF(_xlfn.IFNA('Eggplants - Summary'!AC59,),'Eggplants - Summary'!AC59,0),IF(_xlfn.IFNA('Peppers - Summary'!AC59,),'Peppers - Summary'!AC59),0) -> 1404.943762 | S94: =SUM(IF(_xlfn.IFNA('Avocados - Summary'!AD59,),'Avocados - Summary'!AD59,0),IF(_xlfn.IFNA('Bananas - Summary'!AD59,),'Bananas - Summary'!AD59,0),IF(_xlfn.IFNA('Cucumbers - Summary'!AD59,),'Cucumbers - Summary'!AD59,0),IF(_xlfn.IFNA('Eggplants - Summary'!AD59,),'Eggplants - Summary'!AD59,0),IF(_xlfn.IFNA('Peppers - Summary'!AD59,),'Peppers - Summary'!AD59),0) -> 165.8358787 | T94: 1744.780984 | X94: Estonia | Y94: 1331796 | Z94: ='Avocados - Summary'!W16 -> 555.7390348 | AA94: 0.4172854061 | AB94: ='Bananas - Summary'!W16 -> 7218.018188 | AC94: 5.419762628 | AD94: ='Cucumbers - Summary'!W16 -> 2577.340436 | AE94: 1.935236655 | AF94: ='Eggplants - Summary'!W16 -> 125.5195271 | AG94: 0.0942483136 | AH94: ='Peppers - Summary'!W16 -> 913.4463204 | AI94: 0.6858755548
N95: Latvia | O95: ABCEPs | P95: =SUM(IF(_xlfn.IFNA('Avocados - Summary'!AA60,),'Avocados - Summary'!AA60,0),IF(_xlfn.IFNA('Bananas - Summary'!AA60,),'Bananas - Summary'!AA60,0),IF(_xlfn.IFNA('Cucumbers - Summary'!AA60,),'Cucumbers - Summary'!AA60,0),IF(_xlfn.IFNA('Eggplants - Summary'!AA60,),'Eggplants - Summary'!AA60,0),IF(_xlfn.IFNA('Peppers - Summary'!AA60,),'Peppers - Summary'!AA60),0) -> 1.415879348 | Q95: =SUM(IF(_xlfn.IFNA('Avocados - Summary'!AB60,),'Avocados - Summary'!AB60,0),IF(_xlfn.IFNA('Bananas - Summary'!AB60,),'Bananas - Summary'!AB60,0),IF(_xlfn.IFNA('Cucumbers - Summary'!AB60,),'Cucumbers - Summary'!AB60,0),IF(_xlfn.IFNA('Eggplants - Summary'!AB60,),'Eggplants - Summary'!AB60,0),IF(_xlfn.IFNA('Peppers - Summary'!AB60,),'Peppers - Summary'!AB60),0) -> 2.541941361 | R95: =SUM(IF(_xlfn.IFNA('Avocados - Summary'!AC60,),'Avocados - Summary'!AC60,0),IF(_xlfn.IFNA('Bananas - Summary'!AC60,),'Bananas - Summary'!AC60,0),IF(_xlfn.IFNA('Cucumbers - Summary'!AC60,),'Cucumbers - Summary'!AC60,0),IF(_xlfn.IFNA('Eggplants - Summary'!AC60,),'Eggplants - Summary'!AC60,0),IF(_xlfn.IFNA('Peppers - Summary'!AC60,),'Peppers - Summary'!AC60),0) -> 49.71002678 | S95: =SUM(IF(_xlfn.IFNA('Avocados - Summary'!AD60,),'Avocados - Summary'!AD60,0),IF(_xlfn.IFNA('Bananas - Summary'!AD60,),'Bananas - Summary'!AD60,0),IF(_xlfn.IFNA('Cucumbers - Summary'!AD60,),'Cucumbers - Summary'!AD60,0),IF(_xlfn.IFNA('Eggplants - Summary'!AD60,),'Eggplants - Summary'!AD60,0),IF(_xlfn.IFNA('Peppers - Summary'!AD60,),'Peppers - Summary'!AD60),0) -> 5.952448953 | T95: 59.62029644 | X95: Finland | Y95: 5548241 | Z95: ='Avocados - Summary'!W17 -> 2008.974128 | AA95: 0.3620920808 | AB95: ='Bananas - Summary'!W17 -> 43695.58193 | AC95: 7.875573886 | AD95: ='Cucumbers - Summary'!W17 -> 12511.7331 | AE95: 2.255081042 | AF95: ='Eggplants - Summary'!W17 -> 380.3043495 | AG95: 0.06854503067 | AH95: ='Peppers - Summary'!W17 -> 4692.541458 | AI95: 0.8457710214
N96: Lithuania | O96: ABCEPs | P96: =SUM(IF(_xlfn.IFNA('Avocados - Summary'!AA61,),'Avocados - Summary'!AA61,0),IF(_xlfn.IFNA('Bananas - Summary'!AA61,),'Bananas - Summary'!AA61,0),IF(_xlfn.IFNA('Cucumbers - Summary'!AA61,),'Cucumbers - Summary'!AA61,0),IF(_xlfn.IFNA('Eggplants - Summary'!AA61,),'Eggplants - Summary'!AA61,0),IF(_xlfn.IFNA('Peppers - Summary'!AA61,),'Peppers - Summary'!AA61),0) -> 0.9785868837 | Q96: =SUM(IF(_xlfn.IFNA('Avocados - Summary'!AB61,),'Avocados - Summary'!AB61,0),IF(_xlfn.IFNA('Bananas - Summary'!AB61,),'Bananas - Summary'!AB61,0),IF(_xlfn.IFNA('Cucumbers - Summary'!AB61,),'Cucumbers - Summary'!AB61,0),IF(_xlfn.IFNA('Eggplants - Summary'!AB61,),'Eggplants - Summary'!AB61,0),IF(_xlfn.IFNA('Peppers - Summary'!AB61,),'Peppers - Summary'!AB61),0) -> 4.077927149 | R96: =SUM(IF(_xlfn.IFNA('Avocados - Summary'!AC61,),'Avocados - Summary'!AC61,0),IF(_xlfn.IFNA('Bananas - Summary'!AC61,),'Bananas - Summary'!AC61,0),IF(_xlfn.IFNA('Cucumbers - Summary'!AC61,),'Cucumbers - Summary'!AC61,0),IF(_xlfn.IFNA('Eggplants - Summary'!AC61,),'Eggplants - Summary'!AC61,0),IF(_xlfn.IFNA('Peppers - Summary'!AC61,),'Peppers - Summary'!AC61),0) -> 74.09988198 | S96: =SUM(IF(_xlfn.IFNA('Avocados - Summary'!AD61,),'Avocados - Summary'!AD61,0),IF(_xlfn.IFNA('Bananas - Summary'!AD61,),'Bananas - Summary'!AD61,0),IF(_xlfn.IFNA('Cucumbers - Summary'!AD61,),'Cucumbers - Summary'!AD61,0),IF(_xlfn.IFNA('Eggplants - Summary'!AD61,),'Eggplants - Summary'!AD61,0),IF(_xlfn.IFNA('Peppers - Summary'!AD61,),'Peppers - Summary'!AD61),0) -> 8.912784141 | T96: 88.06918015 | X96: France | Y96: 68091703 | Z96: ='Avocados - Summary'!W18 -> 69740.48533 | AA96: 1.024214144 | AB96: ='Bananas - Summary'!W18 -> 376994.2302 | AC96: 5.53656633 | AD96: ='Cucumbers - Summary'!W18 -> 69531.55583 | AE96: 1.02114579 | AF96: ='Eggplants - Summary'!W18 -> 33329.614 | AG96: 0.4894812809 | AH96: ='Peppers - Summary'!W18 -> 62418.83501 | AI96: 0.9166878233
N97: Luxembourg | O97: ABCEPs | P97: =SUM(IF(_xlfn.IFNA('Avocados - Summary'!AA62,),'Avocados - Summary'!AA62,0),IF(_xlfn.IFNA('Bananas - Summary'!AA62,),'Bananas - Summary'!AA62,0),IF(_xlfn.IFNA('Cucumbers - Summary'!AA62,),'Cucumbers - Summary'!AA62,0),IF(_xlfn.IFNA('Eggplants - Summary'!AA62,),'Eggplants - Summary'!AA62,0),IF(_xlfn.IFNA('Peppers - Summary'!AA62,),'Peppers - Summary'!AA62),0) -> 1.951591324 | Q97: =SUM(IF(_xlfn.IFNA('Avocados - Summary'!AB62,),'Avocados - Summary'!AB62,0),IF(_xlfn.IFNA('Bananas - Summary'!AB62,),'Bananas - Summary'!AB62,0),IF(_xlfn.IFNA('Cucumbers - Summary'!AB62,),'Cucumbers - Summary'!AB62,0),IF(_xlfn.IFNA('Eggplants - Summary'!AB62,),'Eggplants - Summary'!AB62,0),IF(_xlfn.IFNA('Peppers - Summary'!AB62,),'Peppers - Summary'!AB62),0) -> 1.198193363 | R97: =SUM(IF(_xlfn.IFNA('Avocados - Summary'!AC62,),'Avocados - Summary'!AC62,0),IF(_xlfn.IFNA('Bananas - Summary'!AC62,),'Bananas - Summary'!AC62,0),IF(_xlfn.IFNA('Cucumbers - Summary'!AC62,),'Cucumbers - Summary'!AC62,0),IF(_xlfn.IFNA('Eggplants - Summary'!AC62,),'Eggplants - Summary'!AC62,0),IF(_xlfn.IFNA('Peppers - Summary'!AC62,),'Peppers - Summary'!AC62),0) -> 23.19516564 | S97: =SUM(IF(_xlfn.IFNA('Avocados - Summary'!AD62,),'Avocados - Summary'!AD62,0),IF(_xlfn.IFNA('Bananas - Summary'!AD62,),'Bananas - Summary'!AD62,0),IF(_xlfn.IFNA('Cucumbers - Summary'!AD62,),'Cucumbers - Summary'!AD62,0),IF(_xlfn.IFNA('Eggplants - Summary'!AD62,),'Eggplants - Summary'!AD62,0),IF(_xlfn.IFNA('Peppers - Summary'!AD62,),'Peppers - Summary'!AD62),0) -> 2.780965168 | T97: 29.1259155 | X97: Germany | Y97: 83237124 | Z97: ='Avocados - Summary'!W19 -> 42970.43411 | AA97: 0.516241216 | AB97: ='Bananas - Summary'!W19 -> 415437.8362 | AC97: 4.991016222 | AD97: ='Cucumbers - Summary'!W19 -> 201748.4702 | AE97: 2.423779925 | AF97: ='Eggplants - Summary'!W19 -> 18158.42479 | AG97: 0.2181529576 | AH97: ='Peppers - Summary'!W19 -> 126241.2726 | AI97: 1.516646257
N98: Malta | O98: ABCEPs | P98: =SUM(IF(_xlfn.IFNA('Avocados - Summary'!AA63,),'Avocados - Summary'!AA63,0),IF(_xlfn.IFNA('Bananas - Summary'!AA63,),'Bananas - Summary'!AA63,0),IF(_xlfn.IFNA('Cucumbers - Summary'!AA63,),'Cucumbers - Summary'!AA63,0),IF(_xlfn.IFNA('Eggplants - Summary'!AA63,),'Eggplants - Summary'!AA63,0),IF(_xlfn.IFNA('Peppers - Summary'!AA63,),'Peppers - Summary'!AA63),0) -> 1.640069642 | Q98: =SUM(IF(_xlfn.IFNA('Avocados - Summary'!AB63,),'Avocados - Summary'!AB63,0),IF(_xlfn.IFNA('Bananas - Summary'!AB63,),'Bananas - Summary'!AB63,0),IF(_xlfn.IFNA('Cucumbers - Summary'!AB63,),'Cucumbers - Summary'!AB63,0),IF(_xlfn.IFNA('Eggplants - Summary'!AB63,),'Eggplants - Summary'!AB63,0),IF(_xlfn.IFNA('Peppers - Summary'!AB63,),'Peppers - Summary'!AB63),0) -> 0.863786747 | R98: =SUM(IF(_xlfn.IFNA('Avocados - Summary'!AC63,),'Avocados - Summary'!AC63,0),IF(_xlfn.IFNA('Bananas - Summary'!AC63,),'Bananas - Summary'!AC63,0),IF(_xlfn.IFNA('Cucumbers - Summary'!AC63,),'Cucumbers - Summary'!AC63,0),IF(_xlfn.IFNA('Eggplants - Summary'!AC63,),'Eggplants - Summary'!AC63,0),IF(_xlfn.IFNA('Peppers - Summary'!AC63,),'Peppers - Summary'!AC63),0) -> 20.48672269 | S98: =SUM(IF(_xlfn.IFNA('Avocados - Summary'!AD63,),'Avocados - Summary'!AD63,0),IF(_xlfn.IFNA('Bananas - Summary'!AD63,),'Bananas - Summary'!AD63,0),IF(_xlfn.IFNA('Cucumbers - Summary'!AD63,),'Cucumbers - Summary'!AD63,0),IF(_xlfn.IFNA('Eggplants - Summary'!AD63,),'Eggplants - Summary'!AD63,0),IF(_xlfn.IFNA('Peppers - Summary'!AD63,),'Peppers - Summary'!AD63),0) -> 2.431122782 | T98: 25.42170186 | X98: Greece | Y98: 10459782 | Z98: ='Avocados - Summary'!W20 -> 6683.022758 | AA98: 0.6389256256 | AB98: ='Bananas - Summary'!W20 -> 60119.37806 | AC98: 5.747670273 | AD98: ='Cucumbers - Summary'!W20 -> 27220.77205 | AE98: 2.602422503 | AF98: ='Eggplants - Summary'!W20 -> 14864.05006 | AG98: 1.421066907 | AH98: ='Peppers - Summary'!W20 -> 39101.91154 | AI98: 3.738310372
N99: Netherlands | O99: ABCEPs | P99: =SUM(IF(_xlfn.IFNA('Avocados - Summary'!AA64,),'Avocados - Summary'!AA64,0),IF(_xlfn.IFNA('Bananas - Summary'!AA64,),'Bananas - Summary'!AA64,0),IF(_xlfn.IFNA('Cucumbers - Summary'!AA64,),'Cucumbers - Summary'!AA64,0),IF(_xlfn.IFNA('Eggplants - Summary'!AA64,),'Eggplants - Summary'!AA64,0),IF(_xlfn.IFNA('Peppers - Summary'!AA64,),'Peppers - Summary'!AA64),0) -> 69.48413519 | Q99: =SUM(IF(_xlfn.IFNA('Avocados - Summary'!AB64,),'Avocados - Summary'!AB64,0),IF(_xlfn.IFNA('Bananas - Summary'!AB64,),'Bananas - Summary'!AB64,0),IF(_xlfn.IFNA('Cucumbers - Summary'!AB64,),'Cucumbers - Summary'!AB64,0),IF(_xlfn.IFNA('Eggplants - Summary'!AB64,),'Eggplants - Summary'!AB64,0),IF(_xlfn.IFNA('Peppers - Summary'!AB64,),'Peppers - Summary'!AB64),0) -> 27.23244273 | R99: =SUM(IF(_xlfn.IFNA('Avocados - Summary'!AC64,),'Avocados - Summary'!AC64,0),IF(_xlfn.IFNA('Bananas - Summary'!AC64,),'Bananas - Summary'!AC64,0),IF(_xlfn.IFNA('Cucumbers - Summary'!AC64,),'Cucumbers - Summary'!AC64,0),IF(_xlfn.IFNA('Eggplants - Summary'!AC64,),'Eggplants - Summary'!AC64,0),IF(_xlfn.IFNA('Peppers - Summary'!AC64,),'Peppers - Summary'!AC64),0) -> 693.4481558 | S99: =SUM(IF(_xlfn.IFNA('Avocados - Summary'!AD64,),'Avocados - Summary'!AD64,0),IF(_xlfn.IFNA('Bananas - Summary'!AD64,),'Bananas - Summary'!AD64,0),IF(_xlfn.IFNA('Cucumbers - Summary'!AD64,),'Cucumbers - Summary'!AD64,0),IF(_xlfn.IFNA('Eggplants - Summary'!AD64,),'Eggplants - Summary'!AD64,0),IF(_xlfn.IFNA('Peppers - Summary'!AD64,),'Peppers - Summary'!AD64),0) -> 74.89855942 | T99: 865.0632931 | X99: Hungary | Y99: 9610403 | Z99: ='Avocados - Summary'!W21 -> 1480.178166 | AA99: 0.1540183243 | AB99: ='Bananas - Summary'!W21 -> 14038.50952 | AC99: 1.460761794 | AD99: ='Cucumbers - Summary'!W21 -> 6647.699529 | AE99: 0.6917191224 | AF99: ='Eggplants - Summary'!W21 -> 608.9694998 | AG99: 0.06336565697 | AH99: ='Peppers - Summary'!W21 -> 16197.43074 | AI99: 1.685405986
N100: Norway | O100: ABCEPs | P100: =SUM(IF(_xlfn.IFNA('Avocados - Summary'!AA65,),'Avocados - Summary'!AA65,0),IF(_xlfn.IFNA('Bananas - Summary'!AA65,),'Bananas - Summary'!AA65,0),IF(_xlfn.IFNA('Cucumbers - Summary'!AA65,),'Cucumbers - Summary'!AA65,0),IF(_xlfn.IFNA('Eggplants - Summary'!AA65,),'Eggplants - Summary'!AA65,0),IF(_xlfn.IFNA('Peppers - Summary'!AA65,),'Peppers - Summary'!AA65),0) -> 28.62263212 | Q100: =SUM(IF(_xlfn.IFNA('Avocados - Summary'!AB65,),'Avocados - Summary'!AB65,0),IF(_xlfn.IFNA('Bananas - Summary'!AB65,),'Bananas - Summary'!AB65,0),IF(_xlfn.IFNA('Cucumbers - Summary'!AB65,),'Cucumbers - Summary'!AB65,0),IF(_xlfn.IFNA('Eggplants - Summary'!AB65,),'Eggplants - Summary'!AB65,0),IF(_xlfn.IFNA('Peppers - Summary'!AB65,),'Peppers - Summary'!AB65),0) -> 12.83012426 | R100: =SUM(IF(_xlfn.IFNA('Avocados - Summary'!AC65,),'Avocados - Summary'!AC65,0),IF(_xlfn.IFNA('Bananas - Summary'!AC65,),'Bananas - Summary'!AC65,0),IF(_xlfn.IFNA('Cucumbers - Summary'!AC65,),'Cucumbers - Summary'!AC65,0),IF(_xlfn.IFNA('Eggplants - Summary'!AC65,),'Eggplants - Summary'!AC65,0),IF(_xlfn.IFNA('Peppers - Summary'!AC65,),'Peppers - Summary'!AC65),0) -> 265.9288381 | S100: =SUM(IF(_xlfn.IFNA('Avocados - Summary'!AD65,),'Avocados - Summary'!AD65,0),IF(_xlfn.IFNA('Bananas - Summary'!AD65,),'Bananas - Summary'!AD65,0),IF(_xlfn.IFNA('Cucumbers - Summary'!AD65,),'Cucumbers - Summary'!AD65,0),IF(_xlfn.IFNA('Eggplants - Summary'!AD65,),'Eggplants - Summary'!AD65,0),IF(_xlfn.IFNA('Peppers - Summary'!AD65,),'Peppers - Summary'!AD65),0) -> 31.86717301 | T100: 339.2487675 | X100: Iceland | Y100: 376248 | Z100: ='Avocados - Summary'!W22 -> 305.6309683 | AA100: 0.8123125395 | AB100: ='Bananas - Summary'!W22 -> 1949.561362 | AC100: 5.18158598 | AD100: ='Cucumbers - Summary'!W22 -> 484.5648204 | AE100: 1.287886767 | AF100: ='Eggplants - Summary'!W22 -> 33.26902393 | AG100: 0.08842312499 | AH100: ='Peppers - Summary'!W22 -> 365.3517983 | AI100: 0.9710398414
N101: Poland | O101: ABCEPs | P101: =SUM(IF(_xlfn.IFNA('Avocados - Summary'!AA66,),'Avocados - Summary'!AA66,0),IF(_xlfn.IFNA('Bananas - Summary'!AA66,),'Bananas - Summary'!AA66,0),IF(_xlfn.IFNA('Cucumbers - Summary'!AA66,),'Cucumbers - Summary'!AA66,0),IF(_xlfn.IFNA('Eggplants - Summary'!AA66,),'Eggplants - Summary'!AA66,0),IF(_xlfn.IFNA('Peppers - Summary'!AA66,),'Peppers - Summary'!AA66),0) -> 117.3854667 | Q101: =SUM(IF(_xlfn.IFNA('Avocados - Summary'!AB66,),'Avocados - Summary'!AB66,0),IF(_xlfn.IFNA('Bananas - Summary'!AB66,),'Bananas - Summary'!AB66,0),IF(_xlfn.IFNA('Cucumbers - Summary'!AB66,),'Cucumbers - Summary'!AB66,0),IF(_xlfn.IFNA('Eggplants - Summary'!AB66,),'Eggplants - Summary'!AB66,0),IF(_xlfn.IFNA('Peppers - Summary'!AB66,),'Peppers - Summary'!AB66),0) -> 29.31127329 | R101: =SUM(IF(_xlfn.IFNA('Avocados - Summary'!AC66,),'Avocados - Summary'!AC66,0),IF(_xlfn.IFNA('Bananas - Summary'!AC66,),'Bananas - Summary'!AC66,0),IF(_xlfn.IFNA('Cucumbers - Summary'!AC66,),'Cucumbers - Summary'!AC66,0),IF(_xlfn.IFNA('Eggplants - Summary'!AC66,),'Eggplants - Summary'!AC66,0),IF(_xlfn.IFNA('Peppers - Summary'!AC66,),'Peppers - Summary'!AC66),0) -> 475.2990385 | S101: =SUM(IF(_xlfn.IFNA('Avocados - Summary'!AD66,),'Avocados - Summary'!AD66,0),IF(_xlfn.IFNA('Bananas - Summary'!AD66,),'Bananas - Summary'!AD66,0),IF(_xlfn.IFNA('Cucumbers - Summary'!AD66,),'Cucumbers - Summary'!AD66,0),IF(_xlfn.IFNA('Eggplants - Summary'!AD66,),'Eggplants - Summary'!AD66,0),IF(_xlfn.IFNA('Peppers - Summary'!AD66,),'Peppers - Summary'!AD66),0) -> 56.52304376 | T101: 678.5188223 | X101: Ireland | Y101: 5154277 | Z101: ='Avocados - Summary'!W23 -> 2772.491231 | AA101: 0.5379010929 | AB101: ='Bananas - Summary'!W23 -> 30522.52602 | AC101: 5.921786124 | AD101: ='Cucumbers - Summary'!W23 -> 2317.598864 | AE101: 0.4496457726 | AF101: ='Eggplants - Summary'!W23 -> 397.9720314 | AG101: 0.07721199916 | AH101: ='Peppers - Summary'!W23 -> 6965.99326 | AI101: 1.351497651
N102: Portugal | O102: ABCEPs | P102: =SUM(IF(_xlfn.IFNA('Avocados - Summary'!AA67,),'Avocados - Summary'!AA67,0),IF(_xlfn.IFNA('Bananas - Summary'!AA67,),'Bananas - Summary'!AA67,0),IF(_xlfn.IFNA('Cucumbers - Summary'!AA67,),'Cucumbers - Summary'!AA67,0),IF(_xlfn.IFNA('Eggplants - Summary'!AA67,),'Eggplants - Summary'!AA67,0),IF(_xlfn.IFNA('Peppers - Summary'!AA67,),'Peppers - Summary'!AA67),0) -> 63.59930585 | Q102: =SUM(IF(_xlfn.IFNA('Avocados - Summary'!AB67,),'Avocados - Summary'!AB67,0),IF(_xlfn.IFNA('Bananas - Summary'!AB67,),'Bananas - Summary'!AB67,0),IF(_xlfn.IFNA('Cucumbers - Summary'!AB67,),'Cucumbers - Summary'!AB67,0),IF(_xlfn.IFNA('Eggplants - Summary'!AB67,),'Eggplants - Summary'!AB67,0),IF(_xlfn.IFNA('Peppers - Summary'!AB67,),'Peppers - Summary'!AB67),0) -> 18.68322868 | R102: =SUM(IF(_xlfn.IFNA('Avocados - Summary'!AC67,),'Avocados - Summary'!AC67,0),IF(_xlfn.IFNA('Bananas - Summary'!AC67,),'Bananas - Summary'!AC67,0),IF(_xlfn.IFNA('Cucumbers - Summary'!AC67,),'Cucumbers - Summary'!AC67,0),IF(_xlfn.IFNA('Eggplants - Summary'!AC67,),'Eggplants - Summary'!AC67,0),IF(_xlfn.IFNA('Peppers - Summary'!AC67,),'Peppers - Summary'!AC67),0) -> 436.3662309 | S102: =SUM(IF(_xlfn.IFNA('Avocados - Summary'!AD67,),'Avocados - Summary'!AD67,0),IF(_xlfn.IFNA('Bananas - Summary'!AD67,),'Bananas - Summary'!AD67,0),IF(_xlfn.IFNA('Cucumbers - Summary'!AD67,),'Cucumbers - Summary'!AD67,0),IF(_xlfn.IFNA('Eggplants - Summary'!AD67,),'Eggplants - Summary'!AD67,0),IF(_xlfn.IFNA('Peppers - Summary'!AD67,),'Peppers - Summary'!AD67),0) -> 51.8223486 | T102: 570.471114 | X102: Italy | Y102: 59030133 | Z102: ='Avocados - Summary'!W24 -> 13402.30916 | AA102: 0.2270418256 | AB102: ='Bananas - Summary'!W24 -> 310948.865 | AC102: 5.267629416 | AD102: ='Cucumbers - Summary'!W24 -> 21316.49783 | AE102: 0.3611121429 | AF102: ='Eggplants - Summary'!W24 -> 121457.1066 | AG102: 2.05754418 | AH102: ='Peppers - Summary'!W24 -> 101496.4045 | AI102: 1.719399895
N103: Romania | O103: ABCEPs | P103: =SUM(IF(_xlfn.IFNA('Avocados - Summary'!AA68,),'Avocados - Summary'!AA68,0),IF(_xlfn.IFNA('Bananas - Summary'!AA68,),'Bananas - Summary'!AA68,0),IF(_xlfn.IFNA('Cucumbers - Summary'!AA68,),'Cucumbers - Summary'!AA68,0),IF(_xlfn.IFNA('Eggplants - Summary'!AA68,),'Eggplants - Summary'!AA68,0),IF(_xlfn.IFNA('Peppers - Summary'!AA68,),'Peppers - Summary'!AA68),0) -> 44.12991618 | Q103: =SUM(IF(_xlfn.IFNA('Avocados - Summary'!AB68,),'Avocados - Summary'!AB68,0),IF(_xlfn.IFNA('Bananas - Summary'!AB68,),'Bananas - Summary'!AB68,0),IF(_xlfn.IFNA('Cucumbers - Summary'!AB68,),'Cucumbers - Summary'!AB68,0),IF(_xlfn.IFNA('Eggplants - Summary'!AB68,),'Eggplants - Summary'!AB68,0),IF(_xlfn.IFNA('Peppers - Summary'!AB68,),'Peppers - Summary'!AB68),0) -> 25.09722207 | R103: =SUM(IF(_xlfn.IFNA('Avocados - Summary'!AC68,),'Avocados - Summary'!AC68,0),IF(_xlfn.IFNA('Bananas - Summary'!AC68,),'Bananas - Summary'!AC68,0),IF(_xlfn.IFNA('Cucumbers - Summary'!AC68,),'Cucumbers - Summary'!AC68,0),IF(_xlfn.IFNA('Eggplants - Summary'!AC68,),'Eggplants - Summary'!AC68,0),IF(_xlfn.IFNA('Peppers - Summary'!AC68,),'Peppers - Summary'!AC68),0) -> 365.5305871 | S103: =SUM(IF(_xlfn.IFNA('Avocados - Summary'!AD68,),'Avocados - Summary'!AD68,0),IF(_xlfn.IFNA('Bananas - Summary'!AD68,),'Bananas - Summary'!AD68,0),IF(_xlfn.IFNA('Cucumbers - Summary'!AD68,),'Cucumbers - Summary'!AD68,0),IF(_xlfn.IFNA('Eggplants - Summary'!AD68,),'Eggplants - Summary'!AD68,0),IF(_xlfn.IFNA('Peppers - Summary'!AD68,),'Peppers - Summary'!AD68),0) -> 42.71010185 | T103: 477.4678272 | X103: Latvia | Y103: 1875757 | Z103: ='Avocados - Summary'!W25 -> 904.4289903 | AA103: 0.4821674611 | AB103: ='Bananas - Summary'!W25 -> 8052.708801 | AC103: 4.293044782 | AD103: ='Cucumbers - Summary'!W25 -> 3112.38718 | AE103: 1.659269927 | AF103: ='Eggplants - Summary'!W25 -> 208.3698654 | AG103: 0.1110857459 | AH103: ='Peppers - Summary'!W25 -> 1163.495421 | AI103: 0.6202804634
N104: Slovakia | O104: ABCEPs | P104: =SUM(IF(_xlfn.IFNA('Avocados - Summary'!AA69,),'Avocados - Summary'!AA69,0),IF(_xlfn.IFNA('Bananas - Summary'!AA69,),'Bananas - Summary'!AA69,0),IF(_xlfn.IFNA('Cucumbers - Summary'!AA69,),'Cucumbers - Summary'!AA69,0),IF(_xlfn.IFNA('Eggplants - Summary'!AA69,),'Eggplants - Summary'!AA69,0),IF(_xlfn.IFNA('Peppers - Summary'!AA69,),'Peppers - Summary'!AA69),0) -> 11.61807049 | Q104: =SUM(IF(_xlfn.IFNA('Avocados - Summary'!AB69,),'Avocados - Summary'!AB69,0),IF(_xlfn.IFNA('Bananas - Summary'!AB69,),'Bananas - Summary'!AB69,0),IF(_xlfn.IFNA('Cucumbers - Summary'!AB69,),'Cucumbers - Summary'!AB69,0),IF(_xlfn.IFNA('Eggplants - Summary'!AB69,),'Eggplants - Summary'!AB69,0),IF(_xlfn.IFNA('Peppers - Summary'!AB69,),'Peppers - Summary'!AB69),0) -> 6.562151163 | R104: =SUM(IF(_xlfn.IFNA('Avocados - Summary'!AC69,),'Avocados - Summary'!AC69,0),IF(_xlfn.IFNA('Bananas - Summary'!AC69,),'Bananas - Summary'!AC69,0),IF(_xlfn.IFNA('Cucumbers - Summary'!AC69,),'Cucumbers - Summary'!AC69,0),IF(_xlfn.IFNA('Eggplants - Summary'!AC69,),'Eggplants - Summary'!AC69,0),IF(_xlfn.IFNA('Peppers - Summary'!AC69,),'Peppers - Summary'!AC69),0) -> 148.5330272 | S104: =SUM(IF(_xlfn.IFNA('Avocados - Summary'!AD69,),'Avocados - Summary'!AD69,0),IF(_xlfn.IFNA('Bananas - Summary'!AD69,),'Bananas - Summary'!AD69,0),IF(_xlfn.IFNA('Cucumbers - Summary'!AD69,),'Cucumbers - Summary'!AD69,0),IF(_xlfn.IFNA('Eggplants - Summary'!AD69,),'Eggplants - Summary'!AD69,0),IF(_xlfn.IFNA('Peppers - Summary'!AD69,),'Peppers - Summary'!AD69),0) -> 17.42993589 | T104: 184.1431847 | X104: Lithuania | Y104: 2805998 | Z104: ='Avocados - Summary'!W26 -> 1348.367095 | AA104: 0.4805303121 | AB104: ='Bananas - Summary'!W26 -> 12281.2385 | AC104: 4.376780916 | AD104: ='Cucumbers - Summary'!W26 -> 7411.968343 | AE104: 2.641473138 | AF104: ='Eggplants - Summary'!W26 -> 292.3757707 | AG104: 0.1041967139 | AH104: ='Peppers - Summary'!W26 -> 1397.377534 | AI104: 0.4979966253
N105: Slovenia | O105: ABCEPs | P105: =SUM(IF(_xlfn.IFNA('Avocados - Summary'!AA70,),'Avocados - Summary'!AA70,0),IF(_xlfn.IFNA('Bananas - Summary'!AA70,),'Bananas - Summary'!AA70,0),IF(_xlfn.IFNA('Cucumbers - Summary'!AA70,),'Cucumbers - Summary'!AA70,0),IF(_xlfn.IFNA('Eggplants - Summary'!AA70,),'Eggplants - Summary'!AA70,0),IF(_xlfn.IFNA('Peppers - Summary'!AA70,),'Peppers - Summary'!AA70),0) -> 17.49673166 | Q105: =SUM(IF(_xlfn.IFNA('Avocados - Summary'!AB70,),'Avocados - Summary'!AB70,0),IF(_xlfn.IFNA('Bananas - Summary'!AB70,),'Bananas - Summary'!AB70,0),IF(_xlfn.IFNA('Cucumbers - Summary'!AB70,),'Cucumbers - Summary'!AB70,0),IF(_xlfn.IFNA('Eggplants - Summary'!AB70,),'Eggplants - Summary'!AB70,0),IF(_xlfn.IFNA('Peppers - Summary'!AB70,),'Peppers - Summary'!AB70),0) -> 1.154085756 | R105: =SUM(IF(_xlfn.IFNA('Avocados - Summary'!AC70,),'Avocados - Summary'!AC70,0),IF(_xlfn.IFNA('Bananas - Summary'!AC70,),'Bananas - Summary'!AC70,0),IF(_xlfn.IFNA('Cucumbers - Summary'!AC70,),'Cucumbers - Summary'!AC70,0),IF(_xlfn.IFNA('Eggplants - Summary'!AC70,),'Eggplants - Summary'!AC70,0),IF(_xlfn.IFNA('Peppers - Summary'!AC70,),'Peppers - Summary'!AC70),0) -> 23.19386957 | S105: =SUM(IF(_xlfn.IFNA('Avocados - Summary'!AD70,),'Avocados - Summary'!AD70,0),IF(_xlfn.IFNA('Bananas - Summary'!AD70,),'Bananas - Summary'!AD70,0),IF(_xlfn.IFNA('Cucumbers - Summary'!AD70,),'Cucumbers - Summary'!AD70,0),IF(_xlfn.IFNA('Eggplants - Summary'!AD70,),'Eggplants - Summary'!AD70,0),IF(_xlfn.IFNA('Peppers - Summary'!AD70,),'Peppers - Summary'!AD70),0) -> 2.714214774 | T105: 44.55890176 | X105: Luxembourg | Y105: 645397 | Z105: ='Avocados - Summary'!W27 -> 386.5264705 | AA105: 0.5988972222 | AB105: ='Bananas - Summary'!W27 -> 2647.138908 | AC105: 4.1015668 | AD105: ='Cucumbers - Summary'!W27 -> 472.2152402 | AE105: 0.731666308 | AF105: ='Eggplants - Summary'!W27 -> 182.6249268 | AG105: 0.2829652552 | AH105: ='Peppers - Summary'!W27 -> 491.685952 | AI105: 0.7618348892
N106: Spain | O106: ABCEPs | P106: =SUM(IF(_xlfn.IFNA('Avocados - Summary'!AA71,),'Avocados - Summary'!AA71,0),IF(_xlfn.IFNA('Bananas - Summary'!AA71,),'Bananas - Summary'!AA71,0),IF(_xlfn.IFNA('Cucumbers - Summary'!AA71,),'Cucumbers - Summary'!AA71,0),IF(_xlfn.IFNA('Eggplants - Summary'!AA71,),'Eggplants - Summary'!AA71,0),IF(_xlfn.IFNA('Peppers - Summary'!AA71,),'Peppers - Summary'!AA71),0) -> 450.2543907 | Q106: =SUM(IF(_xlfn.IFNA('Avocados - Summary'!AB71,),'Avocados - Summary'!AB71,0),IF(_xlfn.IFNA('Bananas - Summary'!AB71,),'Bananas - Summary'!AB71,0),IF(_xlfn.IFNA('Cucumbers - Summary'!AB71,),'Cucumbers - Summary'!AB71,0),IF(_xlfn.IFNA('Eggplants - Summary'!AB71,),'Eggplants - Summary'!AB71,0),IF(_xlfn.IFNA('Peppers - Summary'!AB71,),'Peppers - Summary'!AB71),0) -> 62.5322083 | R106: =SUM(IF(_xlfn.IFNA('Avocados - Summary'!AC71,),'Avocados - Summary'!AC71,0),IF(_xlfn.IFNA('Bananas - Summary'!AC71,),'Bananas - Summary'!AC71,0),IF(_xlfn.IFNA('Cucumbers - Summary'!AC71,),'Cucumbers - Summary'!AC71,0),IF(_xlfn.IFNA('Eggplants - Summary'!AC71,),'Eggplants - Summary'!AC71,0),IF(_xlfn.IFNA('Peppers - Summary'!AC71,),'Peppers - Summary'!AC71),0) -> 772.912679 | S106: =SUM(IF(_xlfn.IFNA('Avocados - Summary'!AD71,),'Avocados - Summary'!AD71,0),IF(_xlfn.IFNA('Bananas - Summary'!AD71,),'Bananas - Summary'!AD71,0),IF(_xlfn.IFNA('Cucumbers - Summary'!AD71,),'Cucumbers - Summary'!AD71,0),IF(_xlfn.IFNA('Eggplants - Summary'!AD71,),'Eggplants - Summary'!AD71,0),IF(_xlfn.IFNA('Peppers - Summary'!AD71,),'Peppers - Summary'!AD71),0) -> 105.9444183 | T106: 1391.643696 | X106: Malta | Y106: 520174 | Z106: ='Avocados - Summary'!W28 -> 188.6447832 | AA106: 0.3626570786 | AB106: ='Bananas - Summary'!W28 -> 4022.214519 | AC106: 7.732440527 | AD106: ='Cucumbers - Summary'!W28 -> 302.3653234 | AE106: 0.5812772714 | AF106: ='Eggplants - Summary'!W28 -> 318.1201977 | AG106: 0.611564972 | AH106: ='Peppers - Summary'!W28 -> 195.2850434 | AI106: 0.3754225382
N107: Sweden | O107: ABCEPs | P107: =SUM(IF(_xlfn.IFNA('Avocados - Summary'!AA72,),'Avocados - Summary'!AA72,0),IF(_xlfn.IFNA('Bananas - Summary'!AA72,),'Bananas - Summary'!AA72,0),IF(_xlfn.IFNA('Cucumbers - Summary'!AA72,),'Cucumbers - Summary'!AA72,0),IF(_xlfn.IFNA('Eggplants - Summary'!AA72,),'Eggplants - Summary'!AA72,0),IF(_xlfn.IFNA('Peppers - Summary'!AA72,),'Peppers - Summary'!AA72),0) -> 39.67151711 | Q107: =SUM(IF(_xlfn.IFNA('Avocados - Summary'!AB72,),'Avocados - Summary'!AB72,0),IF(_xlfn.IFNA('Bananas - Summary'!AB72,),'Bananas - Summary'!AB72,0),IF(_xlfn.IFNA('Cucumbers - Summary'!AB72,),'Cucumbers - Summary'!AB72,0),IF(_xlfn.IFNA('Eggplants - Summary'!AB72,),'Eggplants - Summary'!AB72,0),IF(_xlfn.IFNA('Peppers - Summary'!AB72,),'Peppers - Summary'!AB72),0) -> 10.13354145 | R107: =SUM(IF(_xlfn.IFNA('Avocados - Summary'!AC72,),'Avocados - Summary'!AC72,0),IF(_xlfn.IFNA('Bananas - Summary'!AC72,),'Bananas - Summary'!AC72,0),IF(_xlfn.IFNA('Cucumbers - Summary'!AC72,),'Cucumbers - Summary'!AC72,0),IF(_xlfn.IFNA('Eggplants - Summary'!AC72,),'Eggplants - Summary'!AC72,0),IF(_xlfn.IFNA('Peppers - Summary'!AC72,),'Peppers - Summary'!AC72),0) -> 226.5521547 | S107: =SUM(IF(_xlfn.IFNA('Avocados - Summary'!AD72,),'Avocados - Summary'!AD72,0),IF(_xlfn.IFNA('Bananas - Summary'!AD72,),'Bananas - Summary'!AD72,0),IF(_xlfn.IFNA('Cucumbers - Summary'!AD72,),'Cucumbers - Summary'!AD72,0),IF(_xlfn.IFNA('Eggplants - Summary'!AD72,),'Eggplants - Summary'!AD72,0),IF(_xlfn.IFNA('Peppers - Summary'!AD72,),'Peppers - Summary'!AD72),0) -> 27.07260745 | T107: 303.4298207 | X107: Netherlands | Y107: 17590672 | Z107: ='Avocados - Summary'!W29 -> 20653.22185 | AA107: 1.174100787 | AB107: ='Bananas - Summary'!W29 -> 196405.3198 | AC107: 11.16531078 | AD107: ='Cucumbers - Summary'!W29 -> 3827.490414 | AE107: 0.217586367 | AF107: ='Eggplants - Summary'!W29 -> 10413.09625 | AG107: 0.5919669386 | AH107: ='Peppers - Summary'!W29 -> 39742.7488 | AI107: 2.259308161
N108: Switzerland | O108: ABCEPs | P108: =SUM(IF(_xlfn.IFNA('Avocados - Summary'!AA73,),'Avocados - Summary'!AA73,0),IF(_xlfn.IFNA('Bananas - Summary'!AA73,),'Bananas - Summary'!AA73,0),IF(_xlfn.IFNA('Cucumbers - Summary'!AA73,),'Cucumbers - Summary'!AA73,0),IF(_xlfn.IFNA('Eggplants - Summary'!AA73,),'Eggplants - Summary'!AA73,0),IF(_xlfn.IFNA('Peppers - Summary'!AA73,),'Peppers - Summary'!AA73),0) -> 17.09423436 | Q108: =SUM(IF(_xlfn.IFNA('Avocados - Summary'!AB73,),'Avocados - Summary'!AB73,0),IF(_xlfn.IFNA('Bananas - Summary'!AB73,),'Bananas - Summary'!AB73,0),IF(_xlfn.IFNA('Cucumbers - Summary'!AB73,),'Cucumbers - Summary'!AB73,0),IF(_xlfn.IFNA('Eggplants - Summary'!AB73,),'Eggplants - Summary'!AB73,0),IF(_xlfn.IFNA('Peppers - Summary'!AB73,),'Peppers - Summary'!AB73),0) -> 15.9893107 | R108: =SUM(IF(_xlfn.IFNA('Avocados - Summary'!AC73,),'Avocados - Summary'!AC73,0),IF(_xlfn.IFNA('Bananas - Summary'!AC73,),'Bananas - Summary'!AC73,0),IF(_xlfn.IFNA('Cucumbers - Summary'!AC73,),'Cucumbers - Summary'!AC73,0),IF(_xlfn.IFNA('Eggplants - Summary'!AC73,),'Eggplants - Summary'!AC73,0),IF(_xlfn.IFNA('Peppers - Summary'!AC73,),'Peppers - Summary'!AC73),0) -> 295.2229264 | S108: =SUM(IF(_xlfn.IFNA('Avocados - Summary'!AD73,),'Avocados - Summary'!AD73,0),IF(_xlfn.IFNA('Bananas - Summary'!AD73,),'Bananas - Summary'!AD73,0),IF(_xlfn.IFNA('Cucumbers - Summary'!AD73,),'Cucumbers - Summary'!AD73,0),IF(_xlfn.IFNA('Eggplants - Summary'!AD73,),'Eggplants - Summary'!AD73,0),IF(_xlfn.IFNA('Peppers - Summary'!AD73,),'Peppers - Summary'!AD73),0) -> 35.22245941 | T108: 363.5289308 | X108: Norway | Y108: 5425270 | Z108: ='Avocados - Summary'!W30 -> 4979.367944 | AA108: 0.9178101632 | AB108: ='Bananas - Summary'!W30 -> 33554.68449 | AC108: 6.184887479 | AD108: ='Cucumbers - Summary'!W30 -> 6272.545432 | AE108: 1.15617203 | AF108: ='Eggplants - Summary'!W30 -> 690.6141987 | AG108: 0.127295821 | AH108: ='Peppers - Summary'!W30 -> 6455.713794 | AI108: 1.189934103
N109: United Kingdom | O109: ABCEPs | P109: =SUM(IF(_xlfn.IFNA('Avocados - Summary'!AA74,),'Avocados - Summary'!AA74,0),IF(_xlfn.IFNA('Bananas - Summary'!AA74,),'Bananas - Summary'!AA74,0),IF(_xlfn.IFNA('Cucumbers - Summary'!AA74,),'Cucumbers - Summary'!AA74,0),IF(_xlfn.IFNA('Eggplants - Summary'!AA74,),'Eggplants - Summary'!AA74,0),IF(_xlfn.IFNA('Peppers - Summary'!AA74,),'Peppers - Summary'!AA74),0) -> 114.0017588 | Q109: =SUM(IF(_xlfn.IFNA('Avocados - Summary'!AB74,),'Avocados - Summary'!AB74,0),IF(_xlfn.IFNA('Bananas - Summary'!AB74,),'Bananas - Summary'!AB74,0),IF(_xlfn.IFNA('Cucumbers - Summary'!AB74,),'Cucumbers - Summary'!AB74,0),IF(_xlfn.IFNA('Eggplants - Summary'!AB74,),'Eggplants - Summary'!AB74,0),IF(_xlfn.IFNA('Peppers - Summary'!AB74,),'Peppers - Summary'!AB74),0) -> 86.18752252 | R109: =SUM(IF(_xlfn.IFNA('Avocados - Summary'!AC74,),'Avocados - Summary'!AC74,0),IF(_xlfn.IFNA('Bananas - Summary'!AC74,),'Bananas - Summary'!AC74,0),IF(_xlfn.IFNA('Cucumbers - Summary'!AC74,),'Cucumbers - Summary'!AC74,0),IF(_xlfn.IFNA('Eggplants - Summary'!AC74,),'Eggplants - Summary'!AC74,0),IF(_xlfn.IFNA('Peppers - Summary'!AC74,),'Peppers - Summary'!AC74),0) -> 1641.819297 | S109: =SUM(IF(_xlfn.IFNA('Avocados - Summary'!AD74,),'Avocados - Summary'!AD74,0),IF(_xlfn.IFNA('Bananas - Summary'!AD74,),'Bananas - Summary'!AD74,0),IF(_xlfn.IFNA('Cucumbers - Summary'!AD74,),'Cucumbers - Summary'!AD74,0),IF(_xlfn.IFNA('Eggplants - Summary'!AD74,),'Eggplants - Summary'!AD74,0),IF(_xlfn.IFNA('Peppers - Summary'!AD74,),'Peppers - Summary'!AD74),0) -> 186.1025219 | T109: 2028.1111 | X109: Poland | Y109: 36889761 | Z109: ='Avocados - Summary'!W31 -> 8527.766557 | AA109: 0.2311689294 | AB109: ='Bananas - Summary'!W31 -> 76923.12683 | AC109: 2.085216189 | AD109: ='Cucumbers - Summary'!W31 -> 171088.4049 | AE109: 4.637829041 | AF109: ='Eggplants - Summary'!W31 -> 1346.316496 | AG109: 0.03649566871 | AH109: ='Peppers - Summary'!W31 -> 53858.18323 | AI109: 1.459976475
N110: EU+ | O110: ABCEPs | P110: =SUM(P79:P109) -> 1959.410699 | Q110: =SUM(Q79:Q109) -> 713.7991386 | R110: 13489.63155 | S110: 1594.109752 | T110: 17756.95114 | X110: Portugal | Y110: 10421117 | Z110: ='Avocados - Summary'!W32 -> 7498.353005 | AA110: 0.7195344803 | AB110: ='Bananas - Summary'!W32 -> 108310.5759 | AC110: 10.3933749 | AD110: ='Cucumbers - Summary'!W32 -> 4233.024856 | AE110: 0.4061968458 | AF110: ='Eggplants - Summary'!W32 -> 2847.077505 | AG110: 0.2732027196 | AH110: ='Peppers - Summary'!W32 -> 15707.59302 | AI110: 1.507284969
X111: Romania | Y111: 19042455 | Z111: ='Avocados - Summary'!W33 -> 3910.665736 | AA111: 0.2053656283 | AB111: ='Bananas - Summary'!W33 -> 65296.42339 | AC111: 3.428991871 | AD111: ='Cucumbers - Summary'!W33 -> 17705.40246 | AE111: 0.9297857056 | AF111: ='Eggplants - Summary'!W33 -> 21802.01046 | AG111: 1.14491595 | AH111: ='Peppers - Summary'!W33 -> 41238.83457 | AI111: 2.165625943
X112: Slovakia | Y112: 5434712 | Z112: ='Avocados - Summary'!W34 -> 844.0630192 | AA112: 0.1553096133 | AB112: ='Bananas - Summary'!W34 -> 26704.38417 | AC112: 4.913670525 | AD112: ='Cucumbers - Summary'!W34 -> 3897.532617 | AE112: 0.7171553188 | AF112: ='Eggplants - Summary'!W34 -> 237.0053914 | AG112: 0.0436095586 | AH112: ='Peppers - Summary'!W34 -> 5707.05022 | AI112: 1.050110884
S113: EUR | T113: =T110*10^6 -> 1.775695114e+10 | X113: Slovenia | Y113: 2107180 | Z113: ='Avocados - Summary'!W35 -> 1198.808101 | AA113: 0.5689158501 | AB113: ='Bananas - Summary'!W35 -> 21022.83073 | AC113: 9.976760758 | AD113: ='Cucumbers - Summary'!W35 -> 1894.392552 | AE113: 0.8990179064 | AF113: ='Eggplants - Summary'!W35 -> 116.0819804 | AG113: 0.05508878236 | AH113: ='Peppers - Summary'!W35 -> 3884.525788 | AI113: 1.843471269
S114: Capita EU+ | T114: =553*10^6 -> 553000000 | X114: Spain | Y114: 47486843 | Z114: ='Avocados - Summary'!W36 -> 73224.49245 | AA114: 1.541995379 | AB114: ='Bananas - Summary'!W36 -> 206056.528 | AC114: 4.33923409 | AD114: ='Cucumbers - Summary'!W36 -> 70424.20794 | AE114: 1.483025686 | AF114: ='Eggplants - Summary'!W36 -> 44604.13522 | AG114: 0.9392946003 | AH114: ='Peppers - Summary'!W36 -> 274835.2053 | AI114: 5.787607429
S115: EUR/Capita | T115: =T113/T114 -> 32.11021906 | X115: Sweden | Y115: 10452326 | Z115: ='Avocados - Summary'!W37 -> 7069.871606 | AA115: 0.6763921836 | AB115: ='Bananas - Summary'!W37 -> 38815.89097 | AC115: 3.713612738 | AD115: ='Cucumbers - Summary'!W37 -> 20464.24652 | AE115: 1.957865314 | AF115: ='Eggplants - Summary'!W37 -> 2314.417449 | AG115: 0.2214260681 | AH115: ='Peppers - Summary'!W37 -> 10757.01412 | AI115: 1.02915027
X116: Switzerland | Y116: 8738791 | Z116: ='Avocados - Summary'!W38 -> 6427.051823 | AA116: 0.7354623567 | AB116: ='Bananas - Summary'!W38 -> 39243.90697 | AC116: 4.490770746 | AD116: ='Cucumbers - Summary'!W38 -> 8025.807575 | AE116: 0.918411663 | AF116: ='Eggplants - Summary'!W38 -> 2442.339676 | AG116: 0.2794825595 | AH116: ='Peppers - Summary'!W38 -> 10476.21675 | AI116: 1.198817634
X117: United Kingdom | Y117: 67602800 | Z117: ='Avocados - Summary'!W39 -> 38837.84004 | AA117: 0.574500465 | AB117: ='Bananas - Summary'!W39 -> 376069.7005 | AC117: 5.562930833 | AD117: ='Cucumbers - Summary'!W39 -> 44559.80091 | AE117: 0.6591413507 | AF117: ='Eggplants - Summary'!W39 -> 8891.029616 | AG117: 0.1315186592 | AH117: ='Peppers - Summary'!W39 -> 58098.64282 | AI117: 0.8594117821
X118: EU+ | Y118: =SUM(Y87:Y117) -> 528140192 | Z118: ='Avocados - Summary'!W40 -> 335010.5267 | AA118: 0.6343212121 | AB118: ='Bananas - Summary'!W40 -> 2764267.996 | AC118: 5.233966356 | AD118: ='Cucumbers - Summary'!W40 -> 775252.5434 | AE118: 1.467891585 | AF118: ='Eggplants - Summary'!W40 -> 300049.4682 | AG118: 0.5681246623 | AH118: ='Peppers - Summary'!W40 -> 965239.5118 | AI118: 1.827619875
N132: Food Waste | O132: Product | P132: Food Waste - Pre R&D | Q132: Food Supply Quantity | R132: Food Waste - R&D | S132: Consumption - Households | T132: Food Waste - Households | U132: Consumption - Food Service | V132: Food Waste - Food Service | W132: Total Food Waste
N133: EU+ | O133: Avocados | P133: ='Avocados - Summary'!P$40 -> 105891.12 | Q133: ='Avocados - Summary'!Q$40 -> 571078.185 | R133: ='Avocados - Summary'!R$40 -> 18246.06075 | S133: ='Avocados - Summary'!S$40 -> 469907.3056 | T133: ='Avocados - Summary'!T$40 -> 174220.5761 | U133: ='Avocados - Summary'!U$40 -> 82924.81864 | V133: ='Avocados - Summary'!V$40 -> 36652.76984 | W133: ='Avocados - Summary'!W$40 -> 335010.5267
N134: EU+ | O134: Bananas | P134: ='Bananas - Summary'!P$40 -> 335878.7975 | Q134: ='Bananas - Summary'!Q$40 -> 5154165.21 | R134: ='Bananas - Summary'!R$40 -> 93978.79473 | S134: ='Bananas - Summary'!S$40 -> 4301158.453 | T134: ='Bananas - Summary'!T$40 -> 1998920.045 | U134: ='Bananas - Summary'!U$40 -> 759027.9623 | V134: ='Bananas - Summary'!V$40 -> 335490.3594 | W134: ='Bananas - Summary'!W$40 -> 2764267.996
N135: EU+ | O135: Cucumbers | P135: ='Cucumbers - Summary'!P$40 -> 315753.4494 | Q135: ='Cucumbers - Summary'!Q$40 -> 1735925.319 | R135: ='Cucumbers - Summary'!R$40 -> 43005.32832 | S135: ='Cucumbers - Summary'!S$40 -> 1506698.792 | T135: ='Cucumbers - Summary'!T$40 -> 352992.3368 | U135: ='Cucumbers - Summary'!U$40 -> 186221.199 | V135: ='Cucumbers - Summary'!V$40 -> 63501.42886 | W135: ='Cucumbers - Summary'!W$40 -> 775252.5434
N136: EU+ | O136: Eggplants | P136: ='Eggplants - Summary'!P$40 -> 108195.5823 | Q136: ='Eggplants - Summary'!Q$40 -> 631297.3333 | R136: ='Eggplants - Summary'!R$40 -> 61235.84133 | S136: ='Eggplants - Summary'!S$40 -> 507354.7278 | T136: ='Eggplants - Summary'!T$40 -> 109235.0381 | U136: ='Eggplants - Summary'!U$40 -> 62706.76411 | V136: ='Eggplants - Summary'!V$40 -> 21383.00656 | W136: ='Eggplants - Summary'!W$40 -> 300049.4682
N137: EU+ | O137: Peppers | P137: ='Peppers - Summary'!P$40 -> 364187.1437 | Q137: ='Peppers - Summary'!Q$40 -> 1975880.616 | R137: ='Peppers - Summary'!R$40 -> 79035.22466 | S137: ='Peppers - Summary'!S$40 -> 1688192.399 | T137: ='Peppers - Summary'!T$40 -> 450866.4728 | U137: ='Peppers - Summary'!U$40 -> 208652.9931 | V137: ='Peppers - Summary'!V$40 -> 71150.67065 | W137: ='Peppers - Summary'!W$40 -> 965239.5118
O142: Product | P142: Food Waste - Pre R&D | Q142: Food Waste - R&D | R142: Food Waste - Households | S142: Food Waste - Food Service | T142: Sum
O143: Avocados | P143: 105891.12 | Q143: 21373.52184 | R143: 173247.3189 | S143: 36445.41917 | T143: =SUM(P143:S143) -> 336957.3799 | U143: =T143/$T$148 -> 0.06553338307
O144: Bananas | P144: 335878.7975 | Q144: 93978.79473 | R144: 1998920.045 | S144: 335490.3594 | T144: =SUM(P144:S144) -> 2764267.996 | U144: =T144/$T$148 -> 0.5376105238
O145: Cucumbers | P145: 315753.4494 | Q145: 43005.32832 | R145: 352992.3368 | S145: 63501.42886 | T145: 775252.5434 | U145: 0.1507755133
O146: Eggplants | P146: 108195.5823 | Q146: 61235.84133 | R146: 109235.0381 | S146: 21383.00656 | T146: 300049.4682 | U146: 0.058355323
O147: Peppers | P147: 364187.1437 | Q147: 79035.22466 | R147: 450866.4728 | S147: 71150.67065 | T147: 965239.5118 | U147: 0.1877252568
O148: Total | P148: =SUM(P143:P147) -> 1229906.093 | Q148: =SUM(Q143:Q147) -> 298628.7109 | R148: 3085261.211 | S148: 527970.8846 | T148: =SUM(T143:T147) -> 5141766.9
P149: =P148/$T$148 -> 0.2391991152 | Q149: =Q148/$T$148 -> 0.05807900605 | R149: =R148/$T$148 -> 0.6000391055 | S149: =S148/$T$148 -> 0.1026827732
N151: Economic Cost | O151: Product | P151: Type | Q151: Pre R&D | R151: R&D | S151: Households | T151: Food Service | U151: Total
N152: EU+ | O152: Avocados | P152: EUR | Q152: ='Avocados - Summary'!AA$75 -> 242.9890234 | R152: ='Avocados - Summary'!AB$75 -> 63.63957841 | S152: ='Avocados - Summary'!AC$75 -> 881.8807521 | T152: ='Avocados - Summary'!AD$75 -> 128.2990427 | U152: ='Avocados - Summary'!AE$75 -> 1316.808397
N153: EU+ | P153: CO2-eq | Q153: ='Avocados - Summary'!P$75 -> 253079.7768 | R153: ='Avocados - Summary'!Q$75 -> 45432.69127 | S153: ='Avocados - Summary'!R$75 -> 456457.9095 | T153: ='Avocados - Summary'!S$75 -> 96030.25697 | U153: ='Avocados - Summary'!T$75 -> 851000.6345
N154: EU+ | O154: Bananas | P154: EUR | Q154: ='Bananas - Summary'!AA$75 -> 802.0923028 | R154: ='Bananas - Summary'!AB$75 -> 330.3034791 | S154: ='Bananas - Summary'!AC$75 -> 10156.70714 | T154: ='Bananas - Summary'!AD$75 -> 1181.419826 | U154: ='Bananas - Summary'!AE$75 -> 12470.52275
N155: EU+ | P155: CO2-eq | Q155: ='Bananas - Summary'!P$75 -> 272470.8595 | R155: ='Bananas - Summary'!Q$75 -> 85450.72078 | S155: ='Bananas - Summary'!R$75 -> 2234863.865 | T155: ='Bananas - Summary'!S$75 -> 375362.7536 | U155: ='Bananas - Summary'!T$75 -> 2968148.199
N156: EU+ | O156: Cucumbers | P156: EUR | Q156: ='Cucumbers - Summary'!AA$75 -> 348.0074108 | R156: ='Cucumbers - Summary'!AB$75 -> 73.70080905 | S156: ='Cucumbers - Summary'!AC$75 -> 885.3876498 | T156: ='Cucumbers - Summary'!AD$75 -> 110.1053216 | U156: ='Cucumbers - Summary'!AE$75 -> 1417.201191
P157: CO2-eq | Q157: ='Cucumbers - Summary'!P$75 -> 430145.9573 | R157: ='Cucumbers - Summary'!Q$75 -> 53723.82448 | S157: ='Cucumbers - Summary'!R$75 -> 535904.9962 | T157: ='Cucumbers - Summary'!S$75 -> 96432.99677 | U157: ='Cucumbers - Summary'!T$75 -> 1116207.775
O158: Eggplants | P158: EUR | Q158: ='Eggplants - Summary'!AA$75 -> 101.005314 | R158: ='Eggplants - Summary'!AB$75 -> 85.86035632 | S158: ='Eggplants - Summary'!AC$75 -> 222.4914226 | T158: ='Eggplants - Summary'!AD$75 -> 29.98166634 | U158: ='Eggplants - Summary'!AE$75 -> 439.3387593
P159: CO2-eq | Q159: ='Eggplants - Summary'!P$75 -> 135244.4778 | R159: ='Eggplants - Summary'!Q$75 -> 82668.38579 | S159: ='Eggplants - Summary'!R$75 -> 166179.7222 | T159: ='Eggplants - Summary'!S$75 -> 32530.05769 | U159: ='Eggplants - Summary'!T$75 -> 416622.6435
O160: Peppers | P160: EUR | Q160: ='Peppers - Summary'!AA$75 -> 465.3166474 | R160: ='Peppers - Summary'!AB$75 -> 160.2949156 | S160: ='Peppers - Summary'!AC$75 -> 1343.164582 | T160: ='Peppers - Summary'!AD$75 -> 144.3038948 | U160: ='Peppers - Summary'!AE$75 -> 2113.08004
P161: CO2-eq | Q161: ='Peppers - Summary'!P$75 -> 265553.9243 | R161: ='Peppers - Summary'!Q$75 -> 75136.20888 | S161: ='Peppers - Summary'!R$75 -> 455919.3211 | T161: ='Peppers - Summary'!S$75 -> 72581.31688 | U161: ='Peppers - Summary'!T$75 -> 869190.7713

Sheet Avocados - Summary
A1: Homepage
N7: Food Waste | O7: Unit: Tonnes | Y7: Difference (Worst and Best Case) | Z7: Unit: Tonnes | AH7: Data for the illustration | AI7: Unit: Tonnes
N8: Country | O8: Product | P8: Food Waste - Pre R&D | Q8: Food Supply Quantity | R8: Food Waste - R&D | S8: Consumption - Households | T8: Food Waste - Households | U8: Consumption - Food Service | V8: Food Waste - Food Service | W8: Total Food Waste | Y8: Country | Z8: Product | AA8: Total FW | AB8: Best Case | AC8: Worst Case | AD8: Average B/W case | AE8: Lower Error | AF8: Higher Error | AH8: Country | AJ8: Food Waste - Pre R&D | AK8: Food Waste - R&D | AL8: Food Waste - Households | AM8: Food Waste - Food Service | AN8: Food Availability | AO8: Lower Error | AP8: Higher Error
N9: Austria | O9: Avocados | P9: =_xlfn.XLOOKUP($N9&$O9,'FFV Waste'!$A:$A&'FFV Waste'!$B:$B,'FFV Waste'!C:C,"",0) -> 740.94 | Q9: =_xlfn.XLOOKUP($N9&$O9,'FFV Waste'!$A:$A&'FFV Waste'!$B:$B,'FFV Waste'!D:D,"",0) -> 9621.18 | R9: =_xlfn.XLOOKUP($N9&$O9,'FFV Waste'!$A:$A&'FFV Waste'!$B:$B,'FFV Waste'!E:E,"",0) -> 300.661875 | S9: =_xlfn.XLOOKUP($N9&$O9,'FFV Waste'!$A:$A&'FFV Waste'!$B:$B,'FFV Waste'!F:F,"",0) -> 7922.440406 | T9: =_xlfn.XLOOKUP($N9&$O9,'FFV Waste'!$A:$A&'FFV Waste'!$B:$B,'FFV Waste'!G:G,"",0) -> 2924.700917 | U9: =_xlfn.XLOOKUP($N9&$O9,'FFV Waste'!$A:$A&'FFV Waste'!$B:$B,'FFV Waste'!H:H,"",0) -> 1398.077719 | V9: =_xlfn.XLOOKUP($N9&$O9,'FFV Waste'!$A:$A&'FFV Waste'!$B:$B,'FFV Waste'!I:I,"",0) -> 617.9503517 | W9: =_xlfn.XLOOKUP($N9&$O9,'FFV Waste'!$A:$A&'FFV Waste'!$B:$B,'FFV Waste'!J:J,"",0) -> 4584.253143 | Y9: Austria | Z9: Avocados | AA9: =W9 -> 4584.253143 | AB9: =_xlfn.XLOOKUP(Y9&Z9,'FFV Waste'!$L:$L&'FFV Waste'!$M:$M,'FFV Waste'!$U:$U,,0) -> 4158.900274 | AC9: =_xlfn.XLOOKUP(Y9&Z9,'FFV Waste'!$W:$W&'FFV Waste'!$X:$X,'FFV Waste'!$AF:$AF,,0) -> 5465.276121 | AD9: =AVERAGE(AB9:AC9) -> 4812.088198 | AE9: =AA9-MIN(AB9,AA9) -> 425.3528689 | AF9: =AC9-MIN(AA9,AC9) -> 881.022978 | AH9: Austria | AI9: Food Waste | AJ9: =_xlfn.XLOOKUP($AH9,$N$9:$N$39,P$9:P$39,"",0) -> 740.94 | AK9: =_xlfn.XLOOKUP($AH9,$N$9:$N$39,R$9:R$39,"",0) -> 300.661875 | AL9: =_xlfn.XLOOKUP($AH9,$N$9:$N$39,T$9:T$39,"",0) -> 2924.700917 | AM9: =_xlfn.XLOOKUP($AH9,$N$9:$N$39,V$9:V$39,"",0) -> 617.9503517 | AO9: =IF(ISBLANK($AH9),"",_xlfn.XLOOKUP($AH9,$Y$9:$Y$39,AE$9:AE$39,,0)) -> 425.3528689 | AP9: =IF(ISBLANK($AH9),"",_xlfn.XLOOKUP($AH9,$Y$9:$Y$39,AF$9:AF$39,,0)) -> 881.022978
N10: Belgium | O10: Avocados | P10: =_xlfn.XLOOKUP($N10&$O10,'FFV Waste'!$A:$A&'FFV Waste'!$B:$B,'FFV Waste'!C:C,"",0) -> 1434.55 | Q10: =_xlfn.XLOOKUP($N10&$O10,'FFV Waste'!$A:$A&'FFV Waste'!$B:$B,'FFV Waste'!D:D,"",0) -> 8507.3325 | R10: =_xlfn.XLOOKUP($N10&$O10,'FFV Waste'!$A:$A&'FFV Waste'!$B:$B,'FFV Waste'!E:E,"",0) -> 265.8541406 | S10: =_xlfn.XLOOKUP($N10&$O10,'FFV Waste'!$A:$A&'FFV Waste'!$B:$B,'FFV Waste'!F:F,"",0) -> 7005.256605 | T10: =_xlfn.XLOOKUP($N10&$O10,'FFV Waste'!$A:$A&'FFV Waste'!$B:$B,'FFV Waste'!G:G,"",0) -> 2586.10723 | U10: =_xlfn.XLOOKUP($N10&$O10,'FFV Waste'!$A:$A&'FFV Waste'!$B:$B,'FFV Waste'!H:H,"",0) -> 1236.221754 | V10: =_xlfn.XLOOKUP($N10&$O10,'FFV Waste'!$A:$A&'FFV Waste'!$B:$B,'FFV Waste'!I:I,"",0) -> 546.4100152 | W10: =_xlfn.XLOOKUP($N10&$O10,'FFV Waste'!$A:$A&'FFV Waste'!$B:$B,'FFV Waste'!J:J,"",0) -> 4832.921386 | Y10: Belgium | Z10: Avocados | AA10: =W10 -> 4832.921386 | AB10: =_xlfn.XLOOKUP(Y10&Z10,'FFV Waste'!$L:$L&'FFV Waste'!$M:$M,'FFV Waste'!$U:$U,,0) -> 4456.811773 | AC10: =_xlfn.XLOOKUP(Y10&Z10,'FFV Waste'!$W:$W&'FFV Waste'!$X:$X,'FFV Waste'!$AF:$AF,,0) -> 5611.948014 | AD10: =AVERAGE(AB10:AC10) -> 5034.379894 | AE10: =AA10-MIN(AB10,AA10) -> 376.1096129 | AF10: =AC10-MIN(AA10,AC10) -> 779.0266281 | AI10: Food Supply | AJ10: =_xlfn.XLOOKUP($AH10,$N$9:$N$39,P$9:P$39,"",0) ->  | AN10: =_xlfn.XLOOKUP(AH9,N$9:N$39,Q$9:Q$39,"",0)+AJ9 -> 10362.12 | AO10: =IF(ISBLANK($AH10),"",_xlfn.XLOOKUP($AH10,$Y$9:$Y$39,AE$9:AE$39,,0)) ->  | AP10: =IF(ISBLANK($AH10),"",_xlfn.XLOOKUP($AH10,$Y$9:$Y$39,AF$9:AF$39,,0)) -> 
N11: Bulgaria | O11: Avocados | P11: =_xlfn.XLOOKUP($N11&$O11,'FFV Waste'!$A:$A&'FFV Waste'!$B:$B,'FFV Waste'!C:C,"",0) ->  | Q11: =_xlfn.XLOOKUP($N11&$O11,'FFV Waste'!$A:$A&'FFV Waste'!$B:$B,'FFV Waste'!D:D,"",0) -> 2643.8175 | R11: =_xlfn.XLOOKUP($N11&$O11,'FFV Waste'!$A:$A&'FFV Waste'!$B:$B,'FFV Waste'!E:E,"",0) -> 82.61929688 | S11: =_xlfn.XLOOKUP($N11&$O11,'FFV Waste'!$A:$A&'FFV Waste'!$B:$B,'FFV Waste'!F:F,"",0) -> 2177.018473 | T11: =_xlfn.XLOOKUP($N11&$O11,'FFV Waste'!$A:$A&'FFV Waste'!$B:$B,'FFV Waste'!G:G,"",0) -> 803.6826528 | U11: =_xlfn.XLOOKUP($N11&$O11,'FFV Waste'!$A:$A&'FFV Waste'!$B:$B,'FFV Waste'!H:H,"",0) -> 384.1797305 | V11: =_xlfn.XLOOKUP($N11&$O11,'FFV Waste'!$A:$A&'FFV Waste'!$B:$B,'FFV Waste'!I:I,"",0) -> 169.8074409 | W11: =_xlfn.XLOOKUP($N11&$O11,'FFV Waste'!$A:$A&'FFV Waste'!$B:$B,'FFV Waste'!J:J,"",0) -> 1056.109391 | Y11: Bulgaria | Z11: Avocados | AA11: 1056.109391 | AB11: =_xlfn.XLOOKUP(Y11&Z11,'FFV Waste'!$L:$L&'FFV Waste'!$M:$M,'FFV Waste'!$U:$U,,0) -> 939.2260812 | AC11: =_xlfn.XLOOKUP(Y11&Z11,'FFV Waste'!$W:$W&'FFV Waste'!$X:$X,'FFV Waste'!$AF:$AF,,0) -> 1298.206926 | AD11: 1118.716504 | AE11: 116.8833094 | AF11: 242.0975355 | AH11: Belgium | AI11: Food Waste | AJ11: =_xlfn.XLOOKUP($AH11,$N$9:$N$39,P$9:P$39,"",0) -> 1434.55 | AK11: 265.8541406 | AL11: 2586.10723 | AM11: 546.4100152 | AO11: 376.1096129 | AP11: 779.0266281
N12: Croatia | O12: Avocados | P12: =_xlfn.XLOOKUP($N12&$O12,'FFV Waste'!$A:$A&'FFV Waste'!$B:$B,'FFV Waste'!C:C,"",0) ->  | Q12: =_xlfn.XLOOKUP($N12&$O12,'FFV Waste'!$A:$A&'FFV Waste'!$B:$B,'FFV Waste'!D:D,"",0) -> 1853.475 | R12: =_xlfn.XLOOKUP($N12&$O12,'FFV Waste'!$A:$A&'FFV Waste'!$B:$B,'FFV Waste'!E:E,"",0) -> 57.92109375 | S12: =_xlfn.XLOOKUP($N12&$O12,'FFV Waste'!$A:$A&'FFV Waste'!$B:$B,'FFV Waste'!F:F,"",0) -> 1526.22082 | T12: =_xlfn.XLOOKUP($N12&$O12,'FFV Waste'!$A:$A&'FFV Waste'!$B:$B,'FFV Waste'!G:G,"",0) -> 563.4298528 | U12: =_xlfn.XLOOKUP($N12&$O12,'FFV Waste'!$A:$A&'FFV Waste'!$B:$B,'FFV Waste'!H:H,"",0) -> 269.3330859 | V12: =_xlfn.XLOOKUP($N12&$O12,'FFV Waste'!$A:$A&'FFV Waste'!$B:$B,'FFV Waste'!I:I,"",0) -> 119.045224 | W12: =_xlfn.XLOOKUP($N12&$O12,'FFV Waste'!$A:$A&'FFV Waste'!$B:$B,'FFV Waste'!J:J,"",0) -> 740.3961706 | Y12: Croatia | Z12: Avocados | AA12: 740.3961706 | AB12: =_xlfn.XLOOKUP(Y12&Z12,'FFV Waste'!$L:$L&'FFV Waste'!$M:$M,'FFV Waste'!$U:$U,,0) -> 658.4539443 | AC12: =_xlfn.XLOOKUP(Y12&Z12,'FFV Waste'!$W:$W&'FFV Waste'!$X:$X,'FFV Waste'!$AF:$AF,,0) -> 910.1210966 | AD12: 784.2875205 | AE12: 81.94222629 | AF12: 169.7249261 | AI12: Food Supply | AJ12: =_xlfn.XLOOKUP($AH12,$N$9:$N$39,P$9:P$39,"",0) ->  | AN12: =_xlfn.XLOOKUP(AH11,N$9:N$39,Q$9:Q$39,"",0)+AJ11 -> 9941.8825
N13: Cyprus | O13: Avocados | P13: =_xlfn.XLOOKUP($N13&$O13,'FFV Waste'!$A:$A&'FFV Waste'!$B:$B,'FFV Waste'!C:C,"",0) -> 167.69 | Q13: =_xlfn.XLOOKUP($N13&$O13,'FFV Waste'!$A:$A&'FFV Waste'!$B:$B,'FFV Waste'!D:D,"",0) -> 1236.1125 | R13: =_xlfn.XLOOKUP($N13&$O13,'FFV Waste'!$A:$A&'FFV Waste'!$B:$B,'FFV Waste'!E:E,"",0) -> 38.62851563 | S13: =_xlfn.XLOOKUP($N13&$O13,'FFV Waste'!$A:$A&'FFV Waste'!$B:$B,'FFV Waste'!F:F,"",0) -> 1017.861387 | T13: =_xlfn.XLOOKUP($N13&$O13,'FFV Waste'!$A:$A&'FFV Waste'!$B:$B,'FFV Waste'!G:G,"",0) -> 375.7604953 | U13: =_xlfn.XLOOKUP($N13&$O13,'FFV Waste'!$A:$A&'FFV Waste'!$B:$B,'FFV Waste'!H:H,"",0) -> 179.6225977 | V13: =_xlfn.XLOOKUP($N13&$O13,'FFV Waste'!$A:$A&'FFV Waste'!$B:$B,'FFV Waste'!I:I,"",0) -> 79.39318816 | W13: =_xlfn.XLOOKUP($N13&$O13,'FFV Waste'!$A:$A&'FFV Waste'!$B:$B,'FFV Waste'!J:J,"",0) -> 661.4721991 | Y13: Cyprus | Z13: Avocados | AA13: 661.4721991 | AB13: =_xlfn.XLOOKUP(Y13&Z13,'FFV Waste'!$L:$L&'FFV Waste'!$M:$M,'FFV Waste'!$U:$U,,0) -> 606.823601 | AC13: =_xlfn.XLOOKUP(Y13&Z13,'FFV Waste'!$W:$W&'FFV Waste'!$X:$X,'FFV Waste'!$AF:$AF,,0) -> 774.6645014 | AD13: 690.7440512 | AE13: 54.64859801 | AF13: 113.1923024 | AH13: Bulgaria | AI13: Food Waste | AK13: 82.61929688 | AL13: 803.6826528 | AM13: 169.8074409 | AO13: =IF(ISBLANK($AH13),"",_xlfn.XLOOKUP($AH13,$Y$9:$Y$39,AE$9:AE$39,,0)) -> 116.8833094 | AP13: 242.0975355
N14: Czechia | O14: Avocados | P14: =_xlfn.XLOOKUP($N14&$O14,'FFV Waste'!$A:$A&'FFV Waste'!$B:$B,'FFV Waste'!C:C,"",0) ->  | Q14: =_xlfn.XLOOKUP($N14&$O14,'FFV Waste'!$A:$A&'FFV Waste'!$B:$B,'FFV Waste'!D:D,"",0) -> 5793.135 | R14: =_xlfn.XLOOKUP($N14&$O14,'FFV Waste'!$A:$A&'FFV Waste'!$B:$B,'FFV Waste'!E:E,"",0) -> 181.0354688 | S14: =_xlfn.XLOOKUP($N14&$O14,'FFV Waste'!$A:$A&'FFV Waste'!$B:$B,'FFV Waste'!F:F,"",0) -> 4770.284602 | T14: =_xlfn.XLOOKUP($N14&$O14,'FFV Waste'!$A:$A&'FFV Waste'!$B:$B,'FFV Waste'!G:G,"",0) -> 1761.030065 | U14: =_xlfn.XLOOKUP($N14&$O14,'FFV Waste'!$A:$A&'FFV Waste'!$B:$B,'FFV Waste'!H:H,"",0) -> 841.8149297 | V14: =_xlfn.XLOOKUP($N14&$O14,'FFV Waste'!$A:$A&'FFV Waste'!$B:$B,'FFV Waste'!I:I,"",0) -> 372.0821989 | W14: =_xlfn.XLOOKUP($N14&$O14,'FFV Waste'!$A:$A&'FFV Waste'!$B:$B,'FFV Waste'!J:J,"",0) -> 2314.147733 | Y14: Czechia | Z14: Avocados | AA14: 2314.147733 | AB14: =_xlfn.XLOOKUP(Y14&Z14,'FFV Waste'!$L:$L&'FFV Waste'!$M:$M,'FFV Waste'!$U:$U,,0) -> 2058.032933 | AC14: =_xlfn.XLOOKUP(Y14&Z14,'FFV Waste'!$W:$W&'FFV Waste'!$X:$X,'FFV Waste'!$AF:$AF,,0) -> 2844.632045 | AD14: 2451.332489 | AE14: 256.1148001 | AF14: 530.4843116 | AI14: Food Supply | AJ14: =_xlfn.XLOOKUP($AH14,$N$9:$N$39,P$9:P$39,"",0) ->  | AN14: =_xlfn.XLOOKUP(AH13,N$9:N$39,Q$9:Q$39,"",0)+AJ13 -> 2643.8175
N15: Denmark | O15: Avocados | P15: =_xlfn.XLOOKUP($N15&$O15,'FFV Waste'!$A:$A&'FFV Waste'!$B:$B,'FFV Waste'!C:C,"",0) -> 906.89 | Q15: =_xlfn.XLOOKUP($N15&$O15,'FFV Waste'!$A:$A&'FFV Waste'!$B:$B,'FFV Waste'!D:D,"",0) -> 10110.09 | R15: =_xlfn.XLOOKUP($N15&$O15,'FFV Waste'!$A:$A&'FFV Waste'!$B:$B,'FFV Waste'!E:E,"",0) -> 315.9403125 | S15: =_xlfn.XLOOKUP($N15&$O15,'FFV Waste'!$A:$A&'FFV Waste'!$B:$B,'FFV Waste'!F:F,"",0) -> 8325.027234 | T15: =_xlfn.XLOOKUP($N15&$O15,'FFV Waste'!$A:$A&'FFV Waste'!$B:$B,'FFV Waste'!G:G,"",0) -> 3030.309913 | U15: =_xlfn.XLOOKUP($N15&$O15,'FFV Waste'!$A:$A&'FFV Waste'!$B:$B,'FFV Waste'!H:H,"",0) -> 1469.122453 | V15: =_xlfn.XLOOKUP($N15&$O15,'FFV Waste'!$A:$A&'FFV Waste'!$B:$B,'FFV Waste'!I:I,"",0) -> 649.3521243 | W15: =_xlfn.XLOOKUP($N15&$O15,'FFV Waste'!$A:$A&'FFV Waste'!$B:$B,'FFV Waste'!J:J,"",0) -> 4902.49235 | Y15: Denmark | Z15: Avocados | AA15: 4902.49235 | AB15: =_xlfn.XLOOKUP(Y15&Z15,'FFV Waste'!$L:$L&'FFV Waste'!$M:$M,'FFV Waste'!$U:$U,,0) -> 4498.537385 | AC15: =_xlfn.XLOOKUP(Y15&Z15,'FFV Waste'!$W:$W&'FFV Waste'!$X:$X,'FFV Waste'!$AF:$AF,,0) -> 5871.298043 | AD15: 5184.917714 | AE15: 403.9549648 | AF15: 968.8056931 | AH15: Croatia | AI15: Food Waste | AK15: 57.92109375 | AL15: 563.4298528 | AM15: 119.045224 | AO15: 81.94222629 | AP15: 169.7249261
N16: Estonia | O16: Avocados | P16: =_xlfn.XLOOKUP($N16&$O16,'FFV Waste'!$A:$A&'FFV Waste'!$B:$B,'FFV Waste'!C:C,"",0) ->  | Q16: =_xlfn.XLOOKUP($N16&$O16,'FFV Waste'!$A:$A&'FFV Waste'!$B:$B,'FFV Waste'!D:D,"",0) -> 1391.2125 | R16: =_xlfn.XLOOKUP($N16&$O16,'FFV Waste'!$A:$A&'FFV Waste'!$B:$B,'FFV Waste'!E:E,"",0) -> 43.47539063 | S16: =_xlfn.XLOOKUP($N16&$O16,'FFV Waste'!$A:$A&'FFV Waste'!$B:$B,'FFV Waste'!F:F,"",0) -> 1145.576543 | T16: =_xlfn.XLOOKUP($N16&$O16,'FFV Waste'!$A:$A&'FFV Waste'!$B:$B,'FFV Waste'!G:G,"",0) -> 422.9086738 | U16: =_xlfn.XLOOKUP($N16&$O16,'FFV Waste'!$A:$A&'FFV Waste'!$B:$B,'FFV Waste'!H:H,"",0) -> 202.1605664 | V16: =_xlfn.XLOOKUP($N16&$O16,'FFV Waste'!$A:$A&'FFV Waste'!$B:$B,'FFV Waste'!I:I,"",0) -> 89.35497035 | W16: =_xlfn.XLOOKUP($N16&$O16,'FFV Waste'!$A:$A&'FFV Waste'!$B:$B,'FFV Waste'!J:J,"",0) -> 555.7390348 | Y16: Estonia | Z16: Avocados | AA16: 555.7390348 | AB16: =_xlfn.XLOOKUP(Y16&Z16,'FFV Waste'!$L:$L&'FFV Waste'!$M:$M,'FFV Waste'!$U:$U,,0) -> 494.2334577 | AC16: =_xlfn.XLOOKUP(Y16&Z16,'FFV Waste'!$W:$W&'FFV Waste'!$X:$X,'FFV Waste'!$AF:$AF,,0) -> 683.1340299 | AD16: 588.6837438 | AE16: 61.50557708 | AF16: 127.3949952 | AI16: Food Supply | AJ16: =_xlfn.XLOOKUP($AH16,$N$9:$N$39,P$9:P$39,"",0) ->  | AN16: =_xlfn.XLOOKUP(AH15,N$9:N$39,Q$9:Q$39,"",0)+AJ15 -> 1853.475
N17: Finland | O17: Avocados | P17: =_xlfn.XLOOKUP($N17&$O17,'FFV Waste'!$A:$A&'FFV Waste'!$B:$B,'FFV Waste'!C:C,"",0) -> 327.84 | Q17: =_xlfn.XLOOKUP($N17&$O17,'FFV Waste'!$A:$A&'FFV Waste'!$B:$B,'FFV Waste'!D:D,"",0) -> 4609.1025 | R17: =_xlfn.XLOOKUP($N17&$O17,'FFV Waste'!$A:$A&'FFV Waste'!$B:$B,'FFV Waste'!E:E,"",0) -> 144.0344531 | S17: =_xlfn.XLOOKUP($N17&$O17,'FFV Waste'!$A:$A&'FFV Waste'!$B:$B,'FFV Waste'!F:F,"",0) -> 3795.30784 | T17: =_xlfn.XLOOKUP($N17&$O17,'FFV Waste'!$A:$A&'FFV Waste'!$B:$B,'FFV Waste'!G:G,"",0) -> 1241.065664 | U17: =_xlfn.XLOOKUP($N17&$O17,'FFV Waste'!$A:$A&'FFV Waste'!$B:$B,'FFV Waste'!H:H,"",0) -> 669.760207 | V17: =_xlfn.XLOOKUP($N17&$O17,'FFV Waste'!$A:$A&'FFV Waste'!$B:$B,'FFV Waste'!I:I,"",0) -> 296.0340115 | W17: =_xlfn.XLOOKUP($N17&$O17,'FFV Waste'!$A:$A&'FFV Waste'!$B:$B,'FFV Waste'!J:J,"",0) -> 2008.974128 | Y17: Finland | Z17: Avocados | AA17: 2008.974128 | AB17: =_xlfn.XLOOKUP(Y17&Z17,'FFV Waste'!$L:$L&'FFV Waste'!$M:$M,'FFV Waste'!$U:$U,,0) -> 1965.240947 | AC17: =_xlfn.XLOOKUP(Y17&Z17,'FFV Waste'!$W:$W&'FFV Waste'!$X:$X,'FFV Waste'!$AF:$AF,,0) -> 2591.070646 | AD17: 2278.155797 | AE17: 43.733181 | AF17: 582.0965178 | AH17: Cyprus | AI17: Food Waste | AJ17: =_xlfn.XLOOKUP($AH17,$N$9:$N$39,P$9:P$39,"",0) -> 167.69 | AK17: 38.62851563 | AL17: 375.7604953 | AM17: 79.39318816 | AO17: 54.64859801 | AP17: 113.1923024
N18: France | O18: Avocados | P18: =_xlfn.XLOOKUP($N18&$O18,'FFV Waste'!$A:$A&'FFV Waste'!$B:$B,'FFV Waste'!C:C,"",0) -> 30272.48 | Q18: =_xlfn.XLOOKUP($N18&$O18,'FFV Waste'!$A:$A&'FFV Waste'!$B:$B,'FFV Waste'!D:D,"",0) -> 98802.4575 | R18: =_xlfn.XLOOKUP($N18&$O18,'FFV Waste'!$A:$A&'FFV Waste'!$B:$B,'FFV Waste'!E:E,"",0) -> 3087.576797 | S18: =_xlfn.XLOOKUP($N18&$O18,'FFV Waste'!$A:$A&'FFV Waste'!$B:$B,'FFV Waste'!F:F,"",0) -> 81357.6486 | T18: =_xlfn.XLOOKUP($N18&$O18,'FFV Waste'!$A:$A&'FFV Waste'!$B:$B,'FFV Waste'!G:G,"",0) -> 30034.53194 | U18: =_xlfn.XLOOKUP($N18&$O18,'FFV Waste'!$A:$A&'FFV Waste'!$B:$B,'FFV Waste'!H:H,"",0) -> 14357.23211 | V18: =_xlfn.XLOOKUP($N18&$O18,'FFV Waste'!$A:$A&'FFV Waste'!$B:$B,'FFV Waste'!I:I,"",0) -> 6345.896591 | W18: =_xlfn.XLOOKUP($N18&$O18,'FFV Waste'!$A:$A&'FFV Waste'!$B:$B,'FFV Waste'!J:J,"",0) -> 69740.48533 | Y18: France | Z18: Avocados | AA18: 69740.48533 | AB18: =_xlfn.XLOOKUP(Y18&Z18,'FFV Waste'!$L:$L&'FFV Waste'!$M:$M,'FFV Waste'!$U:$U,,0) -> 65372.42354 | AC18: =_xlfn.XLOOKUP(Y18&Z18,'FFV Waste'!$W:$W&'FFV Waste'!$X:$X,'FFV Waste'!$AF:$AF,,0) -> 78787.94472 | AD18: 72080.18413 | AE18: 4368.061792 | AF18: 9047.45939 | AI18: Food Supply | AJ18: =_xlfn.XLOOKUP($AH18,$N$9:$N$39,P$9:P$39,"",0) ->  | AN18: =_xlfn.XLOOKUP(AH17,N$9:N$39,Q$9:Q$39,"",0)+AJ17 -> 1403.8025
N19: Germany | O19: Avocados | P19: =_xlfn.XLOOKUP($N19&$O19,'FFV Waste'!$A:$A&'FFV Waste'!$B:$B,'FFV Waste'!C:C,"",0) -> 12735.75 | Q19: =_xlfn.XLOOKUP($N19&$O19,'FFV Waste'!$A:$A&'FFV Waste'!$B:$B,'FFV Waste'!D:D,"",0) -> 74034.87 | R19: =_xlfn.XLOOKUP($N19&$O19,'FFV Waste'!$A:$A&'FFV Waste'!$B:$B,'FFV Waste'!E:E,"",0) -> 2313.589687 | S19: =_xlfn.XLOOKUP($N19&$O19,'FFV Waste'!$A:$A&'FFV Waste'!$B:$B,'FFV Waste'!F:F,"",0) -> 60963.08827 | T19: =_xlfn.XLOOKUP($N19&$O19,'FFV Waste'!$A:$A&'FFV Waste'!$B:$B,'FFV Waste'!G:G,"",0) -> 23165.97354 | U19: =_xlfn.XLOOKUP($N19&$O19,'FFV Waste'!$A:$A&'FFV Waste'!$B:$B,'FFV Waste'!H:H,"",0) -> 10758.19205 | V19: =_xlfn.XLOOKUP($N19&$O19,'FFV Waste'!$A:$A&'FFV Waste'!$B:$B,'FFV Waste'!I:I,"",0) -> 4755.120885 | W19: =_xlfn.XLOOKUP($N19&$O19,'FFV Waste'!$A:$A&'FFV Waste'!$B:$B,'FFV Waste'!J:J,"",0) -> 42970.43411 | Y19: Germany | Z19: Avocados | AA19: 42970.43411 | AB19: =_xlfn.XLOOKUP(Y19&Z19,'FFV Waste'!$L:$L&'FFV Waste'!$M:$M,'FFV Waste'!$U:$U,,0) -> 39036.9152 | AC19: =_xlfn.XLOOKUP(Y19&Z19,'FFV Waste'!$W:$W&'FFV Waste'!$X:$X,'FFV Waste'!$AF:$AF,,0) -> 49089.46239 | AD19: 44063.18879 | AE19: 3933.518915 | AF19: 6119.028277 | AH19: Czechia | AI19: Food Waste | AK19: 181.0354688 | AL19: 1761.030065 | AM19: 372.0821989 | AO19: 256.1148001 | AP19: 530.4843116
N20: Greece | O20: Avocados | P20: =_xlfn.XLOOKUP($N20&$O20,'FFV Waste'!$A:$A&'FFV Waste'!$B:$B,'FFV Waste'!C:C,"",0) -> 917.34 | Q20: =_xlfn.XLOOKUP($N20&$O20,'FFV Waste'!$A:$A&'FFV Waste'!$B:$B,'FFV Waste'!D:D,"",0) -> 14433.555 | R20: =_xlfn.XLOOKUP($N20&$O20,'FFV Waste'!$A:$A&'FFV Waste'!$B:$B,'FFV Waste'!E:E,"",0) -> 451.0485938 | S20: =_xlfn.XLOOKUP($N20&$O20,'FFV Waste'!$A:$A&'FFV Waste'!$B:$B,'FFV Waste'!F:F,"",0) -> 11885.13045 | T20: =_xlfn.XLOOKUP($N20&$O20,'FFV Waste'!$A:$A&'FFV Waste'!$B:$B,'FFV Waste'!G:G,"",0) -> 4387.593989 | U20: =_xlfn.XLOOKUP($N20&$O20,'FFV Waste'!$A:$A&'FFV Waste'!$B:$B,'FFV Waste'!H:H,"",0) -> 2097.375961 | V20: =_xlfn.XLOOKUP($N20&$O20,'FFV Waste'!$A:$A&'FFV Waste'!$B:$B,'FFV Waste'!I:I,"",0) -> 927.0401747 | W20: =_xlfn.XLOOKUP($N20&$O20,'FFV Waste'!$A:$A&'FFV Waste'!$B:$B,'FFV Waste'!J:J,"",0) -> 6683.022758 | Y20: Greece | Z20: Avocados | AA20: 6683.022758 | AB20: =_xlfn.XLOOKUP(Y20&Z20,'FFV Waste'!$L:$L&'FFV Waste'!$M:$M,'FFV Waste'!$U:$U,,0) -> 6044.91454 | AC20: =_xlfn.XLOOKUP(Y20&Z20,'FFV Waste'!$W:$W&'FFV Waste'!$X:$X,'FFV Waste'!$AF:$AF,,0) -> 8004.720679 | AD20: 7024.81761 | AE20: 638.1082183 | AF20: 1321.697922 | AI20: Food Supply | AJ20: =_xlfn.XLOOKUP($AH20,$N$9:$N$39,P$9:P$39,"",0) ->  | AN20: =_xlfn.XLOOKUP(AH19,N$9:N$39,Q$9:Q$39,"",0)+AJ19 -> 5793.135
N21: Hungary | O21: Avocados | P21: =_xlfn.XLOOKUP($N21&$O21,'FFV Waste'!$A:$A&'FFV Waste'!$B:$B,'FFV Waste'!C:C,"",0) ->  | Q21: =_xlfn.XLOOKUP($N21&$O21,'FFV Waste'!$A:$A&'FFV Waste'!$B:$B,'FFV Waste'!D:D,"",0) -> 3705.4125 | R21: =_xlfn.XLOOKUP($N21&$O21,'FFV Waste'!$A:$A&'FFV Waste'!$B:$B,'FFV Waste'!E:E,"",0) -> 115.7941406 | S21: =_xlfn.XLOOKUP($N21&$O21,'FFV Waste'!$A:$A&'FFV Waste'!$B:$B,'FFV Waste'!F:F,"",0) -> 3051.175605 | T21: =_xlfn.XLOOKUP($N21&$O21,'FFV Waste'!$A:$A&'FFV Waste'!$B:$B,'FFV Waste'!G:G,"",0) -> 1126.392328 | U21: =_xlfn.XLOOKUP($N21&$O21,'FFV Waste'!$A:$A&'FFV Waste'!$B:$B,'FFV Waste'!H:H,"",0) -> 538.4427539 | V21: =_xlfn.XLOOKUP($N21&$O21,'FFV Waste'!$A:$A&'FFV Waste'!$B:$B,'FFV Waste'!I:I,"",0) -> 237.9916972 | W21: =_xlfn.XLOOKUP($N21&$O21,'FFV Waste'!$A:$A&'FFV Waste'!$B:$B,'FFV Waste'!J:J,"",0) -> 1480.178166 | Y21: Hungary | Z21: Avocados | AA21: 1480.178166 | AB21: =_xlfn.XLOOKUP(Y21&Z21,'FFV Waste'!$L:$L&'FFV Waste'!$M:$M,'FFV Waste'!$U:$U,,0) -> 1316.361686 | AC21: =_xlfn.XLOOKUP(Y21&Z21,'FFV Waste'!$W:$W&'FFV Waste'!$X:$X,'FFV Waste'!$AF:$AF,,0) -> 1819.487227 | AD21: 1567.924456 | AE21: 163.8164796 | AF21: 339.3090614 | AH21: Denmark | AI21: Food Waste | AJ21: =_xlfn.XLOOKUP($AH21,$N$9:$N$39,P$9:P$39,"",0) -> 906.89 | AK21: 315.9403125 | AL21: 3030.309913 | AM21: 649.3521243 | AO21: 403.9549648 | AP21: 968.8056931
N22: Iceland | O22: Avocados | P22: =_xlfn.XLOOKUP($N22&$O22,'FFV Waste'!$A:$A&'FFV Waste'!$B:$B,'FFV Waste'!C:C,"",0) -> 19.53 | Q22: =_xlfn.XLOOKUP($N22&$O22,'FFV Waste'!$A:$A&'FFV Waste'!$B:$B,'FFV Waste'!D:D,"",0) -> 716.2125 | R22: =_xlfn.XLOOKUP($N22&$O22,'FFV Waste'!$A:$A&'FFV Waste'!$B:$B,'FFV Waste'!E:E,"",0) -> 22.38164063 | S22: =_xlfn.XLOOKUP($N22&$O22,'FFV Waste'!$A:$A&'FFV Waste'!$B:$B,'FFV Waste'!F:F,"",0) -> 589.7562305 | T22: =_xlfn.XLOOKUP($N22&$O22,'FFV Waste'!$A:$A&'FFV Waste'!$B:$B,'FFV Waste'!G:G,"",0) -> 217.7183417 | U22: =_xlfn.XLOOKUP($N22&$O22,'FFV Waste'!$A:$A&'FFV Waste'!$B:$B,'FFV Waste'!H:H,"",0) -> 104.0746289 | V22: =_xlfn.XLOOKUP($N22&$O22,'FFV Waste'!$A:$A&'FFV Waste'!$B:$B,'FFV Waste'!I:I,"",0) -> 46.00098598 | W22: =_xlfn.XLOOKUP($N22&$O22,'FFV Waste'!$A:$A&'FFV Waste'!$B:$B,'FFV Waste'!J:J,"",0) -> 305.6309683 | Y22: Iceland | Z22: Avocados | AA22: 305.6309683 | AB22: =_xlfn.XLOOKUP(Y22&Z22,'FFV Waste'!$L:$L&'FFV Waste'!$M:$M,'FFV Waste'!$U:$U,,0) -> 273.9671764 | AC22: =_xlfn.XLOOKUP(Y22&Z22,'FFV Waste'!$W:$W&'FFV Waste'!$X:$X,'FFV Waste'!$AF:$AF,,0) -> 371.2154049 | AD22: 322.5912907 | AE22: 31.66379193 | AF22: 65.58443659 | AI22: Food Supply | AJ22: =_xlfn.XLOOKUP($AH22,$N$9:$N$39,P$9:P$39,"",0) ->  | AN22: =_xlfn.XLOOKUP(AH21,N$9:N$39,Q$9:Q$39,"",0)+AJ21 -> 11016.98
N23: Ireland | O23: Avocados | P23: =_xlfn.XLOOKUP($N23&$O23,'FFV Waste'!$A:$A&'FFV Waste'!$B:$B,'FFV Waste'!C:C,"",0) -> 420.72 | Q23: =_xlfn.XLOOKUP($N23&$O23,'FFV Waste'!$A:$A&'FFV Waste'!$B:$B,'FFV Waste'!D:D,"",0) -> 5887.32 | R23: =_xlfn.XLOOKUP($N23&$O23,'FFV Waste'!$A:$A&'FFV Waste'!$B:$B,'FFV Waste'!E:E,"",0) -> 183.97875 | S23: =_xlfn.XLOOKUP($N23&$O23,'FFV Waste'!$A:$A&'FFV Waste'!$B:$B,'FFV Waste'!F:F,"",0) -> 4847.840062 | T23: =_xlfn.XLOOKUP($N23&$O23,'FFV Waste'!$A:$A&'FFV Waste'!$B:$B,'FFV Waste'!G:G,"",0) -> 1789.660956 | U23: =_xlfn.XLOOKUP($N23&$O23,'FFV Waste'!$A:$A&'FFV Waste'!$B:$B,'FFV Waste'!H:H,"",0) -> 855.5011875 | V23: =_xlfn.XLOOKUP($N23&$O23,'FFV Waste'!$A:$A&'FFV Waste'!$B:$B,'FFV Waste'!I:I,"",0) -> 378.1315249 | W23: =_xlfn.XLOOKUP($N23&$O23,'FFV Waste'!$A:$A&'FFV Waste'!$B:$B,'FFV Waste'!J:J,"",0) -> 2772.491231 | Y23: Ireland | Z23: Avocados | AA23: 2772.491231 | AB23: =_xlfn.XLOOKUP(Y23&Z23,'FFV Waste'!$L:$L&'FFV Waste'!$M:$M,'FFV Waste'!$U:$U,,0) -> 2512.212507 | AC23: =_xlfn.XLOOKUP(Y23&Z23,'FFV Waste'!$W:$W&'FFV Waste'!$X:$X,'FFV Waste'!$AF:$AF,,0) -> 3311.600176 | AD23: 2911.906342 | AE23: 260.2787238 | AF23: 539.1089449 | AH23: Estonia | AI23: Food Waste | AK23: 43.47539063 | AL23: 422.9086738 | AM23: 89.35497035 | AO23: 61.50557708 | AP23: 127.3949952
N24: Italy | O24: Avocados | P24: =_xlfn.XLOOKUP($N24&$O24,'FFV Waste'!$A:$A&'FFV Waste'!$B:$B,'FFV Waste'!C:C,"",0) ->  | Q24: =_xlfn.XLOOKUP($N24&$O24,'FFV Waste'!$A:$A&'FFV Waste'!$B:$B,'FFV Waste'!D:D,"",0) -> 33550.7475 | R24: =_xlfn.XLOOKUP($N24&$O24,'FFV Waste'!$A:$A&'FFV Waste'!$B:$B,'FFV Waste'!E:E,"",0) -> 1048.460859 | S24: =_xlfn.XLOOKUP($N24&$O24,'FFV Waste'!$A:$A&'FFV Waste'!$B:$B,'FFV Waste'!F:F,"",0) -> 27626.94364 | T24: =_xlfn.XLOOKUP($N24&$O24,'FFV Waste'!$A:$A&'FFV Waste'!$B:$B,'FFV Waste'!G:G,"",0) -> 10198.9467 | U24: =_xlfn.XLOOKUP($N24&$O24,'FFV Waste'!$A:$A&'FFV Waste'!$B:$B,'FFV Waste'!H:H,"",0) -> 4875.342996 | V24: =_xlfn.XLOOKUP($N24&$O24,'FFV Waste'!$A:$A&'FFV Waste'!$B:$B,'FFV Waste'!I:I,"",0) -> 2154.901604 | W24: =_xlfn.XLOOKUP($N24&$O24,'FFV Waste'!$A:$A&'FFV Waste'!$B:$B,'FFV Waste'!J:J,"",0) -> 13402.30916 | Y24: Italy | Z24: Avocados | AA24: 13402.30916 | AB24: =_xlfn.XLOOKUP(Y24&Z24,'FFV Waste'!$L:$L&'FFV Waste'!$M:$M,'FFV Waste'!$U:$U,,0) -> 11919.02886 | AC24: =_xlfn.XLOOKUP(Y24&Z24,'FFV Waste'!$W:$W&'FFV Waste'!$X:$X,'FFV Waste'!$AF:$AF,,0) -> 16474.5913 | AD24: 14196.81008 | AE24: 1483.280294 | AF24: 3072.28214 | AI24: Food Supply | AJ24: =_xlfn.XLOOKUP($AH24,$N$9:$N$39,P$9:P$39,"",0) ->  | AN24: =_xlfn.XLOOKUP(AH23,N$9:N$39,Q$9:Q$39,"",0)+AJ23 -> 1391.2125
N25: Latvia | O25: Avocados | P25: =_xlfn.XLOOKUP($N25&$O25,'FFV Waste'!$A:$A&'FFV Waste'!$B:$B,'FFV Waste'!C:C,"",0) ->  | Q25: =_xlfn.XLOOKUP($N25&$O25,'FFV Waste'!$A:$A&'FFV Waste'!$B:$B,'FFV Waste'!D:D,"",0) -> 2264.1075 | R25: =_xlfn.XLOOKUP($N25&$O25,'FFV Waste'!$A:$A&'FFV Waste'!$B:$B,'FFV Waste'!E:E,"",0) -> 70.75335938 | S25: =_xlfn.XLOOKUP($N25&$O25,'FFV Waste'!$A:$A&'FFV Waste'!$B:$B,'FFV Waste'!F:F,"",0) -> 1864.35102 | T25: =_xlfn.XLOOKUP($N25&$O25,'FFV Waste'!$A:$A&'FFV Waste'!$B:$B,'FFV Waste'!G:G,"",0) -> 688.2562514 | U25: =_xlfn.XLOOKUP($N25&$O25,'FFV Waste'!$A:$A&'FFV Waste'!$B:$B,'FFV Waste'!H:H,"",0) -> 329.0031211 | V25: =_xlfn.XLOOKUP($N25&$O25,'FFV Waste'!$A:$A&'FFV Waste'!$B:$B,'FFV Waste'!I:I,"",0) -> 145.4193795 | W25: =_xlfn.XLOOKUP($N25&$O25,'FFV Waste'!$A:$A&'FFV Waste'!$B:$B,'FFV Waste'!J:J,"",0) -> 904.4289903 | Y25: Latvia | Z25: Avocados | AA25: 904.4289903 | AB25: =_xlfn.XLOOKUP(Y25&Z25,'FFV Waste'!$L:$L&'FFV Waste'!$M:$M,'FFV Waste'!$U:$U,,0) -> 804.3326798 | AC25: =_xlfn.XLOOKUP(Y25&Z25,'FFV Waste'!$W:$W&'FFV Waste'!$X:$X,'FFV Waste'!$AF:$AF,,0) -> 1111.756026 | AD25: 958.044353 | AE25: 100.0963105 | AF25: 207.327036 | AH25: Finland | AI25: Food Waste | AJ25: 327.84 | AK25: 144.0344531 | AL25: 1241.065664 | AM25: 296.0340115 | AO25: 43.733181 | AP25: 582.0965178
N26: Lithuania | O26: Avocados | P26: =_xlfn.XLOOKUP($N26&$O26,'FFV Waste'!$A:$A&'FFV Waste'!$B:$B,'FFV Waste'!C:C,"",0) ->  | Q26: =_xlfn.XLOOKUP($N26&$O26,'FFV Waste'!$A:$A&'FFV Waste'!$B:$B,'FFV Waste'!D:D,"",0) -> 3375.4425 | R26: =_xlfn.XLOOKUP($N26&$O26,'FFV Waste'!$A:$A&'FFV Waste'!$B:$B,'FFV Waste'!E:E,"",0) -> 105.4825781 | S26: =_xlfn.XLOOKUP($N26&$O26,'FFV Waste'!$A:$A&'FFV Waste'!$B:$B,'FFV Waste'!F:F,"",0) -> 2779.465934 | T26: =_xlfn.XLOOKUP($N26&$O26,'FFV Waste'!$A:$A&'FFV Waste'!$B:$B,'FFV Waste'!G:G,"",0) -> 1026.086174 | U26: =_xlfn.XLOOKUP($N26&$O26,'FFV Waste'!$A:$A&'FFV Waste'!$B:$B,'FFV Waste'!H:H,"",0) -> 490.4939883 | V26: =_xlfn.XLOOKUP($N26&$O26,'FFV Waste'!$A:$A&'FFV Waste'!$B:$B,'FFV Waste'!I:I,"",0) -> 216.7983428 | W26: =_xlfn.XLOOKUP($N26&$O26,'FFV Waste'!$A:$A&'FFV Waste'!$B:$B,'FFV Waste'!J:J,"",0) -> 1348.367095 | Y26: Lithuania | Z26: Avocados | AA26: 1348.367095 | AB26: =_xlfn.XLOOKUP(Y26&Z26,'FFV Waste'!$L:$L&'FFV Waste'!$M:$M,'FFV Waste'!$U:$U,,0) -> 1199.138606 | AC26: =_xlfn.XLOOKUP(Y26&Z26,'FFV Waste'!$W:$W&'FFV Waste'!$X:$X,'FFV Waste'!$AF:$AF,,0) -> 1657.460408 | AD26: 1428.299507 | AE26: 149.2284887 | AF26: 309.0933132 | AI26: Food Supply | AN26: =_xlfn.XLOOKUP(AH25,N$9:N$39,Q$9:Q$39,"",0)+AJ25 -> 4936.9425
N27: Luxembourg | O27: Avocados | P27: =_xlfn.XLOOKUP($N27&$O27,'FFV Waste'!$A:$A&'FFV Waste'!$B:$B,'FFV Waste'!C:C,"",0) -> 60.57 | Q27: =_xlfn.XLOOKUP($N27&$O27,'FFV Waste'!$A:$A&'FFV Waste'!$B:$B,'FFV Waste'!D:D,"",0) -> 815.985 | R27: =_xlfn.XLOOKUP($N27&$O27,'FFV Waste'!$A:$A&'FFV Waste'!$B:$B,'FFV Waste'!E:E,"",0) -> 25.49953125 | S27: =_xlfn.XLOOKUP($N27&$O27,'FFV Waste'!$A:$A&'FFV Waste'!$B:$B,'FFV Waste'!F:F,"",0) -> 671.9126484 | T27: =_xlfn.XLOOKUP($N27&$O27,'FFV Waste'!$A:$A&'FFV Waste'!$B:$B,'FFV Waste'!G:G,"",0) -> 248.0477527 | U27: =_xlfn.XLOOKUP($N27&$O27,'FFV Waste'!$A:$A&'FFV Waste'!$B:$B,'FFV Waste'!H:H,"",0) -> 118.5728203 | V27: =_xlfn.XLOOKUP($N27&$O27,'FFV Waste'!$A:$A&'FFV Waste'!$B:$B,'FFV Waste'!I:I,"",0) -> 52.40918658 | W27: =_xlfn.XLOOKUP($N27&$O27,'FFV Waste'!$A:$A&'FFV Waste'!$B:$B,'FFV Waste'!J:J,"",0) -> 386.5264705 | Y27: Luxembourg | Z27: Avocados | AA27: 386.5264705 | AB27: =_xlfn.XLOOKUP(Y27&Z27,'FFV Waste'!$L:$L&'FFV Waste'!$M:$M,'FFV Waste'!$U:$U,,0) -> 350.4517312 | AC27: =_xlfn.XLOOKUP(Y27&Z27,'FFV Waste'!$W:$W&'FFV Waste'!$X:$X,'FFV Waste'!$AF:$AF,,0) -> 461.2471945 | AD27: 405.8494628 | AE27: 36.07473935 | AF27: 74.72072393 | AH27: France | AI27: Food Waste | AJ27: 30272.48 | AK27: 3087.576797 | AL27: 30034.53194 | AM27: 6345.896591 | AO27: 4368.061792 | AP27: 9047.45939
N28: Malta | O28: Avocados | P28: =_xlfn.XLOOKUP($N28&$O28,'FFV Waste'!$A:$A&'FFV Waste'!$B:$B,'FFV Waste'!C:C,"",0) ->  | Q28: =_xlfn.XLOOKUP($N28&$O28,'FFV Waste'!$A:$A&'FFV Waste'!$B:$B,'FFV Waste'!D:D,"",0) -> 472.245 | R28: =_xlfn.XLOOKUP($N28&$O28,'FFV Waste'!$A:$A&'FFV Waste'!$B:$B,'FFV Waste'!E:E,"",0) -> 14.75765625 | S28: =_xlfn.XLOOKUP($N28&$O28,'FFV Waste'!$A:$A&'FFV Waste'!$B:$B,'FFV Waste'!F:F,"",0) -> 388.8642422 | T28: =_xlfn.XLOOKUP($N28&$O28,'FFV Waste'!$A:$A&'FFV Waste'!$B:$B,'FFV Waste'!G:G,"",0) -> 143.5557161 | U28: =_xlfn.XLOOKUP($N28&$O28,'FFV Waste'!$A:$A&'FFV Waste'!$B:$B,'FFV Waste'!H:H,"",0) -> 68.62310156 | V28: =_xlfn.XLOOKUP($N28&$O28,'FFV Waste'!$A:$A&'FFV Waste'!$B:$B,'FFV Waste'!I:I,"",0) -> 30.33141089 | W28: =_xlfn.XLOOKUP($N28&$O28,'FFV Waste'!$A:$A&'FFV Waste'!$B:$B,'FFV Waste'!J:J,"",0) -> 188.6447832 | Y28: Malta | Z28: Avocados | AA28: 188.6447832 | AB28: =_xlfn.XLOOKUP(Y28&Z28,'FFV Waste'!$L:$L&'FFV Waste'!$M:$M,'FFV Waste'!$U:$U,,0) -> 167.7668072 | AC28: =_xlfn.XLOOKUP(Y28&Z28,'FFV Waste'!$W:$W&'FFV Waste'!$X:$X,'FFV Waste'!$AF:$AF,,0) -> 231.8888236 | AD28: 199.8278154 | AE28: 20.87797605 | AF28: 43.24404036 | AI28: Food Supply | AN28: =_xlfn.XLOOKUP(AH27,N$9:N$39,Q$9:Q$39,"",0)+AJ27 -> 129074.9375
N29: Netherlands | O29: Avocados | P29: =_xlfn.XLOOKUP($N29&$O29,'FFV Waste'!$A:$A&'FFV Waste'!$B:$B,'FFV Waste'!C:C,"",0) -> 9248 | Q29: =_xlfn.XLOOKUP($N29&$O29,'FFV Waste'!$A:$A&'FFV Waste'!$B:$B,'FFV Waste'!D:D,"",0) -> 26536.5 | R29: =_xlfn.XLOOKUP($N29&$O29,'FFV Waste'!$A:$A&'FFV Waste'!$B:$B,'FFV Waste'!E:E,"",0) -> 829.265625 | S29: =_xlfn.XLOOKUP($N29&$O29,'FFV Waste'!$A:$A&'FFV Waste'!$B:$B,'FFV Waste'!F:F,"",0) -> 21851.14922 | T29: =_xlfn.XLOOKUP($N29&$O29,'FFV Waste'!$A:$A&'FFV Waste'!$B:$B,'FFV Waste'!G:G,"",0) -> 8871.566583 | U29: =_xlfn.XLOOKUP($N29&$O29,'FFV Waste'!$A:$A&'FFV Waste'!$B:$B,'FFV Waste'!H:H,"",0) -> 3856.085156 | V29: =_xlfn.XLOOKUP($N29&$O29,'FFV Waste'!$A:$A&'FFV Waste'!$B:$B,'FFV Waste'!I:I,"",0) -> 1704.389639 | W29: =_xlfn.XLOOKUP($N29&$O29,'FFV Waste'!$A:$A&'FFV Waste'!$B:$B,'FFV Waste'!J:J,"",0) -> 20653.22185 | Y29: Netherlands | Z29: Avocados | AA29: 20653.22185 | AB29: =_xlfn.XLOOKUP(Y29&Z29,'FFV Waste'!$L:$L&'FFV Waste'!$M:$M,'FFV Waste'!$U:$U,,0) -> 18675.19114 | AC29: =_xlfn.XLOOKUP(Y29&Z29,'FFV Waste'!$W:$W&'FFV Waste'!$X:$X,'FFV Waste'!$AF:$AF,,0) -> 22278.35028 | AD29: 20476.77071 | AE29: 1978.03071 | AF29: 1625.128431 | AH29: Germany | AI29: Food Waste | AJ29: 12735.75 | AK29: 2313.589687 | AL29: 23165.97354 | AM29: 4755.120885 | AO29: 3933.518915 | AP29: 6119.028277
N30: Norway | O30: Avocados | P30: =_xlfn.XLOOKUP($N30&$O30,'FFV Waste'!$A:$A&'FFV Waste'!$B:$B,'FFV Waste'!C:C,"",0) -> 744.04 | Q30: =_xlfn.XLOOKUP($N30&$O30,'FFV Waste'!$A:$A&'FFV Waste'!$B:$B,'FFV Waste'!D:D,"",0) -> 10602.5325 | R30: =_xlfn.XLOOKUP($N30&$O30,'FFV Waste'!$A:$A&'FFV Waste'!$B:$B,'FFV Waste'!E:E,"",0) -> 331.3291406 | S30: =_xlfn.XLOOKUP($N30&$O30,'FFV Waste'!$A:$A&'FFV Waste'!$B:$B,'FFV Waste'!F:F,"",0) -> 8730.522855 | T30: =_xlfn.XLOOKUP($N30&$O30,'FFV Waste'!$A:$A&'FFV Waste'!$B:$B,'FFV Waste'!G:G,"",0) -> 3223.018021 | U30: =_xlfn.XLOOKUP($N30&$O30,'FFV Waste'!$A:$A&'FFV Waste'!$B:$B,'FFV Waste'!H:H,"",0) -> 1540.680504 | V30: =_xlfn.XLOOKUP($N30&$O30,'FFV Waste'!$A:$A&'FFV Waste'!$B:$B,'FFV Waste'!I:I,"",0) -> 680.9807827 | W30: =_xlfn.XLOOKUP($N30&$O30,'FFV Waste'!$A:$A&'FFV Waste'!$B:$B,'FFV Waste'!J:J,"",0) -> 4979.367944 | Y30: Norway | Z30: Avocados | AA30: 4979.367944 | AB30: =_xlfn.XLOOKUP(Y30&Z30,'FFV Waste'!$L:$L&'FFV Waste'!$M:$M,'FFV Waste'!$U:$U,,0) -> 4510.62943 | AC30: =_xlfn.XLOOKUP(Y30&Z30,'FFV Waste'!$W:$W&'FFV Waste'!$X:$X,'FFV Waste'!$AF:$AF,,0) -> 5950.254546 | AD30: 5230.441988 | AE30: 468.738514 | AF30: 970.886602 | AI30: Food Supply | AN30: =_xlfn.XLOOKUP(AH29,N$9:N$39,Q$9:Q$39,"",0)+AJ29 -> 86770.62
N31: Poland | O31: Avocados | P31: =_xlfn.XLOOKUP($N31&$O31,'FFV Waste'!$A:$A&'FFV Waste'!$B:$B,'FFV Waste'!C:C,"",0) -> 985.87 | Q31: =_xlfn.XLOOKUP($N31&$O31,'FFV Waste'!$A:$A&'FFV Waste'!$B:$B,'FFV Waste'!D:D,"",0) -> 18880.05 | R31: =_xlfn.XLOOKUP($N31&$O31,'FFV Waste'!$A:$A&'FFV Waste'!$B:$B,'FFV Waste'!E:E,"",0) -> 590.0015625 | S31: =_xlfn.XLOOKUP($N31&$O31,'FFV Waste'!$A:$A&'FFV Waste'!$B:$B,'FFV Waste'!F:F,"",0) -> 15546.54117 | T31: =_xlfn.XLOOKUP($N31&$O31,'FFV Waste'!$A:$A&'FFV Waste'!$B:$B,'FFV Waste'!G:G,"",0) -> 5739.264783 | U31: =_xlfn.XLOOKUP($N31&$O31,'FFV Waste'!$A:$A&'FFV Waste'!$B:$B,'FFV Waste'!H:H,"",0) -> 2743.507266 | V31: =_xlfn.XLOOKUP($N31&$O31,'FFV Waste'!$A:$A&'FFV Waste'!$B:$B,'FFV Waste'!I:I,"",0) -> 1212.630211 | W31: =_xlfn.XLOOKUP($N31&$O31,'FFV Waste'!$A:$A&'FFV Waste'!$B:$B,'FFV Waste'!J:J,"",0) -> 8527.766557 | Y31: Poland | Z31: Avocados | AA31: 8527.766557 | AB31: =_xlfn.XLOOKUP(Y31&Z31,'FFV Waste'!$L:$L&'FFV Waste'!$M:$M,'FFV Waste'!$U:$U,,0) -> 7693.078563 | AC31: =_xlfn.XLOOKUP(Y31&Z31,'FFV Waste'!$W:$W&'FFV Waste'!$X:$X,'FFV Waste'!$AF:$AF,,0) -> 10256.63535 | AD31: 8974.856957 | AE31: 834.6879938 | AF31: 1728.868795 | AH31: Greece | AI31: Food Waste | AJ31: 917.34 | AK31: 451.0485938 | AL31: 4387.593989 | AM31: 927.0401747 | AO31: 638.1082183 | AP31: 1321.697922
N32: Portugal | O32: Avocados | P32: =_xlfn.XLOOKUP($N32&$O32,'FFV Waste'!$A:$A&'FFV Waste'!$B:$B,'FFV Waste'!C:C,"",0) ->  | Q32: =_xlfn.XLOOKUP($N32&$O32,'FFV Waste'!$A:$A&'FFV Waste'!$B:$B,'FFV Waste'!D:D,"",0) -> 18771.045 | R32: =_xlfn.XLOOKUP($N32&$O32,'FFV Waste'!$A:$A&'FFV Waste'!$B:$B,'FFV Waste'!E:E,"",0) -> 586.5951563 | S32: =_xlfn.XLOOKUP($N32&$O32,'FFV Waste'!$A:$A&'FFV Waste'!$B:$B,'FFV Waste'!F:F,"",0) -> 15456.78237 | T32: =_xlfn.XLOOKUP($N32&$O32,'FFV Waste'!$A:$A&'FFV Waste'!$B:$B,'FFV Waste'!G:G,"",0) -> 5706.128824 | U32: =_xlfn.XLOOKUP($N32&$O32,'FFV Waste'!$A:$A&'FFV Waste'!$B:$B,'FFV Waste'!H:H,"",0) -> 2727.667477 | V32: =_xlfn.XLOOKUP($N32&$O32,'FFV Waste'!$A:$A&'FFV Waste'!$B:$B,'FFV Waste'!I:I,"",0) -> 1205.629025 | W32: =_xlfn.XLOOKUP($N32&$O32,'FFV Waste'!$A:$A&'FFV Waste'!$B:$B,'FFV Waste'!J:J,"",0) -> 7498.353005 | Y32: Portugal | Z32: Avocados | AA32: 7498.353005 | AB32: =_xlfn.XLOOKUP(Y32&Z32,'FFV Waste'!$L:$L&'FFV Waste'!$M:$M,'FFV Waste'!$U:$U,,0) -> 6668.484128 | AC32: =_xlfn.XLOOKUP(Y32&Z32,'FFV Waste'!$W:$W&'FFV Waste'!$X:$X,'FFV Waste'!$AF:$AF,,0) -> 9217.240082 | AD32: 7942.862105 | AE32: 829.8688771 | AF32: 1718.887077 | AI32: Food Supply | AN32: =_xlfn.XLOOKUP(AH31,N$9:N$39,Q$9:Q$39,"",0)+AJ31 -> 15350.895
N33: Romania | O33: Avocados | P33: =_xlfn.XLOOKUP($N33&$O33,'FFV Waste'!$A:$A&'FFV Waste'!$B:$B,'FFV Waste'!C:C,"",0) ->  | Q33: =_xlfn.XLOOKUP($N33&$O33,'FFV Waste'!$A:$A&'FFV Waste'!$B:$B,'FFV Waste'!D:D,"",0) -> 9789.7875 | R33: =_xlfn.XLOOKUP($N33&$O33,'FFV Waste'!$A:$A&'FFV Waste'!$B:$B,'FFV Waste'!E:E,"",0) -> 305.9308594 | S33: =_xlfn.XLOOKUP($N33&$O33,'FFV Waste'!$A:$A&'FFV Waste'!$B:$B,'FFV Waste'!F:F,"",0) -> 8061.278145 | T33: =_xlfn.XLOOKUP($N33&$O33,'FFV Waste'!$A:$A&'FFV Waste'!$B:$B,'FFV Waste'!G:G,"",0) -> 2975.955182 | U33: =_xlfn.XLOOKUP($N33&$O33,'FFV Waste'!$A:$A&'FFV Waste'!$B:$B,'FFV Waste'!H:H,"",0) -> 1422.578496 | V33: =_xlfn.XLOOKUP($N33&$O33,'FFV Waste'!$A:$A&'FFV Waste'!$B:$B,'FFV Waste'!I:I,"",0) -> 628.7796953 | W33: =_xlfn.XLOOKUP($N33&$O33,'FFV Waste'!$A:$A&'FFV Waste'!$B:$B,'FFV Waste'!J:J,"",0) -> 3910.665736 | Y33: Romania | Z33: Avocados | AA33: 3910.665736 | AB33: =_xlfn.XLOOKUP(Y33&Z33,'FFV Waste'!$L:$L&'FFV Waste'!$M:$M,'FFV Waste'!$U:$U,,0) -> 3477.858721 | AC33: =_xlfn.XLOOKUP(Y33&Z33,'FFV Waste'!$W:$W&'FFV Waste'!$X:$X,'FFV Waste'!$AF:$AF,,0) -> 4807.128305 | AD33: 4142.493513 | AE33: 432.8070153 | AF33: 896.4625687 | AH33: Hungary | AI33: Food Waste | AK33: 115.7941406 | AL33: 1126.392328 | AM33: 237.9916972 | AO33: 163.8164796 | AP33: 339.3090614
N34: Slovakia | O34: Avocados | P34: =_xlfn.XLOOKUP($N34&$O34,'FFV Waste'!$A:$A&'FFV Waste'!$B:$B,'FFV Waste'!C:C,"",0) ->  | Q34: =_xlfn.XLOOKUP($N34&$O34,'FFV Waste'!$A:$A&'FFV Waste'!$B:$B,'FFV Waste'!D:D,"",0) -> 2112.99 | R34: =_xlfn.XLOOKUP($N34&$O34,'FFV Waste'!$A:$A&'FFV Waste'!$B:$B,'FFV Waste'!E:E,"",0) -> 66.0309375 | S34: =_xlfn.XLOOKUP($N34&$O34,'FFV Waste'!$A:$A&'FFV Waste'!$B:$B,'FFV Waste'!F:F,"",0) -> 1739.915203 | T34: =_xlfn.XLOOKUP($N34&$O34,'FFV Waste'!$A:$A&'FFV Waste'!$B:$B,'FFV Waste'!G:G,"",0) -> 642.3186958 | U34: =_xlfn.XLOOKUP($N34&$O34,'FFV Waste'!$A:$A&'FFV Waste'!$B:$B,'FFV Waste'!H:H,"",0) -> 307.0438594 | V34: =_xlfn.XLOOKUP($N34&$O34,'FFV Waste'!$A:$A&'FFV Waste'!$B:$B,'FFV Waste'!I:I,"",0) -> 135.7133858 | W34: =_xlfn.XLOOKUP($N34&$O34,'FFV Waste'!$A:$A&'FFV Waste'!$B:$B,'FFV Waste'!J:J,"",0) -> 844.0630192 | Y34: Slovakia | Z34: Avocados | AA34: 844.0630192 | AB34: =_xlfn.XLOOKUP(Y34&Z34,'FFV Waste'!$L:$L&'FFV Waste'!$M:$M,'FFV Waste'!$U:$U,,0) -> 750.6476212 | AC34: =_xlfn.XLOOKUP(Y34&Z34,'FFV Waste'!$W:$W&'FFV Waste'!$X:$X,'FFV Waste'!$AF:$AF,,0) -> 1037.552045 | AD34: 894.0998329 | AE34: 93.41539795 | AF34: 193.4890255 | AI34: Food Supply | AJ34: =_xlfn.XLOOKUP($AH34,$N$9:$N$39,P$9:P$39,"",0) ->  | AN34: =_xlfn.XLOOKUP(AH33,N$9:N$39,Q$9:Q$39,"",0)+AJ33 -> 3705.4125
N35: Slovenia | O35: Avocados | P35: =_xlfn.XLOOKUP($N35&$O35,'FFV Waste'!$A:$A&'FFV Waste'!$B:$B,'FFV Waste'!C:C,"",0) -> 473.26 | Q35: =_xlfn.XLOOKUP($N35&$O35,'FFV Waste'!$A:$A&'FFV Waste'!$B:$B,'FFV Waste'!D:D,"",0) -> 1816.305 | R35: =_xlfn.XLOOKUP($N35&$O35,'FFV Waste'!$A:$A&'FFV Waste'!$B:$B,'FFV Waste'!E:E,"",0) -> 56.75953125 | S35: =_xlfn.XLOOKUP($N35&$O35,'FFV Waste'!$A:$A&'FFV Waste'!$B:$B,'FFV Waste'!F:F,"",0) -> 1495.613648 | T35: =_xlfn.XLOOKUP($N35&$O35,'FFV Waste'!$A:$A&'FFV Waste'!$B:$B,'FFV Waste'!G:G,"",0) -> 552.1307052 | U35: =_xlfn.XLOOKUP($N35&$O35,'FFV Waste'!$A:$A&'FFV Waste'!$B:$B,'FFV Waste'!H:H,"",0) -> 263.9318203 | V35: =_xlfn.XLOOKUP($N35&$O35,'FFV Waste'!$A:$A&'FFV Waste'!$B:$B,'FFV Waste'!I:I,"",0) -> 116.6578646 | W35: =_xlfn.XLOOKUP($N35&$O35,'FFV Waste'!$A:$A&'FFV Waste'!$B:$B,'FFV Waste'!J:J,"",0) -> 1198.808101 | Y35: Slovenia | Z35: Avocados | AA35: 1198.808101 | AB35: =_xlfn.XLOOKUP(Y35&Z35,'FFV Waste'!$L:$L&'FFV Waste'!$M:$M,'FFV Waste'!$U:$U,,0) -> 1118.509162 | AC35: =_xlfn.XLOOKUP(Y35&Z35,'FFV Waste'!$W:$W&'FFV Waste'!$X:$X,'FFV Waste'!$AF:$AF,,0) -> 1365.129326 | AD35: 1241.819244 | AE35: 80.29893865 | AF35: 166.3212246 | AH35: Iceland | AI35: Food Waste | AJ35: =_xlfn.XLOOKUP($AH35,$N$9:$N$39,P$9:P$39,"",0) -> 19.53 | AK35: 22.38164063 | AL35: 217.7183417 | AM35: 46.00098598 | AO35: 31.66379193 | AP35: 65.58443659
N36: Spain | O36: Avocados | P36: =_xlfn.XLOOKUP($N36&$O36,'FFV Waste'!$A:$A&'FFV Waste'!$B:$B,'FFV Waste'!C:C,"",0) -> 37740.79 | Q36: =_xlfn.XLOOKUP($N36&$O36,'FFV Waste'!$A:$A&'FFV Waste'!$B:$B,'FFV Waste'!D:D,"",0) -> 95136.5475 | R36: =_xlfn.XLOOKUP($N36&$O36,'FFV Waste'!$A:$A&'FFV Waste'!$B:$B,'FFV Waste'!E:E,"",0) -> 2973.017109 | S36: =_xlfn.XLOOKUP($N36&$O36,'FFV Waste'!$A:$A&'FFV Waste'!$B:$B,'FFV Waste'!F:F,"",0) -> 78339.00083 | T36: =_xlfn.XLOOKUP($N36&$O36,'FFV Waste'!$A:$A&'FFV Waste'!$B:$B,'FFV Waste'!G:G,"",0) -> 26400.24328 | U36: =_xlfn.XLOOKUP($N36&$O36,'FFV Waste'!$A:$A&'FFV Waste'!$B:$B,'FFV Waste'!H:H,"",0) -> 13824.52956 | V36: =_xlfn.XLOOKUP($N36&$O36,'FFV Waste'!$A:$A&'FFV Waste'!$B:$B,'FFV Waste'!I:I,"",0) -> 6110.442065 | W36: =_xlfn.XLOOKUP($N36&$O36,'FFV Waste'!$A:$A&'FFV Waste'!$B:$B,'FFV Waste'!J:J,"",0) -> 73224.49245 | Y36: Spain | Z36: Avocados | AA36: 73224.49245 | AB36: =_xlfn.XLOOKUP(Y36&Z36,'FFV Waste'!$L:$L&'FFV Waste'!$M:$M,'FFV Waste'!$U:$U,,0) -> 71538.40526 | AC36: =_xlfn.XLOOKUP(Y36&Z36,'FFV Waste'!$W:$W&'FFV Waste'!$X:$X,'FFV Waste'!$AF:$AF,,0) -> 84456.1646 | AD36: 77997.28493 | AE36: 1686.087193 | AF36: 11231.67215 | AI36: Food Supply | AJ36: =_xlfn.XLOOKUP($AH36,$N$9:$N$39,P$9:P$39,"",0) ->  | AN36: =_xlfn.XLOOKUP(AH35,N$9:N$39,Q$9:Q$39,"",0)+AJ35 -> 735.7425
N37: Sweden | O37: Avocados | P37: =_xlfn.XLOOKUP($N37&$O37,'FFV Waste'!$A:$A&'FFV Waste'!$B:$B,'FFV Waste'!C:C,"",0) -> 1937.5 | Q37: =_xlfn.XLOOKUP($N37&$O37,'FFV Waste'!$A:$A&'FFV Waste'!$B:$B,'FFV Waste'!D:D,"",0) -> 12973.9875 | R37: =_xlfn.XLOOKUP($N37&$O37,'FFV Waste'!$A:$A&'FFV Waste'!$B:$B,'FFV Waste'!E:E,"",0) -> 324.3496875 | S37: =_xlfn.XLOOKUP($N37&$O37,'FFV Waste'!$A:$A&'FFV Waste'!$B:$B,'FFV Waste'!F:F,"",0) -> 10752.19214 | T37: =_xlfn.XLOOKUP($N37&$O37,'FFV Waste'!$A:$A&'FFV Waste'!$B:$B,'FFV Waste'!G:G,"",0) -> 3969.350932 | U37: =_xlfn.XLOOKUP($N37&$O37,'FFV Waste'!$A:$A&'FFV Waste'!$B:$B,'FFV Waste'!H:H,"",0) -> 1897.445672 | V37: =_xlfn.XLOOKUP($N37&$O37,'FFV Waste'!$A:$A&'FFV Waste'!$B:$B,'FFV Waste'!I:I,"",0) -> 838.670987 | W37: =_xlfn.XLOOKUP($N37&$O37,'FFV Waste'!$A:$A&'FFV Waste'!$B:$B,'FFV Waste'!J:J,"",0) -> 7069.871606 | Y37: Sweden | Z37: Avocados | AA37: 7069.871606 | AB37: =_xlfn.XLOOKUP(Y37&Z37,'FFV Waste'!$L:$L&'FFV Waste'!$M:$M,'FFV Waste'!$U:$U,,0) -> 6546.557712 | AC37: =_xlfn.XLOOKUP(Y37&Z37,'FFV Waste'!$W:$W&'FFV Waste'!$X:$X,'FFV Waste'!$AF:$AF,,0) -> 8308.181952 | AD37: 7427.369832 | AE37: 523.3138946 | AF37: 1238.310346 | AH37: Ireland | AI37: Food Waste | AJ37: =_xlfn.XLOOKUP($AH37,$N$9:$N$39,P$9:P$39,"",0) -> 420.72 | AK37: 183.97875 | AL37: 1789.660956 | AM37: 378.1315249 | AO37: 260.2787238 | AP37: 539.1089449
N38: Switzerland | O38: Avocados | P38: =_xlfn.XLOOKUP($N38&$O38,'FFV Waste'!$A:$A&'FFV Waste'!$B:$B,'FFV Waste'!C:C,"",0) -> 961.65 | Q38: =_xlfn.XLOOKUP($N38&$O38,'FFV Waste'!$A:$A&'FFV Waste'!$B:$B,'FFV Waste'!D:D,"",0) -> 13681.845 | R38: =_xlfn.XLOOKUP($N38&$O38,'FFV Waste'!$A:$A&'FFV Waste'!$B:$B,'FFV Waste'!E:E,"",0) -> 427.5576562 | S38: =_xlfn.XLOOKUP($N38&$O38,'FFV Waste'!$A:$A&'FFV Waste'!$B:$B,'FFV Waste'!F:F,"",0) -> 11266.14424 | T38: =_xlfn.XLOOKUP($N38&$O38,'FFV Waste'!$A:$A&'FFV Waste'!$B:$B,'FFV Waste'!G:G,"",0) -> 4159.084916 | U38: =_xlfn.XLOOKUP($N38&$O38,'FFV Waste'!$A:$A&'FFV Waste'!$B:$B,'FFV Waste'!H:H,"",0) -> 1988.143102 | V38: =_xlfn.XLOOKUP($N38&$O38,'FFV Waste'!$A:$A&'FFV Waste'!$B:$B,'FFV Waste'!I:I,"",0) -> 878.7592509 | W38: =_xlfn.XLOOKUP($N38&$O38,'FFV Waste'!$A:$A&'FFV Waste'!$B:$B,'FFV Waste'!J:J,"",0) -> 6427.051823 | Y38: Switzerland | Z38: Avocados | AA38: 6427.051823 | AB38: =_xlfn.XLOOKUP(Y38&Z38,'FFV Waste'!$L:$L&'FFV Waste'!$M:$M,'FFV Waste'!$U:$U,,0) -> 5822.176743 | AC38: =_xlfn.XLOOKUP(Y38&Z38,'FFV Waste'!$W:$W&'FFV Waste'!$X:$X,'FFV Waste'!$AF:$AF,,0) -> 7679.91476 | AD38: 6751.045751 | AE38: 604.87508 | AF38: 1252.862936 | AI38: Food Supply | AJ38: =_xlfn.XLOOKUP($AH38,$N$9:$N$39,P$9:P$39,"",0) ->  | AN38: =_xlfn.XLOOKUP(AH37,N$9:N$39,Q$9:Q$39,"",0)+AJ37 -> 6308.04
N39: United Kingdom | O39: Avocados | P39: =_xlfn.XLOOKUP($N39&$O39,'FFV Waste'!$A:$A&'FFV Waste'!$B:$B,'FFV Waste'!C:C,"",0) -> 5795.71 | Q39: =_xlfn.XLOOKUP($N39&$O39,'FFV Waste'!$A:$A&'FFV Waste'!$B:$B,'FFV Waste'!D:D,"",0) -> 76952.7825 | R39: =_xlfn.XLOOKUP($N39&$O39,'FFV Waste'!$A:$A&'FFV Waste'!$B:$B,'FFV Waste'!E:E,"",0) -> 2885.729344 | S39: =_xlfn.XLOOKUP($N39&$O39,'FFV Waste'!$A:$A&'FFV Waste'!$B:$B,'FFV Waste'!F:F,"",0) -> 62956.99518 | T39: =_xlfn.XLOOKUP($N39&$O39,'FFV Waste'!$A:$A&'FFV Waste'!$B:$B,'FFV Waste'!G:G,"",0) -> 25245.75507 | U39: =_xlfn.XLOOKUP($N39&$O39,'FFV Waste'!$A:$A&'FFV Waste'!$B:$B,'FFV Waste'!H:H,"",0) -> 11110.05797 | V39: =_xlfn.XLOOKUP($N39&$O39,'FFV Waste'!$A:$A&'FFV Waste'!$B:$B,'FFV Waste'!I:I,"",0) -> 4910.645624 | W39: =_xlfn.XLOOKUP($N39&$O39,'FFV Waste'!$A:$A&'FFV Waste'!$B:$B,'FFV Waste'!J:J,"",0) -> 38837.84004 | Y39: United Kingdom | Z39: Avocados | AA39: 38837.84004 | AB39: =_xlfn.XLOOKUP(Y39&Z39,'FFV Waste'!$L:$L&'FFV Waste'!$M:$M,'FFV Waste'!$U:$U,,0) -> 33133.47456 | AC39: =_xlfn.XLOOKUP(Y39&Z39,'FFV Waste'!$W:$W&'FFV Waste'!$X:$X,'FFV Waste'!$AF:$AF,,0) -> 43582.21955 | AD39: 38357.84706 | AE39: 5704.36548 | AF39: 4744.379519 | AH39: Italy | AI39: Food Waste | AK39: 1048.460859 | AL39: 10198.9467 | AM39: 2154.901604 | AO39: 1483.280294 | AP39: 3072.28214
N40: EU+ | O40: Avocados | P40: =SUM(P9:P10,P13,P15,P17:P20,P22,P23,P27,P29:P31,P35:P39) -> 105891.12 | Q40: =SUM(Q9:Q39) -> 571078.185 | R40: =SUM(R9:R39) -> 18246.06075 | S40: 469907.3056 | T40: 174220.5761 | U40: 82924.81864 | V40: 36652.76984 | W40: 335010.5267 | Y40: EU+ | Z40: Avocados | AA40: =SUM(AA9:AA39) -> 335010.5267 | AB40: =SUM(AB9:AB39) -> 308768.7868 | AC40: 386310.4966 | AI40: Food Supply | AJ40: =_xlfn.XLOOKUP($AH40,$N$9:$N$39,P$9:P$39,"",0) ->  | AN40: =_xlfn.XLOOKUP(AH39,N$9:N$39,Q$9:Q$39,"",0)+AJ39 -> 33550.7475
AH41: Latvia | AI41: Food Waste | AK41: =_xlfn.XLOOKUP($AH41,$N$9:$N$39,R$9:R$39,"",0) -> 70.75335938 | AL41: =_xlfn.XLOOKUP($AH41,$N$9:$N$39,T$9:T$39,"",0) -> 688.2562514 | AM41: =_xlfn.XLOOKUP($AH41,$N$9:$N$39,V$9:V$39,"",0) -> 145.4193795 | AO41: 100.0963105 | AP41: 207.327036
N42: Climate Impact | O42: Unit: Tonnes CO2-eq | Y42: Economic Cost | Z42: Unit: Million EUR | AA42: Avg. Exchange Rate 2022 (USD to EUR) | AD42: 0.9497 | AE42: European Central Bank (2025) | AI42: Food Supply | AJ42: =_xlfn.XLOOKUP($AH42,$N$9:$N$39,P$9:P$39,"",0) ->  | AN42: =_xlfn.XLOOKUP(AH41,N$9:N$39,Q$9:Q$39,"",0)+AJ41 -> 2264.1075
N43: Country | O43: Product | P43: Pre R&D | Q43: R&D | R43: Households | S43: Food Service | T43: Total | Y43: Country | Z43: Product | AA43: Pre R&D | AB43: R&D | AC43: Households | AD43: Food Service | AE43: Total | AH43: Lithuania | AI43: Food Waste | AK43: 105.4825781 | AL43: 1026.086174 | AM43: 216.7983428 | AO43: 149.2284887 | AP43: 309.0933132
N44: Austria | O44: Avocados | P44: ='FFV Coeffs for Calcs'!J5*'Avocados - Summary'!P9 -> 1770.8466 | Q44: ='FFV Coeffs for Calcs'!K5*'Avocados - Summary'!R9 -> 748.6480688 | R44: ='FFV Coeffs for Calcs'!L5*'Avocados - Summary'!T9 -> 7662.716402 | S44: ='FFV Coeffs for Calcs'!L5*'Avocados - Summary'!V9 -> 1619.029921 | T44: =SUM(_xlfn.IFNA(P44,0),Q44:S44) -> 11801.24099 | Y44: Austria | Z44: Avocados | AA44: ='FFV Coeffs for Calcs'!N5*P9/1000*$AD$42 -> 2.115222216 | AB44: =R9*'FFV Coeffs for Calcs'!O5/1000*$AD$42 -> 1.240278361 | AC44: =T9*'FFV Coeffs for Calcs'!P5/1000*$AD$42 -> 17.43372189 | AD44: =V9*'FFV Coeffs for Calcs'!O5/1000*$AD$42 -> 2.549144116 | AE44: =SUM(_xlfn.IFNA(AA44,0),AB44:AD44) -> 23.33836658 | AI44: Food Supply | AJ44: =_xlfn.XLOOKUP($AH44,$N$9:$N$39,P$9:P$39,"",0) ->  | AN44: =_xlfn.XLOOKUP(AH43,N$9:N$39,Q$9:Q$39,"",0)+AJ43 -> 3375.4425
N45: Belgium | O45: Avocados | P45: ='FFV Coeffs for Calcs'!J6*'Avocados - Summary'!P10 -> 3428.5745 | Q45: ='FFV Coeffs for Calcs'!K6*'Avocados - Summary'!R10 -> 661.9768102 | R45: ='FFV Coeffs for Calcs'!L6*'Avocados - Summary'!T10 -> 6775.600943 | S45: ='FFV Coeffs for Calcs'!L6*'Avocados - Summary'!V10 -> 1431.59424 | T45: 12297.74649 | Y45: Belgium | Z45: Avocados | AA45: ='FFV Coeffs for Calcs'!N6*P10/1000*$AD$42 -> 3.37020392 | AB45: =R10*'FFV Coeffs for Calcs'!O6/1000*$AD$42 -> 0.9025094654 | AC45: =T10*'FFV Coeffs for Calcs'!P6/1000*$AD$42 -> 12.68594173 | AD45: =V10*'FFV Coeffs for Calcs'!O6/1000*$AD$42 -> 1.854927704 | AE45: 18.81358282 | AH45: Luxem- bourg | AI45: Food Waste | AJ45: =_xlfn.XLOOKUP($AH45,$N$9:$N$39,P$9:P$39,"",0) -> 
N46: Bulgaria | O46: Avocados | P46: ='FFV Coeffs for Calcs'!J7*'Avocados - Summary'!P11 ->  | Q46: ='FFV Coeffs for Calcs'!K7*'Avocados - Summary'!R11 -> 205.7220492 | R46: ='FFV Coeffs for Calcs'!L7*'Avocados - Summary'!T11 -> 2105.64855 | S46: ='FFV Coeffs for Calcs'!L7*'Avocados - Summary'!V11 -> 444.8954951 | T46: 2756.266095 | Y46: Bulgaria | Z46: Avocados | AA46: ='FFV Coeffs for Calcs'!N7*P11/1000*$AD$42 ->  | AB46: =R11*'FFV Coeffs for Calcs'!O7/1000*$AD$42 -> 0.2893219554 | AC46: =T11*'FFV Coeffs for Calcs'!P7/1000*$AD$42 -> 4.066795539 | AD46: =V11*'FFV Coeffs for Calcs'!O7/1000*$AD$42 -> 0.594643415 | AE46: 4.950760909 | AI46: Food Supply | AJ46: =_xlfn.XLOOKUP($AH46,$N$9:$N$39,P$9:P$39,"",0) ->  | AN46: =_xlfn.XLOOKUP(AH45,N$9:N$39,Q$9:Q$39,"",0)+AJ45 -> 
N47: Croatia | O47: Avocados | P47: ='FFV Coeffs for Calcs'!J8*'Avocados - Summary'!P12 ->  | Q47: ='FFV Coeffs for Calcs'!K8*'Avocados - Summary'!R12 -> 144.2235234 | R47: ='FFV Coeffs for Calcs'!L8*'Avocados - Summary'!T12 -> 1476.186214 | S47: ='FFV Coeffs for Calcs'!L8*'Avocados - Summary'!V12 -> 311.8984868 | T47: 1932.308225 | Y47: Croatia | Z47: Avocados | AA47: ='FFV Coeffs for Calcs'!N8*P12/1000*$AD$42 ->  | AB47: =R12*'FFV Coeffs for Calcs'!O8/1000*$AD$42 -> 0.1660034833 | AC47: =T12*'FFV Coeffs for Calcs'!P8/1000*$AD$42 -> 2.333394382 | AD47: =V12*'FFV Coeffs for Calcs'!O8/1000*$AD$42 -> 0.3411869592 | AE47: 2.840584824 | AH47: Malta | AI47: Food Waste | AK47: 14.75765625 | AL47: 143.5557161 | AM47: 30.33141089 | AO47: 20.87797605 | AP47: 43.24404036
N48: Cyprus | O48: Avocados | P48: ='FFV Coeffs for Calcs'!J9*'Avocados - Summary'!P13 -> 400.7791 | Q48: ='FFV Coeffs for Calcs'!K9*'Avocados - Summary'!R13 -> 96.18500391 | R48: ='FFV Coeffs for Calcs'!L9*'Avocados - Summary'!T13 -> 984.4924976 | S48: ='FFV Coeffs for Calcs'!L9*'Avocados - Summary'!V13 -> 208.010153 | T48: 1689.466754 | Y48: Cyprus | Z48: Avocados | AA48: ='FFV Coeffs for Calcs'!N9*P13/1000*$AD$42 -> 0.3202790742 | AB48: =R13*'FFV Coeffs for Calcs'!O9/1000*$AD$42 -> 0.1066098339 | AC48: =T13*'FFV Coeffs for Calcs'!P9/1000*$AD$42 -> 1.498539564 | AD48: =V13*'FFV Coeffs for Calcs'!O9/1000*$AD$42 -> 0.2191151916 | AE48: 2.144543663 | AI48: Food Supply | AJ48: =_xlfn.XLOOKUP($AH48,$N$9:$N$39,P$9:P$39,"",0) ->  | AN48: =_xlfn.XLOOKUP(AH47,N$9:N$39,Q$9:Q$39,"",0)+AJ47 -> 472.245
N49: Czechia | O49: Avocados | P49: ='FFV Coeffs for Calcs'!J10*'Avocados - Summary'!P14 ->  | Q49: ='FFV Coeffs for Calcs'!K10*'Avocados - Summary'!R14 -> 450.7783172 | R49: ='FFV Coeffs for Calcs'!L10*'Avocados - Summary'!T14 -> 4613.898771 | S49: ='FFV Coeffs for Calcs'!L10*'Avocados - Summary'!V14 -> 974.8553612 | T49: 6039.53245 | Y49: Czechia | Z49: Avocados | AA49: ='FFV Coeffs for Calcs'!N10*P14/1000*$AD$42 ->  | AB49: =R14*'FFV Coeffs for Calcs'!O10/1000*$AD$42 -> 0.6971377869 | AC49: =T14*'FFV Coeffs for Calcs'!P10/1000*$AD$42 -> 9.799176277 | AD49: =V14*'FFV Coeffs for Calcs'!O10/1000*$AD$42 -> 1.432827293 | AE49: 11.92914136 | AH49: Nether- lands | AI49: Food Waste
N50: Denmark | O50: Avocados | P50: ='FFV Coeffs for Calcs'!J11*'Avocados - Summary'!P15 -> 2167.4671 | Q50: ='FFV Coeffs for Calcs'!K11*'Avocados - Summary'!R15 -> 786.6913781 | R50: ='FFV Coeffs for Calcs'!L11*'Avocados - Summary'!T15 -> 7939.411973 | S50: ='FFV Coeffs for Calcs'!L11*'Avocados - Summary'!V15 -> 1701.302566 | T50: 12594.87302 | Y50: Denmark | Z50: Avocados | AA50: ='FFV Coeffs for Calcs'!N11*P15/1000*$AD$42 -> 2.737927093 | AB50: =R15*'FFV Coeffs for Calcs'!O11/1000*$AD$42 -> 1.378288577 | AC50: =T15*'FFV Coeffs for Calcs'!P11/1000*$AD$42 -> 19.10249114 | AD50: =V15*'FFV Coeffs for Calcs'!O11/1000*$AD$42 -> 2.832796512 | AE50: 26.05150333 | AI50: Food Supply | AN50: =_xlfn.XLOOKUP(AH49,N$9:N$39,Q$9:Q$39,"",0)+AJ49 -> 
N51: Estonia | O51: Avocados | P51: ='FFV Coeffs for Calcs'!J12*'Avocados - Summary'!P16 ->  | Q51: ='FFV Coeffs for Calcs'!K12*'Avocados - Summary'!R16 -> 108.2537227 | R51: ='FFV Coeffs for Calcs'!L12*'Avocados - Summary'!T16 -> 1108.020725 | S51: ='FFV Coeffs for Calcs'!L12*'Avocados - Summary'!V16 -> 234.1100223 | T51: 1450.38447 | Y51: Estonia | Z51: Avocados | AA51: ='FFV Coeffs for Calcs'!N12*P16/1000*$AD$42 ->  | AB51: =R16*'FFV Coeffs for Calcs'!O12/1000*$AD$42 -> 0.1836402797 | AC51: =T16*'FFV Coeffs for Calcs'!P12/1000*$AD$42 -> 2.581302442 | AD51: =V16*'FFV Coeffs for Calcs'!O12/1000*$AD$42 -> 0.3774358668 | AE51: 3.142378589 | AH51: Norway | AI51: Food Waste | AJ51: 744.04 | AK51: 331.3291406 | AL51: 3223.018021 | AM51: 680.9807827 | AO51: 468.738514 | AP51: 970.886602
N52: Finland | O52: Avocados | P52: ='FFV Coeffs for Calcs'!J13*'Avocados - Summary'!P17 -> 783.5376 | Q52: ='FFV Coeffs for Calcs'!K13*'Avocados - Summary'!R17 -> 358.6457883 | R52: ='FFV Coeffs for Calcs'!L13*'Avocados - Summary'!T17 -> 3251.592039 | S52: ='FFV Coeffs for Calcs'!L13*'Avocados - Summary'!V17 -> 775.6091102 | T52: 5169.384537 | Y52: Finland | Z52: Avocados | AA52: ='FFV Coeffs for Calcs'!N13*P17/1000*$AD$42 -> 1.041397321 | AB52: =R17*'FFV Coeffs for Calcs'!O13/1000*$AD$42 -> 0.6611328706 | AC52: =T17*'FFV Coeffs for Calcs'!P13/1000*$AD$42 -> 8.231613476 | AD52: =V17*'FFV Coeffs for Calcs'!O13/1000*$AD$42 -> 1.358826389 | AE52: 11.29297006 | AI52: Food Supply | AN52: =_xlfn.XLOOKUP(AH51,N$9:N$39,Q$9:Q$39,"",0)+AJ51 -> 11346.5725
N53: France | O53: Avocados | P53: ='FFV Coeffs for Calcs'!J14*'Avocados - Summary'!P18 -> 72351.2272 | Q53: ='FFV Coeffs for Calcs'!K14*'Avocados - Summary'!R18 -> 7688.066224 | R53: ='FFV Coeffs for Calcs'!L14*'Avocados - Summary'!T18 -> 78690.47368 | S53: ='FFV Coeffs for Calcs'!L14*'Avocados - Summary'!V18 -> 16626.24907 | T53: 175356.0162 | Y53: France | Z53: Avocados | AA53: ='FFV Coeffs for Calcs'!N14*P18/1000*$AD$42 -> 76.17310189 | AB53: =R18*'FFV Coeffs for Calcs'!O14/1000*$AD$42 -> 11.22636752 | AC53: =T18*'FFV Coeffs for Calcs'!P14/1000*$AD$42 -> 157.8011641 | AD53: =V18*'FFV Coeffs for Calcs'!O14/1000*$AD$42 -> 23.07355317 | AE53: 268.2741867 | AH53: Poland | AI53: Food Waste | AJ53: 985.87 | AK53: 590.0015625 | AL53: 5739.264783 | AM53: 1212.630211 | AO53: 834.6879938 | AP53: 1728.868795
N54: Germany | O54: Avocados | P54: ='FFV Coeffs for Calcs'!J15*'Avocados - Summary'!P19 -> 30438.4425 | Q54: ='FFV Coeffs for Calcs'!K15*'Avocados - Summary'!R19 -> 5760.838322 | R54: ='FFV Coeffs for Calcs'!L15*'Avocados - Summary'!T19 -> 60694.85068 | S54: ='FFV Coeffs for Calcs'!L15*'Avocados - Summary'!V19 -> 12458.41672 | T54: 109352.5482 | Y54: Germany | Z54: Avocados | AA54: ='FFV Coeffs for Calcs'!N15*P19/1000*$AD$42 -> 36.35192441 | AB54: =R19*'FFV Coeffs for Calcs'!O15/1000*$AD$42 -> 9.542387932 | AC54: =T19*'FFV Coeffs for Calcs'!P15/1000*$AD$42 -> 138.0667594 | AD54: =V19*'FFV Coeffs for Calcs'!O15/1000*$AD$42 -> 19.61246992 | AE54: 203.5735416 | AI54: Food Supply | AN54: =_xlfn.XLOOKUP(AH53,N$9:N$39,Q$9:Q$39,"",0)+AJ53 -> 19865.92
N55: Greece | O55: Avocados | P55: ='FFV Coeffs for Calcs'!J16*'Avocados - Summary'!P20 -> 2192.4426 | Q55: ='FFV Coeffs for Calcs'!K16*'Avocados - Summary'!R20 -> 1123.110998 | R55: ='FFV Coeffs for Calcs'!L16*'Avocados - Summary'!T20 -> 11495.49625 | S55: ='FFV Coeffs for Calcs'!L16*'Avocados - Summary'!V20 -> 2428.845258 | T55: 17239.89511 | Y55: Greece | Z55: Avocados | AA55: ='FFV Coeffs for Calcs'!N16*P20/1000*$AD$42 -> 2.281797713 | AB55: =R20*'FFV Coeffs for Calcs'!O16/1000*$AD$42 -> 1.621205206 | AC55: =T20*'FFV Coeffs for Calcs'!P16/1000*$AD$42 -> 22.78814302 | AD55: =V20*'FFV Coeffs for Calcs'!O16/1000*$AD$42 -> 3.33206306 | AE55: 30.023209 | AH55: Portugal | AI55: Food Waste | AK55: 586.5951563 | AL55: 5706.128824 | AM55: 1205.629025 | AO55: 829.8688771 | AP55: 1718.887077
N56: Hungary | O56: Avocados | P56: ='FFV Coeffs for Calcs'!J17*'Avocados - Summary'!P21 ->  | Q56: ='FFV Coeffs for Calcs'!K17*'Avocados - Summary'!R21 -> 288.3274102 | R56: ='FFV Coeffs for Calcs'!L17*'Avocados - Summary'!T21 -> 2951.147899 | S56: ='FFV Coeffs for Calcs'!L17*'Avocados - Summary'!V21 -> 623.5382467 | T56: 3863.013555 | Y56: Hungary | Z56: Avocados | AA56: ='FFV Coeffs for Calcs'!N17*P21/1000*$AD$42 ->  | AB56: =R21*'FFV Coeffs for Calcs'!O17/1000*$AD$42 -> 0.2935247177 | AC56: =T21*'FFV Coeffs for Calcs'!P17/1000*$AD$42 -> 4.125870817 | AD56: =V21*'FFV Coeffs for Calcs'!O17/1000*$AD$42 -> 0.6032813524 | AE56: 5.022676887 | AI56: Food Supply | AJ56: =_xlfn.XLOOKUP($AH56,$N$9:$N$39,P$9:P$39,"",0) ->  | AN56: =_xlfn.XLOOKUP(AH55,N$9:N$39,Q$9:Q$39,"",0)+AJ55 -> 18771.045
N57: Iceland | O57: Avocados | P57: ='FFV Coeffs for Calcs'!J18*'Avocados - Summary'!P22 -> 46.6767 | Q57: ='FFV Coeffs for Calcs'!K18*'Avocados - Summary'!R22 -> 55.73028516 | R57: ='FFV Coeffs for Calcs'!L18*'Avocados - Summary'!T22 -> 570.4220554 | S57: ='FFV Coeffs for Calcs'!L18*'Avocados - Summary'!V22 -> 120.5225833 | T57: 793.3516238 | Y57: Iceland | Z57: Avocados | AA57: ='FFV Coeffs for Calcs'!N18*P22/1000*$AD$42 -> 0.07651447213 | AB57: =R22*'FFV Coeffs for Calcs'!O18/1000*$AD$42 -> 0.1267071459 | AC57: =T22*'FFV Coeffs for Calcs'!P18/1000*$AD$42 -> 1.781033364 | AD57: =V22*'FFV Coeffs for Calcs'!O18/1000*$AD$42 -> 0.2604211969 | AE57: 2.244676179 | AH57: Romania | AI57: Food Waste | AK57: 305.9308594 | AL57: 2975.955182 | AM57: 628.7796953 | AO57: 432.8070153 | AP57: 896.4625687
N58: Ireland | O58: Avocados | P58: ='FFV Coeffs for Calcs'!J19*'Avocados - Summary'!P23 -> 1005.5208 | Q58: ='FFV Coeffs for Calcs'!K19*'Avocados - Summary'!R23 -> 458.1070875 | R58: ='FFV Coeffs for Calcs'!L19*'Avocados - Summary'!T23 -> 4688.911706 | S58: ='FFV Coeffs for Calcs'!L19*'Avocados - Summary'!V23 -> 990.7045952 | T58: 7143.244188 | Y58: Ireland | Z58: Avocados | AA58: ='FFV Coeffs for Calcs'!N19*P23/1000*$AD$42 -> 1.221237179 | AB58: =R23*'FFV Coeffs for Calcs'!O19/1000*$AD$42 -> 0.7716891082 | AC58: =T23*'FFV Coeffs for Calcs'!P19/1000*$AD$42 -> 10.84709184 | AD58: =V23*'FFV Coeffs for Calcs'!O19/1000*$AD$42 -> 1.586052624 | AE58: 14.42607075 | AI58: Food Supply | AJ58: =_xlfn.XLOOKUP($AH58,$N$9:$N$39,P$9:P$39,"",0) ->  | AN58: =_xlfn.XLOOKUP(AH57,N$9:N$39,Q$9:Q$39,"",0)+AJ57 -> 9789.7875
N59: Italy | O59: Avocados | P59: ='FFV Coeffs for Calcs'!J20*'Avocados - Summary'!P24 ->  | Q59: ='FFV Coeffs for Calcs'!K20*'Avocados - Summary'!R24 -> 2610.66754 | R59: ='FFV Coeffs for Calcs'!L20*'Avocados - Summary'!T24 -> 26721.24034 | S59: ='FFV Coeffs for Calcs'!L20*'Avocados - Summary'!V24 -> 5645.842203 | T59: 34977.75009 | Y59: Italy | Z59: Avocados | AA59: ='FFV Coeffs for Calcs'!N20*P24/1000*$AD$42 ->  | AB59: =R24*'FFV Coeffs for Calcs'!O20/1000*$AD$42 -> 3.264196569 | AC59: =T24*'FFV Coeffs for Calcs'!P20/1000*$AD$42 -> 45.88251876 | AD59: =V24*'FFV Coeffs for Calcs'!O20/1000*$AD$42 -> 6.708903209 | AE59: 55.85561854 | AH59: Slovakia | AI59: Food Waste | AK59: 66.0309375 | AL59: 642.3186958 | AM59: 135.7133858 | AO59: 93.41539795 | AP59: 193.4890255
N60: Latvia | O60: Avocados | P60: ='FFV Coeffs for Calcs'!J21*'Avocados - Summary'!P25 ->  | Q60: ='FFV Coeffs for Calcs'!K21*'Avocados - Summary'!R25 -> 176.1758648 | R60: ='FFV Coeffs for Calcs'!L21*'Avocados - Summary'!T25 -> 1803.231379 | S60: ='FFV Coeffs for Calcs'!L21*'Avocados - Summary'!V25 -> 380.9987744 | T60: 2360.406018 | Y60: Latvia | Z60: Avocados | AA60: ='FFV Coeffs for Calcs'!N21*P25/1000*$AD$42 ->  | AB60: =R25*'FFV Coeffs for Calcs'!O21/1000*$AD$42 -> 0.2577250265 | AC60: =T25*'FFV Coeffs for Calcs'!P21/1000*$AD$42 -> 3.6226597 | AD60: =V25*'FFV Coeffs for Calcs'!O21/1000*$AD$42 -> 0.529702247 | AE60: 4.410086973 | AI60: Food Supply | AJ60: =_xlfn.XLOOKUP($AH60,$N$9:$N$39,P$9:P$39,"",0) ->  | AN60: =_xlfn.XLOOKUP(AH59,N$9:N$39,Q$9:Q$39,"",0)+AJ59 -> 2112.99
N61: Lithuania | O61: Avocados | P61: ='FFV Coeffs for Calcs'!J22*'Avocados - Summary'!P26 ->  | Q61: ='FFV Coeffs for Calcs'!K22*'Avocados - Summary'!R26 -> 262.6516195 | R61: ='FFV Coeffs for Calcs'!L22*'Avocados - Summary'!T26 -> 2688.345775 | S61: ='FFV Coeffs for Calcs'!L22*'Avocados - Summary'!V26 -> 568.0116582 | T61: 3519.009053 | Y61: Lithuania | Z61: Avocados | AA61: ='FFV Coeffs for Calcs'!N22*P26/1000*$AD$42 ->  | AB61: =R26*'FFV Coeffs for Calcs'!O22/1000*$AD$42 -> 0.3299627397 | AC61: =T26*'FFV Coeffs for Calcs'!P22/1000*$AD$42 -> 4.638054501 | AD61: =V26*'FFV Coeffs for Calcs'!O22/1000*$AD$42 -> 0.6781724188 | AE61: 5.64618966 | AH61: Slovenia | AI61: Food Waste | AJ61: 473.26 | AK61: 56.75953125 | AL61: 552.1307052 | AM61: 116.6578646 | AO61: 80.29893865 | AP61: 166.3212246
N62: Luxembourg | O62: Avocados | P62: ='FFV Coeffs for Calcs'!J23*'Avocados - Summary'!P27 -> 144.7623 | Q62: ='FFV Coeffs for Calcs'!K23*'Avocados - Summary'!R27 -> 63.49383281 | R62: ='FFV Coeffs for Calcs'!L23*'Avocados - Summary'!T27 -> 649.8851121 | S62: ='FFV Coeffs for Calcs'!L23*'Avocados - Summary'!V27 -> 137.3120688 | T62: 995.4533138 | Y62: Luxembourg | Z62: Avocados | AA62: ='FFV Coeffs for Calcs'!N23*P27/1000*$AD$42 -> 0.2643096302 | AB62: =R27*'FFV Coeffs for Calcs'!O23/1000*$AD$42 -> 0.1607886754 | AC62: =T27*'FFV Coeffs for Calcs'!P23/1000*$AD$42 -> 2.26009349 | AD62: =V27*'FFV Coeffs for Calcs'!O23/1000*$AD$42 -> 0.3304689646 | AE62: 3.01566076 | AI62: Food Supply | AN62: =_xlfn.XLOOKUP(AH61,N$9:N$39,Q$9:Q$39,"",0)+AJ61 -> 2289.565
N63: Malta | O63: Avocados | P63: ='FFV Coeffs for Calcs'!J24*'Avocados - Summary'!P28 ->  | Q63: ='FFV Coeffs for Calcs'!K24*'Avocados - Summary'!R28 -> 36.74656406 | R63: ='FFV Coeffs for Calcs'!L24*'Avocados - Summary'!T28 -> 376.1159761 | S63: ='FFV Coeffs for Calcs'!L24*'Avocados - Summary'!V28 -> 79.46829653 | T63: 492.3308367 | Y63: Malta | Z63: Avocados | AA63: ='FFV Coeffs for Calcs'!N24*P28/1000*$AD$42 ->  | AB63: =R28*'FFV Coeffs for Calcs'!O24/1000*$AD$42 -> 0.06379708584 | AC63: =T28*'FFV Coeffs for Calcs'!P24/1000*$AD$42 -> 0.8967508315 | AD63: =V28*'FFV Coeffs for Calcs'!O24/1000*$AD$42 -> 0.1311221505 | AE63: 1.091670068 | AH63: Spain | AI63: Food Waste | AJ63: 37740.79 | AK63: 2973.017109 | AL63: 26400.24328 | AM63: 6110.442065 | AO63: 1686.087193 | AP63: 11231.67215
N64: Netherlands | O64: Avocados | P64: ='FFV Coeffs for Calcs'!J25*'Avocados - Summary'!P29 -> 22102.72 | Q64: ='FFV Coeffs for Calcs'!K25*'Avocados - Summary'!R29 -> 2064.871406 | R64: ='FFV Coeffs for Calcs'!L25*'Avocados - Summary'!T29 -> 23243.50445 | S64: ='FFV Coeffs for Calcs'!L25*'Avocados - Summary'!V29 -> 4465.500854 | T64: 51876.59671 | Y64: Netherlands | Z64: Avocados | AA64: ='FFV Coeffs for Calcs'!N25*P29/1000*$AD$42 -> 17.31410229 | AB64: =R29*'FFV Coeffs for Calcs'!O25/1000*$AD$42 -> 2.243435915 | AC64: =T29*'FFV Coeffs for Calcs'!P25/1000*$AD$42 -> 34.68072505 | AD64: =V29*'FFV Coeffs for Calcs'!O25/1000*$AD$42 -> 4.610933837 | AE64: 58.8491971 | AI64: Food Supply | AN64: =_xlfn.XLOOKUP(AH63,N$9:N$39,Q$9:Q$39,"",0)+AJ63 -> 132877.3375
N65: Norway | O65: Avocados | P65: ='FFV Coeffs for Calcs'!J26*'Avocados - Summary'!P30 -> 1778.2556 | Q65: ='FFV Coeffs for Calcs'!K26*'Avocados - Summary'!R30 -> 825.0095602 | R65: ='FFV Coeffs for Calcs'!L26*'Avocados - Summary'!T30 -> 8444.307215 | S65: ='FFV Coeffs for Calcs'!L26*'Avocados - Summary'!V30 -> 1784.169651 | T65: 12831.74203 | Y65: Norway | Z65: Avocados | AA65: ='FFV Coeffs for Calcs'!N26*P30/1000*$AD$42 -> 2.889713188 | AB65: =R30*'FFV Coeffs for Calcs'!O26/1000*$AD$42 -> 1.859456132 | AC65: =T30*'FFV Coeffs for Calcs'!P26/1000*$AD$42 -> 26.13706897 | AD65: =V30*'FFV Coeffs for Calcs'!O26/1000*$AD$42 -> 3.821740188 | AE65: 34.70797848 | AH65: Sweden | AI65: Food Waste | AJ65: 1937.5 | AK65: 324.3496875 | AL65: 3969.350932 | AM65: 838.670987 | AO65: 523.3138946 | AP65: 1238.310346
N66: Poland | O66: Avocados | P66: ='FFV Coeffs for Calcs'!J27*'Avocados - Summary'!P31 -> 2356.2293 | Q66: ='FFV Coeffs for Calcs'!K27*'Avocados - Summary'!R31 -> 1469.103891 | R66: ='FFV Coeffs for Calcs'!L27*'Avocados - Summary'!T31 -> 15036.87373 | S66: ='FFV Coeffs for Calcs'!L27*'Avocados - Summary'!V31 -> 3177.091154 | T66: 22039.29807 | Y66: Poland | Z66: Avocados | AA66: ='FFV Coeffs for Calcs'!N27*P31/1000*$AD$42 -> 2.49466947 | AB66: =R31*'FFV Coeffs for Calcs'!O27/1000*$AD$42 -> 2.157319007 | AC66: =T31*'FFV Coeffs for Calcs'!P27/1000*$AD$42 -> 30.32391821 | AD66: =V31*'FFV Coeffs for Calcs'!O27/1000*$AD$42 -> 4.433937754 | AE66: 39.40984444 | AI66: Food Supply | AN66: =_xlfn.XLOOKUP(AH65,N$9:N$39,Q$9:Q$39,"",0)+AJ65 -> 14911.4875
N67: Portugal | O67: Avocados | P67: ='FFV Coeffs for Calcs'!J28*'Avocados - Summary'!P32 ->  | Q67: ='FFV Coeffs for Calcs'!K28*'Avocados - Summary'!R32 -> 1460.621939 | R67: ='FFV Coeffs for Calcs'!L28*'Avocados - Summary'!T32 -> 14950.05752 | S67: ='FFV Coeffs for Calcs'!L28*'Avocados - Summary'!V32 -> 3158.748045 | T67: 19569.4275 | Y67: Portugal | Z67: Avocados | AA67: ='FFV Coeffs for Calcs'!N28*P32/1000*$AD$42 ->  | AB67: =R32*'FFV Coeffs for Calcs'!O28/1000*$AD$42 -> 2.174615389 | AC67: =T32*'FFV Coeffs for Calcs'!P28/1000*$AD$42 -> 30.5670413 | AD67: =V32*'FFV Coeffs for Calcs'!O28/1000*$AD$42 -> 4.469487008 | AE67: 37.2111437 | AH67: Switzer- land | AI67: Food Waste
N68: Romania | O68: Avocados | P68: ='FFV Coeffs for Calcs'!J29*'Avocados - Summary'!P33 ->  | Q68: ='FFV Coeffs for Calcs'!K29*'Avocados - Summary'!R33 -> 761.7678398 | R68: ='FFV Coeffs for Calcs'!L29*'Avocados - Summary'!T33 -> 7797.002576 | S68: ='FFV Coeffs for Calcs'!L29*'Avocados - Summary'!V33 -> 1647.402802 | T68: 10206.17322 | Y68: Romania | Z68: Avocados | AA68: ='FFV Coeffs for Calcs'!N29*P33/1000*$AD$42 ->  | AB68: =R33*'FFV Coeffs for Calcs'!O29/1000*$AD$42 -> 1.11529103 | AC68: =T33*'FFV Coeffs for Calcs'!P29/1000*$AD$42 -> 15.67686275 | AD68: =V33*'FFV Coeffs for Calcs'!O29/1000*$AD$42 -> 2.292257655 | AE68: 19.08441144 | AI68: Food Supply | AN68: =_xlfn.XLOOKUP(AH67,N$9:N$39,Q$9:Q$39,"",0)+AJ67 -> 
N69: Slovakia | O69: Avocados | P69: ='FFV Coeffs for Calcs'!J30*'Avocados - Summary'!P34 ->  | Q69: ='FFV Coeffs for Calcs'!K30*'Avocados - Summary'!R34 -> 164.4170344 | R69: ='FFV Coeffs for Calcs'!L30*'Avocados - Summary'!T34 -> 1682.874983 | S69: ='FFV Coeffs for Calcs'!L30*'Avocados - Summary'!V34 -> 355.5690709 | T69: 2202.861088 | Y69: Slovakia | Z69: Avocados | AA69: ='FFV Coeffs for Calcs'!N30*P34/1000*$AD$42 ->  | AB69: =R34*'FFV Coeffs for Calcs'!O30/1000*$AD$42 -> 0.2945032242 | AC69: =T34*'FFV Coeffs for Calcs'!P30/1000*$AD$42 -> 4.139624995 | AD69: =V34*'FFV Coeffs for Calcs'!O30/1000*$AD$42 -> 0.6052924766 | AE69: 5.039420696 | AH69: United Kingdom | AI69: Food Waste | AJ69: 5795.71 | AK69: 2885.729344 | AL69: 25245.75507 | AM69: 4910.645624 | AO69: 5704.36548 | AP69: 4744.379519
N70: Slovenia | O70: Avocados | P70: ='FFV Coeffs for Calcs'!J31*'Avocados - Summary'!P35 -> 1131.0914 | Q70: ='FFV Coeffs for Calcs'!K31*'Avocados - Summary'!R35 -> 141.3312328 | R70: ='FFV Coeffs for Calcs'!L31*'Avocados - Summary'!T35 -> 1446.582448 | S70: ='FFV Coeffs for Calcs'!L31*'Avocados - Summary'!V35 -> 305.6436052 | T70: 3024.648686 | Y70: Slovenia | Z70: Avocados | AA70: ='FFV Coeffs for Calcs'!N31*P35/1000*$AD$42 -> 0.5557475391 | AB70: =R35*'FFV Coeffs for Calcs'!O31/1000*$AD$42 -> 0.09631288589 | AC70: =T35*'FFV Coeffs for Calcs'!P31/1000*$AD$42 -> 1.353802597 | AD70: =V35*'FFV Coeffs for Calcs'!O31/1000*$AD$42 -> 0.1979518744 | AE70: 2.203814897 | AI70: Food Supply | AN70: =_xlfn.XLOOKUP(AH69,N$9:N$39,Q$9:Q$39,"",0)+AJ69 -> 82748.4925
N71: Spain | O71: Avocados | P71: ='FFV Coeffs for Calcs'!J32*'Avocados - Summary'!P36 -> 90200.4881 | Q71: ='FFV Coeffs for Calcs'!K32*'Avocados - Summary'!R36 -> 7402.812602 | R71: ='FFV Coeffs for Calcs'!L32*'Avocados - Summary'!T36 -> 69168.63739 | S71: ='FFV Coeffs for Calcs'!L32*'Avocados - Summary'!V36 -> 16009.35821 | T71: 182781.2963 | Y71: Spain | Z71: Avocados | AA71: ='FFV Coeffs for Calcs'!N32*P36/1000*$AD$42 -> 73.3630707 | AB71: =R36*'FFV Coeffs for Calcs'!O32/1000*$AD$42 -> 8.350870903 | AC71: =T36*'FFV Coeffs for Calcs'!P32/1000*$AD$42 -> 107.1544317 | AD71: =V36*'FFV Coeffs for Calcs'!O32/1000*$AD$42 -> 17.16354497 | AE71: 206.0319183
N72: Sweden | O72: Avocados | P72: ='FFV Coeffs for Calcs'!J33*'Avocados - Summary'!P37 -> 4630.625 | Q72: ='FFV Coeffs for Calcs'!K33*'Avocados - Summary'!R37 -> 807.6307219 | R72: ='FFV Coeffs for Calcs'!L33*'Avocados - Summary'!T37 -> 10399.69944 | S72: ='FFV Coeffs for Calcs'!L33*'Avocados - Summary'!V37 -> 2197.317986 | T72: 18035.27315 | Y72: Sweden | Z72: Avocados | AA72: ='FFV Coeffs for Calcs'!N33*P37/1000*$AD$42 -> 5.003262961 | AB72: =R37*'FFV Coeffs for Calcs'!O33/1000*$AD$42 -> 1.210299765 | AC72: =T37*'FFV Coeffs for Calcs'!P33/1000*$AD$42 -> 21.4026135 | AD72: =V37*'FFV Coeffs for Calcs'!O33/1000*$AD$42 -> 3.129472101 | AE72: 30.74564833
N73: Switzerland | O73: Avocados | P73: ='FFV Coeffs for Calcs'!J34*'Avocados - Summary'!P38 -> 2298.3435 | Q73: ='FFV Coeffs for Calcs'!K34*'Avocados - Summary'!R38 -> 1064.618564 | R73: ='FFV Coeffs for Calcs'!L34*'Avocados - Summary'!T38 -> 10896.80248 | S73: ='FFV Coeffs for Calcs'!L34*'Avocados - Summary'!V38 -> 2302.349237 | T73: 16562.11378 | Y73: Switzerland | Z73: Avocados | AA73: ='FFV Coeffs for Calcs'!N34*P38/1000*$AD$42 -> 3.066903232 | AB73: =R38*'FFV Coeffs for Calcs'!O34/1000*$AD$42 -> 1.970359953 | AC73: =T38*'FFV Coeffs for Calcs'!P34/1000*$AD$42 -> 27.6959661 | AD73: =V38*'FFV Coeffs for Calcs'!O34/1000*$AD$42 -> 4.049680812 | AE73: 36.78291009
N74: United Kingdom | O74: Avocados | P74: ='FFV Coeffs for Calcs'!J35*'Avocados - Summary'!P39 -> 13851.7469 | Q74: ='FFV Coeffs for Calcs'!K35*'Avocados - Summary'!R39 -> 7185.466066 | R74: ='FFV Coeffs for Calcs'!L35*'Avocados - Summary'!T39 -> 66143.87828 | S74: ='FFV Coeffs for Calcs'!L35*'Avocados - Summary'!V39 -> 12865.89154 | T74: 100046.9828 | Y74: United Kingdom | Z74: Avocados | AA74: ='FFV Coeffs for Calcs'!N35*P39/1000*$AD$42 -> 12.34763905 | AB74: =R39*'FFV Coeffs for Calcs'!O35/1000*$AD$42 -> 8.883839869 | AC74: =T39*'FFV Coeffs for Calcs'!P35/1000*$AD$42 -> 112.3055807 | AD74: =V39*'FFV Coeffs for Calcs'!O35/1000*$AD$42 -> 15.1176303 | AE74: 148.6546899
N75: EU+ | O75: Avocados | P75: =SUM(P44:P45,P48,P50,P52:P55,P57,P58,P62,P64:P66,P70:P74) -> 253079.7768 | Q75: =SUM(Q44:Q74) -> 45432.69127 | R75: =SUM(R44:R74) -> 456457.9095 | S75: =SUM(S44:S74) -> 96030.25697 | T75: =SUM(T44:T74) -> 851000.6345 | Y75: EU+ | Z75: Avocados | AA75: =SUM(AA44:AA45,AA48,AA50,AA52:AA55,AA57,AA58,AA62,AA64:AA66,AA70:AA74) -> 242.9890234 | AB75: =SUM(AB44:AB74) -> 63.63957841 | AC75: =SUM(AC44:AC74) -> 881.8807521 | AD75: 128.2990427 | AE75: 1316.808397
N85: Country | O85: Food Availability | P85: Total Food Waste | Q85: % Waste
N86: Austria | O86: 10362.12 | P86: 4696.082824 | Q86: 0.4531971087
N87: Belgium | O87: 9941.8825 | P87: 4865.882425 | Q87: 0.4894327031
N88: Bulgaria | O88: 2643.8175 | P88: 1066.352669 | Q88: 0.4033382292
N89: Croatia | O89: 1853.475 | P89: 747.5773243 | Q89: 0.4033382292
N90: Cyprus | O90: 1403.8025 | P90: 666.2614268 | Q90: 0.4746119392
N91: Czechia | O91: 5793.135 | P91: 2336.592812 | Q91: 0.4033382292
N92: Denmark | O92: 11016.98 | P92: 4941.940658 | Q92: 0.448574896
N93: Estonia | O93: 1391.2125 | P93: 561.1291861 | Q93: 0.4033382292
N94: Finland | O94: 4936.9425 | P94: 2027.864247 | Q94: 0.4107530616
N95: France | O95: 129074.9375 | P95: 70123.28825 | Q95: 0.5432757869
N96: Germany | O96: 86770.62 | P96: 43253.01596 | Q96: 0.498475359
N97: Greece | O97: 15350.895 | P97: 6738.944514 | Q97: 0.4389935906
N98: Hungary | O98: 3705.4125 | P98: 1494.534516 | Q98: 0.4033382292
N99: Iceland | O99: 735.7425 | P99: 308.4058815 | Q99: 0.419176385
N100: Ireland | O100: 6308.04 | P100: 2795.301223 | Q100: 0.4431330847
N101: Italy | O101: 33550.7475 | P101: 13532.29908 | Q101: 0.4033382292
N102: Latvia | O102: 2264.1075 | P102: 913.2011097 | Q102: 0.4033382292
N103: Lithuania | O103: 3375.4425 | P103: 1361.445001 | Q103: 0.4033382292
N104: Luxembourg | O104: 876.555 | P104: 389.6879449 | Q104: 0.4445675912
N105: Malta | O105: 472.245 | P105: 190.474462 | Q105: 0.4033382292
N106: Netherlands | O106: 35784.5 | P106: 20750.843 | Q106: 0.5798835528
N107: Norway | O107: 11346.5725 | P107: 5020.446683 | Q107: 0.4424637205
N108: Poland | O108: 19865.92 | P108: 8600.915934 | Q108: 0.432948282
N109: Portugal | O109: 18771.045 | P109: 7571.08005 | Q109: 0.4033382292
N110: Romania | O110: 9789.7875 | P110: 3948.595554 | Q110: 0.4033382292
N111: Slovakia | O111: 2112.99 | P111: 852.2496448 | Q111: 0.4033382292
N112: Slovenia | O112: 2289.565 | P112: 1205.845242 | Q112: 0.5266700191
N113: Spain | O113: 132877.3375 | P113: 73609.34952 | Q113: 0.5539646632
N114: Sweden | O114: 14911.4875 | P114: 7069.871606 | Q114: 0.4741224916
N115: Switzerland | O115: 14643.495 | P115: 6480.061134 | Q115: 0.4425214837
N116: United Kingdom | O116: 82748.4925 | P116: 38837.84004 | Q116: 0.469348007

Sheet Bananas - Summary
A1: Homepage
N7: Food Waste | O7: Unit: Tonnes | Y7: Difference (Worst and Best Case) | Z7: Unit: Tonnes | AH7: Data for the illustration | AI7: Unit: Tonnes
N8: Country | O8: Product | P8: Food Waste - Pre R&D | Q8: Food Supply Quantity | R8: Food Waste - R&D | S8: Consumption - Households | T8: Food Waste - Households | U8: Consumption - Food Service | V8: Food Waste - Food Service | W8: Total Food Waste | Y8: Country | Z8: Product | AA8: Total FW | AB8: Best Case | AC8: Worst Case | AD8: Average B/W case | AE8: Lower Error | AF8: Higher Error | AH8: Country | AJ8: Food Waste - Pre R&D | AK8: Food Waste - R&D | AL8: Food Waste - Households | AM8: Food Waste - Food Service | AN8: Food Availability | AO8: Lower Error | AP8: Higher Error
N9: Austria | O9: Bananas | P9: =_xlfn.XLOOKUP($N9&$O9,'FFV Waste'!$A:$A&'FFV Waste'!$B:$B,'FFV Waste'!C:C,"",0) -> 8492 | Q9: =_xlfn.XLOOKUP($N9&$O9,'FFV Waste'!$A:$A&'FFV Waste'!$B:$B,'FFV Waste'!D:D,"",0) -> 127028.7118 | R9: =_xlfn.XLOOKUP($N9&$O9,'FFV Waste'!$A:$A&'FFV Waste'!$B:$B,'FFV Waste'!E:E,"",0) -> 2286.516812 | S9: =_xlfn.XLOOKUP($N9&$O9,'FFV Waste'!$A:$A&'FFV Waste'!$B:$B,'FFV Waste'!F:F,"",0) -> 106030.8657 | T9: =_xlfn.XLOOKUP($N9&$O9,'FFV Waste'!$A:$A&'FFV Waste'!$B:$B,'FFV Waste'!G:G,"",0) -> 48685.83917 | U9: =_xlfn.XLOOKUP($N9&$O9,'FFV Waste'!$A:$A&'FFV Waste'!$B:$B,'FFV Waste'!H:H,"",0) -> 18711.32924 | V9: =_xlfn.XLOOKUP($N9&$O9,'FFV Waste'!$A:$A&'FFV Waste'!$B:$B,'FFV Waste'!I:I,"",0) -> 8270.407525 | W9: =_xlfn.XLOOKUP($N9&$O9,'FFV Waste'!$A:$A&'FFV Waste'!$B:$B,'FFV Waste'!J:J,"",0) -> 67734.76351 | Y9: Austria | Z9: Bananas | AA9: =W9 -> 67734.76351 | AB9: =_xlfn.XLOOKUP(Y9&Z9,'FFV Waste'!$L:$L&'FFV Waste'!$M:$M,'FFV Waste'!$U:$U,,0) -> 62019.91749 | AC9: =_xlfn.XLOOKUP(Y9&Z9,'FFV Waste'!$W:$W&'FFV Waste'!$X:$X,'FFV Waste'!$AF:$AF,,0) -> 75990.4844 | AD9: =AVERAGE(AB9:AC9) -> 69005.20094 | AE9: =AA9-MIN(AB9,AA9) -> 5714.846019 | AF9: =AC9-MIN(AA9,AC9) -> 8255.720889 | AH9: Austria | AI9: Food Waste | AJ9: =_xlfn.XLOOKUP($AH9,$N$9:$N$39,P$9:P$39,"",0) -> 8492 | AK9: =_xlfn.XLOOKUP($AH9,$N$9:$N$39,R$9:R$39,"",0) -> 2286.516812 | AL9: =_xlfn.XLOOKUP($AH9,$N$9:$N$39,T$9:T$39,"",0) -> 48685.83917 | AM9: =_xlfn.XLOOKUP($AH9,$N$9:$N$39,V$9:V$39,"",0) -> 8270.407525 | AO9: =IF(ISBLANK($AH9),"",_xlfn.XLOOKUP($AH9,$Y$9:$Y$39,AE$9:AE$39,,0)) -> 5714.846019 | AP9: =IF(ISBLANK($AH9),"",_xlfn.XLOOKUP($AH9,$Y$9:$Y$39,AF$9:AF$39,,0)) -> 8255.720889
N10: Belgium | O10: Bananas | P10: =_xlfn.XLOOKUP($N10&$O10,'FFV Waste'!$A:$A&'FFV Waste'!$B:$B,'FFV Waste'!C:C,"",0) ->  | Q10: =_xlfn.XLOOKUP($N10&$O10,'FFV Waste'!$A:$A&'FFV Waste'!$B:$B,'FFV Waste'!D:D,"",0) -> 155191.59 | R10: =_xlfn.XLOOKUP($N10&$O10,'FFV Waste'!$A:$A&'FFV Waste'!$B:$B,'FFV Waste'!E:E,"",0) -> 2793.44862 | S10: =_xlfn.XLOOKUP($N10&$O10,'FFV Waste'!$A:$A&'FFV Waste'!$B:$B,'FFV Waste'!F:F,"",0) -> 129538.4202 | T10: =_xlfn.XLOOKUP($N10&$O10,'FFV Waste'!$A:$A&'FFV Waste'!$B:$B,'FFV Waste'!G:G,"",0) -> 59479.7246 | U10: =_xlfn.XLOOKUP($N10&$O10,'FFV Waste'!$A:$A&'FFV Waste'!$B:$B,'FFV Waste'!H:H,"",0) -> 22859.72121 | V10: =_xlfn.XLOOKUP($N10&$O10,'FFV Waste'!$A:$A&'FFV Waste'!$B:$B,'FFV Waste'!I:I,"",0) -> 10103.99677 | W10: =_xlfn.XLOOKUP($N10&$O10,'FFV Waste'!$A:$A&'FFV Waste'!$B:$B,'FFV Waste'!J:J,"",0) -> 72377.16999 | Y10: Belgium | Z10: Bananas | AA10: =W10 -> 72377.16999 | AB10: =_xlfn.XLOOKUP(Y10&Z10,'FFV Waste'!$L:$L&'FFV Waste'!$M:$M,'FFV Waste'!$U:$U,,0) -> 65395.31504 | AC10: =_xlfn.XLOOKUP(Y10&Z10,'FFV Waste'!$W:$W&'FFV Waste'!$X:$X,'FFV Waste'!$AF:$AF,,0) -> 82463.22403 | AD10: =AVERAGE(AB10:AC10) -> 73929.26953 | AE10: =AA10-MIN(AB10,AA10) -> 6981.854952 | AF10: =AC10-MIN(AA10,AC10) -> 10086.05404 | AI10: Food Supply | AJ10: =_xlfn.XLOOKUP($AH10,$N$9:$N$39,P$9:P$39,"",0) ->  | AN10: =_xlfn.XLOOKUP(AH9,N$9:N$39,Q$9:Q$39,"",0)+AJ9 -> 135520.7118 | AO10: =IF(ISBLANK($AH10),"",_xlfn.XLOOKUP($AH10,$Y$9:$Y$39,AE$9:AE$39,,0)) -> 
N11: Bulgaria | O11: Bananas | P11: =_xlfn.XLOOKUP($N11&$O11,'FFV Waste'!$A:$A&'FFV Waste'!$B:$B,'FFV Waste'!C:C,"",0) -> 2132.9 | Q11: =_xlfn.XLOOKUP($N11&$O11,'FFV Waste'!$A:$A&'FFV Waste'!$B:$B,'FFV Waste'!D:D,"",0) -> 40256.86 | R11: =_xlfn.XLOOKUP($N11&$O11,'FFV Waste'!$A:$A&'FFV Waste'!$B:$B,'FFV Waste'!E:E,"",0) -> 724.62348 | S11: =_xlfn.XLOOKUP($N11&$O11,'FFV Waste'!$A:$A&'FFV Waste'!$B:$B,'FFV Waste'!F:F,"",0) -> 33602.40104 | T11: =_xlfn.XLOOKUP($N11&$O11,'FFV Waste'!$A:$A&'FFV Waste'!$B:$B,'FFV Waste'!G:G,"",0) -> 15429.10248 | U11: =_xlfn.XLOOKUP($N11&$O11,'FFV Waste'!$A:$A&'FFV Waste'!$B:$B,'FFV Waste'!H:H,"",0) -> 5929.835478 | V11: =_xlfn.XLOOKUP($N11&$O11,'FFV Waste'!$A:$A&'FFV Waste'!$B:$B,'FFV Waste'!I:I,"",0) -> 2620.987281 | W11: =_xlfn.XLOOKUP($N11&$O11,'FFV Waste'!$A:$A&'FFV Waste'!$B:$B,'FFV Waste'!J:J,"",0) -> 20907.61324 | Y11: Bulgaria | Z11: Bananas | AA11: 20907.61324 | AB11: =_xlfn.XLOOKUP(Y11&Z11,'FFV Waste'!$L:$L&'FFV Waste'!$M:$M,'FFV Waste'!$U:$U,,0) -> 19096.5128 | AC11: =_xlfn.XLOOKUP(Y11&Z11,'FFV Waste'!$W:$W&'FFV Waste'!$X:$X,'FFV Waste'!$AF:$AF,,0) -> 21391.04616 | AD11: 20243.77948 | AE11: 1811.100443 | AF11: 483.4329173 | AH11: Belgium | AI11: Food Waste | AK11: 2793.44862 | AL11: 59479.7246 | AM11: 10103.99677 | AO11: 6981.854952 | AP11: 10086.05404
N12: Croatia | O12: Bananas | P12: =_xlfn.XLOOKUP($N12&$O12,'FFV Waste'!$A:$A&'FFV Waste'!$B:$B,'FFV Waste'!C:C,"",0) -> 4360.5 | Q12: =_xlfn.XLOOKUP($N12&$O12,'FFV Waste'!$A:$A&'FFV Waste'!$B:$B,'FFV Waste'!D:D,"",0) -> 59557.2459 | R12: =_xlfn.XLOOKUP($N12&$O12,'FFV Waste'!$A:$A&'FFV Waste'!$B:$B,'FFV Waste'!E:E,"",0) -> 1072.030426 | S12: =_xlfn.XLOOKUP($N12&$O12,'FFV Waste'!$A:$A&'FFV Waste'!$B:$B,'FFV Waste'!F:F,"",0) -> 49712.43316 | T12: =_xlfn.XLOOKUP($N12&$O12,'FFV Waste'!$A:$A&'FFV Waste'!$B:$B,'FFV Waste'!G:G,"",0) -> 22826.29222 | U12: =_xlfn.XLOOKUP($N12&$O12,'FFV Waste'!$A:$A&'FFV Waste'!$B:$B,'FFV Waste'!H:H,"",0) -> 8772.782322 | V12: =_xlfn.XLOOKUP($N12&$O12,'FFV Waste'!$A:$A&'FFV Waste'!$B:$B,'FFV Waste'!I:I,"",0) -> 3877.569786 | W12: =_xlfn.XLOOKUP($N12&$O12,'FFV Waste'!$A:$A&'FFV Waste'!$B:$B,'FFV Waste'!J:J,"",0) -> 32136.39244 | Y12: Croatia | Z12: Bananas | AA12: 32136.39244 | AB12: =_xlfn.XLOOKUP(Y12&Z12,'FFV Waste'!$L:$L&'FFV Waste'!$M:$M,'FFV Waste'!$U:$U,,0) -> 29456.99433 | AC12: =_xlfn.XLOOKUP(Y12&Z12,'FFV Waste'!$W:$W&'FFV Waste'!$X:$X,'FFV Waste'!$AF:$AF,,0) -> 31646.57641 | AD12: 30551.78537 | AE12: 2679.398106 | AF12: 0 | AI12: Food Supply | AJ12: =_xlfn.XLOOKUP($AH12,$N$9:$N$39,P$9:P$39,"",0) ->  | AN12: =_xlfn.XLOOKUP(AH11,N$9:N$39,Q$9:Q$39,"",0)+AJ11 -> 155191.59
N13: Cyprus | O13: Bananas | P13: =_xlfn.XLOOKUP($N13&$O13,'FFV Waste'!$A:$A&'FFV Waste'!$B:$B,'FFV Waste'!C:C,"",0) -> 1230.17 | Q13: =_xlfn.XLOOKUP($N13&$O13,'FFV Waste'!$A:$A&'FFV Waste'!$B:$B,'FFV Waste'!D:D,"",0) -> 8772.212994 | R13: =_xlfn.XLOOKUP($N13&$O13,'FFV Waste'!$A:$A&'FFV Waste'!$B:$B,'FFV Waste'!E:E,"",0) -> 157.8998339 | S13: =_xlfn.XLOOKUP($N13&$O13,'FFV Waste'!$A:$A&'FFV Waste'!$B:$B,'FFV Waste'!F:F,"",0) -> 7322.166186 | T13: =_xlfn.XLOOKUP($N13&$O13,'FFV Waste'!$A:$A&'FFV Waste'!$B:$B,'FFV Waste'!G:G,"",0) -> 3362.09464 | U13: =_xlfn.XLOOKUP($N13&$O13,'FFV Waste'!$A:$A&'FFV Waste'!$B:$B,'FFV Waste'!H:H,"",0) -> 1292.146974 | V13: =_xlfn.XLOOKUP($N13&$O13,'FFV Waste'!$A:$A&'FFV Waste'!$B:$B,'FFV Waste'!I:I,"",0) -> 571.1289625 | W13: =_xlfn.XLOOKUP($N13&$O13,'FFV Waste'!$A:$A&'FFV Waste'!$B:$B,'FFV Waste'!J:J,"",0) -> 5321.293437 | Y13: Cyprus | Z13: Bananas | AA13: 5321.293437 | AB13: =_xlfn.XLOOKUP(Y13&Z13,'FFV Waste'!$L:$L&'FFV Waste'!$M:$M,'FFV Waste'!$U:$U,,0) -> 4926.643709 | AC13: =_xlfn.XLOOKUP(Y13&Z13,'FFV Waste'!$W:$W&'FFV Waste'!$X:$X,'FFV Waste'!$AF:$AF,,0) -> 5891.408185 | AD13: 5409.025947 | AE13: 394.6497277 | AF13: 570.1147485 | AH13: Bulgaria | AI13: Food Waste | AJ13: 2132.9 | AK13: 724.62348 | AL13: 15429.10248 | AM13: 2620.987281 | AO13: 1811.100443 | AP13: 483.4329173
N14: Czechia | O14: Bananas | P14: =_xlfn.XLOOKUP($N14&$O14,'FFV Waste'!$A:$A&'FFV Waste'!$B:$B,'FFV Waste'!C:C,"",0) -> 11395.37 | Q14: =_xlfn.XLOOKUP($N14&$O14,'FFV Waste'!$A:$A&'FFV Waste'!$B:$B,'FFV Waste'!D:D,"",0) -> 97917.86515 | R14: =_xlfn.XLOOKUP($N14&$O14,'FFV Waste'!$A:$A&'FFV Waste'!$B:$B,'FFV Waste'!E:E,"",0) -> 1762.521573 | S14: =_xlfn.XLOOKUP($N14&$O14,'FFV Waste'!$A:$A&'FFV Waste'!$B:$B,'FFV Waste'!F:F,"",0) -> 81732.04204 | T14: =_xlfn.XLOOKUP($N14&$O14,'FFV Waste'!$A:$A&'FFV Waste'!$B:$B,'FFV Waste'!G:G,"",0) -> 37528.6293 | U14: =_xlfn.XLOOKUP($N14&$O14,'FFV Waste'!$A:$A&'FFV Waste'!$B:$B,'FFV Waste'!H:H,"",0) -> 14423.30154 | V14: =_xlfn.XLOOKUP($N14&$O14,'FFV Waste'!$A:$A&'FFV Waste'!$B:$B,'FFV Waste'!I:I,"",0) -> 6375.099279 | W14: =_xlfn.XLOOKUP($N14&$O14,'FFV Waste'!$A:$A&'FFV Waste'!$B:$B,'FFV Waste'!J:J,"",0) -> 57061.62016 | Y14: Czechia | Z14: Bananas | AA14: 57061.62016 | AB14: =_xlfn.XLOOKUP(Y14&Z14,'FFV Waste'!$L:$L&'FFV Waste'!$M:$M,'FFV Waste'!$U:$U,,0) -> 52656.43086 | AC14: =_xlfn.XLOOKUP(Y14&Z14,'FFV Waste'!$W:$W&'FFV Waste'!$X:$X,'FFV Waste'!$AF:$AF,,0) -> 52030.0285 | AD14: 52343.22968 | AE14: 4405.1893 | AF14: 0 | AI14: Food Supply | AN14: =_xlfn.XLOOKUP(AH13,N$9:N$39,Q$9:Q$39,"",0)+AJ13 -> 42389.76
N15: Denmark | O15: Bananas | P15: =_xlfn.XLOOKUP($N15&$O15,'FFV Waste'!$A:$A&'FFV Waste'!$B:$B,'FFV Waste'!C:C,"",0) -> 4066.92 | Q15: =_xlfn.XLOOKUP($N15&$O15,'FFV Waste'!$A:$A&'FFV Waste'!$B:$B,'FFV Waste'!D:D,"",0) -> 61314.59161 | R15: =_xlfn.XLOOKUP($N15&$O15,'FFV Waste'!$A:$A&'FFV Waste'!$B:$B,'FFV Waste'!E:E,"",0) -> 1103.662649 | S15: =_xlfn.XLOOKUP($N15&$O15,'FFV Waste'!$A:$A&'FFV Waste'!$B:$B,'FFV Waste'!F:F,"",0) -> 51179.28961 | T15: =_xlfn.XLOOKUP($N15&$O15,'FFV Waste'!$A:$A&'FFV Waste'!$B:$B,'FFV Waste'!G:G,"",0) -> 23235.39748 | U15: =_xlfn.XLOOKUP($N15&$O15,'FFV Waste'!$A:$A&'FFV Waste'!$B:$B,'FFV Waste'!H:H,"",0) -> 9031.639344 | V15: =_xlfn.XLOOKUP($N15&$O15,'FFV Waste'!$A:$A&'FFV Waste'!$B:$B,'FFV Waste'!I:I,"",0) -> 3991.98459 | W15: =_xlfn.XLOOKUP($N15&$O15,'FFV Waste'!$A:$A&'FFV Waste'!$B:$B,'FFV Waste'!J:J,"",0) -> 32397.96472 | Y15: Denmark | Z15: Bananas | AA15: 32397.96472 | AB15: =_xlfn.XLOOKUP(Y15&Z15,'FFV Waste'!$L:$L&'FFV Waste'!$M:$M,'FFV Waste'!$U:$U,,0) -> 29903.9324 | AC15: =_xlfn.XLOOKUP(Y15&Z15,'FFV Waste'!$W:$W&'FFV Waste'!$X:$X,'FFV Waste'!$AF:$AF,,0) -> 36647.28665 | AD15: 33275.60952 | AE15: 2494.032328 | AF15: 4249.321931 | AH15: Croatia | AI15: Food Waste | AJ15: 4360.5 | AK15: 1072.030426 | AL15: 22826.29222 | AM15: 3877.569786 | AO15: 2679.398106 | AP15: 0
N16: Estonia | O16: Bananas | P16: =_xlfn.XLOOKUP($N16&$O16,'FFV Waste'!$A:$A&'FFV Waste'!$B:$B,'FFV Waste'!C:C,"",0) ->  | Q16: =_xlfn.XLOOKUP($N16&$O16,'FFV Waste'!$A:$A&'FFV Waste'!$B:$B,'FFV Waste'!D:D,"",0) -> 15476.92068 | R16: =_xlfn.XLOOKUP($N16&$O16,'FFV Waste'!$A:$A&'FFV Waste'!$B:$B,'FFV Waste'!E:E,"",0) -> 278.5845723 | S16: =_xlfn.XLOOKUP($N16&$O16,'FFV Waste'!$A:$A&'FFV Waste'!$B:$B,'FFV Waste'!F:F,"",0) -> 12918.5857 | T16: =_xlfn.XLOOKUP($N16&$O16,'FFV Waste'!$A:$A&'FFV Waste'!$B:$B,'FFV Waste'!G:G,"",0) -> 5931.783932 | U16: =_xlfn.XLOOKUP($N16&$O16,'FFV Waste'!$A:$A&'FFV Waste'!$B:$B,'FFV Waste'!H:H,"",0) -> 2279.750417 | V16: =_xlfn.XLOOKUP($N16&$O16,'FFV Waste'!$A:$A&'FFV Waste'!$B:$B,'FFV Waste'!I:I,"",0) -> 1007.649684 | W16: =_xlfn.XLOOKUP($N16&$O16,'FFV Waste'!$A:$A&'FFV Waste'!$B:$B,'FFV Waste'!J:J,"",0) -> 7218.018188 | Y16: Estonia | Z16: Bananas | AA16: 7218.018188 | AB16: =_xlfn.XLOOKUP(Y16&Z16,'FFV Waste'!$L:$L&'FFV Waste'!$M:$M,'FFV Waste'!$U:$U,,0) -> 6521.732937 | AC16: =_xlfn.XLOOKUP(Y16&Z16,'FFV Waste'!$W:$W&'FFV Waste'!$X:$X,'FFV Waste'!$AF:$AF,,0) -> 8223.878483 | AD16: 7372.80571 | AE16: 696.2852519 | AF16: 1005.860294 | AI16: Food Supply | AN16: =_xlfn.XLOOKUP(AH15,N$9:N$39,Q$9:Q$39,"",0)+AJ15 -> 63917.7459
N17: Finland | O17: Bananas | P17: =_xlfn.XLOOKUP($N17&$O17,'FFV Waste'!$A:$A&'FFV Waste'!$B:$B,'FFV Waste'!C:C,"",0) -> 4984.892081 | Q17: =_xlfn.XLOOKUP($N17&$O17,'FFV Waste'!$A:$A&'FFV Waste'!$B:$B,'FFV Waste'!D:D,"",0) -> 89779.22 | R17: =_xlfn.XLOOKUP($N17&$O17,'FFV Waste'!$A:$A&'FFV Waste'!$B:$B,'FFV Waste'!E:E,"",0) -> 1616.02596 | S17: =_xlfn.XLOOKUP($N17&$O17,'FFV Waste'!$A:$A&'FFV Waste'!$B:$B,'FFV Waste'!F:F,"",0) -> 74938.71493 | T17: =_xlfn.XLOOKUP($N17&$O17,'FFV Waste'!$A:$A&'FFV Waste'!$B:$B,'FFV Waste'!G:G,"",0) -> 31249.44413 | U17: =_xlfn.XLOOKUP($N17&$O17,'FFV Waste'!$A:$A&'FFV Waste'!$B:$B,'FFV Waste'!H:H,"",0) -> 13224.47911 | V17: =_xlfn.XLOOKUP($N17&$O17,'FFV Waste'!$A:$A&'FFV Waste'!$B:$B,'FFV Waste'!I:I,"",0) -> 5845.219765 | W17: =_xlfn.XLOOKUP($N17&$O17,'FFV Waste'!$A:$A&'FFV Waste'!$B:$B,'FFV Waste'!J:J,"",0) -> 43695.58193 | Y17: Finland | Z17: Bananas | AA17: 43695.58193 | AB17: =_xlfn.XLOOKUP(Y17&Z17,'FFV Waste'!$L:$L&'FFV Waste'!$M:$M,'FFV Waste'!$U:$U,,0) -> 42816.45483 | AC17: =_xlfn.XLOOKUP(Y17&Z17,'FFV Waste'!$W:$W&'FFV Waste'!$X:$X,'FFV Waste'!$AF:$AF,,0) -> 52690.33754 | AD17: 47753.39618 | AE17: 879.1271002 | AF17: 8994.755604 | AH17: Cyprus | AI17: Food Waste | AJ17: 1230.17 | AK17: 157.8998339 | AL17: 3362.09464 | AM17: 571.1289625 | AO17: 394.6497277 | AP17: 570.1147485
N18: France | O18: Bananas | P18: =_xlfn.XLOOKUP($N18&$O18,'FFV Waste'!$A:$A&'FFV Waste'!$B:$B,'FFV Waste'!C:C,"",0) -> 49294.11 | Q18: =_xlfn.XLOOKUP($N18&$O18,'FFV Waste'!$A:$A&'FFV Waste'!$B:$B,'FFV Waste'!D:D,"",0) -> 702656.69 | R18: =_xlfn.XLOOKUP($N18&$O18,'FFV Waste'!$A:$A&'FFV Waste'!$B:$B,'FFV Waste'!E:E,"",0) -> 12647.82042 | S18: =_xlfn.XLOOKUP($N18&$O18,'FFV Waste'!$A:$A&'FFV Waste'!$B:$B,'FFV Waste'!F:F,"",0) -> 586507.5391 | T18: =_xlfn.XLOOKUP($N18&$O18,'FFV Waste'!$A:$A&'FFV Waste'!$B:$B,'FFV Waste'!G:G,"",0) -> 269304.7117 | U18: =_xlfn.XLOOKUP($N18&$O18,'FFV Waste'!$A:$A&'FFV Waste'!$B:$B,'FFV Waste'!H:H,"",0) -> 103501.3304 | V18: =_xlfn.XLOOKUP($N18&$O18,'FFV Waste'!$A:$A&'FFV Waste'!$B:$B,'FFV Waste'!I:I,"",0) -> 45747.58805 | W18: =_xlfn.XLOOKUP($N18&$O18,'FFV Waste'!$A:$A&'FFV Waste'!$B:$B,'FFV Waste'!J:J,"",0) -> 376994.2302 | Y18: France | Z18: Bananas | AA18: 376994.2302 | AB18: =_xlfn.XLOOKUP(Y18&Z18,'FFV Waste'!$L:$L&'FFV Waste'!$M:$M,'FFV Waste'!$U:$U,,0) -> 345382.6777 | AC18: =_xlfn.XLOOKUP(Y18&Z18,'FFV Waste'!$W:$W&'FFV Waste'!$X:$X,'FFV Waste'!$AF:$AF,,0) -> 422660.5794 | AD18: 384021.6286 | AE18: 31611.55247 | AF18: 45666.34923 | AI18: Food Supply | AN18: =_xlfn.XLOOKUP(AH17,N$9:N$39,Q$9:Q$39,"",0)+AJ17 -> 10002.38299
N19: Germany | O19: Bananas | P19: =_xlfn.XLOOKUP($N19&$O19,'FFV Waste'!$A:$A&'FFV Waste'!$B:$B,'FFV Waste'!C:C,"",0) -> 48093.65 | Q19: =_xlfn.XLOOKUP($N19&$O19,'FFV Waste'!$A:$A&'FFV Waste'!$B:$B,'FFV Waste'!D:D,"",0) -> 772680.1269 | R19: =_xlfn.XLOOKUP($N19&$O19,'FFV Waste'!$A:$A&'FFV Waste'!$B:$B,'FFV Waste'!E:E,"",0) -> 13908.24229 | S19: =_xlfn.XLOOKUP($N19&$O19,'FFV Waste'!$A:$A&'FFV Waste'!$B:$B,'FFV Waste'!F:F,"",0) -> 644956.102 | T19: =_xlfn.XLOOKUP($N19&$O19,'FFV Waste'!$A:$A&'FFV Waste'!$B:$B,'FFV Waste'!G:G,"",0) -> 303129.3679 | U19: =_xlfn.XLOOKUP($N19&$O19,'FFV Waste'!$A:$A&'FFV Waste'!$B:$B,'FFV Waste'!H:H,"",0) -> 113815.7827 | V19: =_xlfn.XLOOKUP($N19&$O19,'FFV Waste'!$A:$A&'FFV Waste'!$B:$B,'FFV Waste'!I:I,"",0) -> 50306.57595 | W19: =_xlfn.XLOOKUP($N19&$O19,'FFV Waste'!$A:$A&'FFV Waste'!$B:$B,'FFV Waste'!J:J,"",0) -> 415437.8362 | Y19: Germany | Z19: Bananas | AA19: 415437.8362 | AB19: =_xlfn.XLOOKUP(Y19&Z19,'FFV Waste'!$L:$L&'FFV Waste'!$M:$M,'FFV Waste'!$U:$U,,0) -> 373689.0017 | AC19: =_xlfn.XLOOKUP(Y19&Z19,'FFV Waste'!$W:$W&'FFV Waste'!$X:$X,'FFV Waste'!$AF:$AF,,0) -> 458668.053 | AD19: 416178.5273 | AE19: 41748.83448 | AF19: 43230.21681 | AH19: Czechia | AI19: Food Waste | AJ19: 11395.37 | AK19: 1762.521573 | AL19: 37528.6293 | AM19: 6375.099279 | AO19: 4405.1893 | AP19: 0
N20: Greece | O20: Bananas | P20: =_xlfn.XLOOKUP($N20&$O20,'FFV Waste'!$A:$A&'FFV Waste'!$B:$B,'FFV Waste'!C:C,"",0) -> 289.96 | Q20: =_xlfn.XLOOKUP($N20&$O20,'FFV Waste'!$A:$A&'FFV Waste'!$B:$B,'FFV Waste'!D:D,"",0) -> 128286.6202 | R20: =_xlfn.XLOOKUP($N20&$O20,'FFV Waste'!$A:$A&'FFV Waste'!$B:$B,'FFV Waste'!E:E,"",0) -> 2309.159164 | S20: =_xlfn.XLOOKUP($N20&$O20,'FFV Waste'!$A:$A&'FFV Waste'!$B:$B,'FFV Waste'!F:F,"",0) -> 107080.8419 | T20: =_xlfn.XLOOKUP($N20&$O20,'FFV Waste'!$A:$A&'FFV Waste'!$B:$B,'FFV Waste'!G:G,"",0) -> 49167.95323 | U20: =_xlfn.XLOOKUP($N20&$O20,'FFV Waste'!$A:$A&'FFV Waste'!$B:$B,'FFV Waste'!H:H,"",0) -> 18896.61916 | V20: =_xlfn.XLOOKUP($N20&$O20,'FFV Waste'!$A:$A&'FFV Waste'!$B:$B,'FFV Waste'!I:I,"",0) -> 8352.305667 | W20: =_xlfn.XLOOKUP($N20&$O20,'FFV Waste'!$A:$A&'FFV Waste'!$B:$B,'FFV Waste'!J:J,"",0) -> 60119.37806 | Y20: Greece | Z20: Bananas | AA20: 60119.37806 | AB20: =_xlfn.XLOOKUP(Y20&Z20,'FFV Waste'!$L:$L&'FFV Waste'!$M:$M,'FFV Waste'!$U:$U,,0) -> 54347.94048 | AC20: =_xlfn.XLOOKUP(Y20&Z20,'FFV Waste'!$W:$W&'FFV Waste'!$X:$X,'FFV Waste'!$AF:$AF,,0) -> 68456.85166 | AD20: 61402.39607 | AE20: 5771.43758 | AF20: 8337.473596 | AI20: Food Supply | AN20: =_xlfn.XLOOKUP(AH19,N$9:N$39,Q$9:Q$39,"",0)+AJ19 -> 109313.2352
N21: Hungary | O21: Bananas | P21: =_xlfn.XLOOKUP($N21&$O21,'FFV Waste'!$A:$A&'FFV Waste'!$B:$B,'FFV Waste'!C:C,"",0) -> 2478.42 | Q21: =_xlfn.XLOOKUP($N21&$O21,'FFV Waste'!$A:$A&'FFV Waste'!$B:$B,'FFV Waste'!D:D,"",0) -> 24787.21777 | R21: =_xlfn.XLOOKUP($N21&$O21,'FFV Waste'!$A:$A&'FFV Waste'!$B:$B,'FFV Waste'!E:E,"",0) -> 446.1699198 | S21: =_xlfn.XLOOKUP($N21&$O21,'FFV Waste'!$A:$A&'FFV Waste'!$B:$B,'FFV Waste'!F:F,"",0) -> 20689.89067 | T21: =_xlfn.XLOOKUP($N21&$O21,'FFV Waste'!$A:$A&'FFV Waste'!$B:$B,'FFV Waste'!G:G,"",0) -> 9500.108132 | U21: =_xlfn.XLOOKUP($N21&$O21,'FFV Waste'!$A:$A&'FFV Waste'!$B:$B,'FFV Waste'!H:H,"",0) -> 3651.157177 | V21: =_xlfn.XLOOKUP($N21&$O21,'FFV Waste'!$A:$A&'FFV Waste'!$B:$B,'FFV Waste'!I:I,"",0) -> 1613.811472 | W21: =_xlfn.XLOOKUP($N21&$O21,'FFV Waste'!$A:$A&'FFV Waste'!$B:$B,'FFV Waste'!J:J,"",0) -> 14038.50952 | Y21: Hungary | Z21: Bananas | AA21: 14038.50952 | AB21: =_xlfn.XLOOKUP(Y21&Z21,'FFV Waste'!$L:$L&'FFV Waste'!$M:$M,'FFV Waste'!$U:$U,,0) -> 12923.36689 | AC21: =_xlfn.XLOOKUP(Y21&Z21,'FFV Waste'!$W:$W&'FFV Waste'!$X:$X,'FFV Waste'!$AF:$AF,,0) -> 13171.03518 | AD21: 13047.20103 | AE21: 1115.142638 | AF21: 0 | AH21: Denmark | AI21: Food Waste | AJ21: 4066.92 | AK21: 1103.662649 | AL21: 23235.39748 | AM21: 3991.98459 | AO21: 2494.032328 | AP21: 4249.321931
N22: Iceland | O22: Bananas | P22: =_xlfn.XLOOKUP($N22&$O22,'FFV Waste'!$A:$A&'FFV Waste'!$B:$B,'FFV Waste'!C:C,"",0) -> 105.89 | Q22: =_xlfn.XLOOKUP($N22&$O22,'FFV Waste'!$A:$A&'FFV Waste'!$B:$B,'FFV Waste'!D:D,"",0) -> 3953.211906 | R22: =_xlfn.XLOOKUP($N22&$O22,'FFV Waste'!$A:$A&'FFV Waste'!$B:$B,'FFV Waste'!E:E,"",0) -> 71.1578143 | S22: =_xlfn.XLOOKUP($N22&$O22,'FFV Waste'!$A:$A&'FFV Waste'!$B:$B,'FFV Waste'!F:F,"",0) -> 3299.745978 | T22: =_xlfn.XLOOKUP($N22&$O22,'FFV Waste'!$A:$A&'FFV Waste'!$B:$B,'FFV Waste'!G:G,"",0) -> 1515.133361 | U22: =_xlfn.XLOOKUP($N22&$O22,'FFV Waste'!$A:$A&'FFV Waste'!$B:$B,'FFV Waste'!H:H,"",0) -> 582.3081137 | V22: =_xlfn.XLOOKUP($N22&$O22,'FFV Waste'!$A:$A&'FFV Waste'!$B:$B,'FFV Waste'!I:I,"",0) -> 257.3801862 | W22: =_xlfn.XLOOKUP($N22&$O22,'FFV Waste'!$A:$A&'FFV Waste'!$B:$B,'FFV Waste'!J:J,"",0) -> 1949.561362 | Y22: Iceland | Z22: Bananas | AA22: 1949.561362 | AB22: =_xlfn.XLOOKUP(Y22&Z22,'FFV Waste'!$L:$L&'FFV Waste'!$M:$M,'FFV Waste'!$U:$U,,0) -> 1771.711827 | AC22: =_xlfn.XLOOKUP(Y22&Z22,'FFV Waste'!$W:$W&'FFV Waste'!$X:$X,'FFV Waste'!$AF:$AF,,0) -> 2206.484491 | AD22: 1989.098159 | AE22: 177.849535 | AF22: 256.9231291 | AI22: Food Supply | AN22: =_xlfn.XLOOKUP(AH21,N$9:N$39,Q$9:Q$39,"",0)+AJ21 -> 65381.51161
N23: Ireland | O23: Bananas | P23: =_xlfn.XLOOKUP($N23&$O23,'FFV Waste'!$A:$A&'FFV Waste'!$B:$B,'FFV Waste'!C:C,"",0) -> 3291.733117 | Q23: =_xlfn.XLOOKUP($N23&$O23,'FFV Waste'!$A:$A&'FFV Waste'!$B:$B,'FFV Waste'!D:D,"",0) -> 58388.44 | R23: =_xlfn.XLOOKUP($N23&$O23,'FFV Waste'!$A:$A&'FFV Waste'!$B:$B,'FFV Waste'!E:E,"",0) -> 1050.99192 | S23: =_xlfn.XLOOKUP($N23&$O23,'FFV Waste'!$A:$A&'FFV Waste'!$B:$B,'FFV Waste'!F:F,"",0) -> 48736.83087 | T23: =_xlfn.XLOOKUP($N23&$O23,'FFV Waste'!$A:$A&'FFV Waste'!$B:$B,'FFV Waste'!G:G,"",0) -> 22378.32817 | U23: =_xlfn.XLOOKUP($N23&$O23,'FFV Waste'!$A:$A&'FFV Waste'!$B:$B,'FFV Waste'!H:H,"",0) -> 8600.617212 | V23: =_xlfn.XLOOKUP($N23&$O23,'FFV Waste'!$A:$A&'FFV Waste'!$B:$B,'FFV Waste'!I:I,"",0) -> 3801.472808 | W23: =_xlfn.XLOOKUP($N23&$O23,'FFV Waste'!$A:$A&'FFV Waste'!$B:$B,'FFV Waste'!J:J,"",0) -> 30522.52602 | Y23: Ireland | Z23: Bananas | AA23: 30522.52602 | AB23: =_xlfn.XLOOKUP(Y23&Z23,'FFV Waste'!$L:$L&'FFV Waste'!$M:$M,'FFV Waste'!$U:$U,,0) -> 27895.71087 | AC23: =_xlfn.XLOOKUP(Y23&Z23,'FFV Waste'!$W:$W&'FFV Waste'!$X:$X,'FFV Waste'!$AF:$AF,,0) -> 34317.24815 | AD23: 31106.47951 | AE23: 2626.815145 | AF23: 3794.722131 | AH23: Estonia | AI23: Food Waste | AK23: 278.5845723 | AL23: 5931.783932 | AM23: 1007.649684 | AO23: 696.2852519 | AP23: 1005.860294
N24: Italy | O24: Bananas | P24: =_xlfn.XLOOKUP($N24&$O24,'FFV Waste'!$A:$A&'FFV Waste'!$B:$B,'FFV Waste'!C:C,"",0) -> 26.71 | Q24: =_xlfn.XLOOKUP($N24&$O24,'FFV Waste'!$A:$A&'FFV Waste'!$B:$B,'FFV Waste'!D:D,"",0) -> 666681.27 | R24: =_xlfn.XLOOKUP($N24&$O24,'FFV Waste'!$A:$A&'FFV Waste'!$B:$B,'FFV Waste'!E:E,"",0) -> 12000.26286 | S24: =_xlfn.XLOOKUP($N24&$O24,'FFV Waste'!$A:$A&'FFV Waste'!$B:$B,'FFV Waste'!F:F,"",0) -> 556478.8561 | T24: =_xlfn.XLOOKUP($N24&$O24,'FFV Waste'!$A:$A&'FFV Waste'!$B:$B,'FFV Waste'!G:G,"",0) -> 255516.5414 | U24: =_xlfn.XLOOKUP($N24&$O24,'FFV Waste'!$A:$A&'FFV Waste'!$B:$B,'FFV Waste'!H:H,"",0) -> 98202.15107 | V24: =_xlfn.XLOOKUP($N24&$O24,'FFV Waste'!$A:$A&'FFV Waste'!$B:$B,'FFV Waste'!I:I,"",0) -> 43405.35077 | W24: =_xlfn.XLOOKUP($N24&$O24,'FFV Waste'!$A:$A&'FFV Waste'!$B:$B,'FFV Waste'!J:J,"",0) -> 310948.865 | Y24: Italy | Z24: Bananas | AA24: 310948.865 | AB24: =_xlfn.XLOOKUP(Y24&Z24,'FFV Waste'!$L:$L&'FFV Waste'!$M:$M,'FFV Waste'!$U:$U,,0) -> 280955.797 | AC24: =_xlfn.XLOOKUP(Y24&Z24,'FFV Waste'!$W:$W&'FFV Waste'!$X:$X,'FFV Waste'!$AF:$AF,,0) -> 354250.4264 | AD24: 317603.1117 | AE24: 29993.06809 | AF24: 43301.56131 | AI24: Food Supply | AJ24: =_xlfn.XLOOKUP($AH24,$N$9:$N$39,P$9:P$39,"",0) ->  | AN24: =_xlfn.XLOOKUP(AH23,N$9:N$39,Q$9:Q$39,"",0)+AJ23 -> 15476.92068
N25: Latvia | O25: Bananas | P25: =_xlfn.XLOOKUP($N25&$O25,'FFV Waste'!$A:$A&'FFV Waste'!$B:$B,'FFV Waste'!C:C,"",0) ->  | Q25: =_xlfn.XLOOKUP($N25&$O25,'FFV Waste'!$A:$A&'FFV Waste'!$B:$B,'FFV Waste'!D:D,"",0) -> 17266.66963 | R25: =_xlfn.XLOOKUP($N25&$O25,'FFV Waste'!$A:$A&'FFV Waste'!$B:$B,'FFV Waste'!E:E,"",0) -> 310.8000533 | S25: =_xlfn.XLOOKUP($N25&$O25,'FFV Waste'!$A:$A&'FFV Waste'!$B:$B,'FFV Waste'!F:F,"",0) -> 14412.48914 | T25: =_xlfn.XLOOKUP($N25&$O25,'FFV Waste'!$A:$A&'FFV Waste'!$B:$B,'FFV Waste'!G:G,"",0) -> 6617.734595 | U25: =_xlfn.XLOOKUP($N25&$O25,'FFV Waste'!$A:$A&'FFV Waste'!$B:$B,'FFV Waste'!H:H,"",0) -> 2543.380436 | V25: =_xlfn.XLOOKUP($N25&$O25,'FFV Waste'!$A:$A&'FFV Waste'!$B:$B,'FFV Waste'!I:I,"",0) -> 1124.174153 | W25: =_xlfn.XLOOKUP($N25&$O25,'FFV Waste'!$A:$A&'FFV Waste'!$B:$B,'FFV Waste'!J:J,"",0) -> 8052.708801 | Y25: Latvia | Z25: Bananas | AA25: 8052.708801 | AB25: =_xlfn.XLOOKUP(Y25&Z25,'FFV Waste'!$L:$L&'FFV Waste'!$M:$M,'FFV Waste'!$U:$U,,0) -> 7275.90522 | AC25: =_xlfn.XLOOKUP(Y25&Z25,'FFV Waste'!$W:$W&'FFV Waste'!$X:$X,'FFV Waste'!$AF:$AF,,0) -> 9174.886639 | AD25: 8225.39593 | AE25: 776.8035809 | AF25: 1122.177838 | AH25: Finland | AI25: Food Waste | AJ25: 4984.892081 | AK25: 1616.02596 | AL25: 31249.44413 | AM25: 5845.219765 | AO25: 879.1271002 | AP25: 8994.755604
N26: Lithuania | O26: Bananas | P26: =_xlfn.XLOOKUP($N26&$O26,'FFV Waste'!$A:$A&'FFV Waste'!$B:$B,'FFV Waste'!C:C,"",0) ->  | Q26: =_xlfn.XLOOKUP($N26&$O26,'FFV Waste'!$A:$A&'FFV Waste'!$B:$B,'FFV Waste'!D:D,"",0) -> 26333.51 | R26: =_xlfn.XLOOKUP($N26&$O26,'FFV Waste'!$A:$A&'FFV Waste'!$B:$B,'FFV Waste'!E:E,"",0) -> 474.00318 | S26: =_xlfn.XLOOKUP($N26&$O26,'FFV Waste'!$A:$A&'FFV Waste'!$B:$B,'FFV Waste'!F:F,"",0) -> 21980.5808 | T26: =_xlfn.XLOOKUP($N26&$O26,'FFV Waste'!$A:$A&'FFV Waste'!$B:$B,'FFV Waste'!G:G,"",0) -> 10092.75002 | U26: =_xlfn.XLOOKUP($N26&$O26,'FFV Waste'!$A:$A&'FFV Waste'!$B:$B,'FFV Waste'!H:H,"",0) -> 3878.926023 | V26: =_xlfn.XLOOKUP($N26&$O26,'FFV Waste'!$A:$A&'FFV Waste'!$B:$B,'FFV Waste'!I:I,"",0) -> 1714.485302 | W26: =_xlfn.XLOOKUP($N26&$O26,'FFV Waste'!$A:$A&'FFV Waste'!$B:$B,'FFV Waste'!J:J,"",0) -> 12281.2385 | Y26: Lithuania | Z26: Bananas | AA26: 12281.2385 | AB26: =_xlfn.XLOOKUP(Y26&Z26,'FFV Waste'!$L:$L&'FFV Waste'!$M:$M,'FFV Waste'!$U:$U,,0) -> 11096.53031 | AC26: =_xlfn.XLOOKUP(Y26&Z26,'FFV Waste'!$W:$W&'FFV Waste'!$X:$X,'FFV Waste'!$AF:$AF,,0) -> 13992.67921 | AD26: 12544.60476 | AE26: 1184.708187 | AF26: 1711.44071 | AI26: Food Supply | AN26: =_xlfn.XLOOKUP(AH25,N$9:N$39,Q$9:Q$39,"",0)+AJ25 -> 94764.11208
N27: Luxembourg | O27: Bananas | P27: =_xlfn.XLOOKUP($N27&$O27,'FFV Waste'!$A:$A&'FFV Waste'!$B:$B,'FFV Waste'!C:C,"",0) -> 329.97 | Q27: =_xlfn.XLOOKUP($N27&$O27,'FFV Waste'!$A:$A&'FFV Waste'!$B:$B,'FFV Waste'!D:D,"",0) -> 4968.488367 | R27: =_xlfn.XLOOKUP($N27&$O27,'FFV Waste'!$A:$A&'FFV Waste'!$B:$B,'FFV Waste'!E:E,"",0) -> 89.4327906 | S27: =_xlfn.XLOOKUP($N27&$O27,'FFV Waste'!$A:$A&'FFV Waste'!$B:$B,'FFV Waste'!F:F,"",0) -> 4147.19724 | T27: =_xlfn.XLOOKUP($N27&$O27,'FFV Waste'!$A:$A&'FFV Waste'!$B:$B,'FFV Waste'!G:G,"",0) -> 1904.254733 | U27: =_xlfn.XLOOKUP($N27&$O27,'FFV Waste'!$A:$A&'FFV Waste'!$B:$B,'FFV Waste'!H:H,"",0) -> 731.8583364 | V27: =_xlfn.XLOOKUP($N27&$O27,'FFV Waste'!$A:$A&'FFV Waste'!$B:$B,'FFV Waste'!I:I,"",0) -> 323.4813847 | W27: =_xlfn.XLOOKUP($N27&$O27,'FFV Waste'!$A:$A&'FFV Waste'!$B:$B,'FFV Waste'!J:J,"",0) -> 2647.138908 | Y27: Luxembourg | Z27: Bananas | AA27: 2647.138908 | AB27: =_xlfn.XLOOKUP(Y27&Z27,'FFV Waste'!$L:$L&'FFV Waste'!$M:$M,'FFV Waste'!$U:$U,,0) -> 2423.613489 | AC27: =_xlfn.XLOOKUP(Y27&Z27,'FFV Waste'!$W:$W&'FFV Waste'!$X:$X,'FFV Waste'!$AF:$AF,,0) -> 2970.045853 | AD27: 2696.829671 | AE27: 223.5254185 | AF27: 322.9069446 | AH27: France | AI27: Food Waste | AJ27: 49294.11 | AK27: 12647.82042 | AL27: 269304.7117 | AM27: 45747.58805 | AO27: 31611.55247 | AP27: 45666.34923
N28: Malta | O28: Bananas | P28: =_xlfn.XLOOKUP($N28&$O28,'FFV Waste'!$A:$A&'FFV Waste'!$B:$B,'FFV Waste'!C:C,"",0) -> 488.09 | Q28: =_xlfn.XLOOKUP($N28&$O28,'FFV Waste'!$A:$A&'FFV Waste'!$B:$B,'FFV Waste'!D:D,"",0) -> 7577.892358 | R28: =_xlfn.XLOOKUP($N28&$O28,'FFV Waste'!$A:$A&'FFV Waste'!$B:$B,'FFV Waste'!E:E,"",0) -> 136.4020624 | S28: =_xlfn.XLOOKUP($N28&$O28,'FFV Waste'!$A:$A&'FFV Waste'!$B:$B,'FFV Waste'!F:F,"",0) -> 6325.266751 | T28: =_xlfn.XLOOKUP($N28&$O28,'FFV Waste'!$A:$A&'FFV Waste'!$B:$B,'FFV Waste'!G:G,"",0) -> 2904.35165 | U28: =_xlfn.XLOOKUP($N28&$O28,'FFV Waste'!$A:$A&'FFV Waste'!$B:$B,'FFV Waste'!H:H,"",0) -> 1116.223544 | V28: =_xlfn.XLOOKUP($N28&$O28,'FFV Waste'!$A:$A&'FFV Waste'!$B:$B,'FFV Waste'!I:I,"",0) -> 493.3708066 | W28: =_xlfn.XLOOKUP($N28&$O28,'FFV Waste'!$A:$A&'FFV Waste'!$B:$B,'FFV Waste'!J:J,"",0) -> 4022.214519 | Y28: Malta | Z28: Bananas | AA28: 4022.214519 | AB28: =_xlfn.XLOOKUP(Y28&Z28,'FFV Waste'!$L:$L&'FFV Waste'!$M:$M,'FFV Waste'!$U:$U,,0) -> 3681.295625 | AC28: =_xlfn.XLOOKUP(Y28&Z28,'FFV Waste'!$W:$W&'FFV Waste'!$X:$X,'FFV Waste'!$AF:$AF,,0) -> 4026.619195 | AD28: 3853.95741 | AE28: 340.9188944 | AF28: 4.404675935 | AI28: Food Supply | AN28: =_xlfn.XLOOKUP(AH27,N$9:N$39,Q$9:Q$39,"",0)+AJ27 -> 751950.8
N29: Netherlands | O29: Bananas | P29: =_xlfn.XLOOKUP($N29&$O29,'FFV Waste'!$A:$A&'FFV Waste'!$B:$B,'FFV Waste'!C:C,"",0) -> 12903.84349 | Q29: =_xlfn.XLOOKUP($N29&$O29,'FFV Waste'!$A:$A&'FFV Waste'!$B:$B,'FFV Waste'!D:D,"",0) -> 369130.77 | R29: =_xlfn.XLOOKUP($N29&$O29,'FFV Waste'!$A:$A&'FFV Waste'!$B:$B,'FFV Waste'!E:E,"",0) -> 6644.35386 | S29: =_xlfn.XLOOKUP($N29&$O29,'FFV Waste'!$A:$A&'FFV Waste'!$B:$B,'FFV Waste'!F:F,"",0) -> 308113.4537 | T29: =_xlfn.XLOOKUP($N29&$O29,'FFV Waste'!$A:$A&'FFV Waste'!$B:$B,'FFV Waste'!G:G,"",0) -> 152824.273 | U29: =_xlfn.XLOOKUP($N29&$O29,'FFV Waste'!$A:$A&'FFV Waste'!$B:$B,'FFV Waste'!H:H,"",0) -> 54372.96242 | V29: =_xlfn.XLOOKUP($N29&$O29,'FFV Waste'!$A:$A&'FFV Waste'!$B:$B,'FFV Waste'!I:I,"",0) -> 24032.84939 | W29: =_xlfn.XLOOKUP($N29&$O29,'FFV Waste'!$A:$A&'FFV Waste'!$B:$B,'FFV Waste'!J:J,"",0) -> 196405.3198 | Y29: Netherlands | Z29: Bananas | AA29: 196405.3198 | AB29: =_xlfn.XLOOKUP(Y29&Z29,'FFV Waste'!$L:$L&'FFV Waste'!$M:$M,'FFV Waste'!$U:$U,,0) -> 168449.7915 | AC29: =_xlfn.XLOOKUP(Y29&Z29,'FFV Waste'!$W:$W&'FFV Waste'!$X:$X,'FFV Waste'!$AF:$AF,,0) -> 209046.646 | AD29: 188748.2187 | AE29: 27955.52826 | AF29: 12641.32618 | AH29: Germany | AI29: Food Waste | AJ29: 48093.65 | AK29: 13908.24229 | AL29: 303129.3679 | AM29: 50306.57595 | AO29: 41748.83448 | AP29: 43230.21681
N30: Norway | O30: Bananas | P30: =_xlfn.XLOOKUP($N30&$O30,'FFV Waste'!$A:$A&'FFV Waste'!$B:$B,'FFV Waste'!C:C,"",0) -> 3996.32 | Q30: =_xlfn.XLOOKUP($N30&$O30,'FFV Waste'!$A:$A&'FFV Waste'!$B:$B,'FFV Waste'!D:D,"",0) -> 63379.23387 | R30: =_xlfn.XLOOKUP($N30&$O30,'FFV Waste'!$A:$A&'FFV Waste'!$B:$B,'FFV Waste'!E:E,"",0) -> 1140.82621 | S30: =_xlfn.XLOOKUP($N30&$O30,'FFV Waste'!$A:$A&'FFV Waste'!$B:$B,'FFV Waste'!F:F,"",0) -> 52902.64651 | T30: =_xlfn.XLOOKUP($N30&$O30,'FFV Waste'!$A:$A&'FFV Waste'!$B:$B,'FFV Waste'!G:G,"",0) -> 24291.13186 | U30: =_xlfn.XLOOKUP($N30&$O30,'FFV Waste'!$A:$A&'FFV Waste'!$B:$B,'FFV Waste'!H:H,"",0) -> 9335.761149 | V30: =_xlfn.XLOOKUP($N30&$O30,'FFV Waste'!$A:$A&'FFV Waste'!$B:$B,'FFV Waste'!I:I,"",0) -> 4126.406428 | W30: =_xlfn.XLOOKUP($N30&$O30,'FFV Waste'!$A:$A&'FFV Waste'!$B:$B,'FFV Waste'!J:J,"",0) -> 33554.68449 | Y30: Norway | Z30: Bananas | AA30: 33554.68449 | AB30: =_xlfn.XLOOKUP(Y30&Z30,'FFV Waste'!$L:$L&'FFV Waste'!$M:$M,'FFV Waste'!$U:$U,,0) -> 30703.34044 | AC30: =_xlfn.XLOOKUP(Y30&Z30,'FFV Waste'!$W:$W&'FFV Waste'!$X:$X,'FFV Waste'!$AF:$AF,,0) -> 37673.76323 | AD30: 34188.55183 | AE30: 2851.344057 | AF30: 4119.078732 | AI30: Food Supply | AN30: =_xlfn.XLOOKUP(AH29,N$9:N$39,Q$9:Q$39,"",0)+AJ29 -> 820773.7769
N31: Poland | O31: Bananas | P31: =_xlfn.XLOOKUP($N31&$O31,'FFV Waste'!$A:$A&'FFV Waste'!$B:$B,'FFV Waste'!C:C,"",0) -> 19379.1745 | Q31: =_xlfn.XLOOKUP($N31&$O31,'FFV Waste'!$A:$A&'FFV Waste'!$B:$B,'FFV Waste'!D:D,"",0) -> 123386.11 | R31: =_xlfn.XLOOKUP($N31&$O31,'FFV Waste'!$A:$A&'FFV Waste'!$B:$B,'FFV Waste'!E:E,"",0) -> 2220.94998 | S31: =_xlfn.XLOOKUP($N31&$O31,'FFV Waste'!$A:$A&'FFV Waste'!$B:$B,'FFV Waste'!F:F,"",0) -> 102990.386 | T31: =_xlfn.XLOOKUP($N31&$O31,'FFV Waste'!$A:$A&'FFV Waste'!$B:$B,'FFV Waste'!G:G,"",0) -> 47289.75225 | U31: =_xlfn.XLOOKUP($N31&$O31,'FFV Waste'!$A:$A&'FFV Waste'!$B:$B,'FFV Waste'!H:H,"",0) -> 18174.774 | V31: =_xlfn.XLOOKUP($N31&$O31,'FFV Waste'!$A:$A&'FFV Waste'!$B:$B,'FFV Waste'!I:I,"",0) -> 8033.250109 | W31: =_xlfn.XLOOKUP($N31&$O31,'FFV Waste'!$A:$A&'FFV Waste'!$B:$B,'FFV Waste'!J:J,"",0) -> 76923.12683 | Y31: Poland | Z31: Bananas | AA31: 76923.12683 | AB31: =_xlfn.XLOOKUP(Y31&Z31,'FFV Waste'!$L:$L&'FFV Waste'!$M:$M,'FFV Waste'!$U:$U,,0) -> 71372.15643 | AC31: =_xlfn.XLOOKUP(Y31&Z31,'FFV Waste'!$W:$W&'FFV Waste'!$X:$X,'FFV Waste'!$AF:$AF,,0) -> 84942.11145 | AD31: 78157.13394 | AE31: 5550.970405 | AF31: 8018.984619 | AH31: Greece | AI31: Food Waste | AJ31: 289.96 | AK31: 2309.159164 | AL31: 49167.95323 | AM31: 8352.305667 | AO31: 5771.43758 | AP31: 8337.473596
N32: Portugal | O32: Bananas | P32: =_xlfn.XLOOKUP($N32&$O32,'FFV Waste'!$A:$A&'FFV Waste'!$B:$B,'FFV Waste'!C:C,"",0) -> 24140.75375 | Q32: =_xlfn.XLOOKUP($N32&$O32,'FFV Waste'!$A:$A&'FFV Waste'!$B:$B,'FFV Waste'!D:D,"",0) -> 180477.47 | R32: =_xlfn.XLOOKUP($N32&$O32,'FFV Waste'!$A:$A&'FFV Waste'!$B:$B,'FFV Waste'!E:E,"",0) -> 3248.59446 | S32: =_xlfn.XLOOKUP($N32&$O32,'FFV Waste'!$A:$A&'FFV Waste'!$B:$B,'FFV Waste'!F:F,"",0) -> 150644.5442 | T32: =_xlfn.XLOOKUP($N32&$O32,'FFV Waste'!$A:$A&'FFV Waste'!$B:$B,'FFV Waste'!G:G,"",0) -> 69170.95322 | U32: =_xlfn.XLOOKUP($N32&$O32,'FFV Waste'!$A:$A&'FFV Waste'!$B:$B,'FFV Waste'!H:H,"",0) -> 26584.33133 | V32: =_xlfn.XLOOKUP($N32&$O32,'FFV Waste'!$A:$A&'FFV Waste'!$B:$B,'FFV Waste'!I:I,"",0) -> 11750.27445 | W32: =_xlfn.XLOOKUP($N32&$O32,'FFV Waste'!$A:$A&'FFV Waste'!$B:$B,'FFV Waste'!J:J,"",0) -> 108310.5759 | Y32: Portugal | Z32: Bananas | AA32: 108310.5759 | AB32: =_xlfn.XLOOKUP(Y32&Z32,'FFV Waste'!$L:$L&'FFV Waste'!$M:$M,'FFV Waste'!$U:$U,,0) -> 100191.1442 | AC32: =_xlfn.XLOOKUP(Y32&Z32,'FFV Waste'!$W:$W&'FFV Waste'!$X:$X,'FFV Waste'!$AF:$AF,,0) -> 95899.23037 | AD32: 98045.18727 | AE32: 8119.431715 | AF32: 0 | AI32: Food Supply | AN32: =_xlfn.XLOOKUP(AH31,N$9:N$39,Q$9:Q$39,"",0)+AJ31 -> 128576.5802
N33: Romania | O33: Bananas | P33: =_xlfn.XLOOKUP($N33&$O33,'FFV Waste'!$A:$A&'FFV Waste'!$B:$B,'FFV Waste'!C:C,"",0) -> 8472.79 | Q33: =_xlfn.XLOOKUP($N33&$O33,'FFV Waste'!$A:$A&'FFV Waste'!$B:$B,'FFV Waste'!D:D,"",0) -> 121841.5975 | R33: =_xlfn.XLOOKUP($N33&$O33,'FFV Waste'!$A:$A&'FFV Waste'!$B:$B,'FFV Waste'!E:E,"",0) -> 2193.148755 | S33: =_xlfn.XLOOKUP($N33&$O33,'FFV Waste'!$A:$A&'FFV Waste'!$B:$B,'FFV Waste'!F:F,"",0) -> 101701.1815 | T33: =_xlfn.XLOOKUP($N33&$O33,'FFV Waste'!$A:$A&'FFV Waste'!$B:$B,'FFV Waste'!G:G,"",0) -> 46697.79248 | U33: =_xlfn.XLOOKUP($N33&$O33,'FFV Waste'!$A:$A&'FFV Waste'!$B:$B,'FFV Waste'!H:H,"",0) -> 17947.26731 | V33: =_xlfn.XLOOKUP($N33&$O33,'FFV Waste'!$A:$A&'FFV Waste'!$B:$B,'FFV Waste'!I:I,"",0) -> 7932.692153 | W33: =_xlfn.XLOOKUP($N33&$O33,'FFV Waste'!$A:$A&'FFV Waste'!$B:$B,'FFV Waste'!J:J,"",0) -> 65296.42339 | Y33: Romania | Z33: Bananas | AA33: 65296.42339 | AB33: =_xlfn.XLOOKUP(Y33&Z33,'FFV Waste'!$L:$L&'FFV Waste'!$M:$M,'FFV Waste'!$U:$U,,0) -> 59814.93847 | AC33: =_xlfn.XLOOKUP(Y33&Z33,'FFV Waste'!$W:$W&'FFV Waste'!$X:$X,'FFV Waste'!$AF:$AF,,0) -> 64742.23862 | AD33: 62278.58855 | AE33: 5481.484925 | AF33: 0 | AH33: Hungary | AI33: Food Waste | AJ33: =_xlfn.XLOOKUP($AH33,$N$9:$N$39,P$9:P$39,"",0) -> 2478.42 | AK33: 446.1699198 | AL33: 9500.108132 | AM33: 1613.811472 | AO33: 1115.142638 | AP33: 0
N34: Slovakia | O34: Bananas | P34: =_xlfn.XLOOKUP($N34&$O34,'FFV Waste'!$A:$A&'FFV Waste'!$B:$B,'FFV Waste'!C:C,"",0) -> 3392.929469 | Q34: =_xlfn.XLOOKUP($N34&$O34,'FFV Waste'!$A:$A&'FFV Waste'!$B:$B,'FFV Waste'!D:D,"",0) -> 49984.57 | R34: =_xlfn.XLOOKUP($N34&$O34,'FFV Waste'!$A:$A&'FFV Waste'!$B:$B,'FFV Waste'!E:E,"",0) -> 899.72226 | S34: =_xlfn.XLOOKUP($N34&$O34,'FFV Waste'!$A:$A&'FFV Waste'!$B:$B,'FFV Waste'!F:F,"",0) -> 41722.12058 | T34: =_xlfn.XLOOKUP($N34&$O34,'FFV Waste'!$A:$A&'FFV Waste'!$B:$B,'FFV Waste'!G:G,"",0) -> 19157.40703 | U34: =_xlfn.XLOOKUP($N34&$O34,'FFV Waste'!$A:$A&'FFV Waste'!$B:$B,'FFV Waste'!H:H,"",0) -> 7362.727161 | V34: =_xlfn.XLOOKUP($N34&$O34,'FFV Waste'!$A:$A&'FFV Waste'!$B:$B,'FFV Waste'!I:I,"",0) -> 3254.325405 | W34: =_xlfn.XLOOKUP($N34&$O34,'FFV Waste'!$A:$A&'FFV Waste'!$B:$B,'FFV Waste'!J:J,"",0) -> 26704.38417 | Y34: Slovakia | Z34: Bananas | AA34: 26704.38417 | AB34: =_xlfn.XLOOKUP(Y34&Z34,'FFV Waste'!$L:$L&'FFV Waste'!$M:$M,'FFV Waste'!$U:$U,,0) -> 24455.64751 | AC34: =_xlfn.XLOOKUP(Y34&Z34,'FFV Waste'!$W:$W&'FFV Waste'!$X:$X,'FFV Waste'!$AF:$AF,,0) -> 26560.00105 | AD34: 25507.82428 | AE34: 2248.736659 | AF34: 0 | AI34: Food Supply | AN34: =_xlfn.XLOOKUP(AH33,N$9:N$39,Q$9:Q$39,"",0)+AJ33 -> 27265.63777
N35: Slovenia | O35: Bananas | P35: =_xlfn.XLOOKUP($N35&$O35,'FFV Waste'!$A:$A&'FFV Waste'!$B:$B,'FFV Waste'!C:C,"",0) -> 12372.91 | Q35: =_xlfn.XLOOKUP($N35&$O35,'FFV Waste'!$A:$A&'FFV Waste'!$B:$B,'FFV Waste'!D:D,"",0) -> 18547.21527 | R35: =_xlfn.XLOOKUP($N35&$O35,'FFV Waste'!$A:$A&'FFV Waste'!$B:$B,'FFV Waste'!E:E,"",0) -> 333.8498748 | S35: =_xlfn.XLOOKUP($N35&$O35,'FFV Waste'!$A:$A&'FFV Waste'!$B:$B,'FFV Waste'!F:F,"",0) -> 15481.36058 | T35: =_xlfn.XLOOKUP($N35&$O35,'FFV Waste'!$A:$A&'FFV Waste'!$B:$B,'FFV Waste'!G:G,"",0) -> 7108.524734 | U35: =_xlfn.XLOOKUP($N35&$O35,'FFV Waste'!$A:$A&'FFV Waste'!$B:$B,'FFV Waste'!H:H,"",0) -> 2732.004809 | V35: =_xlfn.XLOOKUP($N35&$O35,'FFV Waste'!$A:$A&'FFV Waste'!$B:$B,'FFV Waste'!I:I,"",0) -> 1207.546125 | W35: =_xlfn.XLOOKUP($N35&$O35,'FFV Waste'!$A:$A&'FFV Waste'!$B:$B,'FFV Waste'!J:J,"",0) -> 21022.83073 | Y35: Slovenia | Z35: Bananas | AA35: 21022.83073 | AB35: =_xlfn.XLOOKUP(Y35&Z35,'FFV Waste'!$L:$L&'FFV Waste'!$M:$M,'FFV Waste'!$U:$U,,0) -> 20188.41718 | AC35: =_xlfn.XLOOKUP(Y35&Z35,'FFV Waste'!$W:$W&'FFV Waste'!$X:$X,'FFV Waste'!$AF:$AF,,0) -> 22228.23249 | AD35: 21208.32483 | AE35: 834.4135578 | AF35: 1205.401758 | AH35: Iceland | AI35: Food Waste | AJ35: 105.89 | AK35: 71.1578143 | AL35: 1515.133361 | AM35: 257.3801862 | AO35: 177.849535 | AP35: 256.9231291
N36: Spain | O36: Bananas | P36: =_xlfn.XLOOKUP($N36&$O36,'FFV Waste'!$A:$A&'FFV Waste'!$B:$B,'FFV Waste'!C:C,"",0) -> 61354.65862 | Q36: =_xlfn.XLOOKUP($N36&$O36,'FFV Waste'!$A:$A&'FFV Waste'!$B:$B,'FFV Waste'!D:D,"",0) -> 329224.42 | R36: =_xlfn.XLOOKUP($N36&$O36,'FFV Waste'!$A:$A&'FFV Waste'!$B:$B,'FFV Waste'!E:E,"",0) -> 5926.03956 | S36: =_xlfn.XLOOKUP($N36&$O36,'FFV Waste'!$A:$A&'FFV Waste'!$B:$B,'FFV Waste'!F:F,"",0) -> 274803.6234 | T36: =_xlfn.XLOOKUP($N36&$O36,'FFV Waste'!$A:$A&'FFV Waste'!$B:$B,'FFV Waste'!G:G,"",0) -> 117341.1472 | U36: =_xlfn.XLOOKUP($N36&$O36,'FFV Waste'!$A:$A&'FFV Waste'!$B:$B,'FFV Waste'!H:H,"",0) -> 48494.75707 | V36: =_xlfn.XLOOKUP($N36&$O36,'FFV Waste'!$A:$A&'FFV Waste'!$B:$B,'FFV Waste'!I:I,"",0) -> 21434.68262 | W36: =_xlfn.XLOOKUP($N36&$O36,'FFV Waste'!$A:$A&'FFV Waste'!$B:$B,'FFV Waste'!J:J,"",0) -> 206056.528 | Y36: Spain | Z36: Bananas | AA36: 206056.528 | AB36: =_xlfn.XLOOKUP(Y36&Z36,'FFV Waste'!$L:$L&'FFV Waste'!$M:$M,'FFV Waste'!$U:$U,,0) -> 200084.6933 | AC36: =_xlfn.XLOOKUP(Y36&Z36,'FFV Waste'!$W:$W&'FFV Waste'!$X:$X,'FFV Waste'!$AF:$AF,,0) -> 236292.6633 | AD36: 218188.6783 | AE36: 5971.834677 | AF36: 30236.13535 | AI36: Food Supply | AN36: =_xlfn.XLOOKUP(AH35,N$9:N$39,Q$9:Q$39,"",0)+AJ35 -> 4059.101906
N37: Sweden | O37: Bananas | P37: =_xlfn.XLOOKUP($N37&$O37,'FFV Waste'!$A:$A&'FFV Waste'!$B:$B,'FFV Waste'!C:C,"",0) -> 4802.092507 | Q37: =_xlfn.XLOOKUP($N37&$O37,'FFV Waste'!$A:$A&'FFV Waste'!$B:$B,'FFV Waste'!D:D,"",0) -> 73102.96 | R37: =_xlfn.XLOOKUP($N37&$O37,'FFV Waste'!$A:$A&'FFV Waste'!$B:$B,'FFV Waste'!E:E,"",0) -> 1169.64736 | S37: =_xlfn.XLOOKUP($N37&$O37,'FFV Waste'!$A:$A&'FFV Waste'!$B:$B,'FFV Waste'!F:F,"",0) -> 61143.31574 | T37: =_xlfn.XLOOKUP($N37&$O37,'FFV Waste'!$A:$A&'FFV Waste'!$B:$B,'FFV Waste'!G:G,"",0) -> 28074.97248 | U37: =_xlfn.XLOOKUP($N37&$O37,'FFV Waste'!$A:$A&'FFV Waste'!$B:$B,'FFV Waste'!H:H,"",0) -> 10789.9969 | V37: =_xlfn.XLOOKUP($N37&$O37,'FFV Waste'!$A:$A&'FFV Waste'!$B:$B,'FFV Waste'!I:I,"",0) -> 4769.178628 | W37: =_xlfn.XLOOKUP($N37&$O37,'FFV Waste'!$A:$A&'FFV Waste'!$B:$B,'FFV Waste'!J:J,"",0) -> 38815.89097 | Y37: Sweden | Z37: Bananas | AA37: 38815.89097 | AB37: =_xlfn.XLOOKUP(Y37&Z37,'FFV Waste'!$L:$L&'FFV Waste'!$M:$M,'FFV Waste'!$U:$U,,0) -> 35606.53944 | AC37: =_xlfn.XLOOKUP(Y37&Z37,'FFV Waste'!$W:$W&'FFV Waste'!$X:$X,'FFV Waste'!$AF:$AF,,0) -> 43646.37374 | AD37: 39626.45659 | AE37: 3209.351529 | AF37: 4830.48277 | AH37: Ireland | AI37: Food Waste | AJ37: 3291.733117 | AK37: 1050.99192 | AL37: 22378.32817 | AM37: 3801.472808 | AO37: 2626.815145 | AP37: 3794.722131
N38: Switzerland | O38: Bananas | P38: =_xlfn.XLOOKUP($N38&$O38,'FFV Waste'!$A:$A&'FFV Waste'!$B:$B,'FFV Waste'!C:C,"",0) -> 1373.45 | Q38: =_xlfn.XLOOKUP($N38&$O38,'FFV Waste'!$A:$A&'FFV Waste'!$B:$B,'FFV Waste'!D:D,"",0) -> 81202.07564 | R38: =_xlfn.XLOOKUP($N38&$O38,'FFV Waste'!$A:$A&'FFV Waste'!$B:$B,'FFV Waste'!E:E,"",0) -> 1461.637361 | S38: =_xlfn.XLOOKUP($N38&$O38,'FFV Waste'!$A:$A&'FFV Waste'!$B:$B,'FFV Waste'!F:F,"",0) -> 67779.37253 | T38: =_xlfn.XLOOKUP($N38&$O38,'FFV Waste'!$A:$A&'FFV Waste'!$B:$B,'FFV Waste'!G:G,"",0) -> 31122.02856 | U38: =_xlfn.XLOOKUP($N38&$O38,'FFV Waste'!$A:$A&'FFV Waste'!$B:$B,'FFV Waste'!H:H,"",0) -> 11961.06574 | V38: =_xlfn.XLOOKUP($N38&$O38,'FFV Waste'!$A:$A&'FFV Waste'!$B:$B,'FFV Waste'!I:I,"",0) -> 5286.791058 | W38: =_xlfn.XLOOKUP($N38&$O38,'FFV Waste'!$A:$A&'FFV Waste'!$B:$B,'FFV Waste'!J:J,"",0) -> 39243.90697 | Y38: Switzerland | Z38: Bananas | AA38: 39243.90697 | AB38: =_xlfn.XLOOKUP(Y38&Z38,'FFV Waste'!$L:$L&'FFV Waste'!$M:$M,'FFV Waste'!$U:$U,,0) -> 35590.73792 | AC38: =_xlfn.XLOOKUP(Y38&Z38,'FFV Waste'!$W:$W&'FFV Waste'!$X:$X,'FFV Waste'!$AF:$AF,,0) -> 44521.30972 | AD38: 40056.02382 | AE38: 3653.169053 | AF38: 5277.402744 | AI38: Food Supply | AN38: =_xlfn.XLOOKUP(AH37,N$9:N$39,Q$9:Q$39,"",0)+AJ37 -> 61680.17312
N39: United Kingdom | O39: Bananas | P39: =_xlfn.XLOOKUP($N39&$O39,'FFV Waste'!$A:$A&'FFV Waste'!$B:$B,'FFV Waste'!C:C,"",0) -> 42628.59 | Q39: =_xlfn.XLOOKUP($N39&$O39,'FFV Waste'!$A:$A&'FFV Waste'!$B:$B,'FFV Waste'!D:D,"",0) -> 675013.4328 | R39: =_xlfn.XLOOKUP($N39&$O39,'FFV Waste'!$A:$A&'FFV Waste'!$B:$B,'FFV Waste'!E:E,"",0) -> 13500.26866 | S39: =_xlfn.XLOOKUP($N39&$O39,'FFV Waste'!$A:$A&'FFV Waste'!$B:$B,'FFV Waste'!F:F,"",0) -> 562286.1895 | T39: =_xlfn.XLOOKUP($N39&$O39,'FFV Waste'!$A:$A&'FFV Waste'!$B:$B,'FFV Waste'!G:G,"",0) -> 276082.5191 | U39: =_xlfn.XLOOKUP($N39&$O39,'FFV Waste'!$A:$A&'FFV Waste'!$B:$B,'FFV Waste'!H:H,"",0) -> 99226.97462 | V39: =_xlfn.XLOOKUP($N39&$O39,'FFV Waste'!$A:$A&'FFV Waste'!$B:$B,'FFV Waste'!I:I,"",0) -> 43858.32278 | W39: =_xlfn.XLOOKUP($N39&$O39,'FFV Waste'!$A:$A&'FFV Waste'!$B:$B,'FFV Waste'!J:J,"",0) -> 376069.7005 | Y39: United Kingdom | Z39: Bananas | AA39: 376069.7005 | AB39: =_xlfn.XLOOKUP(Y39&Z39,'FFV Waste'!$L:$L&'FFV Waste'!$M:$M,'FFV Waste'!$U:$U,,0) -> 327068.7204 | AC39: =_xlfn.XLOOKUP(Y39&Z39,'FFV Waste'!$W:$W&'FFV Waste'!$X:$X,'FFV Waste'!$AF:$AF,,0) -> 401306.4277 | AD39: 364187.574 | AE39: 49000.98012 | AF39: 25236.72721 | AH39: Italy | AI39: Food Waste | AJ39: 26.71 | AK39: 12000.26286 | AL39: 255516.5414 | AM39: 43405.35077 | AO39: 29993.06809 | AP39: 43301.56131
N40: EU+ | O40: Bananas | P40: =SUM(P9,P11:P15,P17:P24,P27:P39) -> 335878.7975 | Q40: =SUM(Q9:Q39) -> 5154165.21 | R40: =SUM(R9:R39) -> 93978.79473 | S40: 4301158.453 | T40: 1998920.045 | U40: 759027.9623 | V40: 335490.3594 | W40: 2764267.996 | Y40: EU+ | Z40: Bananas | AA40: =SUM(AA9:AA39) -> 2764267.996 | AB40: =SUM(AB9:AB39) -> 2507763.612 | AC40: 3017728.177 | AI40: Food Supply | AN40: =_xlfn.XLOOKUP(AH39,N$9:N$39,Q$9:Q$39,"",0)+AJ39 -> 666707.98
AH41: Latvia | AI41: Food Waste | AK41: =_xlfn.XLOOKUP($AH41,$N$9:$N$39,R$9:R$39,"",0) -> 310.8000533 | AL41: =_xlfn.XLOOKUP($AH41,$N$9:$N$39,T$9:T$39,"",0) -> 6617.734595 | AM41: =_xlfn.XLOOKUP($AH41,$N$9:$N$39,V$9:V$39,"",0) -> 1124.174153 | AO41: 776.8035809 | AP41: 1122.177838
N42: Climate Impact | O42: Unit: Tonne CO2-eq | Y42: Economic Cost | Z42: Unit: Million EUR | AA42: Avg. Exchange Rate 2022 (USD to EUR) | AD42: 0.9497 | AE42: European Central Bank (2025) | AI42: Food Supply | AJ42: =_xlfn.XLOOKUP($AH42,$N$9:$N$39,P$9:P$39,"",0) ->  | AN42: =_xlfn.XLOOKUP(AH41,N$9:N$39,Q$9:Q$39,"",0)+AJ41 -> 17266.66963
N43: Country | O43: Product | P43: Pre R&D | Q43: R&D | R43: Households | S43: Food Service | T43: Total | Y43: Country | Z43: Product | AA43: Pre R&D | AB43: R&D | AC43: Households | AD43: Food Service | AE43: Total | AH43: Lithuania | AI43: Food Waste | AK43: 474.00318 | AL43: 10092.75002 | AM43: 1714.485302 | AO43: 1184.708187 | AP43: 1711.44071
N44: Austria | O44: Bananas | P44: ='FFV Coeffs for Calcs'!J39*P9 -> 7005.9 | Q44: ='FFV Coeffs for Calcs'!K39*R9 -> 2115.028051 | R44: ='FFV Coeffs for Calcs'!L39*T9 -> 55434.24618 | S44: ='FFV Coeffs for Calcs'!L39*V9 -> 9416.779387 | T44: =SUM(_xlfn.IFNA(P44,0),Q44:S44) -> 73971.95361 | Y44: Austria | Z44: Bananas | AA44: ='FFV Coeffs for Calcs'!N5*P9/1000*$AD$42 -> 24.24280921 | AB44: =R9*'FFV Coeffs for Calcs'!O5/1000*$AD$42 -> 9.43224785 | AC44: =T9*'FFV Coeffs for Calcs'!P5/1000*$AD$42 -> 290.2092912 | AD44: =V9*'FFV Coeffs for Calcs'!O5/1000*$AD$42 -> 34.11675488 | AE44: =SUM(_xlfn.IFNA(AA44,0),AB44:AD44) -> 358.0011031 | AI44: Food Supply | AJ44: =_xlfn.XLOOKUP($AH44,$N$9:$N$39,P$9:P$39,"",0) ->  | AN44: =_xlfn.XLOOKUP(AH43,N$9:N$39,Q$9:Q$39,"",0)+AJ43 -> 26333.51
N45: Belgium | O45: Bananas | P45: ='FFV Coeffs for Calcs'!J40*P10 ->  | Q45: ='FFV Coeffs for Calcs'!K40*R10 -> 2583.939974 | R45: ='FFV Coeffs for Calcs'!L40*T10 -> 67724.28599 | S45: ='FFV Coeffs for Calcs'!L40*V10 -> 11504.52481 | T45: 81812.75077 | Y45: Belgium | Z45: Bananas | AA45: ='FFV Coeffs for Calcs'!N6*P10/1000*$AD$42 ->  | AB45: =R10*'FFV Coeffs for Calcs'!O6/1000*$AD$42 -> 9.483071487 | AC45: =T10*'FFV Coeffs for Calcs'!P6/1000*$AD$42 -> 291.7730215 | AD45: =V10*'FFV Coeffs for Calcs'!O6/1000*$AD$42 -> 34.30058567 | AE45: 335.5566786 | AH45: Luxembourg | AI45: Food Waste | AJ45: =_xlfn.XLOOKUP($AH45,$N$9:$N$39,P$9:P$39,"",0) -> 329.97 | AK45: 89.4327906 | AL45: 1904.254733 | AM45: 323.4813847 | AO45: 223.5254185 | AP45: 322.9069446
N46: Bulgaria | O46: Bananas | P46: ='FFV Coeffs for Calcs'!J41*P11 -> 1759.6425 | Q46: ='FFV Coeffs for Calcs'!K41*R11 -> 670.276719 | R46: ='FFV Coeffs for Calcs'!L41*T11 -> 17567.75029 | S46: ='FFV Coeffs for Calcs'!L41*V11 -> 2984.285711 | T46: 22981.95522 | Y46: Bulgaria | Z46: Bananas | AA46: ='FFV Coeffs for Calcs'!N7*P11/1000*$AD$42 -> 5.168952535 | AB46: =R11*'FFV Coeffs for Calcs'!O7/1000*$AD$42 -> 2.537536509 | AC46: =T11*'FFV Coeffs for Calcs'!P7/1000*$AD$42 -> 78.07435548 | AD46: =V11*'FFV Coeffs for Calcs'!O7/1000*$AD$42 -> 9.178354138 | AE46: 94.95919866 | AI46: Food Supply | AJ46: =_xlfn.XLOOKUP($AH46,$N$9:$N$39,P$9:P$39,"",0) ->  | AN46: =_xlfn.XLOOKUP(AH45,N$9:N$39,Q$9:Q$39,"",0)+AJ45 -> 5298.458367
N47: Croatia | O47: Bananas | P47: ='FFV Coeffs for Calcs'!J42*P12 -> 3597.4125 | Q47: ='FFV Coeffs for Calcs'!K42*R12 -> 991.6281443 | R47: ='FFV Coeffs for Calcs'!L42*T12 -> 25990.27405 | S47: ='FFV Coeffs for Calcs'!L42*V12 -> 4415.044739 | T47: 34994.35943 | Y47: Croatia | Z47: Bananas | AA47: ='FFV Coeffs for Calcs'!N8*P12/1000*$AD$42 -> 8.64866132 | AB47: =R12*'FFV Coeffs for Calcs'!O8/1000*$AD$42 -> 3.072469345 | AC47: =T12*'FFV Coeffs for Calcs'!P8/1000*$AD$42 -> 94.53304926 | AD47: =V12*'FFV Coeffs for Calcs'!O8/1000*$AD$42 -> 11.11322404 | AE47: 117.367404 | AH47: Malta | AI47: Food Waste | AJ47: =_xlfn.XLOOKUP($AH47,$N$9:$N$39,P$9:P$39,"",0) -> 488.09 | AK47: 136.4020624 | AL47: 2904.35165 | AM47: 493.3708066 | AO47: 340.9188944 | AP47: 4.404675935
N48: Cyprus | O48: Bananas | P48: ='FFV Coeffs for Calcs'!J43*P13 -> 1014.89025 | Q48: ='FFV Coeffs for Calcs'!K43*R13 -> 146.0573463 | R48: ='FFV Coeffs for Calcs'!L43*T13 -> 3828.118918 | S48: ='FFV Coeffs for Calcs'!L43*V13 -> 650.2938851 | T48: 5639.360399 | Y48: Cyprus | Z48: Bananas | AA48: ='FFV Coeffs for Calcs'!N9*P13/1000*$AD$42 -> 2.349559954 | AB48: =R13*'FFV Coeffs for Calcs'!O9/1000*$AD$42 -> 0.4357836378 | AC48: =T13*'FFV Coeffs for Calcs'!P9/1000*$AD$42 -> 13.40809345 | AD48: =V13*'FFV Coeffs for Calcs'!O9/1000*$AD$42 -> 1.576243944 | AE48: 17.76968099 | AI48: Food Supply | AJ48: =_xlfn.XLOOKUP($AH48,$N$9:$N$39,P$9:P$39,"",0) ->  | AN48: =_xlfn.XLOOKUP(AH47,N$9:N$39,Q$9:Q$39,"",0)+AJ47 -> 8065.982358
N49: Czechia | O49: Bananas | P49: ='FFV Coeffs for Calcs'!J44*P14 -> 9401.18025 | Q49: ='FFV Coeffs for Calcs'!K44*R14 -> 1630.332455 | R49: ='FFV Coeffs for Calcs'!L44*T14 -> 42730.52105 | S49: ='FFV Coeffs for Calcs'!L44*V14 -> 7258.760019 | T49: 61020.79377 | Y49: Czechia | Z49: Bananas | AA49: ='FFV Coeffs for Calcs'!N10*P14/1000*$AD$42 -> 30.36795425 | AB49: =R14*'FFV Coeffs for Calcs'!O10/1000*$AD$42 -> 6.787180419 | AC49: =T14*'FFV Coeffs for Calcs'!P10/1000*$AD$42 -> 208.8264483 | AD49: =V14*'FFV Coeffs for Calcs'!O10/1000*$AD$42 -> 24.54945781 | AE49: 270.5310408 | AH49: Netherlands | AI49: Food Waste | AJ49: 12903.84349 | AK49: 6644.35386 | AL49: 152824.273 | AM49: 24032.84939 | AO49: 27955.52826 | AP49: 12641.32618
N50: Denmark | O50: Bananas | P50: ='FFV Coeffs for Calcs'!J45*P15 -> 3355.209 | Q50: ='FFV Coeffs for Calcs'!K45*R15 -> 1020.88795 | R50: ='FFV Coeffs for Calcs'!L45*T15 -> 26456.08592 | S50: ='FFV Coeffs for Calcs'!L45*V15 -> 4545.318726 | T50: 35377.5016 | Y50: Denmark | Z50: Bananas | AA50: ='FFV Coeffs for Calcs'!N11*P15/1000*$AD$42 -> 12.2781489 | AB50: =R15*'FFV Coeffs for Calcs'!O11/1000*$AD$42 -> 4.814724685 | AC50: =T15*'FFV Coeffs for Calcs'!P11/1000*$AD$42 -> 146.4714789 | AD50: =V15*'FFV Coeffs for Calcs'!O11/1000*$AD$42 -> 17.41501968 | AE50: 180.9793722 | AI50: Food Supply | AN50: =_xlfn.XLOOKUP(AH49,N$9:N$39,Q$9:Q$39,"",0)+AJ49 -> 382034.6135
N51: Estonia | O51: Bananas | P51: ='FFV Coeffs for Calcs'!J46*P16 ->  | Q51: ='FFV Coeffs for Calcs'!K46*R16 -> 257.6907294 | R51: ='FFV Coeffs for Calcs'!L46*T16 -> 6753.996159 | S51: ='FFV Coeffs for Calcs'!L46*V16 -> 1147.321308 | T51: 8159.008196 | Y51: Estonia | Z51: Bananas | AA51: ='FFV Coeffs for Calcs'!N12*P16/1000*$AD$42 ->  | AB51: =R16*'FFV Coeffs for Calcs'!O12/1000*$AD$42 -> 1.176742705 | AC51: =T16*'FFV Coeffs for Calcs'!P12/1000*$AD$42 -> 36.20575623 | AD51: =V16*'FFV Coeffs for Calcs'!O12/1000*$AD$42 -> 4.256317589 | AE51: 41.63881652 | AH51: Norway | AI51: Food Waste | AJ51: 3996.32 | AK51: 1140.82621 | AL51: 24291.13186 | AM51: 4126.406428 | AO51: 2851.344057 | AP51: 4119.078732
N52: Finland | O52: Bananas | P52: ='FFV Coeffs for Calcs'!J47*P17 -> 4112.535967 | Q52: ='FFV Coeffs for Calcs'!K47*R17 -> 1494.824013 | R52: ='FFV Coeffs for Calcs'!L47*T17 -> 35580.96991 | S52: ='FFV Coeffs for Calcs'!L47*V17 -> 6655.433221 | T52: 47843.76311 | Y52: Finland | Z52: Bananas | AA52: ='FFV Coeffs for Calcs'!N13*P17/1000*$AD$42 -> 15.83471589 | AB52: =R17*'FFV Coeffs for Calcs'!O13/1000*$AD$42 -> 7.417724431 | AC52: =T17*'FFV Coeffs for Calcs'!P13/1000*$AD$42 -> 207.2681188 | AD52: =V17*'FFV Coeffs for Calcs'!O13/1000*$AD$42 -> 26.83015652 | AE52: 257.3507156 | AI52: Food Supply | AN52: =_xlfn.XLOOKUP(AH51,N$9:N$39,Q$9:Q$39,"",0)+AJ51 -> 67375.55387
N53: France | O53: Bananas | P53: ='FFV Coeffs for Calcs'!J48*P18 -> 40667.64075 | Q53: ='FFV Coeffs for Calcs'!K48*R18 -> 11699.23389 | R53: ='FFV Coeffs for Calcs'!L48*T18 -> 306633.3854 | S53: ='FFV Coeffs for Calcs'!L48*V18 -> 52088.72028 | T53: 411088.9803 | Y53: France | Z53: Bananas | AA53: ='FFV Coeffs for Calcs'!N14*P18/1000*$AD$42 -> 124.0362621 | AB53: =R18*'FFV Coeffs for Calcs'!O14/1000*$AD$42 -> 45.98722226 | AC53: =T18*'FFV Coeffs for Calcs'!P14/1000*$AD$42 -> 1414.924564 | AD53: =V18*'FFV Coeffs for Calcs'!O14/1000*$AD$42 -> 166.3373158 | AE53: 1751.285364 | AH53: Poland | AI53: Food Waste | AJ53: 19379.1745 | AK53: 2220.94998 | AL53: 47289.75225 | AM53: 8033.250109 | AO53: 5550.970405 | AP53: 8018.984619
N54: Germany | O54: Bananas | P54: ='FFV Coeffs for Calcs'!J49*P19 -> 39677.26125 | Q54: ='FFV Coeffs for Calcs'!K49*R19 -> 12865.12411 | R54: ='FFV Coeffs for Calcs'!L49*T19 -> 345146.5209 | S54: ='FFV Coeffs for Calcs'!L49*V19 -> 57279.63538 | T54: 454968.5416 | Y54: Germany | Z54: Bananas | AA54: ='FFV Coeffs for Calcs'!N15*P19/1000*$AD$42 -> 137.2747368 | AB54: =R19*'FFV Coeffs for Calcs'!O15/1000*$AD$42 -> 57.36446876 | AC54: =T19*'FFV Coeffs for Calcs'!P15/1000*$AD$42 -> 1806.619067 | AD54: =V19*'FFV Coeffs for Calcs'!O15/1000*$AD$42 -> 207.4891956 | AE54: 2208.747468 | AI54: Food Supply | AN54: =_xlfn.XLOOKUP(AH53,N$9:N$39,Q$9:Q$39,"",0)+AJ53 -> 142765.2845
N55: Greece | O55: Bananas | P55: ='FFV Coeffs for Calcs'!J50*P20 -> 239.217 | Q55: ='FFV Coeffs for Calcs'!K50*R20 -> 2135.972226 | R55: ='FFV Coeffs for Calcs'!L50*T20 -> 55983.18669 | S55: ='FFV Coeffs for Calcs'!L50*V20 -> 9510.029536 | T55: 67868.40545 | Y55: Greece | Z55: Bananas | AA55: ='FFV Coeffs for Calcs'!N16*P20/1000*$AD$42 -> 0.7212484627 | AB55: =R20*'FFV Coeffs for Calcs'!O16/1000*$AD$42 -> 8.299817158 | AC55: =T20*'FFV Coeffs for Calcs'!P16/1000*$AD$42 -> 255.366917 | AD55: =V20*'FFV Coeffs for Calcs'!O16/1000*$AD$42 -> 30.02071532 | AE55: 294.408698 | AH55: Portugal | AI55: Food Waste | AJ55: =_xlfn.XLOOKUP($AH55,$N$9:$N$39,P$9:P$39,"",0) -> 24140.75375 | AK55: 3248.59446 | AL55: 69170.95322 | AM55: 11750.27445 | AO55: 8119.431715 | AP55: =IF(ISBLANK($AH55),"",_xlfn.XLOOKUP($AH55,$Y$9:$Y$39,AF$9:AF$39,,0)) -> 0
N56: Hungary | O56: Bananas | P56: ='FFV Coeffs for Calcs'!J51*P21 -> 2044.6965 | Q56: ='FFV Coeffs for Calcs'!K51*R21 -> 412.7071758 | R56: ='FFV Coeffs for Calcs'!L51*T21 -> 10816.93038 | S56: ='FFV Coeffs for Calcs'!L51*V21 -> 1837.503963 | T56: 15111.83802 | Y56: Hungary | Z56: Bananas | AA56: ='FFV Coeffs for Calcs'!N17*P21/1000*$AD$42 -> 4.3477559 | AB56: =R21*'FFV Coeffs for Calcs'!O17/1000*$AD$42 -> 1.130989004 | AC56: =T21*'FFV Coeffs for Calcs'!P17/1000*$AD$42 -> 34.79801659 | AD56: =V21*'FFV Coeffs for Calcs'!O17/1000*$AD$42 -> 4.090824927 | AE56: 44.36758642 | AI56: Food Supply | AJ56: =_xlfn.XLOOKUP($AH56,$N$9:$N$39,P$9:P$39,"",0) ->  | AN56: =_xlfn.XLOOKUP(AH55,N$9:N$39,Q$9:Q$39,"",0)+AJ55 -> 204618.2238
N57: Iceland | O57: Bananas | P57: ='FFV Coeffs for Calcs'!J52*P22 -> 87.35925 | Q57: ='FFV Coeffs for Calcs'!K52*R22 -> 65.82097823 | R57: ='FFV Coeffs for Calcs'!L52*T22 -> 1725.147952 | S57: ='FFV Coeffs for Calcs'!L52*V22 -> 293.0559861 | T57: 2171.384166 | Y57: Iceland | Z57: Bananas | AA57: ='FFV Coeffs for Calcs'!N18*P22/1000*$AD$42 -> 0.4148549644 | AB57: =R22*'FFV Coeffs for Calcs'!O18/1000*$AD$42 -> 0.4028392604 | AC57: =T22*'FFV Coeffs for Calcs'!P18/1000*$AD$42 -> 12.39446822 | AD57: =V22*'FFV Coeffs for Calcs'!O18/1000*$AD$42 -> 1.457083033 | AE57: 14.66924548 | AH57: Romania | AI57: Food Waste | AJ57: =_xlfn.XLOOKUP($AH57,$N$9:$N$39,P$9:P$39,"",0) -> 8472.79 | AK57: 2193.148755 | AL57: 46697.79248 | AM57: 7932.692153 | AO57: 5481.484925 | AP57: 0
N58: Ireland | O58: Bananas | P58: ='FFV Coeffs for Calcs'!J53*P23 -> 2715.679822 | Q58: ='FFV Coeffs for Calcs'!K53*R23 -> 972.167526 | R58: ='FFV Coeffs for Calcs'!L53*T23 -> 25480.21713 | S58: ='FFV Coeffs for Calcs'!L53*V23 -> 4328.39986 | T58: 33496.46433 | Y58: Ireland | Z58: Bananas | AA58: ='FFV Coeffs for Calcs'!N19*P23/1000*$AD$42 -> 9.555017272 | AB58: =R23*'FFV Coeffs for Calcs'!O19/1000*$AD$42 -> 4.408329861 | AC58: =T23*'FFV Coeffs for Calcs'!P19/1000*$AD$42 -> 135.6345067 | AD58: =V23*'FFV Coeffs for Calcs'!O19/1000*$AD$42 -> 15.94507605 | AE58: 165.5429299 | AI58: Food Supply | AJ58: =_xlfn.XLOOKUP($AH58,$N$9:$N$39,P$9:P$39,"",0) ->  | AN58: =_xlfn.XLOOKUP(AH57,N$9:N$39,Q$9:Q$39,"",0)+AJ57 -> 130314.3875
N59: Italy | O59: Bananas | P59: ='FFV Coeffs for Calcs'!J54*P24 -> 22.03575 | Q59: ='FFV Coeffs for Calcs'!K54*R24 -> 11100.24315 | R59: ='FFV Coeffs for Calcs'!L54*T24 -> 290934.019 | S59: ='FFV Coeffs for Calcs'!L54*V24 -> 49421.82247 | T59: 351478.1204 | Y59: Italy | Z59: Bananas | AA59: ='FFV Coeffs for Calcs'!N20*P24/1000*$AD$42 -> 0.05754798513 | AB59: =R24*'FFV Coeffs for Calcs'!O20/1000*$AD$42 -> 37.36068591 | AC59: =T24*'FFV Coeffs for Calcs'!P20/1000*$AD$42 -> 1149.505224 | AD59: =V24*'FFV Coeffs for Calcs'!O20/1000*$AD$42 -> 135.1348463 | AE59: 1322.058304 | AH59: Slovakia | AI59: Food Waste | AJ59: =_xlfn.XLOOKUP($AH59,$N$9:$N$39,P$9:P$39,"",0) -> 3392.929469 | AK59: 899.72226 | AL59: 19157.40703 | AM59: 3254.325405 | AO59: 2248.736659 | AP59: 0
N60: Latvia | O60: Bananas | P60: ='FFV Coeffs for Calcs'!J55*P25 ->  | Q60: ='FFV Coeffs for Calcs'!K55*R25 -> 287.4900493 | R60: ='FFV Coeffs for Calcs'!L55*T25 -> 7535.027329 | S60: ='FFV Coeffs for Calcs'!L55*V25 -> 1279.997383 | T60: 9102.514761 | Y60: Latvia | Z60: Bananas | AA60: ='FFV Coeffs for Calcs'!N21*P25/1000*$AD$42 ->  | AB60: =R25*'FFV Coeffs for Calcs'!O21/1000*$AD$42 -> 1.132115177 | AC60: =T25*'FFV Coeffs for Calcs'!P21/1000*$AD$42 -> 34.83266643 | AD60: =V25*'FFV Coeffs for Calcs'!O21/1000*$AD$42 -> 4.094898332 | AE60: 40.05967994 | AI60: Food Supply | AJ60: =_xlfn.XLOOKUP($AH60,$N$9:$N$39,P$9:P$39,"",0) ->  | AN60: =_xlfn.XLOOKUP(AH59,N$9:N$39,Q$9:Q$39,"",0)+AJ59 -> 53377.49947
N61: Lithuania | O61: Bananas | P61: ='FFV Coeffs for Calcs'!J56*P26 ->  | Q61: ='FFV Coeffs for Calcs'!K56*R26 -> 438.4529415 | R61: ='FFV Coeffs for Calcs'!L56*T26 -> 11491.71912 | S61: ='FFV Coeffs for Calcs'!L56*V26 -> 1952.132323 | T61: 13882.30439 | Y61: Lithuania | Z61: Bananas | AA61: ='FFV Coeffs for Calcs'!N22*P26/1000*$AD$42 ->  | AB61: =R26*'FFV Coeffs for Calcs'!O22/1000*$AD$42 -> 1.482741422 | AC61: =T26*'FFV Coeffs for Calcs'!P22/1000*$AD$42 -> 45.62065627 | AD61: =V26*'FFV Coeffs for Calcs'!O22/1000*$AD$42 -> 5.363125148 | AE61: 52.46652284 | AH61: Slovenia | AI61: Food Waste | AJ61: 12372.91 | AK61: 333.8498748 | AL61: 7108.524734 | AM61: 1207.546125 | AO61: 834.4135578 | AP61: 1205.401758
N62: Luxembourg | O62: Bananas | P62: ='FFV Coeffs for Calcs'!J57*P27 -> 272.22525 | Q62: ='FFV Coeffs for Calcs'!K57*R27 -> 82.72533131 | R62: ='FFV Coeffs for Calcs'!L57*T27 -> 2168.205939 | S62: ='FFV Coeffs for Calcs'!L57*V27 -> 368.3195569 | T62: 2891.476077 | Y62: Luxembourg | Z62: Bananas | AA62: ='FFV Coeffs for Calcs'!N23*P27/1000*$AD$42 -> 1.439891839 | AB62: =R27*'FFV Coeffs for Calcs'!O23/1000*$AD$42 -> 0.563923305 | AC62: =T27*'FFV Coeffs for Calcs'!P23/1000*$AD$42 -> 17.35066606 | AD62: =V27*'FFV Coeffs for Calcs'!O23/1000*$AD$42 -> 2.039729392 | AE62: 21.39421059 | AI62: Food Supply | AN62: =_xlfn.XLOOKUP(AH61,N$9:N$39,Q$9:Q$39,"",0)+AJ61 -> 30920.12527
N63: Malta | O63: Bananas | P63: ='FFV Coeffs for Calcs'!J58*P28 -> 402.67425 | Q63: ='FFV Coeffs for Calcs'!K58*R28 -> 126.1719078 | R63: ='FFV Coeffs for Calcs'!L58*T28 -> 3306.927581 | S63: ='FFV Coeffs for Calcs'!L58*V28 -> 561.7575709 | T63: 4397.531309 | Y63: Malta | Z63: Bananas | AA63: ='FFV Coeffs for Calcs'!N24*P28/1000*$AD$42 -> 1.460210658 | AB63: =R28*'FFV Coeffs for Calcs'!O24/1000*$AD$42 -> 0.5896636931 | AC63: =T28*'FFV Coeffs for Calcs'!P24/1000*$AD$42 -> 18.14264056 | AD63: =V28*'FFV Coeffs for Calcs'!O24/1000*$AD$42 -> 2.132833234 | AE63: 22.32534814 | AH63: Spain | AI63: Food Waste | AJ63: 61354.65862 | AK63: 5926.03956 | AL63: 117341.1472 | AM63: 21434.68262 | AO63: 5971.834677 | AP63: 30236.13535
N64: Netherlands | O64: Bananas | P64: ='FFV Coeffs for Calcs'!J59*P29 -> 13161.92036 | Q64: ='FFV Coeffs for Calcs'!K59*R29 -> 7441.676323 | R64: ='FFV Coeffs for Calcs'!L59*T29 -> 212913.4693 | S64: ='FFV Coeffs for Calcs'!L59*V29 -> 33482.36009 | T64: 266999.4261 | Y64: Netherlands | Z64: Bananas | AA64: ='FFV Coeffs for Calcs'!N25*P29/1000*$AD$42 -> 24.15857116 | AB64: =R29*'FFV Coeffs for Calcs'!O25/1000*$AD$42 -> 17.97515975 | AC64: =T29*'FFV Coeffs for Calcs'!P25/1000*$AD$42 -> 597.4205959 | AD64: =V29*'FFV Coeffs for Calcs'!O25/1000*$AD$42 -> 65.01675199 | AE64: 704.5710788 | AI64: Food Supply | AN64: =_xlfn.XLOOKUP(AH63,N$9:N$39,Q$9:Q$39,"",0)+AJ63 -> 390579.0786
N65: Norway | O65: Bananas | P65: ='FFV Coeffs for Calcs'!J60*P30 -> 5075.3264 | Q65: ='FFV Coeffs for Calcs'!K60*R30 -> 1562.931907 | R65: ='FFV Coeffs for Calcs'!L60*T30 -> 41396.25885 | S65: ='FFV Coeffs for Calcs'!L60*V30 -> 7032.104952 | T65: 55066.62211 | Y65: Norway | Z65: Bananas | AA65: ='FFV Coeffs for Calcs'!N26*P30/1000*$AD$42 -> 15.52096474 | AB65: =R30*'FFV Coeffs for Calcs'!O26/1000*$AD$42 -> 6.402444069 | AC65: =T30*'FFV Coeffs for Calcs'!P26/1000*$AD$42 -> 196.9889664 | AD65: =V30*'FFV Coeffs for Calcs'!O26/1000*$AD$42 -> 23.15785361 | AE65: 242.0702288 | AH65: Sweden | AI65: Food Waste | AJ65: 4802.092507 | AK65: 1169.64736 | AL65: 28074.97248 | AM65: 4769.178628 | AO65: 3209.351529 | AP65: 4830.48277
N66: Poland | O66: Bananas | P66: ='FFV Coeffs for Calcs'!J61*P31 -> 15987.81896 | Q66: ='FFV Coeffs for Calcs'!K61*R31 -> 2054.378732 | R66: ='FFV Coeffs for Calcs'!L61*T31 -> 53844.64584 | S66: ='FFV Coeffs for Calcs'!L61*V31 -> 9146.749275 | T66: 81033.59281 | Y66: Poland | Z66: Bananas | AA66: ='FFV Coeffs for Calcs'!N27*P31/1000*$AD$42 -> 49.03753534 | AB66: =R31*'FFV Coeffs for Calcs'!O27/1000*$AD$42 -> 8.120821891 | AC66: =T31*'FFV Coeffs for Calcs'!P27/1000*$AD$42 -> 249.8596307 | AD66: =V31*'FFV Coeffs for Calcs'!O27/1000*$AD$42 -> 29.37328347 | AE66: 336.3912714 | AI66: Food Supply | AN66: =_xlfn.XLOOKUP(AH65,N$9:N$39,Q$9:Q$39,"",0)+AJ65 -> 77905.05251
N67: Portugal | O67: Bananas | P67: ='FFV Coeffs for Calcs'!J62*P32 -> 19916.12185 | Q67: ='FFV Coeffs for Calcs'!K62*R32 -> 3004.949876 | R67: ='FFV Coeffs for Calcs'!L62*T32 -> 78758.82832 | S67: ='FFV Coeffs for Calcs'!L62*V32 -> 13378.99516 | T67: 115058.8952 | Y67: Portugal | Z67: Bananas | AA67: ='FFV Coeffs for Calcs'!N28*P32/1000*$AD$42 -> 61.93369106 | AB67: =R32*'FFV Coeffs for Calcs'!O28/1000*$AD$42 -> 12.04313303 | AC67: =T32*'FFV Coeffs for Calcs'!P28/1000*$AD$42 -> 370.5404223 | AD67: =V32*'FFV Coeffs for Calcs'!O28/1000*$AD$42 -> 43.56041362 | AE67: 488.07766 | AH67: Switzerland | AI67: Food Waste | AJ67: 1373.45 | AK67: 1461.637361 | AL67: 31122.02856 | AM67: 5286.791058 | AO67: 3653.169053 | AP67: 5277.402744
N68: Romania | O68: Bananas | P68: ='FFV Coeffs for Calcs'!J63*P33 -> 6990.05175 | Q68: ='FFV Coeffs for Calcs'!K63*R33 -> 2028.662599 | R68: ='FFV Coeffs for Calcs'!L63*T33 -> 53170.63377 | S68: ='FFV Coeffs for Calcs'!L63*V33 -> 9032.252851 | T68: 71221.60097 | Y68: Romania | Z68: Bananas | AA68: ='FFV Coeffs for Calcs'!N29*P33/1000*$AD$42 -> 21.37585615 | AB68: =R33*'FFV Coeffs for Calcs'!O29/1000*$AD$42 -> 7.995267754 | AC68: =T33*'FFV Coeffs for Calcs'!P29/1000*$AD$42 -> 245.9966091 | AD68: =V33*'FFV Coeffs for Calcs'!O29/1000*$AD$42 -> 28.91914998 | AE68: 304.286883 | AI68: Food Supply | AN68: =_xlfn.XLOOKUP(AH67,N$9:N$39,Q$9:Q$39,"",0)+AJ67 -> 82575.52564
N69: Slovakia | O69: Bananas | P69: ='FFV Coeffs for Calcs'!J64*P34 -> 2799.166812 | Q69: ='FFV Coeffs for Calcs'!K64*R34 -> 832.2430905 | R69: ='FFV Coeffs for Calcs'!L64*T34 -> 21812.83995 | S69: ='FFV Coeffs for Calcs'!L64*V34 -> 3705.41165 | T69: 29149.6615 | Y69: Slovakia | Z69: Bananas | AA69: ='FFV Coeffs for Calcs'!N30*P34/1000*$AD$42 -> 10.47248085 | AB69: =R34*'FFV Coeffs for Calcs'!O30/1000*$AD$42 -> 4.012832718 | AC69: =T34*'FFV Coeffs for Calcs'!P30/1000*$AD$42 -> 123.4659391 | AD69: =V34*'FFV Coeffs for Calcs'!O30/1000*$AD$42 -> 14.5145497 | AE69: 152.4658024 | AH69: United Kingdom | AI69: Food Waste | AJ69: 42628.59 | AK69: 13500.26866 | AL69: 276082.5191 | AM69: 43858.32278 | AO69: 49000.98012 | AP69: 25236.72721
N70: Slovenia | O70: Bananas | P70: ='FFV Coeffs for Calcs'!J65*P35 -> 10207.65075 | Q70: ='FFV Coeffs for Calcs'!K65*R35 -> 308.8111342 | R70: ='FFV Coeffs for Calcs'!L65*T35 -> 8093.846522 | S70: ='FFV Coeffs for Calcs'!L65*V35 -> 1374.925652 | T70: 19985.23406 | Y70: Slovenia | Z70: Bananas | AA70: ='FFV Coeffs for Calcs'!N31*P35/1000*$AD$42 -> 14.52946432 | AB70: =R35*'FFV Coeffs for Calcs'!O31/1000*$AD$42 -> 0.5664959556 | AC70: =T35*'FFV Coeffs for Calcs'!P31/1000*$AD$42 -> 17.42982079 | AD70: =V35*'FFV Coeffs for Calcs'!O31/1000*$AD$42 -> 2.049034755 | AE70: 34.57481582 | AI70: Food Supply | AN70: =_xlfn.XLOOKUP(AH69,N$9:N$39,Q$9:Q$39,"",0)+AJ69 -> 717642.0228
N71: Spain | O71: Bananas | P71: ='FFV Coeffs for Calcs'!J66*P36 -> 50617.59336 | Q71: ='FFV Coeffs for Calcs'!K66*R36 -> 5481.586593 | R71: ='FFV Coeffs for Calcs'!L66*T36 -> 133605.955 | S71: ='FFV Coeffs for Calcs'!L66*V36 -> 24405.77165 | T71: 214110.9066 | Y71: Spain | Z71: Bananas | AA71: ='FFV Coeffs for Calcs'!N32*P36/1000*$AD$42 -> 119.2652872 | AB71: =R36*'FFV Coeffs for Calcs'!O32/1000*$AD$42 -> 16.64557906 | AC71: =T36*'FFV Coeffs for Calcs'!P32/1000*$AD$42 -> 476.2692453 | AD71: =V36*'FFV Coeffs for Calcs'!O32/1000*$AD$42 -> 60.2076143 | AE71: 672.3877259
N72: Sweden | O72: Bananas | P72: ='FFV Coeffs for Calcs'!J67*P37 -> 3961.726318 | Q72: ='FFV Coeffs for Calcs'!K67*R37 -> 1081.923808 | R72: ='FFV Coeffs for Calcs'!L67*T37 -> 31966.48065 | S72: ='FFV Coeffs for Calcs'!L67*V37 -> 5430.240633 | T72: 42440.37141 | Y72: Sweden | Z72: Bananas | AA72: ='FFV Coeffs for Calcs'!N33*P37/1000*$AD$42 -> 12.40058404 | AB72: =R37*'FFV Coeffs for Calcs'!O33/1000*$AD$42 -> 4.364499116 | AC72: =T37*'FFV Coeffs for Calcs'!P33/1000*$AD$42 -> 151.3793553 | AD72: =V37*'FFV Coeffs for Calcs'!O33/1000*$AD$42 -> 17.79602692 | AE72: 185.9404654
N73: Switzerland | O73: Bananas | P73: ='FFV Coeffs for Calcs'!J68*P38 -> 521.911 | Q73: ='FFV Coeffs for Calcs'!K68*R38 -> 701.5859335 | R73: ='FFV Coeffs for Calcs'!L68*T38 -> 18582.4045 | S73: ='FFV Coeffs for Calcs'!L68*V38 -> 3156.648024 | T73: 22962.54946 | Y73: Switzerland | Z73: Bananas | AA73: ='FFV Coeffs for Calcs'!N34*P38/1000*$AD$42 -> 4.380219668 | AB73: =R38*'FFV Coeffs for Calcs'!O34/1000*$AD$42 -> 6.735820728 | AC73: =T38*'FFV Coeffs for Calcs'!P34/1000*$AD$42 -> 207.2462249 | AD73: =V38*'FFV Coeffs for Calcs'!O34/1000*$AD$42 -> 24.3636881 | AE73: 242.7259534
N74: United Kingdom | O74: Bananas | P74: ='FFV Coeffs for Calcs'!J69*P39 -> 26856.0117 | Q74: ='FFV Coeffs for Calcs'!K69*R39 -> 9855.196119 | R74: ='FFV Coeffs for Calcs'!L69*T39 -> 237430.9664 | S74: ='FFV Coeffs for Calcs'!L69*V39 -> 37718.15759 | T74: 311860.3318 | Y74: United Kingdom | Z74: Bananas | AA74: ='FFV Coeffs for Calcs'!N35*P39/1000*$AD$42 -> 90.81932025 | AB74: =R39*'FFV Coeffs for Calcs'!O35/1000*$AD$42 -> 41.5611482 | AC74: =T39*'FFV Coeffs for Calcs'!P35/1000*$AD$42 -> 1228.151328 | AD74: =V39*'FFV Coeffs for Calcs'!O35/1000*$AD$42 -> 135.0197022 | AE74: 1495.551499
N75: EU+ | O75: Bananas | P75: =SUM(P44,P46:P50,P52:P59,P62:P74) -> 272470.8595 | Q75: =SUM(Q44:Q74) -> 85450.72078 | R75: =SUM(R44:R74) -> 2234863.865 | S75: =SUM(S44:S74) -> 375362.7536 | T75: =SUM(T44:T74) -> 2968148.199 | Y75: EU+ | Z75: Bananas | AA75: =SUM(AA44,AA46:AA50,AA52:AA59,AA62:AA74) -> 802.0923028 | AB75: =SUM(AB44:AB74) -> 330.3034791 | AC75: =SUM(AC44:AC74) -> 10156.70714 | AD75: =SUM(AD44:AD74) -> 1181.419826 | AE75: 12470.52275
N85: Country | O85: Food Availability | P85: Total Food Waste | Q85: % Waste | S85: Food Availablility | T85: % Waste
N86: Austria | O86: 135520.7118 | P86: 67734.76351 | Q86: 0.4998111553 | S86: =Q9+_xlfn.IFNA(P9,0) -> 135520.7118 | T86: =W9/S86 -> 0.4998111553
N87: Belgium | O87: 155191.59 | P87: 72377.16999 | Q87: 0.4663730167 | S87: 155191.59 | T87: 0.4663730167
N88: Bulgaria | O88: 42389.76 | P88: 20907.61324 | Q88: 0.4932232039 | S88: 42389.76 | T88: 0.4932232039
N89: Croatia | O89: 63917.7459 | P89: 32136.39244 | Q89: 0.5027773114 | S89: 63917.7459 | T89: 0.5027773114
N90: Cyprus | O90: 10002.38299 | P90: 5321.293437 | Q90: 0.5320025678 | S90: 10002.38299 | T90: 0.5320025678
N91: Czechia | O91: 109313.2352 | P91: 57061.62016 | Q91: 0.5220010192 | S91: 109313.2352 | T91: 0.5220010192
N92: Denmark | O92: 65381.51161 | P92: 32397.96472 | Q92: 0.4955218062 | S92: 65381.51161 | T92: 0.4955218062
N93: Estonia | O93: 15476.92068 | P93: 7218.018188 | Q93: 0.4663730167 | S93: 15476.92068 | T93: 0.4663730167
N94: Finland | O94: 94764.11208 | P94: 43695.58193 | Q94: 0.4610984156 | S94: 94764.11208 | T94: 0.4610984156
N95: France | O95: 751950.8 | P95: 376994.2302 | Q95: 0.501354916 | S95: 751950.8 | T95: 0.501354916
N96: Germany | O96: 820773.7769 | P96: 415437.8362 | Q96: 0.5061538853 | S96: 820773.7769 | T96: 0.5061538853
N97: Greece | O97: 128576.5802 | P97: 60119.37806 | Q97: 0.4675764277 | S97: 128576.5802 | T97: 0.4675764277
N98: Hungary | O98: 27265.63777 | P98: 14038.50952 | Q98: 0.5148791913 | S98: 27265.63777 | T98: 0.5148791913
N99: Iceland | O99: 4059.101906 | P99: 1949.561362 | Q99: 0.4802937712 | S99: 4059.101906 | T99: 0.4802937712
N100: Ireland | O100: 61680.17312 | P100: 30522.52602 | Q100: 0.4948514973 | S100: 61680.17312 | T100: 0.4948514973
N101: Italy | O101: 666707.98 | P101: 310948.865 | Q101: 0.4663943951 | S101: 666707.98 | T101: 0.4663943951
N102: Latvia | O102: 17266.66963 | P102: 8052.708801 | Q102: 0.4663730167 | S102: 17266.66963 | T102: 0.4663730167
N103: Lithuania | O103: 26333.51 | P103: 12281.2385 | Q103: 0.4663730167 | S103: 26333.51 | T103: 0.4663730167
N104: Luxembourg | O104: 5298.458367 | P104: 2647.138908 | Q104: 0.4996054936 | S104: 5298.458367 | T104: 0.4996054936
N105: Malta | O105: 8065.982358 | P105: 4022.214519 | Q105: 0.4986639371 | S105: 8065.982358 | T105: 0.4986639371
N106: Netherlands | O106: 382034.6135 | P106: 196405.3198 | Q106: 0.5141034682 | S106: 382034.6135 | T106: 0.5141034682
N107: Norway | O107: 67375.55387 | P107: 33554.68449 | Q107: 0.4980246182 | S107: 67375.55387 | T107: 0.4980246182
N108: Poland | O108: 142765.2845 | P108: 76923.12683 | Q108: 0.5388083462 | S108: 142765.2845 | T108: 0.5388083462
N109: Portugal | O109: 204618.2238 | P109: 108310.5759 | Q109: 0.5293300562 | S109: 204618.2238 | T109: 0.5293300562
N110: Romania | O110: 130314.3875 | P110: 65296.42339 | Q110: 0.5010684133 | S110: 130314.3875 | T110: 0.5010684133
N111: Slovakia | O111: 53377.49947 | P111: 26704.38417 | Q111: 0.500292903 | S111: 53377.49947 | T111: 0.500292903
N112: Slovenia | O112: 30920.12527 | P112: 21022.83073 | Q112: 0.6799076832 | S112: 30920.12527 | T112: 0.6799076832
N113: Spain | O113: 390579.0786 | P113: 206056.528 | Q113: 0.5275667317 | S113: 390579.0786 | T113: 0.5275667317
N114: Sweden | O114: 77905.05251 | P114: 38815.89097 | Q114: 0.4982461307 | S114: 77905.05251 | T114: 0.4982461307
N115: Switzerland | O115: 82575.52564 | P115: 39243.90697 | Q115: 0.4752486487 | S115: 82575.52564 | T115: 0.4752486487
N116: United Kingdom | O116: 717642.0228 | P116: 376069.7005 | Q116: 0.5240352272 | S116: 717642.0228 | T116: 0.5240352272

Sheet Cucumbers - Summary
A1: Homepage
N7: Food Waste | O7: Unit: Tonnes | Y7: Difference (Worst and Best Case) | Z7: Unit: Tonnes | AH7: Data for the illustration | AI7: Unit: Tonnes
N8: Country | O8: Product | P8: Food Waste - Pre R&D | Q8: Food Supply Quantity | R8: Food Waste - R&D | S8: Consumption - Households | T8: Food Waste - Households | U8: Consumption - Food Service | V8: Food Waste - Food Service | W8: Total Food Waste | Y8: Country | Z8: Product | AA8: Total FW | AB8: Best Case | AC8: Worst Case | AD8: Average B/W case | AE8: Lower Error | AF8: Higher Error | AH8: Country | AJ8: Food Waste - Pre R&D | AK8: Food Waste - R&D | AL8: Food Waste - Households | AM8: Food Waste - Food Service | AN8: Food Availability | AO8: Lower Error | AP8: Higher Error
N9: Austria | O9: Cucumbers | P9: =_xlfn.XLOOKUP($N9&$O9,'FFV Waste'!$A:$A&'FFV Waste'!$B:$B,'FFV Waste'!C:C,"",0) -> 2684.205 | Q9: =_xlfn.XLOOKUP($N9&$O9,'FFV Waste'!$A:$A&'FFV Waste'!$B:$B,'FFV Waste'!D:D,"",0) -> 43524.24048 | R9: =_xlfn.XLOOKUP($N9&$O9,'FFV Waste'!$A:$A&'FFV Waste'!$B:$B,'FFV Waste'!E:E,"",0) -> 2002.115062 | S9: =_xlfn.XLOOKUP($N9&$O9,'FFV Waste'!$A:$A&'FFV Waste'!$B:$B,'FFV Waste'!F:F,"",0) -> 36954.69162 | T9: =_xlfn.XLOOKUP($N9&$O9,'FFV Waste'!$A:$A&'FFV Waste'!$B:$B,'FFV Waste'!G:G,"",0) -> 8690.511647 | U9: =_xlfn.XLOOKUP($N9&$O9,'FFV Waste'!$A:$A&'FFV Waste'!$B:$B,'FFV Waste'!H:H,"",0) -> 4567.433796 | V9: =_xlfn.XLOOKUP($N9&$O9,'FFV Waste'!$A:$A&'FFV Waste'!$B:$B,'FFV Waste'!I:I,"",0) -> 1557.494924 | W9: =_xlfn.XLOOKUP($N9&$O9,'FFV Waste'!$A:$A&'FFV Waste'!$B:$B,'FFV Waste'!J:J,"",0) -> 14934.32663 | Y9: Austria | Z9: Cucumbers | AA9: =W9 -> 14934.32663 | AB9: =_xlfn.XLOOKUP(Y9&Z9,'FFV Waste'!$L:$L&'FFV Waste'!$M:$M,'FFV Waste'!$U:$U,,0) -> 10144.60967 | AC9: =_xlfn.XLOOKUP(Y9&Z9,'FFV Waste'!$W:$W&'FFV Waste'!$X:$X,'FFV Waste'!$AF:$AF,,0) -> 19467.29228 | AD9: =AVERAGE(AB9:AC9) -> 14805.95097 | AE9: =AA9-MIN(AB9,AA9) -> 4789.716967 | AF9: =AC9-MIN(AA9,AC9) -> 4532.965644 | AH9: Austria | AI9: Food Waste | AJ9: =_xlfn.XLOOKUP($AH9,$N$9:$N$39,P$9:P$39,"",0) -> 2684.205 | AK9: =_xlfn.XLOOKUP($AH9,$N$9:$N$39,R$9:R$39,"",0) -> 2002.115062 | AL9: =_xlfn.XLOOKUP($AH9,$N$9:$N$39,T$9:T$39,"",0) -> 8690.511647 | AM9: =_xlfn.XLOOKUP($AH9,$N$9:$N$39,V$9:V$39,"",0) -> 1557.494924 | AO9: =IF(ISBLANK($AH9),"",_xlfn.XLOOKUP($AH9,$Y$9:$Y$39,AE$9:AE$39,,0)) -> 4789.716967 | AP9: =IF(ISBLANK($AH9),"",_xlfn.XLOOKUP($AH9,$Y$9:$Y$39,AF$9:AF$39,,0)) -> 4532.965644
N10: Belgium | O10: Cucumbers | P10: =_xlfn.XLOOKUP($N10&$O10,'FFV Waste'!$A:$A&'FFV Waste'!$B:$B,'FFV Waste'!C:C,"",0) -> 620.4478723 | Q10: =_xlfn.XLOOKUP($N10&$O10,'FFV Waste'!$A:$A&'FFV Waste'!$B:$B,'FFV Waste'!D:D,"",0) -> 18986.00235 | R10: =_xlfn.XLOOKUP($N10&$O10,'FFV Waste'!$A:$A&'FFV Waste'!$B:$B,'FFV Waste'!E:E,"",0) -> 477.1815257 | S10: =_xlfn.XLOOKUP($N10&$O10,'FFV Waste'!$A:$A&'FFV Waste'!$B:$B,'FFV Waste'!F:F,"",0) -> 16472.85053 | T10: =_xlfn.XLOOKUP($N10&$O10,'FFV Waste'!$A:$A&'FFV Waste'!$B:$B,'FFV Waste'!G:G,"",0) -> 3873.86535 | U10: =_xlfn.XLOOKUP($N10&$O10,'FFV Waste'!$A:$A&'FFV Waste'!$B:$B,'FFV Waste'!H:H,"",0) -> 2035.970291 | V10: =_xlfn.XLOOKUP($N10&$O10,'FFV Waste'!$A:$A&'FFV Waste'!$B:$B,'FFV Waste'!I:I,"",0) -> 694.2658691 | W10: =_xlfn.XLOOKUP($N10&$O10,'FFV Waste'!$A:$A&'FFV Waste'!$B:$B,'FFV Waste'!J:J,"",0) -> 5665.760618 | Y10: Belgium | Z10: Cucumbers | AA10: =W10 -> 5665.760618 | AB10: =_xlfn.XLOOKUP(Y10&Z10,'FFV Waste'!$L:$L&'FFV Waste'!$M:$M,'FFV Waste'!$U:$U,,0) -> 3874.801285 | AC10: =_xlfn.XLOOKUP(Y10&Z10,'FFV Waste'!$W:$W&'FFV Waste'!$X:$X,'FFV Waste'!$AF:$AF,,0) -> 7941.511513 | AD10: =AVERAGE(AB10:AC10) -> 5908.156399 | AE10: =AA10-MIN(AB10,AA10) -> 1790.959333 | AF10: =AC10-MIN(AA10,AC10) -> 2275.750896 | AI10: Food Supply | AN10: =_xlfn.XLOOKUP(AH9,N$9:N$39,Q$9:Q$39,"",0)+AJ9 -> 46208.44548 | AO10: =IF(ISBLANK($AH10),"",_xlfn.XLOOKUP($AH10,$Y$9:$Y$39,AE$9:AE$39,,0)) -> 
N11: Bulgaria | O11: Cucumbers | P11: =_xlfn.XLOOKUP($N11&$O11,'FFV Waste'!$A:$A&'FFV Waste'!$B:$B,'FFV Waste'!C:C,"",0) -> 4198.23692 | Q11: =_xlfn.XLOOKUP($N11&$O11,'FFV Waste'!$A:$A&'FFV Waste'!$B:$B,'FFV Waste'!D:D,"",0) -> 54963.85425 | R11: =_xlfn.XLOOKUP($N11&$O11,'FFV Waste'!$A:$A&'FFV Waste'!$B:$B,'FFV Waste'!E:E,"",0) -> 1381.42487 | S11: =_xlfn.XLOOKUP($N11&$O11,'FFV Waste'!$A:$A&'FFV Waste'!$B:$B,'FFV Waste'!F:F,"",0) -> 47688.36215 | T11: =_xlfn.XLOOKUP($N11&$O11,'FFV Waste'!$A:$A&'FFV Waste'!$B:$B,'FFV Waste'!G:G,"",0) -> 11214.71317 | U11: =_xlfn.XLOOKUP($N11&$O11,'FFV Waste'!$A:$A&'FFV Waste'!$B:$B,'FFV Waste'!H:H,"",0) -> 5894.067232 | V11: =_xlfn.XLOOKUP($N11&$O11,'FFV Waste'!$A:$A&'FFV Waste'!$B:$B,'FFV Waste'!I:I,"",0) -> 2009.876926 | W11: =_xlfn.XLOOKUP($N11&$O11,'FFV Waste'!$A:$A&'FFV Waste'!$B:$B,'FFV Waste'!J:J,"",0) -> 18804.25188 | Y11: Bulgaria | Z11: Cucumbers | AA11: 18804.25188 | AB11: =_xlfn.XLOOKUP(Y11&Z11,'FFV Waste'!$L:$L&'FFV Waste'!$M:$M,'FFV Waste'!$U:$U,,0) -> 13619.48334 | AC11: =_xlfn.XLOOKUP(Y11&Z11,'FFV Waste'!$W:$W&'FFV Waste'!$X:$X,'FFV Waste'!$AF:$AF,,0) -> 21194.23918 | AD11: 17406.86126 | AE11: 5184.768543 | AF11: 2389.987301 | AH11: Belgium | AI11: Food Waste | AJ11: 620.4478723 | AK11: 477.1815257 | AL11: 3873.86535 | AM11: 694.2658691 | AO11: 1790.959333 | AP11: 2275.750896
N12: Croatia | O12: Cucumbers | P12: =_xlfn.XLOOKUP($N12&$O12,'FFV Waste'!$A:$A&'FFV Waste'!$B:$B,'FFV Waste'!C:C,"",0) -> 931.5156 | Q12: =_xlfn.XLOOKUP($N12&$O12,'FFV Waste'!$A:$A&'FFV Waste'!$B:$B,'FFV Waste'!D:D,"",0) -> 11354.1429 | R12: =_xlfn.XLOOKUP($N12&$O12,'FFV Waste'!$A:$A&'FFV Waste'!$B:$B,'FFV Waste'!E:E,"",0) -> 285.3674582 | S12: =_xlfn.XLOOKUP($N12&$O12,'FFV Waste'!$A:$A&'FFV Waste'!$B:$B,'FFV Waste'!F:F,"",0) -> 9851.210143 | T12: =_xlfn.XLOOKUP($N12&$O12,'FFV Waste'!$A:$A&'FFV Waste'!$B:$B,'FFV Waste'!G:G,"",0) -> 2316.676252 | U12: =_xlfn.XLOOKUP($N12&$O12,'FFV Waste'!$A:$A&'FFV Waste'!$B:$B,'FFV Waste'!H:H,"",0) -> 1217.565299 | V12: =_xlfn.XLOOKUP($N12&$O12,'FFV Waste'!$A:$A&'FFV Waste'!$B:$B,'FFV Waste'!I:I,"",0) -> 415.1897668 | W12: =_xlfn.XLOOKUP($N12&$O12,'FFV Waste'!$A:$A&'FFV Waste'!$B:$B,'FFV Waste'!J:J,"",0) -> 3948.749077 | Y12: Croatia | Z12: Cucumbers | AA12: 3948.749077 | AB12: =_xlfn.XLOOKUP(Y12&Z12,'FFV Waste'!$L:$L&'FFV Waste'!$M:$M,'FFV Waste'!$U:$U,,0) -> 2877.706958 | AC12: =_xlfn.XLOOKUP(Y12&Z12,'FFV Waste'!$W:$W&'FFV Waste'!$X:$X,'FFV Waste'!$AF:$AF,,0) -> 4378.194063 | AD12: 3627.95051 | AE12: 1071.042119 | AF12: 429.4449855 | AI12: Food Supply | AN12: =_xlfn.XLOOKUP(AH11,N$9:N$39,Q$9:Q$39,"",0)+AJ11 -> 19606.45022
N13: Cyprus | O13: Cucumbers | P13: =_xlfn.XLOOKUP($N13&$O13,'FFV Waste'!$A:$A&'FFV Waste'!$B:$B,'FFV Waste'!C:C,"",0) -> 471.0162058 | Q13: =_xlfn.XLOOKUP($N13&$O13,'FFV Waste'!$A:$A&'FFV Waste'!$B:$B,'FFV Waste'!D:D,"",0) -> 5027.0301 | R13: =_xlfn.XLOOKUP($N13&$O13,'FFV Waste'!$A:$A&'FFV Waste'!$B:$B,'FFV Waste'!E:E,"",0) -> 126.3460232 | S13: =_xlfn.XLOOKUP($N13&$O13,'FFV Waste'!$A:$A&'FFV Waste'!$B:$B,'FFV Waste'!F:F,"",0) -> 4361.608828 | T13: =_xlfn.XLOOKUP($N13&$O13,'FFV Waste'!$A:$A&'FFV Waste'!$B:$B,'FFV Waste'!G:G,"",0) -> 1025.705009 | U13: =_xlfn.XLOOKUP($N13&$O13,'FFV Waste'!$A:$A&'FFV Waste'!$B:$B,'FFV Waste'!H:H,"",0) -> 539.0752485 | V13: =_xlfn.XLOOKUP($N13&$O13,'FFV Waste'!$A:$A&'FFV Waste'!$B:$B,'FFV Waste'!I:I,"",0) -> 183.8246597 | W13: =_xlfn.XLOOKUP($N13&$O13,'FFV Waste'!$A:$A&'FFV Waste'!$B:$B,'FFV Waste'!J:J,"",0) -> 1806.891898 | Y13: Cyprus | Z13: Cucumbers | AA13: 1806.891898 | AB13: =_xlfn.XLOOKUP(Y13&Z13,'FFV Waste'!$L:$L&'FFV Waste'!$M:$M,'FFV Waste'!$U:$U,,0) -> 1332.689572 | AC13: =_xlfn.XLOOKUP(Y13&Z13,'FFV Waste'!$W:$W&'FFV Waste'!$X:$X,'FFV Waste'!$AF:$AF,,0) -> 2409.455199 | AD13: 1871.072386 | AE13: 474.202326 | AF13: 602.5633012 | AH13: Bulgaria | AI13: Food Waste | AJ13: 4198.23692 | AK13: 1381.42487 | AL13: 11214.71317 | AM13: 2009.876926 | AO13: 5184.768543 | AP13: 2389.987301
N14: Czechia | O14: Cucumbers | P14: =_xlfn.XLOOKUP($N14&$O14,'FFV Waste'!$A:$A&'FFV Waste'!$B:$B,'FFV Waste'!C:C,"",0) -> 344.9022 | Q14: =_xlfn.XLOOKUP($N14&$O14,'FFV Waste'!$A:$A&'FFV Waste'!$B:$B,'FFV Waste'!D:D,"",0) -> 43091.28329 | R14: =_xlfn.XLOOKUP($N14&$O14,'FFV Waste'!$A:$A&'FFV Waste'!$B:$B,'FFV Waste'!E:E,"",0) -> 1083.027587 | S14: =_xlfn.XLOOKUP($N14&$O14,'FFV Waste'!$A:$A&'FFV Waste'!$B:$B,'FFV Waste'!F:F,"",0) -> 37387.34757 | T14: =_xlfn.XLOOKUP($N14&$O14,'FFV Waste'!$A:$A&'FFV Waste'!$B:$B,'FFV Waste'!G:G,"",0) -> 8792.257904 | U14: =_xlfn.XLOOKUP($N14&$O14,'FFV Waste'!$A:$A&'FFV Waste'!$B:$B,'FFV Waste'!H:H,"",0) -> 4620.908127 | V14: =_xlfn.XLOOKUP($N14&$O14,'FFV Waste'!$A:$A&'FFV Waste'!$B:$B,'FFV Waste'!I:I,"",0) -> 1575.729671 | W14: =_xlfn.XLOOKUP($N14&$O14,'FFV Waste'!$A:$A&'FFV Waste'!$B:$B,'FFV Waste'!J:J,"",0) -> 11795.91736 | Y14: Czechia | Z14: Cucumbers | AA14: 11795.91736 | AB14: =_xlfn.XLOOKUP(Y14&Z14,'FFV Waste'!$L:$L&'FFV Waste'!$M:$M,'FFV Waste'!$U:$U,,0) -> 7731.094523 | AC14: =_xlfn.XLOOKUP(Y14&Z14,'FFV Waste'!$W:$W&'FFV Waste'!$X:$X,'FFV Waste'!$AF:$AF,,0) -> 16616.13759 | AD14: 12173.61606 | AE14: 4064.822839 | AF14: 4820.220227 | AI14: Food Supply | AN14: =_xlfn.XLOOKUP(AH13,N$9:N$39,Q$9:Q$39,"",0)+AJ13 -> 59162.09117
